Workbook

Sheet Cover page
A4: Cold Chain for Ocean Communities - Financial Projections Model (Basic version)
B6: Key instructions and guidelines
B8: 1 | C8: Introduction
C9: This tool includes a three-statement financial model to simulate the operations, growth, and capital needs for a cold chain project over a 5 year time horizon. The model projects detailed revenues, costs, CAPEX, and financing, enabling both the project developer and or investors to test key assumptions and assess overall project performance. The model is built on a monthly basis to allow for granular analysis and targeted finance decisions. Please take some time to read and understand the instructions on this page before proceeding to the rest of the model, after which you need to update the assumptions based on the expectations/realities of your project. The assumptions sheet is the only one in which you should be making changes, by inputting assumption data in the grey boxes with blue font. The rest of the model auto-populates based on what's in the assumptions sheet, hence they do not require any inputs; any change in other sheets could break the model.
B11: 2 | C11: Table of contents & Legend
C13: Please click on one of the titles to access the material you want to look at (alternatively just click on the tabs at the bottom of the window).
C15: Sheet | D15: Descriptions
C16: Dashboard | D16: This sheet provides outputs of the model i.e., summary financials and charts of the financial projections
C17: Assumptions | D17: This sheet focuses on inputs to the model that reflect the key revenue, cost, & capitalization drivers
C18: Monthly build | D18: This sheet provides the projected monthly financial statements and the detailed supporting calculations underlying the financial projections
C19: Annual Financials | D19: This sheet provides projected annual financial statements
C21: Regarding the cells, please only make changes to the assumption fields, highlighted in grey with blue font:
C23: Blue text | D23: Assumption field - in these fields please enter your assumptions
C24: Black text | D24: Calculations field - should not be modified else you risk breaking the model
B26: 3 | C26: Model usage instructions
C28: Step 1: Please work your way through the assumptions, populating the grey fields with actual and or expected data; also, remember to select the relevant business model for your project. An overview of possible business models is provided on the Assumptions sheet. Additional guidance is also provided on the Assumptions sheet, in "light gray text" on the right hand side.
C29: Step 2: After entering all your assumptions, please review the outputs carefully on the Dashboard. If you want further details, e.g., to understand the underlying context, you can refer to either the Monthly build or the Annual financials. Review the outputs carefully to help you understand likely economics of the project, including revenue, profit, and sustainability potential, as well as investment and financing needs.
C31: Note: The Assumptions tab is the primary input sheet and should be the only place where changes are made. All other sheets are formula-driven and automatically pull from these assumptions to perform the relevant calculations.

Sheet Dashboard
B1: Dashboard | V1: x
V2: x
B3: Summary financials | V3: x
B5: ="(all figures in "&'Assumptions '!F11&")" -> (all figures in USD) | V5: x
B7: Profit and loss statement | D7: ='Annual financials'!F4 -> 2026-12-31 | E7: ='Annual financials'!G4 -> 2027-12-31 | F7: ='Annual financials'!H4 -> 2028-12-31 | G7: ='Annual financials'!I4 -> 2029-12-31 | H7: ='Annual financials'!J4 -> 2030-12-31 | I7: 5-year CAGR* | V7: x
B8: Revenue | D8: ='Annual financials'!F14 -> 174899.1 | E8: ='Annual financials'!G14 -> 215605.8 | F8: ='Annual financials'!H14 -> 212006.6 | G8: ='Annual financials'!I14 -> 232890.4 | H8: ='Annual financials'!J14 -> 256406.2 | I8: =IFERROR(((H8/D8)^(1/5))-1,0) -> 0.07951377767 | V8: x
B9: Other income (grants) | D9: ='Annual financials'!F26 -> 100000 | E9: ='Annual financials'!G26 -> 50000 | F9: ='Annual financials'!H26 -> 0 | G9: ='Annual financials'!I26 -> 0 | H9: ='Annual financials'!J26 -> 0 | I9: =IFERROR(((H9/D9)^(1/5))-1,0) -> -1
B10: Total income | D10: =SUM(D8:D9) -> 274899.1 | E10: =SUM(E8:E9) -> 265605.8 | F10: 212006.6 | G10: 232890.4 | H10: 256406.2 | I10: =IFERROR(((H10/D10)^(1/5))-1,0) -> -0.0138316939
B12: Direct costs of goods sold | D12: ='Annual financials'!F20 -> -108617.553 | E12: ='Annual financials'!G20 -> -133944.774 | F12: ='Annual financials'!H20 -> -131336.238 | G12: ='Annual financials'!I20 -> -144377.832 | H12: ='Annual financials'!J20 -> -158801.106 | I12: 0.07892362199 | V12: x
B13: Operating expenses | D13: ='Annual financials'!F31 -> -56407.46793 | E13: ='Annual financials'!G31 -> -58459.78393 | F13: ='Annual financials'!H31 -> -65079.79473 | G13: ='Annual financials'!I31 -> -67223.49458 | H13: ='Annual financials'!J31 -> -69542.76698 | I13: 0.04275689997 | V13: x
B14: Depreciation | D14: ='Annual financials'!F35 -> -16894.31972 | E14: ='Annual financials'!G35 -> -14955.55287 | F14: ='Annual financials'!H35 -> -13266.51627 | G14: ='Annual financials'!I35 -> -11797.86707 | H14: ='Annual financials'!J35 -> -10515.13386 | I14: -0.09047462641 | V14: x
B15: Interest expense | D15: ='Annual financials'!F39 -> 0 | E15: ='Annual financials'!G39 -> 0 | F15: ='Annual financials'!H39 -> 0 | G15: ='Annual financials'!I39 -> 0 | H15: ='Annual financials'!J39 -> 0 | I15: 0 | V15: x
B16: Earnings before taxes | D16: =SUM(D10:D15) -> 92979.75935 | E16: =SUM(E10:E15) -> 58245.6892 | F16: 2324.050995 | G16: 9491.206349 | H16: 17547.19316 | I16: -0.2835863569 | V16: x
B18: Income taxes | D18: ='Annual financials'!F43 -> -27893.92781 | E18: ='Annual financials'!G43 -> -17473.70676 | F18: ='Annual financials'!H43 -> -697.2152984 | G18: ='Annual financials'!I43 -> -2847.361905 | H18: ='Annual financials'!J43 -> -5264.157947 | I18: -0.2835863569 | V18: x
B19: Net profit (incl. grants!) | D19: =D16+D18 -> 65085.83155 | E19: =E16+E18 -> 40771.98244 | F19: 1626.835696 | G19: 6643.844444 | H19: 12283.03521 | I19: -0.2835863569 | V19: x
B20: Net profit margin | D20: =IFERROR(D19/D8,0) -> 0.372133599 | E20: =IFERROR(E19/E8,0) -> 0.1891042933 | F20: =IFERROR(F19/F8,0) -> 0.007673514391 | G20: =IFERROR(G19/G8,0) -> 0.02852777291 | H20: =IFERROR(H19/H8,0) -> 0.04790459517 | V20: x
V21: x
B22: Balance sheet | D22: =D7 -> 2026-12-31 | E22: =E7 -> 2027-12-31 | F22: =F7 -> 2028-12-31 | G22: =G7 -> 2029-12-31 | H22: =H7 -> 2030-12-31 | V22: x
B23: Current assets | D23: ='Annual financials'!F55 -> 22078.76825 | E23: ='Annual financials'!G55 -> 77861.86587 | F23: ='Annual financials'!H55 -> 92751.82101 | G23: ='Annual financials'!I55 -> 111223.5161 | H23: ='Annual financials'!J55 -> 134054.8249 | V23: x
B24: Non-current assets | D24: ='Annual financials'!F64 -> 144505.6803 | E24: ='Annual financials'!G64 -> 129550.1274 | F24: ='Annual financials'!H64 -> 116283.6111 | G24: ='Annual financials'!I64 -> 104485.7441 | H24: ='Annual financials'!J64 -> 93970.61021 | V24: x
B25: Total assets | D25: =D23+D24 -> 166584.4485 | E25: =E23+E24 -> 207411.9933 | F25: 209035.4321 | G25: 215709.2602 | H25: 228025.4351 | I25: =IFERROR(((H25/D25)^(1/5))-1,0) -> 0.06480422948 | V25: x
V26: x
B27: Current liabilities | D27: ='Annual financials'!F71 -> 248.6169863 | E27: ='Annual financials'!G71 -> 304.1792877 | F27: ='Annual financials'!H71 -> 300.7824658 | G27: ='Annual financials'!I71 -> 330.7660274 | H27: ='Annual financials'!J71 -> 363.9057534 | V27: x
B28: Non- current liabilities | D28: ='Annual financials'!F75 -> 0 | E28: ='Annual financials'!G75 -> 0 | F28: ='Annual financials'!H75 -> 0 | G28: ='Annual financials'!I75 -> 0 | H28: ='Annual financials'!J75 -> 0 | V28: x
B29: Total liabilities | D29: =SUM(D27:D28) -> 248.6169863 | E29: =SUM(E27:E28) -> 304.1792877 | F29: 300.7824658 | G29: 330.7660274 | H29: 363.9057534 | I29: =IFERROR(((H29/D29)^(1/5))-1,0) -> 0.07917437595 | V29: x
V30: x
B31: Total equity | D31: ='Annual financials'!F80 -> 166335.8315 | E31: ='Annual financials'!G80 -> 207107.814 | F31: ='Annual financials'!H80 -> 208734.6497 | G31: ='Annual financials'!I80 -> 215378.4941 | H31: ='Annual financials'!J80 -> 227661.5293 | V31: x
B32: Total equity and liabilities | D32: =SUM(D29,D31) -> 166584.4485 | E32: =SUM(E29,E31) -> 207411.9933 | F32: 209035.4321 | G32: 215709.2602 | H32: 228025.4351 | I32: =IFERROR(((H32/D32)^(1/5))-1,0) -> 0.06480422948 | V32: x
B33: D/E ratio | D33: =D29/D31 -> 0.001494668852 | E33: =E29/E31 -> 0.001468700199 | F33: 0.001440980049 | G33: 0.001535743059 | H33: 0.001598450799 | V33: x
B35: Cashflow statement | V35: x
B36: Cashflow from operating activities | D36: ='Annual financials'!F97 -> -22660.69914 | E36: ='Annual financials'!G97 -> 4690.372352 | F36: ='Annual financials'!H97 -> 14956.75931 | G36: ='Annual financials'!I97 -> 17882.01836 | H36: ='Annual financials'!J97 -> 22179.56085 | I36: =IFERROR(((H36/D36)^(1/5))-1,0) -> -1.995717013 | V36: x
B37: Cashflow from investing activities | D37: ='Annual financials'!F101 -> -160150 | E37: ='Annual financials'!G101 -> 0 | F37: ='Annual financials'!H101 -> 0 | G37: ='Annual financials'!I101 -> 0 | H37: ='Annual financials'!J101 -> 0 | V37: x
B38: Cashflow from financing activities | D38: ='Annual financials'!F109 -> 200000 | E38: ='Annual financials'!G109 -> 50000 | F38: ='Annual financials'!H109 -> 0 | G38: ='Annual financials'!I109 -> 0 | H38: ='Annual financials'!J109 -> 0 | V38: x
B39: Net changes in cashflow | D39: =SUM(D36:D38) -> 17189.30086 | E39: =SUM(E36:E38) -> 54690.37235 | F39: 14956.75931 | G39: 17882.01836 | H39: 22179.56085 | V39: x
B40: Opening cash balance | D40: ='Annual financials'!F111 -> 0 | E40: ='Annual financials'!G111 -> 17189.30086 | F40: ='Annual financials'!H111 -> 71879.67321 | G40: ='Annual financials'!I111 -> 86836.43252 | H40: ='Annual financials'!J111 -> 104718.4509 | V40: x
B41: Closing cash balance | D41: ='Annual financials'!F113 -> 17189.30086 | E41: ='Annual financials'!G113 -> 71879.67321 | F41: ='Annual financials'!H113 -> 86836.43252 | G41: ='Annual financials'!I113 -> 104718.4509 | H41: ='Annual financials'!J113 -> 126898.0117 | I41: =IFERROR(((H41/D41)^(1/5))-1,0) -> 0.491555167 | V41: x
B42: * CAGR stands for Compound Annual Growth Rate
V43: x
B44: Summary charts | V44: x
E45: No | V45: x
V47: x
V48: x
V49: x
V50: x
V51: x
V52: x
V53: x
V54: x
V55: x
V56: x
V57: x
V58: x
D59: =YEAR('Annual financials'!F4) -> 2026 | E59: =YEAR('Annual financials'!G4) -> 2027 | F59: =YEAR('Annual financials'!H4) -> 2028 | G59: =YEAR('Annual financials'!I4) -> 2029 | H59: =YEAR('Annual financials'!J4) -> 2030 | V59: x
V60: x
V61: x
V62: x
V63: x
V64: x
V65: x
V66: x
V67: x
V68: x
V69: x
V70: x
V71: x
V72: x
V73: x
V74: x
V75: x
V76: x
V77: x
V78: x
V79: x
V80: x
R81: x
R82: x
R83: x
R84: x
R85: x
R86: x
R87: x
R88: x
R89: x
E90: Revenue | F90: =SUM(D8:H8) -> 1091808.1 | R90: x
E91: Other income (grants) | F91: =SUM(D9:H9) -> 150000 | R91: x
E92: COGS | F92: =SUM(D12:H12) -> -677077.503 | R92: x
E93: Operating expenses | F93: =SUM(D13:H13) -> -316713.3082 | R93: x
E94: Depn, Interest & taxes | F94: =SUM(D14:H15)+SUM(D18:H18) -> -121605.7595 | R94: x
E95: Net profit | F95: =SUM(D19:H19) -> 126411.5293 | R95: x
R96: x
R97: x
R98: x
R99: x
R100: x
R101: x
R102: x
R103: x
R104: x
R105: x
R106: x
R107: x
R108: x
R109: x
R110: x
R111: x
R112: x
R113: x
R114: x
R115: x
R116: x
R117: x
R118: x
R119: x
R120: x
R121: x
R122: x
R123: x
R124: x
R125: x
R126: x
R127: x
R128: x
R129: x
R130: x
R131: x
R132: x
R133: x
R134: x
R135: x
R136: x
R137: x
R138: x
R139: x
R140: x
R141: x
R142: x
R143: x
R144: x
R145: x
R146: x
R147: x
R148: x
R149: x
R150: x
R151: x
R152: x
R153: x
R154: x
R155: x
R156: x
R157: x
R158: x
R159: x
R160: x
R161: x

Sheet Assumptions
B1: Assumptions | N1: x | O1: Comments, instructions, and/or sources
F2: ` | N2: x
B3: General assumptions | N3: x
F4: ` | N4: x
D5: This section captures the basic settings used throughout the model. Enter the start date of the projection, the currency you will use, tax assumptions, and select the business model that best reflects how your fishery business operates. All values in the model should be entered using the same currency.
D7: Projection start date | F7: 2026-01-01 | N7: x | O7: Select the projections start date from the drop-down list
D8: Days in a year | F8: 365 | N8: x
D9: Months in a year | F9: 12 | N9: x
D10: Corporate tax rate (if applicable) | F10: 0.3 | N10: x
D11: Currency (e.g., USD, or KES) | F11: USD | G11: You can select your currency based on the geography, however, all inputs need to be made in the same currency!
D13: Operational business model selection: | F13: Fish trading (Push/Pull) | N13: x
D15: Business model selection options
D16: Fish trading - Push model: Fishers or community cooperatives jointly manage the cold-chain infrastructure and “push” product to market through collective bargaining and shared services
D17: Fish trading - Pull model: A central enterprise aggregates fish from multiple landing sites and coordinates cold storage, logistics, and sales downstream. Demand is “pulled” through the system by an organizer who secures offtakers and guarantees volume
D18: Cooling-as-a-service: Users pay per unit of cooling (per kg, per crate, per day), rather than owning equipment. The operator owns, maintains, and manages the entire cold-chain system
D19: Mobile Cold Chain: Mobile cold-storage solutions that deliver cooling directly to landing sites or remote communities where fixed infrastructure is not available
B22: Catch volume assumptions | N22: x
R23: Side calculations, do not edit!
D24: This section estimates how much fish the business will handle over time. Enter the expected monthly fish volumes for each product line and estimate how volumes may grow each year. If your business experiences seasonal peaks or low periods, include those assumptions so the model reflects real operating conditions. | H24: Annual growth rate | N24: x | R24: Cumulative growth rate
D25: Product lines | F25: Introduction date | G25: Kilograms of fish aggregated/stored per month (baseline)* | H25: 1 | I25: 2 | J25: 3 | K25: 4 | L25: 5 | N25: x | R25: 1 | S25: 2 | T25: 3 | U25: 4 | V25: 5
D26: Product #1: Main product, e.g., Octopus from Lamu | F26: 2026-01-01 | G26: 1500 | H26: 0.05 | I26: 0.1 | J26: 0.1 | K26: 0.1 | L26: 0.1 | N26: x | R26: =PRODUCT(1+$H26:H26)-1 -> 0.05 | S26: =PRODUCT(1+$H26:I26)-1 -> 0.155 | T26: =PRODUCT(1+$H26:J26)-1 -> 0.2705 | U26: =PRODUCT(1+$H26:K26)-1 -> 0.39755 | V26: =PRODUCT(1+$H26:L26)-1 -> 0.537305
D27: Product #2: Add'l product, e.g., prawns from Lamu | F27: 2026-01-01 | G27: 750 | H27: 0.05 | I27: 0.1 | J27: 0.1 | K27: 0.1 | L27: 0.1 | N27: x | R27: =PRODUCT(1+$H27:H27)-1 -> 0.05 | S27: =PRODUCT(1+$H27:I27)-1 -> 0.155 | T27: =PRODUCT(1+$H27:J27)-1 -> 0.2705 | U27: =PRODUCT(1+$H27:K27)-1 -> 0.39755 | V27: =PRODUCT(1+$H27:L27)-1 -> 0.537305
N28: x
D29: Note: * "Kilograms of fish aggregated/stored" equals the volume of fish that is stored in the cold chain facility. // Sales grow at different rates across the years which can be adjusted to reflect operational realities. | N29: x
D31: Seasonality
D33: =D26 -> Product #1: Main product, e.g., Octopus from Lamu
D34: Seasonal product? | F34: Yes
D36: Peak collection season | F36: between | G36: 2026-01-01 | H36: and | I36: 2026-03-31 | N36: x | O36: Please do include the seasonality multiplier. This indicates how fish volumes collected during a given season compare to average collection levels. For instance, a low season multiplier of 0.8 it reflects lower-than-average collections, as collection is approximately 80% of the monthly average over the entire year.
D37: Low collection season | F37: between | G37: 2026-11-30 | H37: and | I37: 2026-12-31 | N37: x
N38: x
D39: Peak season multiplier | F39: 1.5 | G39: =IF(F$34="No",1,F39) -> 1.5 | N39: x
D40: Low season multiplier | F40: 0.9 | G40: =IF(F$34="No",1,F40) -> 0.9 | N40: x
D41: Note: Ensure the low and high seasons are exclusive! | N41: x
D43: =D27 -> Product #2: Add'l product, e.g., prawns from Lamu
D44: Seasonal product? | F44: No
D46: Peak collection season | F46: between | G46: 2026-01-01 | H46: and | I46: 2026-03-31 | N46: x
D47: Low collection season | F47: between | G47: 2026-06-30 | H47: and | I47: 2026-12-31 | N47: x
N48: x
D49: Peak season multiplier | F49: 1.5 | G49: =IF(F$44="No",1,F49) -> 1 | N49: x
D50: Low season multiplier | F50: 0.9 | G50: =IF(F$44="No",1,F50) -> 1 | N50: x
D51: Note: Ensure the low and high seasons are exclusive! | N51: x
B54: Business model assumptions | N54: x
D56: This section captures the commercial assumptions for your chosen operating model. Enter the prices you expect to charge customers and the direct costs associated with delivering the product or service. These assumptions help estimate revenue, gross profit, and overall business sustainability.
C58: Fish trading (Push & Pull) business models | N58: x
N59: x
N60: x
D61: Use this subsection if your business buys and sells fish products directly. Enter the selling price per kilogram for each fish species, as well as the purchase or sourcing cost per kilogram. The difference between selling price and direct cost represents your gross margin.
D63: Price assumptions | N63: x
D64: ="Price of kilogram of fish sold in "&F11 -> Price of kilogram of fish sold in USD | F64: 1 | G64: 2 | H64: 3 | I64: 4 | J64: 5 | N64: x
D65: =D26 -> Product #1: Main product, e.g., Octopus from Lamu | F65: 5 | G65: 6 | H65: 5 | I65: 5 | J65: 5 | N65: x
D66: =D27 -> Product #2: Add'l product, e.g., prawns from Lamu | F66: 7 | G66: 7 | H66: 7 | I66: 7 | J66: 7 | N66: x
D67: Note: Price per unit of fish | N67: x
N68: x
D69: Direct cost assumptions | N69: x
D70: ="Cost per kilogram of fish in "&F11 -> Cost per kilogram of fish in USD | F70: 1 | G70: 2 | H70: 3 | I70: 4 | J70: 5 | N70: x
D71: =D65 -> Product #1: Main product, e.g., Octopus from Lamu | F71: =F65*0.6 -> 3 | G71: =G65*0.6 -> 3.6 | H71: 3 | I71: 3 | J71: 3 | N71: x
D72: =D66 -> Product #2: Add'l product, e.g., prawns from Lamu | F72: =F66*0.6 -> 4.2 | G72: =G66*0.6 -> 4.2 | H72: 4.2 | I72: 4.2 | J72: 4.2 | N72: x | O72: Please ensure that if you have more than 1 species, you add costs and pricing for each
D73: Note: Cost per unit of fish, as acquired, e.g., from the local fishermen.
N74: x
N75: x
C76: Cooling-as-a-service / Mobile cold chain services | N76: x
N77: x
D78: Use this subsection if your business earns income by providing cold storage or cooling services. Enter the storage fee charged to customers, the average storage duration, and the direct operating costs of providing the service. Examples of direct costs include electricity, ice, packaging, handling, and maintenance.
N79: x
D80: Price assumptions | N80: x
D81: ="CAAS storage fees - Price per kg per day in "&F11 -> CAAS storage fees - Price per kg per day in USD | F81: 1 | G81: 2 | H81: 3 | I81: 4 | J81: 5 | L81: Average storage time in days | N81: x
D82: =D65 -> Product #1: Main product, e.g., Octopus from Lamu | F82: =F94 -> 0.06 | G82: =F82 -> 0.06 | H82: =G82 -> 0.06 | I82: 0.06 | J82: 0.06 | L82: 4
D83: =D66 -> Product #2: Add'l product, e.g., prawns from Lamu | F83: 0.04 | G83: 0.04 | H83: 0.04 | I83: 0.04 | J83: 0.04 | L83: 4
N84: x
D85: Direct cost assumptions | N85: x
D86: ="Storage direct cost per kilogram of fish per day in "&F11 -> Storage direct cost per kilogram of fish per day in USD | F86: 1 | G86: 2 | H86: 3 | I86: 4 | J86: 5 | N86: x
D87: Storage costs | F87: =0.2*F82 -> 0.012 | G87: =0.2*G82 -> 0.012 | H87: 0.012 | I87: 0.012 | J87: 0.012 | N87: x
D89: Frequently, the storage or handling will be costed/priced by e.g., crate or cubic meter of storage space. You then need to calculate how many kg of fish fit into a crate or a cubic meter, which will be subject to species and packing method. This then allows you to calculate storage cost or price per kg.
D90: Please use the simplified simulator below, if helpful (the price then needs to be entered into the 'price per kg' within the price assumptions):
D92: Storage price per crate or cubic meter per day | F92: 15
D93: Volume of fish per crate or cubic meter of storage (in kg) | F93: 250
D94: Storage price per kg per day | F94: =F92/F93 -> 0.06
N95: x
N96: x
B97: Other revenue streams (non-fish or non-storage) | N97: x
N98: x
D99: This section serves to capture any other revenues the business might be generating alongside fish revenues (for fish trading businesses) or cold storage (for cooling-as-a-service businesses); classic examples include ice sales or phone charging services. Enter the expected monthly sales volumes for each product line and estimate how volumes may grow each year. | H99: Annual growth rate | N99: x | R99: Cumulative growth rate
D100: Other revenue lines | F100: Introduction date | G100: # of units sold per month | H100: 1 | I100: 2 | J100: 3 | K100: 4 | L100: 5 | N100: x | R100: 1 | S100: 2 | T100: 3 | U100: 4 | V100: 5
D101: Side product #1: Ice sales (one unit is one 5kg bucket) | F101: 2026-01-01 | G101: 300 | H101: 0.05 | I101: 0.05 | J101: 0.05 | K101: 0.05 | L101: 0.05 | N101: x | R101: =PRODUCT(1+$H101:H101)-1 -> 0.05 | S101: =PRODUCT(1+$H101:I101)-1 -> 0.1025 | T101: =PRODUCT(1+$H101:J101)-1 -> 0.157625 | U101: =PRODUCT(1+$H101:K101)-1 -> 0.21550625 | V101: =PRODUCT(1+$H101:L101)-1 -> 0.2762815625
D102: Side product #2: Phone charging (one unit is one phone charge) | F102: 2026-01-01 | G102: 75 | H102: 0.05 | I102: 0.05 | J102: 0.05 | K102: 0.05 | L102: 0.05 | N102: x | R102: =PRODUCT(1+$H102:H102)-1 -> 0.05 | S102: =PRODUCT(1+$H102:I102)-1 -> 0.1025 | T102: =PRODUCT(1+$H102:J102)-1 -> 0.157625 | U102: =PRODUCT(1+$H102:K102)-1 -> 0.21550625 | V102: =PRODUCT(1+$H102:L102)-1 -> 0.2762815625
N103: x
D105: Price assumptions | N105: x
D106: ="Price per unit in "&F11 -> Price per unit in USD | F106: 1 | G106: 2 | H106: 3 | I106: 4 | J106: 5 | N106: x
D107: =D101 -> Side product #1: Ice sales (one unit is one 5kg bucket) | F107: 1 | G107: 1.1 | H107: 1.2 | I107: 1.2 | J107: 1.3
D108: =D102 -> Side product #2: Phone charging (one unit is one phone charge) | F108: 0.2 | G108: 0.2 | H108: 0.2 | I108: 0.2 | J108: 0.2
N109: x
D110: Direct cost assumptions | N110: x
D111: ="Direct cost per unit in "&F11 -> Direct cost per unit in USD | F111: 1 | G111: 2 | H111: 3 | I111: 4 | J111: 5
D112: =D107 -> Side product #1: Ice sales (one unit is one 5kg bucket) | F112: 0.2 | G112: 0.2 | H112: 0.2 | I112: 0.2 | J112: 0.2
D113: =D108 -> Side product #2: Phone charging (one unit is one phone charge) | F113: =0.3*F108 -> 0.06 | G113: 0.06 | H113: 0.06 | I113: 0.06 | J113: 0.06
B115: Other Cost of Goods Sold (COGS) and Operating Cost assumptions | N115: x
N116: x
D117: This section covers any other cost of goods sold (for simplification purposes, measured as a % of revenue), including electricity and water, as well as salaries and wages, and all the administrative overhead costs.
B119: x | C119: Cost of goods sold (COGS) | N119: x
D121: This section captures any other direct costs, i.e., 'costs of good sold', that you wish to include as a variable cost, measured as a % of revenues. This would usually include, e.g., electricity and water, or any volume-based wage payments, among other. Please make sure these costs aren't already captured above in the direct cost assumptions, nor below in the overhead cost assumptions. | G121: Costs as a % of revenue | N121: x
D122: ="Cost in "&F11 -> Cost in USD | G122: 1 | H122: 2 | I122: 3 | J122: 4 | K122: 5 | N122: x
D123: Electricity and water | G123: 0.02 | H123: 0.02 | I123: 0.02 | J123: 0.02 | K123: 0.02 | N123: x
D124: Miscellaneous | G124: 0.01 | H124: 0.01 | I124: 0.01 | J124: 0.01 | K124: 0.01 | N124: x
D125: Note: In filling this additional COGS section, please take care to not duplicate costs already included in the direct costs assumptions above!
B127: x | C127: Salaries and wages | N127: x
N128: x
D129: This section captures the expected staffing structure and payroll costs of the business. Enter the number of employees in each role and their expected salaries or wages. You should also estimate annual salary increases due to inflation, promotions, or business growth.
H130: Staff count (FTE) | N130: x
D131: Role / Staff categories | F131: Start date | G131: ="Annual gross salary (FTE) in "&F11 -> Annual gross salary (FTE) in USD | H131: 1 | I131: =H131+1 -> 2 | J131: =I131+1 -> 3 | K131: =J131+1 -> 4 | L131: =K131+1 -> 5 | N131: x | O131: Define the role title, salary and number of staff within that title.
D132: Senior executive team | F132: 2026-01-01 | G132: 25000 | H132: 0.5 | I132: 0.5 | J132: 0.5 | K132: 0.5 | L132: 0.5 | N132: x
D133: Middle management team | F133: 2026-01-01 | G133: 15000 | H133: 1 | I133: 1 | J133: 1 | K133: 1 | L133: 1 | N133: x
D134: Operators | F134: 2026-01-01 | G134: 4000 | H134: 1 | I134: 1 | J134: 2 | K134: 2 | L134: 2 | N134: x
D135: Support staff | F135: 2026-01-01 | G135: 4500 | H135: 1 | I135: 1 | J135: 1 | K135: 1 | L135: 1 | N135: x
N136: x
D137: Annual salaries growth/inflation rate | F137: 0.03 | N137: x
D138: Annual growth rate factor | H138: 1 | I138: =H138*(1+$F$137) -> 1.03 | J138: =I138*(1+$F$137) -> 1.0609 | K138: =J138*(1+$F$137) -> 1.092727 | L138: =K138*(1+$F$137) -> 1.12550881 | N138: x
N139: x
B140: x | C140: Administrative costs / Other overhead costs | N140: x
D142: This section includes regular business operating expenses that are not directly linked to fish sales or production. Examples include rent, transport, office expenses, internet, insurance, and marketing costs. These expenses are important because they reduce the overall profitability of the business. The costs an either be entered as a monthly cost, or as annual cost.
D143: ="Monthly costs in "&F11 -> Monthly costs in USD | F143: 1 | G143: =F143+1 -> 2 | H143: =G143+1 -> 3 | I143: =H143+1 -> 4 | J143: =I143+1 -> 5 | N143: x | O143: You can change defined overheads if they are not relevant to your business. There is also room to add more cost buckets as needed.
D144: Rent & rates | F144: 850 | G144: 850 | H144: 850 | I144: 850 | J144: 850 | N144: x
D145: Utilities Split Elec and Water | F145: 270.0877785 | G145: 351.1141121 | H145: 456.4483457 | I145: 529 | J145: 613 | N145: x | O145: Please note costs are denoted on a monthly basis and so should be entered as monthlies and not annuals.
D146: Internet and communication | F146: 100 | G146: 100 | H146: 100 | I146: 100 | J146: 100 | N146: x
D147: Sales & Marketing | F147: 150 | G147: 150 | H147: 150 | I147: 150 | J147: 150 | N147: x
D148: External Services | F148: 30 | G148: 30 | H148: 30 | I148: 30 | J148: 30 | N148: x
D149: Business travel | F149: 150 | G149: 150 | H149: 150 | I149: 150 | J149: 150 | N149: x
D150: Bank charges | F150: 0 | G150: 0 | H150: 0 | I150: 0 | J150: 0 | N150: x
D151: [Add other administrative cost] | F151: 0 | G151: 0 | H151: 0 | I151: 0 | J151: 0 | N151: x
N152: x
D153: ="Annual costs in "&F11 -> Annual costs in USD | F153: 1 | G153: =F153+1 -> 2 | H153: =G153+1 -> 3 | I153: =H153+1 -> 4 | J153: =I153+1 -> 5 | K153: Paid every | N153: x
D154: Business insurance | F154: 506.4145847 | G154: 506.4145847 | H154: 506.4145847 | I154: 506.4145847 | J154: 506.4145847 | K154: 2026-01-01 | N154: x | O154: These costs are denoted on an annual basis. Please enter costs here on an annual basis.
D155: Business permits | F155: 300 | G155: 300 | H155: 300 | I155: 300 | J155: 300 | K155: 2026-08-31 | N155: x
D156: Other staff expenses (Bonuses, NHIS, NHF, Pension funds, etc.) | F156: 1000 | G156: 1000 | H156: 1000 | I156: 1000 | J156: 1000 | K156: 2026-12-31 | N156: x
D157: [Add other cost] | F157: 0 | G157: 0 | H157: 0 | I157: 0 | J157: 0 | K157: 2026-11-30 | N157: x
N158: x
B159: CapEx assumptions | N159: x
N160: x
D161: This section captures investments in long-term assets such as freezers, cold rooms, vehicles, solar systems, or equipment. These are major purchases that support business operations over several years. Enter the expected purchase costs and useful life of each asset so the model can estimate depreciation and financing needs. At the top you enter the already existing assets, and below any projected new asset investments.
B163: x | C163: CapEx Items | N163: x
D165: Existing assets | F165: ="Opening balance in "&F11 -> Opening balance in USD | G165: Useful life (years) | H165: Annual depreciation rate | N165: x
D166: Fridge | F166: 1000 | G166: 3.5 | H166: =IFERROR(1/G166,0) -> 0.2857142857 | N166: x
D167: Power protection unit | F167: 250 | G167: 3.5 | H167: 0.2857142857 | N167: x
D168: [Add existing asset] | F168: 0 | G168: 0 | H168: =IFERROR(1/G168,0) -> 0 | N168: x
D169: [Add existing asset] | F169: 0 | G169: 0 | H169: =IFERROR(1/G169,0) -> 0 | N169: x
D170: [Add existing asset] | F170: 0 | G170: 0 | H170: 0 | N170: x
D171: Note: Depreciation is on straight-line basis | N171: x
N172: x
D173: New assets | F173: ="Cost per unit in "&F11 -> Cost per unit in USD | G173: No. of units | H173: Useful life (years) | I173: Annual depreciation rate | J173: Purchase date | N173: x
D174: Solar system | F174: 65000 | G174: 1 | H174: 10 | I174: =IFERROR(1/H174,0) -> 0.1 | J174: 2026-01-01 | N174: x
D175: Energy storage (battery) | F175: 10000 | G175: 1 | H175: 4 | I175: 0.25 | J175: 2026-01-01 | N175: x
D176: Cold room | F176: 85000 | G176: 1 | H176: 10 | I176: 0.1 | J176: 2026-01-01 | N176: x
D177: Cooling boxes | F177: 150 | G177: 4 | H177: 5 | I177: 0.2 | J177: 2026-06-30 | N177: x
D178: [Add new asset] | I178: 0 | J178: 2026-12-31 | N178: x
D179: [Add new asset] | I179: 0 | J179: 2026-12-31 | N179: x
D180: [Add new asset] | I180: 0 | J180: 2026-01-01 | N180: x
D181: [Add new asset] | I181: 0 | J181: 2026-01-01 | N181: x
N182: x
N183: x
B184: Balance sheet assumptions | N184: x
N185: x
D186: This section estimates how cash moves through the business during day-to-day operations. Enter assumptions for customer payment timing, supplier payment periods, and inventory holding days. These assumptions help estimate how much working capital the business needs to operate smoothly.
B188: x | C188: Working capital assumptions | N188: x
N189: x
D190: On average,…
D191: In how many days do you collect your trade receivables, i.e., do you receive payments for the fish sold? | F191: 10
D192: In how many days are the payments for other revenue lines (e.g., ice making, phone charging) made? | F192: 1
D193: How many days do you store your main product, e.g., fish? | F193: 3
D194: How many days after sourcing product, e.g. fish, do you pay suppliers (e.g., fishermen)? | F194: 1
B196: Financing assumptions | N196: x
N197: x
D198: This section captures how the business expects to fund its operations, growth, and investment needs. Financing may come from grants, shareholder equity, loans, or a mix of these sources. These assumptions are important because they show whether the business has enough cash to operate, invest in equipment, and repay any borrowed money. Users should enter the expected amount, timing, and key terms of each financing source as realistically as possible.
B200: x | C200: Grant funding assumptions | N200: x
D202: Use this section if the business expects to receive grant funding from donors, NGOs, development partners, government programs, or other non-repayable sources. A grant is normally money that does not need to be repaid, but it may come with conditions such as reporting requirements, eligible uses, or milestones. Enter the expected grant amount, and the month and year when the grant is expected to be received.
F203: ="Amount in "&$F$11 -> Amount in USD | G203: Date | N203: x
D204: Grant 1 | F204: 100000 | G204: 2026-01-01 | N204: x
D205: Grant 2 | F205: 50000 | G205: 2027-01-31 | N205: x
D206: Grant 3 | F206: 0 | G206: 2026-01-01 | N206: x
D207: Grant 4 | F207: 0 | G207: 2026-01-01 | N207: x
D208: Grant 5 | F208: 0 | G208: 2026-01-01 | N208: x
B210: x | C210: Shareholder equity injection assumptions | N210: x
D212: Use this section if the business owners, founders, or external investors plan to contribute capital into the business. Equity is funding invested into the business and usually does not need to be repaid like a loan. However, investors may expect ownership, dividends, or future returns from the business. Enter the expected investment amount, the timing of the investment, and whether it comes from existing owners or new investors. Equity injections strengthen the cash position of the business and can help finance equipment, working capital, or expansion.
F213: ="Amount in "&$F$11 -> Amount in USD | G213: Date | N213: x
D214: Round 1 | F214: 50000 | G214: 2026-01-01 | N214: x
D215: Round 2 | F215: 50000 | G215: 2026-10-31 | N215: x
D216: Round 3 | F216: 0 | G216: 2027-06-30 | N216: x
D217: Round 4 | F217: 0 | G217: 2026-05-31 | N217: x
D219: Opening equity | F219: =SUM(F166:F170) -> 1250
N220: x
B221: x | C221: Loan assumptions | N221: x
N222: x
D223: Use this section if the business expects to borrow money from a bank, microfinance institution, investor, development finance institution, or another lender. A loan must usually be repaid over time and often includes interest, which is an additional cost of borrowing. Enter the expected loan amount, interest rate, repayment period, grace period if any, and expected timing of the loan. These assumptions help the model estimate interest expenses, loan repayments, and whether the business can generate enough cash to service the debt. Loan assumptions should be realistic and should reflect terms that the business is likely to obtain from a lender.
D225: New loans | F225: Loan 1 | G225: Loan 2 | H225: Loan 3 | N225: x
D226: ="Loan Amount in "&F11 -> Loan Amount in USD | F226: 0 | G226: 0 | H226: 0 | N226: x
D227: Disbursement period | F227: 2026-01-01 | G227: 2026-03-31 | H227: 2026-01-01 | N227: x
D228: Tenor (months) | F228: 48 | G228: 48 | H228: 36 | N228: x
D229: Moratorium ending date (month) | F229: 3 | G229: 6 | H229: 12 | N229: x
D230: Interest p.a. | F230: 0.15 | G230: 0.15 | H230: 0.05 | N230: x
D231: Interest per month | F231: =F230/$F$9 -> 0.0125 | G231: =G230/$F$9 -> 0.0125 | H231: 0.004166666667 | N231: x
D232: First repayment date | F232: =EOMONTH(F227,F229) -> 2026-04-30 | G232: =EOMONTH(G227,G229) -> 2026-09-30 | H232: 2027-01-31 | N232: x
D233: Last repayment date | F233: =EOMONTH(F227,F228) -> 2030-01-31 | G233: =EOMONTH(G227,G228) -> 2030-03-31 | H233: 2029-01-31 | N233: x
... 87 more rows

Sheet Monthly build
B1: Financials & schedules (monthly)
B3: ="Financial statements (monthly) - all currency figures in "&'Assumptions '!F11 -> Financial statements (monthly) - all currency figures in USD | G3: 1 | H3: 1 | I3: 1 | J3: 1 | K3: 1 | L3: 1 | M3: 1 | N3: 1 | O3: 1 | P3: 1 | Q3: 1 | R3: 1 | S3: 2 | T3: 2 | U3: 2 | V3: 2 | W3: 2 | X3: 2 | Y3: 2 | Z3: 2 | AA3: 2 | AB3: 2 | AC3: 2 | AD3: 2 | AE3: 3 | AF3: 3 | AG3: 3 | AH3: 3 | AI3: 3 | AJ3: 3 | AK3: 3 | AL3: 3 | AM3: 3 | AN3: 3 | AO3: 3 | AP3: 3 | AQ3: 4 | AR3: 4 | AS3: 4 | AT3: 4 | AU3: 4 | AV3: 4 | AW3: 4 | AX3: 4 | AY3: 4 | AZ3: 4 | BA3: 4 | BB3: 4 | BC3: 5 | BD3: 5 | BE3: 5 | BF3: 5 | BG3: 5 | BH3: 5 | BI3: 5 | BJ3: 5 | BK3: 5 | BL3: 5 | BM3: 5 | BN3: 5
D4: Date | G4: ='Monthly build'!G125 -> 2026-01-01 | H4: =EOMONTH(G4,1) -> 2026-02-28 | I4: 2026-03-31 | J4: 2026-04-30 | K4: 2026-05-31 | L4: 2026-06-30 | M4: 2026-07-31 | N4: 2026-08-31 | O4: 2026-09-30 | P4: 2026-10-31 | Q4: 2026-11-30 | R4: 2026-12-31 | S4: 2027-01-31 | T4: 2027-02-28 | U4: 2027-03-31 | V4: 2027-04-30 | W4: 2027-05-31 | X4: 2027-06-30 | Y4: 2027-07-31 | Z4: 2027-08-31 | AA4: 2027-09-30 | AB4: 2027-10-31 | AC4: 2027-11-30 | AD4: 2027-12-31 | AE4: 2028-01-31 | AF4: 2028-02-29 | AG4: 2028-03-31 | AH4: 2028-04-30 | AI4: 2028-05-31 | AJ4: 2028-06-30 | AK4: 2028-07-31 | AL4: 2028-08-31 | AM4: 2028-09-30 | AN4: =EOMONTH(AM4,1) -> 2028-10-31 | AO4: 2028-11-30 | AP4: 2028-12-31 | AQ4: 2029-01-31 | AR4: 2029-02-28 | AS4: 2029-03-31 | AT4: 2029-04-30 | AU4: 2029-05-31 | AV4: 2029-06-30 | AW4: 2029-07-31 | AX4: 2029-08-31 | AY4: 2029-09-30 | AZ4: 2029-10-31 | BA4: 2029-11-30 | BB4: 2029-12-31 | BC4: 2030-01-31 | BD4: 2030-02-28 | BE4: 2030-03-31 | BF4: 2030-04-30 | BG4: 2030-05-31 | BH4: 2030-06-30 | BI4: 2030-07-31 | BJ4: 2030-08-31 | BK4: 2030-09-30 | BL4: 2030-10-31 | BM4: 2030-11-30 | BN4: 2030-12-31
D5: Month | G5: 1 | H5: =G5+1 -> 2 | I5: 3 | J5: 4 | K5: 5 | L5: 6 | M5: 7 | N5: 8 | O5: 9 | P5: 10 | Q5: 11 | R5: 12 | S5: 13 | T5: 14 | U5: 15 | V5: 16 | W5: 17 | X5: 18 | Y5: 19 | Z5: 20 | AA5: 21 | AB5: 22 | AC5: 23 | AD5: 24 | AE5: 25 | AF5: 26 | AG5: 27 | AH5: 28 | AI5: 29 | AJ5: 30 | AK5: 31 | AL5: 32 | AM5: 33 | AN5: =AM5+1 -> 34 | AO5: 35 | AP5: 36 | AQ5: 37 | AR5: 38 | AS5: 39 | AT5: 40 | AU5: 41 | AV5: 42 | AW5: 43 | AX5: 44 | AY5: 45 | AZ5: 46 | BA5: 47 | BB5: 48 | BC5: 49 | BD5: 50 | BE5: 51 | BF5: 52 | BG5: 53 | BH5: 54 | BI5: 55 | BJ5: 56 | BK5: 57 | BL5: 58 | BM5: 59 | BN5: 60
D7: Business model | F7: ='Assumptions '!$F$13 -> Fish trading (Push/Pull)
B9: Profit and Loss Statement
C11: Revenues
D12: Core business | G12: =G175 -> 17328.5 | H12: =H175 -> 17328.5 | I12: 17328.5 | J12: 13391 | K12: 13391 | L12: 13391 | M12: 13391 | N12: 13391 | O12: 13391 | P12: 13391 | Q12: 12603.5 | R12: 12603.5 | S12: 21659 | T12: 21659 | U12: 21659 | V12: 16460 | W12: 16460 | X12: 16460 | Y12: 16460 | Z12: 16460 | AA12: 16460 | AB12: 16460 | AC12: 15420.2 | AD12: 15420.2 | AE12: 20966 | AF12: 20966 | AG12: 20966 | AH12: 16201 | AI12: 16201 | AJ12: 16201 | AK12: 16201 | AL12: 16201 | AM12: 16201 | AN12: 16201 | AO12: 15248 | AP12: 15248 | AQ12: 23056 | AR12: 23056 | AS12: 23056 | AT12: 17816 | AU12: 17816 | AV12: 17816 | AW12: 17816 | AX12: 17816 | AY12: 17816 | AZ12: 17816 | BA12: 16768 | BB12: 16768 | BC12: 25366 | BD12: 25366 | BE12: 25366 | BF12: 19601 | BG12: 19601 | BH12: 19601 | BI12: 19601 | BJ12: 19601 | BK12: 19601 | BL12: 19601 | BM12: 18448 | BN12: 18448
D13: Other revenue sources | G13: =G180 -> 330.8 | H13: =H180 -> 330.8 | I13: 330.8 | J13: 330.8 | K13: 330.8 | L13: 330.8 | M13: 330.8 | N13: 330.8 | O13: 330.8 | P13: 330.8 | Q13: 330.8 | R13: 330.8 | S13: 380.7 | T13: 380.7 | U13: 380.7 | V13: 380.7 | W13: 380.7 | X13: 380.7 | Y13: 380.7 | Z13: 380.7 | AA13: 380.7 | AB13: 380.7 | AC13: 380.7 | AD13: 380.7 | AE13: 433.8 | AF13: 433.8 | AG13: 433.8 | AH13: 433.8 | AI13: 433.8 | AJ13: 433.8 | AK13: 433.8 | AL13: 433.8 | AM13: 433.8 | AN13: 433.8 | AO13: 433.8 | AP13: 433.8 | AQ13: 456.2 | AR13: 456.2 | AS13: 456.2 | AT13: 456.2 | AU13: 456.2 | AV13: 456.2 | AW13: 456.2 | AX13: 456.2 | AY13: 456.2 | AZ13: 456.2 | BA13: 456.2 | BB13: 456.2 | BC13: 517.1 | BD13: 517.1 | BE13: 517.1 | BF13: 517.1 | BG13: 517.1 | BH13: 517.1 | BI13: 517.1 | BJ13: 517.1 | BK13: 517.1 | BL13: 517.1 | BM13: 517.1 | BN13: 517.1
D14: Total monthly revenue | G14: =SUM(G12:G13) -> 17659.3 | H14: =SUM(H12:H13) -> 17659.3 | I14: 17659.3 | J14: 13721.8 | K14: 13721.8 | L14: 13721.8 | M14: 13721.8 | N14: 13721.8 | O14: 13721.8 | P14: 13721.8 | Q14: 12934.3 | R14: 12934.3 | S14: 22039.7 | T14: 22039.7 | U14: 22039.7 | V14: 16840.7 | W14: 16840.7 | X14: 16840.7 | Y14: 16840.7 | Z14: 16840.7 | AA14: 16840.7 | AB14: 16840.7 | AC14: 15800.9 | AD14: 15800.9 | AE14: 21399.8 | AF14: 21399.8 | AG14: 21399.8 | AH14: 16634.8 | AI14: 16634.8 | AJ14: 16634.8 | AK14: 16634.8 | AL14: 16634.8 | AM14: 16634.8 | AN14: 16634.8 | AO14: 15681.8 | AP14: 15681.8 | AQ14: 23512.2 | AR14: 23512.2 | AS14: 23512.2 | AT14: 18272.2 | AU14: 18272.2 | AV14: 18272.2 | AW14: 18272.2 | AX14: 18272.2 | AY14: 18272.2 | AZ14: 18272.2 | BA14: 17224.2 | BB14: 17224.2 | BC14: 25883.1 | BD14: 25883.1 | BE14: 25883.1 | BF14: 20118.1 | BG14: 20118.1 | BH14: 20118.1 | BI14: 20118.1 | BJ14: 20118.1 | BK14: 20118.1 | BL14: 20118.1 | BM14: 18965.1 | BN14: 18965.1
C16: Cost of goods sold
D17: Raw materials - Core business | G17: =-G213 -> -10397.1 | H17: =-H213 -> -10397.1 | I17: -10397.1 | J17: -8034.6 | K17: -8034.6 | L17: -8034.6 | M17: -8034.6 | N17: -8034.6 | O17: -8034.6 | P17: -8034.6 | Q17: -7562.1 | R17: -7562.1 | S17: -12995.4 | T17: -12995.4 | U17: -12995.4 | V17: -9876 | W17: -9876 | X17: -9876 | Y17: -9876 | Z17: -9876 | AA17: -9876 | AB17: -9876 | AC17: -9252.12 | AD17: -9252.12 | AE17: -12579.6 | AF17: -12579.6 | AG17: -12579.6 | AH17: -9720.6 | AI17: -9720.6 | AJ17: -9720.6 | AK17: -9720.6 | AL17: -9720.6 | AM17: -9720.6 | AN17: -9720.6 | AO17: -9148.8 | AP17: -9148.8 | AQ17: -13833.6 | AR17: -13833.6 | AS17: -13833.6 | AT17: -10689.6 | AU17: -10689.6 | AV17: -10689.6 | AW17: -10689.6 | AX17: -10689.6 | AY17: -10689.6 | AZ17: -10689.6 | BA17: -10060.8 | BB17: -10060.8 | BC17: -15219.6 | BD17: -15219.6 | BE17: -15219.6 | BF17: -11760.6 | BG17: -11760.6 | BH17: -11760.6 | BI17: -11760.6 | BJ17: -11760.6 | BK17: -11760.6 | BL17: -11760.6 | BM17: -11068.8 | BN17: -11068.8
D18: Raw materials - Other revenue sources | G18: =-G218 -> -67.74 | H18: =-H218 -> -67.74 | I18: -67.74 | J18: -67.74 | K18: -67.74 | L18: -67.74 | M18: -67.74 | N18: -67.74 | O18: -67.74 | P18: -67.74 | Q18: -67.74 | R18: -67.74 | S18: -71.18 | T18: -71.18 | U18: -71.18 | V18: -71.18 | W18: -71.18 | X18: -71.18 | Y18: -71.18 | Z18: -71.18 | AA18: -71.18 | AB18: -71.18 | AC18: -71.18 | AD18: -71.18 | AE18: -74.62 | AF18: -74.62 | AG18: -74.62 | AH18: -74.62 | AI18: -74.62 | AJ18: -74.62 | AK18: -74.62 | AL18: -74.62 | AM18: -74.62 | AN18: -74.62 | AO18: -74.62 | AP18: -74.62 | AQ18: -78.46 | AR18: -78.46 | AS18: -78.46 | AT18: -78.46 | AU18: -78.46 | AV18: -78.46 | AW18: -78.46 | AX18: -78.46 | AY18: -78.46 | AZ18: -78.46 | BA18: -78.46 | BB18: -78.46 | BC18: -82.36 | BD18: -82.36 | BE18: -82.36 | BF18: -82.36 | BG18: -82.36 | BH18: -82.36 | BI18: -82.36 | BJ18: -82.36 | BK18: -82.36 | BL18: -82.36 | BM18: -82.36 | BN18: -82.36
D19: Other COGS (e.g., electricity & water) | G19: =-G226 -> -529.779 | H19: =-H226 -> -529.779 | I19: -529.779 | J19: -411.654 | K19: -411.654 | L19: -411.654 | M19: -411.654 | N19: -411.654 | O19: -411.654 | P19: -411.654 | Q19: -388.029 | R19: -388.029 | S19: -661.191 | T19: -661.191 | U19: -661.191 | V19: -505.221 | W19: -505.221 | X19: -505.221 | Y19: -505.221 | Z19: -505.221 | AA19: -505.221 | AB19: -505.221 | AC19: -474.027 | AD19: -474.027 | AE19: -641.994 | AF19: -641.994 | AG19: -641.994 | AH19: -499.044 | AI19: -499.044 | AJ19: -499.044 | AK19: -499.044 | AL19: -499.044 | AM19: -499.044 | AN19: -499.044 | AO19: -470.454 | AP19: -470.454 | AQ19: -705.366 | AR19: -705.366 | AS19: -705.366 | AT19: -548.166 | AU19: -548.166 | AV19: -548.166 | AW19: -548.166 | AX19: -548.166 | AY19: -548.166 | AZ19: -548.166 | BA19: -516.726 | BB19: -516.726 | BC19: -776.493 | BD19: -776.493 | BE19: -776.493 | BF19: -603.543 | BG19: -603.543 | BH19: -603.543 | BI19: -603.543 | BJ19: -603.543 | BK19: -603.543 | BL19: -603.543 | BM19: -568.953 | BN19: -568.953
D20: Total COGS | G20: =SUM(G17:G19) -> -10994.619 | H20: =SUM(H17:H19) -> -10994.619 | I20: -10994.619 | J20: -8513.994 | K20: -8513.994 | L20: -8513.994 | M20: -8513.994 | N20: -8513.994 | O20: -8513.994 | P20: -8513.994 | Q20: -8017.869 | R20: -8017.869 | S20: -13727.771 | T20: -13727.771 | U20: -13727.771 | V20: -10452.401 | W20: -10452.401 | X20: -10452.401 | Y20: -10452.401 | Z20: -10452.401 | AA20: -10452.401 | AB20: -10452.401 | AC20: -9797.327 | AD20: -9797.327 | AE20: -13296.214 | AF20: -13296.214 | AG20: -13296.214 | AH20: -10294.264 | AI20: -10294.264 | AJ20: -10294.264 | AK20: -10294.264 | AL20: -10294.264 | AM20: -10294.264 | AN20: -10294.264 | AO20: -9693.874 | AP20: -9693.874 | AQ20: -14617.426 | AR20: -14617.426 | AS20: -14617.426 | AT20: -11316.226 | AU20: -11316.226 | AV20: -11316.226 | AW20: -11316.226 | AX20: -11316.226 | AY20: -11316.226 | AZ20: -11316.226 | BA20: -10655.986 | BB20: -10655.986 | BC20: -16078.453 | BD20: -16078.453 | BE20: -16078.453 | BF20: -12446.503 | BG20: -12446.503 | BH20: -12446.503 | BI20: -12446.503 | BJ20: -12446.503 | BK20: -12446.503 | BL20: -12446.503 | BM20: -11720.113 | BN20: -11720.113
D22: Gross Profit | G22: =G14+G20 -> 6664.681 | H22: =H14+H20 -> 6664.681 | I22: 6664.681 | J22: 5207.806 | K22: 5207.806 | L22: 5207.806 | M22: 5207.806 | N22: 5207.806 | O22: 5207.806 | P22: 5207.806 | Q22: 4916.431 | R22: 4916.431 | S22: 8311.929 | T22: 8311.929 | U22: 8311.929 | V22: 6388.299 | W22: 6388.299 | X22: 6388.299 | Y22: 6388.299 | Z22: 6388.299 | AA22: 6388.299 | AB22: 6388.299 | AC22: 6003.573 | AD22: 6003.573 | AE22: 8103.586 | AF22: 8103.586 | AG22: 8103.586 | AH22: 6340.536 | AI22: 6340.536 | AJ22: 6340.536 | AK22: 6340.536 | AL22: 6340.536 | AM22: 6340.536 | AN22: 6340.536 | AO22: 5987.926 | AP22: 5987.926 | AQ22: 8894.774 | AR22: 8894.774 | AS22: 8894.774 | AT22: 6955.974 | AU22: 6955.974 | AV22: 6955.974 | AW22: 6955.974 | AX22: 6955.974 | AY22: 6955.974 | AZ22: 6955.974 | BA22: 6568.214 | BB22: 6568.214 | BC22: 9804.647 | BD22: 9804.647 | BE22: 9804.647 | BF22: 7671.597 | BG22: 7671.597 | BH22: 7671.597 | BI22: 7671.597 | BJ22: 7671.597 | BK22: 7671.597 | BL22: 7671.597 | BM22: 7244.987 | BN22: 7244.987
D23: GP Margin | G23: =G22/G14 -> 0.3774034645 | H23: =H22/H14 -> 0.3774034645 | I23: 0.3774034645 | J23: 0.3795279045 | K23: 0.3795279045 | L23: 0.3795279045 | M23: 0.3795279045 | N23: 0.3795279045 | O23: 0.3795279045 | P23: 0.3795279045 | Q23: 0.3801080074 | R23: 0.3801080074 | S23: 0.3771343984 | T23: 0.3771343984 | U23: 0.3771343984 | V23: 0.379336904 | W23: 0.379336904 | X23: 0.379336904 | Y23: 0.379336904 | Z23: 0.379336904 | AA23: 0.379336904 | AB23: 0.379336904 | AC23: 0.3799513319 | AD23: 0.3799513319 | AE23: 0.378675782 | AF23: 0.378675782 | AG23: 0.378675782 | AH23: 0.3811609397 | AI23: 0.3811609397 | AJ23: 0.3811609397 | AK23: 0.3811609397 | AL23: 0.3811609397 | AM23: 0.3811609397 | AN23: 0.3811609397 | AO23: 0.3818392021 | AP23: 0.3818392021 | AQ23: 0.3783046248 | AR23: 0.3783046248 | AS23: 0.3783046248 | AT23: 0.380686179 | AU23: 0.380686179 | AV23: 0.380686179 | AW23: 0.380686179 | AX23: 0.380686179 | AY23: 0.380686179 | AZ23: 0.380686179 | BA23: 0.3813363756 | BB23: 0.3813363756 | BC23: 0.3788049731 | BD23: 0.3788049731 | BE23: 0.3788049731 | BF23: 0.3813281075 | BG23: 0.3813281075 | BH23: 0.3813281075 | BI23: 0.3813281075 | BJ23: 0.3813281075 | BK23: 0.3813281075 | BL23: 0.3813281075 | BM23: 0.3820168098 | BN23: 0.3820168098
C25: Grants (IAS 20)
D26: Other income (grants) | G26: =SUM('Monthly build'!G351:G355) -> 100000 | H26: =SUM('Monthly build'!H351:H355) -> 0 | I26: =SUM('Monthly build'!I351:I355) -> 0 | J26: =SUM('Monthly build'!J351:J355) -> 0 | K26: =SUM('Monthly build'!K351:K355) -> 0 | L26: =SUM('Monthly build'!L351:L355) -> 0 | M26: =SUM('Monthly build'!M351:M355) -> 0 | N26: =SUM('Monthly build'!N351:N355) -> 0 | O26: =SUM('Monthly build'!O351:O355) -> 0 | P26: =SUM('Monthly build'!P351:P355) -> 0 | Q26: =SUM('Monthly build'!Q351:Q355) -> 0 | R26: =SUM('Monthly build'!R351:R355) -> 0 | S26: =SUM('Monthly build'!S351:S355) -> 50000 | T26: =SUM('Monthly build'!T351:T355) -> 0 | U26: =SUM('Monthly build'!U351:U355) -> 0 | V26: =SUM('Monthly build'!V351:V355) -> 0 | W26: =SUM('Monthly build'!W351:W355) -> 0 | X26: =SUM('Monthly build'!X351:X355) -> 0 | Y26: =SUM('Monthly build'!Y351:Y355) -> 0 | Z26: =SUM('Monthly build'!Z351:Z355) -> 0 | AA26: =SUM('Monthly build'!AA351:AA355) -> 0 | AB26: =SUM('Monthly build'!AB351:AB355) -> 0 | AC26: =SUM('Monthly build'!AC351:AC355) -> 0 | AD26: =SUM('Monthly build'!AD351:AD355) -> 0 | AE26: =SUM('Monthly build'!AE351:AE355) -> 0 | AF26: =SUM('Monthly build'!AF351:AF355) -> 0 | AG26: =SUM('Monthly build'!AG351:AG355) -> 0 | AH26: =SUM('Monthly build'!AH351:AH355) -> 0 | AI26: =SUM('Monthly build'!AI351:AI355) -> 0 | AJ26: =SUM('Monthly build'!AJ351:AJ355) -> 0 | AK26: =SUM('Monthly build'!AK351:AK355) -> 0 | AL26: =SUM('Monthly build'!AL351:AL355) -> 0 | AM26: =SUM('Monthly build'!AM351:AM355) -> 0 | AN26: =SUM('Monthly build'!AN351:AN355) -> 0 | AO26: =SUM('Monthly build'!AO351:AO355) -> 0 | AP26: =SUM('Monthly build'!AP351:AP355) -> 0 | AQ26: =SUM('Monthly build'!AQ351:AQ355) -> 0 | AR26: =SUM('Monthly build'!AR351:AR355) -> 0 | AS26: =SUM('Monthly build'!AS351:AS355) -> 0 | AT26: =SUM('Monthly build'!AT351:AT355) -> 0 | AU26: =SUM('Monthly build'!AU351:AU355) -> 0 | AV26: =SUM('Monthly build'!AV351:AV355) -> 0 | AW26: =SUM('Monthly build'!AW351:AW355) -> 0 | AX26: =SUM('Monthly build'!AX351:AX355) -> 0 | AY26: =SUM('Monthly build'!AY351:AY355) -> 0 | AZ26: =SUM('Monthly build'!AZ351:AZ355) -> 0 | BA26: =SUM('Monthly build'!BA351:BA355) -> 0 | BB26: =SUM('Monthly build'!BB351:BB355) -> 0 | BC26: =SUM('Monthly build'!BC351:BC355) -> 0 | BD26: =SUM('Monthly build'!BD351:BD355) -> 0 | BE26: =SUM('Monthly build'!BE351:BE355) -> 0 | BF26: =SUM('Monthly build'!BF351:BF355) -> 0 | BG26: =SUM('Monthly build'!BG351:BG355) -> 0 | BH26: =SUM('Monthly build'!BH351:BH355) -> 0 | BI26: =SUM('Monthly build'!BI351:BI355) -> 0 | BJ26: =SUM('Monthly build'!BJ351:BJ355) -> 0 | BK26: =SUM('Monthly build'!BK351:BK355) -> 0 | BL26: =SUM('Monthly build'!BL351:BL355) -> 0 | BM26: =SUM('Monthly build'!BM351:BM355) -> 0 | BN26: =SUM('Monthly build'!BN351:BN355) -> 0
C28: Operating expenses
D29: ='Monthly build'!D228 -> Salaries and wages | G29: =-G234 -> -3000 | H29: =-H234 -> -3000 | I29: -3000 | J29: -3000 | K29: -3000 | L29: -3000 | M29: -3000 | N29: -3000 | O29: -3000 | P29: -3000 | Q29: -3000 | R29: -3000 | S29: -3090 | T29: -3090 | U29: -3090 | V29: -3090 | W29: -3090 | X29: -3090 | Y29: -3090 | Z29: -3090 | AA29: -3090 | AB29: -3090 | AC29: -3090 | AD29: -3090 | AE29: -3536.333333 | AF29: -3536.333333 | AG29: -3536.333333 | AH29: -3536.333333 | AI29: -3536.333333 | AJ29: -3536.333333 | AK29: -3536.333333 | AL29: -3536.333333 | AM29: -3536.333333 | AN29: -3536.333333 | AO29: -3536.333333 | AP29: -3536.333333 | AQ29: -3642.423333 | AR29: -3642.423333 | AS29: -3642.423333 | AT29: -3642.423333 | AU29: -3642.423333 | AV29: -3642.423333 | AW29: -3642.423333 | AX29: -3642.423333 | AY29: -3642.423333 | AZ29: -3642.423333 | BA29: -3642.423333 | BB29: -3642.423333 | BC29: -3751.696033 | BD29: -3751.696033 | BE29: -3751.696033 | BF29: -3751.696033 | BG29: -3751.696033 | BH29: -3751.696033 | BI29: -3751.696033 | BJ29: -3751.696033 | BK29: -3751.696033 | BL29: -3751.696033 | BM29: -3751.696033 | BN29: -3751.696033
D30: ='Monthly build'!D236 -> Administrative costs | G30: =-G255 -> -2056.502363 | H30: =-H255 -> -1550.087779 | I30: -1550.087779 | J30: -1550.087779 | K30: -1550.087779 | L30: -1550.087779 | M30: -1550.087779 | N30: -1850.087779 | O30: -1550.087779 | P30: -1550.087779 | Q30: -1550.087779 | R30: -2550.087779 | S30: -2137.528697 | T30: -1631.114112 | U30: -1631.114112 | V30: -1631.114112 | W30: -1631.114112 | X30: -1631.114112 | Y30: -1631.114112 | Z30: -1931.114112 | AA30: -1631.114112 | AB30: -1631.114112 | AC30: -1631.114112 | AD30: -2631.114112 | AE30: -2242.86293 | AF30: -1736.448346 | AG30: -1736.448346 | AH30: -1736.448346 | AI30: -1736.448346 | AJ30: -1736.448346 | AK30: -1736.448346 | AL30: -2036.448346 | AM30: -1736.448346 | AN30: -1736.448346 | AO30: -1736.448346 | AP30: -2736.448346 | AQ30: -2315.414585 | AR30: -1809 | AS30: -1809 | AT30: -1809 | AU30: -1809 | AV30: -1809 | AW30: -1809 | AX30: -2109 | AY30: -1809 | AZ30: -1809 | BA30: -1809 | BB30: -2809 | BC30: -2399.414585 | BD30: -1893 | BE30: -1893 | BF30: -1893 | BG30: -1893 | BH30: -1893 | BI30: -1893 | BJ30: -2193 | BK30: -1893 | BL30: -1893 | BM30: -1893 | BN30: -2893
D31: Total operating expenses | G31: =SUM(G29:G30) -> -5056.502363 | H31: -4550.087779 | I31: -4550.087779 | J31: -4550.087779 | K31: -4550.087779 | L31: -4550.087779 | M31: -4550.087779 | N31: -4850.087779 | O31: -4550.087779 | P31: -4550.087779 | Q31: -4550.087779 | R31: -5550.087779 | S31: -5227.528697 | T31: -4721.114112 | U31: -4721.114112 | V31: -4721.114112 | W31: -4721.114112 | X31: -4721.114112 | Y31: -4721.114112 | Z31: -5021.114112 | AA31: -4721.114112 | AB31: -4721.114112 | AC31: -4721.114112 | AD31: -5721.114112 | AE31: -5779.196264 | AF31: -5272.781679 | AG31: -5272.781679 | AH31: -5272.781679 | AI31: -5272.781679 | AJ31: -5272.781679 | AK31: -5272.781679 | AL31: -5572.781679 | AM31: =SUM(AM29:AM30) -> -5272.781679 | AN31: -5272.781679 | AO31: -5272.781679 | AP31: -6272.781679 | AQ31: -5957.837918 | AR31: -5451.423333 | AS31: -5451.423333 | AT31: -5451.423333 | AU31: -5451.423333 | AV31: -5451.423333 | AW31: -5451.423333 | AX31: -5751.423333 | AY31: -5451.423333 | AZ31: -5451.423333 | BA31: -5451.423333 | BB31: -6451.423333 | BC31: -6151.110618 | BD31: -5644.696033 | BE31: -5644.696033 | BF31: -5644.696033 | BG31: -5644.696033 | BH31: -5644.696033 | BI31: -5644.696033 | BJ31: -5944.696033 | BK31: -5644.696033 | BL31: -5644.696033 | BM31: -5644.696033 | BN31: -6644.696033
D33: EBITDA | G33: =G22+G26+G31 -> 101608.1786 | H33: 2114.593221 | I33: 2114.593221 | J33: 657.7182215 | K33: 657.7182215 | L33: 657.7182215 | M33: 657.7182215 | N33: 357.7182215 | O33: 657.7182215 | P33: 657.7182215 | Q33: 366.3432215 | R33: -633.6567785 | S33: 53084.4003 | T33: 3590.814888 | U33: 3590.814888 | V33: 1667.184888 | W33: 1667.184888 | X33: 1667.184888 | Y33: 1667.184888 | Z33: 1367.184888 | AA33: 1667.184888 | AB33: 1667.184888 | AC33: 1282.458888 | AD33: 282.458888 | AE33: 2324.389736 | AF33: 2830.804321 | AG33: 2830.804321 | AH33: 1067.754321 | AI33: 1067.754321 | AJ33: 1067.754321 | AK33: 1067.754321 | AL33: 767.754321 | AM33: =AM22+AM26+AM31 -> 1067.754321 | AN33: 1067.754321 | AO33: 715.144321 | AP33: -284.855679 | AQ33: 2936.936082 | AR33: 3443.350667 | AS33: 3443.350667 | AT33: 1504.550667 | AU33: 1504.550667 | AV33: 1504.550667 | AW33: 1504.550667 | AX33: 1204.550667 | AY33: 1504.550667 | AZ33: 1504.550667 | BA33: 1116.790667 | BB33: 116.7906667 | BC33: 3653.536382 | BD33: 4159.950967 | BE33: 4159.950967 | BF33: 2026.900967 | BG33: 2026.900967 | BH33: 2026.900967 | BI33: 2026.900967 | BJ33: 1726.900967 | BK33: 2026.900967 | BL33: 2026.900967 | BM33: 1600.290967 | BN33: 600.2909667
D35: Depreciation | G35: =G339 -> -1488.095238 | H35: =H339 -> -1472.629677 | I35: -1457.358215 | J35: -1442.277845 | K35: -1427.385611 | L35: -1415.178615 | M35: -1400.61234 | N35: -1386.226353 | O35: -1372.017896 | P35: -1357.984262 | Q35: -1344.122793 | R35: -1330.430878 | S35: -1316.905953 | T35: -1303.545501 | U35: -1290.347049 | V35: -1277.308167 | W35: -1264.426472 | X35: -1251.699619 | Y35: -1239.125308 | Z35: -1226.701278 | AA35: -1214.425308 | AB35: -1202.295217 | AC35: -1190.308862 | AD35: -1178.464137 | AE35: -1166.758974 | AF35: -1155.19134 | AG35: -1143.759239 | AH35: -1132.460709 | AI35: -1121.293821 | AJ35: -1110.256682 | AK35: -1099.34743 | AL35: -1088.564234 | AM35: -1077.905298 | AN35: -1067.368854 | AO35: -1056.953166 | AP35: -1046.656526 | AQ35: -1036.477257 | AR35: -1026.413709 | AS35: -1016.464262 | AT35: -1006.627321 | AU35: -996.9013207 | AV35: -987.28472 | AW35: -977.7760051 | AX35: -968.3736871 | AY35: -959.0763021 | AZ35: -949.8824111 | BA35: -940.7905986 | BB35: -931.799473 | BC35: -922.9076657 | BD35: -914.1138309 | BE35: -905.416645 | BF35: -896.8148061 | BG35: -888.307034 | BH35: -879.8920692 | BI35: -871.568673 | BJ35: -863.3356271 | BK35: -855.1917326 | BL35: -847.1358105 | BM35: -839.1667008 | BN35: -831.2832621
D37: EBIT | G37: =G33+G35 -> 100120.0834 | H37: =H33+H35 -> 641.9635446 | I37: 657.235006 | J37: -784.5596235 | K37: -769.66739 | L37: -757.460393 | M37: -742.8941184 | N37: -1028.508131 | O37: -714.2996741 | P37: -700.2660403 | Q37: -977.7795712 | R37: -1964.087656 | S37: 51767.49435 | T37: 2287.269387 | U37: 2300.467839 | V37: 389.8767205 | W37: 402.7584159 | X37: 415.4852685 | Y37: 428.0595795 | Z37: 140.4836097 | AA37: 452.7595796 | AB37: 464.8896707 | AC37: 92.15002608 | AD37: -896.0052489 | AE37: 1157.630763 | AF37: 1675.612981 | AG37: 1687.045082 | AH37: -64.70638767 | AI37: -53.53950019 | AJ37: -42.50236106 | AK37: -31.59310859 | AL37: -320.8099133 | AM37: -10.15097723 | AN37: 0.3854666558 | AO37: -341.8088449 | AP37: -1331.512205 | AQ37: 1900.458825 | AR37: 2416.936958 | AS37: 2426.886405 | AT37: 497.9233455 | AU37: 507.649346 | AV37: 517.2659466 | AW37: 526.7746616 | AX37: 236.1769796 | AY37: 545.4743645 | AZ37: 554.6682556 | BA37: 176.0000681 | BB37: -815.0088063 | BC37: 2730.628716 | BD37: 3245.837136 | BE37: 3254.534322 | BF37: 1130.086161 | BG37: 1138.593933 | BH37: 1147.008897 | BI37: 1155.332294 | BJ37: 863.5653396 | BK37: 1171.709234 | BL37: 1179.765156 | BM37: 761.1242659 | BN37: -230.9922954
D39: Interest expense | G39: =G404 -> 0 | H39: =H404 -> 0 | I39: 0 | J39: 0 | K39: 0 | L39: 0 | M39: 0 | N39: 0 | O39: 0 | P39: 0 | Q39: 0 | R39: 0 | S39: 0 | T39: 0 | U39: 0 | V39: 0 | W39: 0 | X39: 0 | Y39: 0 | Z39: 0 | AA39: 0 | AB39: 0 | AC39: 0 | AD39: 0 | AE39: 0 | AF39: 0 | AG39: 0 | AH39: 0 | AI39: 0 | AJ39: 0 | AK39: 0 | AL39: 0 | AM39: 0 | AN39: 0 | AO39: 0 | AP39: 0 | AQ39: 0 | AR39: 0 | AS39: 0 | AT39: 0 | AU39: 0 | AV39: 0 | AW39: 0 | AX39: 0 | AY39: 0 | AZ39: 0 | BA39: 0 | BB39: 0 | BC39: 0 | BD39: 0 | BE39: 0 | BF39: 0 | BG39: 0 | BH39: 0 | BI39: 0 | BJ39: 0 | BK39: 0 | BL39: 0 | BM39: 0 | BN39: 0
D41: EBT | G41: =G37+G39 -> 100120.0834 | H41: =H37+H39 -> 641.9635446 | I41: 657.235006 | J41: -784.5596235 | K41: -769.66739 | L41: -757.460393 | M41: -742.8941184 | N41: -1028.508131 | O41: -714.2996741 | P41: -700.2660403 | Q41: -977.7795712 | R41: -1964.087656 | S41: 51767.49435 | T41: 2287.269387 | U41: 2300.467839 | V41: 389.8767205 | W41: 402.7584159 | X41: 415.4852685 | Y41: 428.0595795 | Z41: 140.4836097 | AA41: 452.7595796 | AB41: 464.8896707 | AC41: 92.15002608 | AD41: -896.0052489 | AE41: 1157.630763 | AF41: 1675.612981 | AG41: 1687.045082 | AH41: -64.70638767 | AI41: -53.53950019 | AJ41: -42.50236106 | AK41: -31.59310859 | AL41: -320.8099133 | AM41: -10.15097723 | AN41: 0.3854666558 | AO41: -341.8088449 | AP41: -1331.512205 | AQ41: 1900.458825 | AR41: 2416.936958 | AS41: 2426.886405 | AT41: 497.9233455 | AU41: 507.649346 | AV41: 517.2659466 | AW41: 526.7746616 | AX41: 236.1769796 | AY41: 545.4743645 | AZ41: 554.6682556 | BA41: 176.0000681 | BB41: -815.0088063 | BC41: 2730.628716 | BD41: 3245.837136 | BE41: 3254.534322 | BF41: 1130.086161 | BG41: 1138.593933 | BH41: 1147.008897 | BI41: 1155.332294 | BJ41: 863.5653396 | BK41: 1171.709234 | BL41: 1179.765156 | BM41: 761.1242659 | BN41: -230.9922954
D43: Taxation | G43: =-G51 -> 0 | H43: =-H51 -> 0 | I43: 0 | J43: 0 | K43: 0 | L43: 0 | M43: 0 | N43: 0 | O43: 0 | P43: 0 | Q43: 0 | R43: -27893.92781 | S43: 0 | T43: 0 | U43: 0 | V43: 0 | W43: 0 | X43: 0 | Y43: 0 | Z43: 0 | AA43: 0 | AB43: 0 | AC43: 0 | AD43: -17473.70676 | AE43: 0 | AF43: 0 | AG43: 0 | AH43: 0 | AI43: 0 | AJ43: 0 | AK43: 0 | AL43: 0 | AM43: 0 | AN43: 0 | AO43: 0 | AP43: -697.2152984 | AQ43: 0 | AR43: 0 | AS43: 0 | AT43: 0 | AU43: 0 | AV43: 0 | AW43: 0 | AX43: 0 | AY43: 0 | AZ43: 0 | BA43: 0 | BB43: -2847.361905 | BC43: 0 | BD43: 0 | BE43: 0 | BF43: 0 | BG43: 0 | BH43: 0 | BI43: 0 | BJ43: 0 | BK43: 0 | BL43: 0 | BM43: 0 | BN43: -5264.157947
D45: Net Profit | G45: =G41+G43 -> 100120.0834 | H45: =H41+H43 -> 641.9635446 | I45: 657.235006 | J45: -784.5596235 | K45: -769.66739 | L45: -757.460393 | M45: -742.8941184 | N45: -1028.508131 | O45: -714.2996741 | P45: -700.2660403 | Q45: -977.7795712 | R45: -29858.01546 | S45: 51767.49435 | T45: 2287.269387 | U45: 2300.467839 | V45: 389.8767205 | W45: 402.7584159 | X45: 415.4852685 | Y45: 428.0595795 | Z45: 140.4836097 | AA45: 452.7595796 | AB45: 464.8896707 | AC45: 92.15002608 | AD45: -18369.71201 | AE45: 1157.630763 | AF45: 1675.612981 | AG45: 1687.045082 | AH45: -64.70638767 | AI45: -53.53950019 | AJ45: -42.50236106 | AK45: -31.59310859 | AL45: -320.8099133 | AM45: -10.15097723 | AN45: 0.3854666558 | AO45: -341.8088449 | AP45: -2028.727503 | AQ45: 1900.458825 | AR45: 2416.936958 | AS45: 2426.886405 | AT45: 497.9233455 | AU45: 507.649346 | AV45: 517.2659466 | AW45: 526.7746616 | AX45: 236.1769796 | AY45: 545.4743645 | AZ45: 554.6682556 | BA45: 176.0000681 | BB45: -3662.370711 | BC45: 2730.628716 | BD45: 3245.837136 | BE45: 3254.534322 | BF45: 1130.086161 | BG45: 1138.593933 | BH45: 1147.008897 | BI45: 1155.332294 | BJ45: 863.5653396 | BK45: 1171.709234 | BL45: 1179.765156 | BM45: 761.1242659 | BN45: -5495.150243
D46: NP Margin | G46: =G45/G14 -> 5.669538623 | H46: 0.03635271753 | I46: 0.03721750047 | J46: -0.05717614479 | K46: -0.05609084741 | L46: -0.05520124131 | M46: -0.05413969875 | N46: -0.07495431584 | O46: -0.05205582898 | P46: -0.05103310355 | Q46: -0.07559586303 | R46: -2.308436905 | S46: 2.348829356 | T46: 0.1037795155 | U46: 0.1043783645 | V46: 0.02315086193 | W46: 0.02391577642 | X46: 0.02467149634 | Y46: 0.02541815836 | Z46: 0.008341910353 | AA46: 0.02688484324 | AB46: 0.0276051275 | AC46: 0.005831947932 | AD46: -1.162573778 | AE46: 0.05409540102 | AF46: 0.07830040379 | AG46: 0.07883461911 | AH46: -0.003889820597 | AI46: -0.003218523829 | AJ46: -0.002555026875 | AK46: -0.00189921782 | AL46: -0.01928546861 | AM46: =AM45/AM14 -> -0.000610225385 | AN46: 2.31723048e-05 | AO46: -0.02179653132 | AP46: -0.1293682806 | AQ46: 0.08082862621 | AR46: 0.1027950152 | AS46: 0.1032181763 | AT46: 0.02725032265 | AU46: 0.02778260669 | AV46: 0.02830890351 | AW46: 0.02882929596 | AX46: 0.01292548131 | AY46: 0.02985269232 | AZ46: 0.0303558551 | BA46: 0.01021818535 | BB46: -0.2126293651 | BC46: 0.105498519 | BD46: 0.1254037243 | BE46: 0.1257397422 | BF46: 0.05617260877 | BG46: 0.05659550021 | BH46: 0.05701377851 | BI46: 0.05742750526 | BJ46: 0.04292479606 | BK46: 0.05824154538 | BL46: 0.05864197693 | BM46: 0.04013288967 | BN46: -0.28975066
C48: Tax schedule
D49: Profit before tax plus grants | G49: =G41 -> 100120.0834 | H49: 641.9635446 | I49: 657.235006 | J49: -784.5596235 | K49: -769.66739 | L49: -757.460393 | M49: -742.8941184 | N49: -1028.508131 | O49: -714.2996741 | P49: -700.2660403 | Q49: -977.7795712 | R49: -1964.087656 | S49: 51767.49435 | T49: 2287.269387 | U49: 2300.467839 | V49: 389.8767205 | W49: 402.7584159 | X49: 415.4852685 | Y49: 428.0595795 | Z49: 140.4836097 | AA49: 452.7595796 | AB49: 464.8896707 | AC49: 92.15002608 | AD49: -896.0052489 | AE49: 1157.630763 | AF49: 1675.612981 | AG49: 1687.045082 | AH49: -64.70638767 | AI49: -53.53950019 | AJ49: -42.50236106 | AK49: -31.59310859 | AL49: -320.8099133 | AM49: =AM41 -> -10.15097723 | AN49: 0.3854666558 | AO49: -341.8088449 | AP49: -1331.512205 | AQ49: 1900.458825 | AR49: 2416.936958 | AS49: 2426.886405 | AT49: 497.9233455 | AU49: 507.649346 | AV49: 517.2659466 | AW49: 526.7746616 | AX49: 236.1769796 | AY49: 545.4743645 | AZ49: 554.6682556 | BA49: 176.0000681 | BB49: -815.0088063 | BC49: 2730.628716 | BD49: 3245.837136 | BE49: 3254.534322 | BF49: 1130.086161 | BG49: 1138.593933 | BH49: 1147.008897 | BI49: 1155.332294 | BJ49: 863.5653396 | BK49: 1171.709234 | BL49: 1179.765156 | BM49: 761.1242659 | BN49: -230.9922954
D50: Net income brought forward for tax purposes | G50: =IF(F51=0,F50+G49,G49) -> 100120.0834 | H50: =IF(G51=0,G50+H49,H49) -> 100762.0469 | I50: 101419.2819 | J50: 100634.7223 | K50: 99865.05494 | L50: 99107.59454 | M50: 98364.70042 | N50: 97336.19229 | O50: 96621.89262 | P50: 95921.62658 | Q50: 94943.84701 | R50: 92979.75935 | S50: 51767.49435 | T50: 54054.76374 | U50: 56355.23158 | V50: 56745.1083 | W50: 57147.86671 | X50: 57563.35198 | Y50: 57991.41156 | Z50: 58131.89517 | AA50: 58584.65475 | AB50: 59049.54442 | AC50: 59141.69445 | AD50: 58245.6892 | AE50: 1157.630763 | AF50: 2833.243744 | AG50: 4520.288826 | AH50: 4455.582438 | AI50: 4402.042938 | AJ50: 4359.540577 | AK50: 4327.947468 | AL50: 4007.137555 | AM50: =IF(AL51=0,AL50+AM49,AM49) -> 3996.986578 | AN50: 3997.372044 | AO50: 3655.5632 | AP50: 2324.050995 | AQ50: 1900.458825 | AR50: 4317.395783 | AS50: 6744.282188 | AT50: 7242.205533 | AU50: 7749.854879 | AV50: 8267.120826 | AW50: 8793.895487 | AX50: 9030.072467 | AY50: 9575.546831 | AZ50: 10130.21509 | BA50: 10306.21516 | BB50: 9491.206349 | BC50: 2730.628716 | BD50: 5976.465852 | BE50: 9231.000174 | BF50: 10361.08633 | BG50: 11499.68027 | BH50: 12646.68916 | BI50: 13802.02146 | BJ50: 14665.5868 | BK50: 15837.29603 | BL50: 17017.06119 | BM50: 17778.18545 | BN50: 17547.19316
D51: Tax payable end of each year | G51: =IF(MOD(G$5,12)=0,IF(G50>0,G50*'Assumptions '!$F$10,0),0) -> 0 | H51: =IF(MOD(H$5,12)=0,IF(H50>0,H50*'Assumptions '!$F$10,0),0) -> 0 | I51: =IF(MOD(I$5,12)=0,IF(I50>0,I50*'Assumptions '!$F$10,0),0) -> 0 | J51: =IF(MOD(J$5,12)=0,IF(J50>0,J50*'Assumptions '!$F$10,0),0) -> 0 | K51: =IF(MOD(K$5,12)=0,IF(K50>0,K50*'Assumptions '!$F$10,0),0) -> 0 | L51: =IF(MOD(L$5,12)=0,IF(L50>0,L50*'Assumptions '!$F$10,0),0) -> 0 | M51: =IF(MOD(M$5,12)=0,IF(M50>0,M50*'Assumptions '!$F$10,0),0) -> 0 | N51: =IF(MOD(N$5,12)=0,IF(N50>0,N50*'Assumptions '!$F$10,0),0) -> 0 | O51: =IF(MOD(O$5,12)=0,IF(O50>0,O50*'Assumptions '!$F$10,0),0) -> 0 | P51: =IF(MOD(P$5,12)=0,IF(P50>0,P50*'Assumptions '!$F$10,0),0) -> 0 | Q51: =IF(MOD(Q$5,12)=0,IF(Q50>0,Q50*'Assumptions '!$F$10,0),0) -> 0 | R51: =IF(MOD(R$5,12)=0,IF(R50>0,R50*'Assumptions '!$F$10,0),0) -> 27893.92781 | S51: =IF(MOD(S$5,12)=0,IF(S50>0,S50*'Assumptions '!$F$10,0),0) -> 0 | T51: =IF(MOD(T$5,12)=0,IF(T50>0,T50*'Assumptions '!$F$10,0),0) -> 0 | U51: =IF(MOD(U$5,12)=0,IF(U50>0,U50*'Assumptions '!$F$10,0),0) -> 0 | V51: =IF(MOD(V$5,12)=0,IF(V50>0,V50*'Assumptions '!$F$10,0),0) -> 0 | W51: =IF(MOD(W$5,12)=0,IF(W50>0,W50*'Assumptions '!$F$10,0),0) -> 0 | X51: =IF(MOD(X$5,12)=0,IF(X50>0,X50*'Assumptions '!$F$10,0),0) -> 0 | Y51: =IF(MOD(Y$5,12)=0,IF(Y50>0,Y50*'Assumptions '!$F$10,0),0) -> 0 | Z51: =IF(MOD(Z$5,12)=0,IF(Z50>0,Z50*'Assumptions '!$F$10,0),0) -> 0 | AA51: =IF(MOD(AA$5,12)=0,IF(AA50>0,AA50*'Assumptions '!$F$10,0),0) -> 0 | AB51: =IF(MOD(AB$5,12)=0,IF(AB50>0,AB50*'Assumptions '!$F$10,0),0) -> 0 | AC51: =IF(MOD(AC$5,12)=0,IF(AC50>0,AC50*'Assumptions '!$F$10,0),0) -> 0 | AD51: =IF(MOD(AD$5,12)=0,IF(AD50>0,AD50*'Assumptions '!$F$10,0),0) -> 17473.70676 | AE51: =IF(MOD(AE$5,12)=0,IF(AE50>0,AE50*'Assumptions '!$F$10,0),0) -> 0 | AF51: =IF(MOD(AF$5,12)=0,IF(AF50>0,AF50*'Assumptions '!$F$10,0),0) -> 0 | AG51: =IF(MOD(AG$5,12)=0,IF(AG50>0,AG50*'Assumptions '!$F$10,0),0) -> 0 | AH51: =IF(MOD(AH$5,12)=0,IF(AH50>0,AH50*'Assumptions '!$F$10,0),0) -> 0 | AI51: =IF(MOD(AI$5,12)=0,IF(AI50>0,AI50*'Assumptions '!$F$10,0),0) -> 0 | AJ51: =IF(MOD(AJ$5,12)=0,IF(AJ50>0,AJ50*'Assumptions '!$F$10,0),0) -> 0 | AK51: =IF(MOD(AK$5,12)=0,IF(AK50>0,AK50*'Assumptions '!$F$10,0),0) -> 0 | AL51: =IF(MOD(AL$5,12)=0,IF(AL50>0,AL50*'Assumptions '!$F$10,0),0) -> 0 | AM51: =IF(MOD(AM$5,12)=0,IF(AM50>0,AM50*'Assumptions '!$F$10,0),0) -> 0 | AN51: =IF(MOD(AN$5,12)=0,IF(AN50>0,AN50*'Assumptions '!$F$10,0),0) -> 0 | AO51: =IF(MOD(AO$5,12)=0,IF(AO50>0,AO50*'Assumptions '!$F$10,0),0) -> 0 | AP51: =IF(MOD(AP$5,12)=0,IF(AP50>0,AP50*'Assumptions '!$F$10,0),0) -> 697.2152984 | AQ51: =IF(MOD(AQ$5,12)=0,IF(AQ50>0,AQ50*'Assumptions '!$F$10,0),0) -> 0 | AR51: =IF(MOD(AR$5,12)=0,IF(AR50>0,AR50*'Assumptions '!$F$10,0),0) -> 0 | AS51: =IF(MOD(AS$5,12)=0,IF(AS50>0,AS50*'Assumptions '!$F$10,0),0) -> 0 | AT51: =IF(MOD(AT$5,12)=0,IF(AT50>0,AT50*'Assumptions '!$F$10,0),0) -> 0 | AU51: =IF(MOD(AU$5,12)=0,IF(AU50>0,AU50*'Assumptions '!$F$10,0),0) -> 0 | AV51: =IF(MOD(AV$5,12)=0,IF(AV50>0,AV50*'Assumptions '!$F$10,0),0) -> 0 | AW51: =IF(MOD(AW$5,12)=0,IF(AW50>0,AW50*'Assumptions '!$F$10,0),0) -> 0 | AX51: =IF(MOD(AX$5,12)=0,IF(AX50>0,AX50*'Assumptions '!$F$10,0),0) -> 0 | AY51: =IF(MOD(AY$5,12)=0,IF(AY50>0,AY50*'Assumptions '!$F$10,0),0) -> 0 | AZ51: =IF(MOD(AZ$5,12)=0,IF(AZ50>0,AZ50*'Assumptions '!$F$10,0),0) -> 0 | BA51: =IF(MOD(BA$5,12)=0,IF(BA50>0,BA50*'Assumptions '!$F$10,0),0) -> 0 | BB51: =IF(MOD(BB$5,12)=0,IF(BB50>0,BB50*'Assumptions '!$F$10,0),0) -> 2847.361905 | BC51: =IF(MOD(BC$5,12)=0,IF(BC50>0,BC50*'Assumptions '!$F$10,0),0) -> 0 | BD51: =IF(MOD(BD$5,12)=0,IF(BD50>0,BD50*'Assumptions '!$F$10,0),0) -> 0 | BE51: =IF(MOD(BE$5,12)=0,IF(BE50>0,BE50*'Assumptions '!$F$10,0),0) -> 0 | BF51: =IF(MOD(BF$5,12)=0,IF(BF50>0,BF50*'Assumptions '!$F$10,0),0) -> 0 | BG51: =IF(MOD(BG$5,12)=0,IF(BG50>0,BG50*'Assumptions '!$F$10,0),0) -> 0 | BH51: =IF(MOD(BH$5,12)=0,IF(BH50>0,BH50*'Assumptions '!$F$10,0),0) -> 0 | BI51: =IF(MOD(BI$5,12)=0,IF(BI50>0,BI50*'Assumptions '!$F$10,0),0) -> 0 | BJ51: =IF(MOD(BJ$5,12)=0,IF(BJ50>0,BJ50*'Assumptions '!$F$10,0),0) -> 0 | BK51: =IF(MOD(BK$5,12)=0,IF(BK50>0,BK50*'Assumptions '!$F$10,0),0) -> 0 | BL51: =IF(MOD(BL$5,12)=0,IF(BL50>0,BL50*'Assumptions '!$F$10,0),0) -> 0 | BM51: =IF(MOD(BM$5,12)=0,IF(BM50>0,BM50*'Assumptions '!$F$10,0),0) -> 0 | BN51: =IF(MOD(BN$5,12)=0,IF(BN50>0,BN50*'Assumptions '!$F$10,0),0) -> 5264.157947
D52: Note: Tax loss carry forward in Tanzania is unlimited, and in Kenya and Madagascar 5 years.
B54: Balance sheet
C56: Assets
D57: Current assets
D58: Cash | G58: =G119 -> -14783.38301 | H58: =H119 -> -12657.91417 | I58: -10543.32095 | J58: -8435.739712 | K58: -7778.021491 | L58: -7270.303269 | M58: -6612.585048 | N58: -6254.866826 | O58: -5597.148605 | P58: 45060.56962 | Q58: 45716.88544 | R58: 17189.30086 | S58: 66939.29239 | T58: 70530.10728 | U58: 74120.92217 | V58: 77702.47856 | W58: 79369.66345 | X58: 81036.84834 | Y58: 82704.03323 | Z58: 84071.21812 | AA58: 85738.403 | AB58: 87405.58789 | AC58: 89070.92108 | AD58: 71879.67321 | AE58: 72161.99303 | AF58: 74992.79735 | AG58: 77823.60167 | AH58: 80645.92037 | AI58: 81713.6747 | AJ58: 82781.42902 | AK58: 83849.18334 | AL58: 84616.93766 | AM58: 85684.69198 | AN58: 86752.4463 | AO58: 87818.5035 | AP58: 86836.43252 | AQ58: 86898.31326 | AR58: 90341.66393 | AS58: 93785.01459 | AT58: 97219.03375 | AU58: 98723.58442 | AV58: 100228.1351 | AW58: 101732.6858 | AX58: 102937.2364 | AY58: 104441.7871 | AZ58: 105946.3378 | BA58: 107449.0221 | BB58: 104718.4509 | BC58: 105206.0388 | BD58: 109365.9897 | BE58: 113525.9407 | BF58: 117675.6252 | BG58: 119702.5262 | BH58: 121729.4272 | BI58: 123756.3281 | BJ58: 125483.2291 | BK58: 127510.1301 | BL58: 129537.031 | BM58: 131561.8787 | BN58: 126898.0117
D59: Trade receivables | G59: =G344+G345 -> 5707.916712 | H59: =H344 -> 5697.041096 | I59: 5697.041096 | J59: 4402.520548 | K59: 4402.520548 | L59: 4402.520548 | M59: 4402.520548 | N59: 4402.520548 | O59: 4402.520548 | P59: 4402.520548 | Q59: 4143.616438 | R59: 4143.616438 | S59: 7120.767123 | T59: 7120.767123 | U59: 7120.767123 | V59: 5411.506849 | W59: 5411.506849 | X59: 5411.506849 | Y59: 5411.506849 | Z59: 5411.506849 | AA59: 5411.506849 | AB59: 5411.506849 | AC59: 5069.654795 | AD59: 5069.654795 | AE59: 6892.931507 | AF59: 6892.931507 | AG59: 6892.931507 | AH59: 5326.356164 | AI59: 5326.356164 | AJ59: 5326.356164 | AK59: 5326.356164 | AL59: 5326.356164 | AM59: 5326.356164 | AN59: 5326.356164 | AO59: 5013.041096 | AP59: 5013.041096 | AQ59: 7580.054795 | AR59: 7580.054795 | AS59: 7580.054795 | AT59: 5857.315068 | AU59: 5857.315068 | AV59: 5857.315068 | AW59: 5857.315068 | AX59: 5857.315068 | AY59: 5857.315068 | AZ59: 5857.315068 | BA59: 5512.767123 | BB59: 5512.767123 | BC59: 8339.506849 | BD59: 8339.506849 | BE59: 8339.506849 | BF59: 6444.164384 | BG59: 6444.164384 | BH59: 6444.164384 | BI59: 6444.164384 | BJ59: 6444.164384 | BK59: 6444.164384 | BL59: 6444.164384 | BM59: 6065.09589 | BN59: 6065.09589
D60: Inventory | G60: =G346 -> 1025.467397 | H60: =H346 -> 1025.467397 | I60: 1025.467397 | J60: 792.4536986 | K60: 792.4536986 | L60: 792.4536986 | M60: 792.4536986 | N60: 792.4536986 | O60: 792.4536986 | P60: 792.4536986 | Q60: 745.8509589 | R60: 745.8509589 | S60: 1281.738082 | T60: 1281.738082 | U60: 1281.738082 | V60: 974.0712329 | W60: 974.0712329 | X60: 974.0712329 | Y60: 974.0712329 | Z60: 974.0712329 | AA60: 974.0712329 | AB60: 974.0712329 | AC60: 912.537863 | AD60: 912.537863 | AE60: 1240.727671 | AF60: 1240.727671 | AG60: 1240.727671 | AH60: 958.7441096 | AI60: 958.7441096 | AJ60: 958.7441096 | AK60: 958.7441096 | AL60: 958.7441096 | AM60: 958.7441096 | AN60: 958.7441096 | AO60: 902.3473973 | AP60: 902.3473973 | AQ60: 1364.409863 | AR60: 1364.409863 | AS60: 1364.409863 | AT60: 1054.316712 | AU60: 1054.316712 | AV60: 1054.316712 | AW60: 1054.316712 | AX60: 1054.316712 | AY60: 1054.316712 | AZ60: 1054.316712 | BA60: 992.2980822 | BB60: 992.2980822 | BC60: 1501.111233 | BD60: 1501.111233 | BE60: 1501.111233 | BF60: 1159.949589 | BG60: 1159.949589 | BH60: 1159.949589 | BI60: 1159.949589 | BJ60: 1159.949589 | BK60: 1159.949589 | BL60: 1159.949589 | BM60: 1091.71726 | BN60: 1091.71726
D61: Total current assets | G61: =SUM(G58:G60) -> -8049.998897 | H61: =SUM(H58:H60) -> -5935.405676 | I61: -3820.812454 | J61: -3240.765466 | K61: -2583.047244 | L61: -2075.329023 | M61: -1417.610801 | N61: -1059.89258 | O61: -402.1743584 | P61: 50255.54386 | Q61: 50606.35284 | R61: 22078.76825 | S61: 75341.7976 | T61: 78932.61249 | U61: 82523.42737 | V61: 84088.05665 | W61: 85755.24153 | X61: 87422.42642 | Y61: 89089.61131 | Z61: 90456.7962 | AA61: 92123.98109 | AB61: 93791.16597 | AC61: 95053.11374 | AD61: 77861.86587 | AE61: 80295.65221 | AF61: 83126.45653 | AG61: 85957.26085 | AH61: 86931.02065 | AI61: 87998.77497 | AJ61: 89066.52929 | AK61: 90134.28361 | AL61: 90902.03793 | AM61: 91969.79225 | AN61: 93037.54657 | AO61: 93733.89199 | AP61: 92751.82101 | AQ61: 95842.77792 | AR61: 99286.12858 | AS61: 102729.4793 | AT61: 104130.6655 | AU61: 105635.2162 | AV61: 107139.7669 | AW61: 108644.3175 | AX61: 109848.8682 | AY61: 111353.4189 | AZ61: 112857.9695 | BA61: 113954.0873 | BB61: 111223.5161 | BC61: 115046.6569 | BD61: 119206.6078 | BE61: 123366.5588 | BF61: 125279.7392 | BG61: 127306.6402 | BH61: 129333.5411 | BI61: 131360.4421 | BJ61: 133087.3431 | BK61: 135114.244 | BL61: 137141.145 | BM61: 138718.6919 | BN61: 134054.8249
D63: Non- current assets
D64: ='Monthly build'!D260 -> Fridge | G64: =G263 -> 976.1904762 | H64: =H263 -> 952.9478458 | I64: 930.2586114 | J64: 908.1095968 | K64: 886.4879398 | L64: 865.381084 | M64: 844.7767725 | N64: 824.6630398 | O64: 805.0282056 | P64: 785.8608673 | Q64: 767.1498943 | R64: 748.8844206 | S64: 731.0538392 | T64: 713.6477954 | U64: 696.6561812 | V64: 680.0691293 | W64: 663.8770072 | X64: 648.0704118 | Y64: 632.6401639 | Z64: 617.5773028 | AA64: 602.8730813 | AB64: 588.5189603 | AC64: 574.5066041 | AD64: 560.8278755 | AE64: 547.4748308 | AF64: 534.4397158 | AG64: 521.7149607 | AH64: 509.2931759 | AI64: 497.1671479 | AJ64: 485.3298348 | AK64: 473.7743626 | AL64: 462.4940206 | AM64: 451.4822582 | AN64: 440.7326806 | AO64: 430.2390454 | AP64: 419.9952586 | AQ64: 409.9953715 | AR64: 400.2335769 | AS64: 390.704206 | AT64: 381.4017249 | AU64: 372.3207315 | AV64: 363.4559522 | AW64: 354.802239 | AX64: 346.3545667 | AY64: 338.1080294 | AZ64: 330.0578382 | BA64: 322.1993182 | BB64: 314.5279059 | BC64: 307.0391462 | BD64: 299.7286904 | BE64: 292.592293 | BF64: 285.6258098 | BG64: 278.8251953 | BH64: 272.1865002 | BI64: 265.7058692 | BJ64: 259.379539 | BK64: 253.2038357 | BL64: 247.1751729 | BM64: 241.2900498 | BN64: 235.5450486
D65: ='Monthly build'!D265 -> Power protection unit | G65: =G268 -> 244.047619 | H65: =H268 -> 238.2369615 | I65: 232.5646528 | J65: 227.0273992 | K65: 221.6219849 | L65: 216.345271 | M65: 211.1941931 | N65: 206.16576 | O65: 201.2570514 | P65: 196.4652168 | Q65: 191.7874736 | R65: 187.2211052 | S65: 182.7634598 | T65: 178.4119488 | U65: 174.1640453 | V65: 170.0172823 | W65: 165.9692518 | X65: 162.0176029 | Y65: 158.160041 | Z65: 154.3943257 | AA65: 150.7182703 | AB65: 147.1297401 | AC65: 143.626651 | AD65: 140.2069689 | AE65: 136.8687077 | AF65: 133.6099289 | AG65: 130.4287402 | AH65: 127.323294 | AI65: 124.291787 | AJ65: 121.3324587 | AK65: 118.4435906 | AL65: 115.6235052 | AM65: 112.8705646 | AN65: 110.1831702 | AO65: 107.5597613 | AP65: 104.9988146 | AQ65: 102.4988429 | AR65: 100.0583942 | AS65: 97.67605151 | AT65: 95.35043124 | AU65: 93.08018287 | AV65: 90.86398804 | AW65: 88.70055976 | AX65: 86.58864167 | AY65: 84.52700734 | AZ65: 82.51445955 | BA65: 80.54982956 | BB65: 78.63197647 | BC65: 76.75978656 | BD65: 74.93217259 | BE65: 73.14807324 | BF65: 71.40645245 | BG65: 69.70629882 | BH65: 68.04662504 | BI65: 66.4264673 | BJ65: 64.84488475 | BK65: 63.30095892 | BL65: 61.79379323 | BM65: 60.32251244 | BN65: 58.88626214
D66: ='Monthly build'!D270 -> [Add existing asset] | G66: =G273 -> 0 | H66: =H273 -> 0 | I66: 0 | J66: 0 | K66: 0 | L66: 0 | M66: 0 | N66: 0 | O66: 0 | P66: 0 | Q66: 0 | R66: 0 | S66: 0 | T66: 0 | U66: 0 | V66: 0 | W66: 0 | X66: 0 | Y66: 0 | Z66: 0 | AA66: 0 | AB66: 0 | AC66: 0 | AD66: 0 | AE66: 0 | AF66: 0 | AG66: 0 | AH66: 0 | AI66: 0 | AJ66: 0 | AK66: 0 | AL66: 0 | AM66: 0 | AN66: 0 | AO66: 0 | AP66: 0 | AQ66: 0 | AR66: 0 | AS66: 0 | AT66: 0 | AU66: 0 | AV66: 0 | AW66: 0 | AX66: 0 | AY66: 0 | AZ66: 0 | BA66: 0 | BB66: 0 | BC66: 0 | BD66: 0 | BE66: 0 | BF66: 0 | BG66: 0 | BH66: 0 | BI66: 0 | BJ66: 0 | BK66: 0 | BL66: 0 | BM66: 0 | BN66: 0
D67: ='Monthly build'!D275 -> [Add existing asset] | G67: =G278 -> 0 | H67: =H278 -> 0 | I67: 0 | J67: 0 | K67: 0 | L67: 0 | M67: 0 | N67: 0 | O67: 0 | P67: 0 | Q67: 0 | R67: 0 | S67: 0 | T67: 0 | U67: 0 | V67: 0 | W67: 0 | X67: 0 | Y67: 0 | Z67: 0 | AA67: 0 | AB67: 0 | AC67: 0 | AD67: 0 | AE67: 0 | AF67: 0 | AG67: 0 | AH67: 0 | AI67: 0 | AJ67: 0 | AK67: 0 | AL67: 0 | AM67: 0 | AN67: 0 | AO67: 0 | AP67: 0 | AQ67: 0 | AR67: 0 | AS67: 0 | AT67: 0 | AU67: 0 | AV67: 0 | AW67: 0 | AX67: 0 | AY67: 0 | AZ67: 0 | BA67: 0 | BB67: 0 | BC67: 0 | BD67: 0 | BE67: 0 | BF67: 0 | BG67: 0 | BH67: 0 | BI67: 0 | BJ67: 0 | BK67: 0 | BL67: 0 | BM67: 0 | BN67: 0
D68: ='Monthly build'!D280 -> [Add existing asset] | G68: =G283 -> 0 | H68: =H283 -> 0 | I68: 0 | J68: 0 | K68: 0 | L68: 0 | M68: 0 | N68: 0 | O68: 0 | P68: 0 | Q68: 0 | R68: 0 | S68: 0 | T68: 0 | U68: 0 | V68: 0 | W68: 0 | X68: 0 | Y68: 0 | Z68: 0 | AA68: 0 | AB68: 0 | AC68: 0 | AD68: 0 | AE68: 0 | AF68: 0 | AG68: 0 | AH68: 0 | AI68: 0 | AJ68: 0 | AK68: 0 | AL68: 0 | AM68: 0 | AN68: 0 | AO68: 0 | AP68: 0 | AQ68: 0 | AR68: 0 | AS68: 0 | AT68: 0 | AU68: 0 | AV68: 0 | AW68: 0 | AX68: 0 | AY68: 0 | AZ68: 0 | BA68: 0 | BB68: 0 | BC68: 0 | BD68: 0 | BE68: 0 | BF68: 0 | BG68: 0 | BH68: 0 | BI68: 0 | BJ68: 0 | BK68: 0 | BL68: 0 | BM68: 0 | BN68: 0
D69: New Assets | G69: =SUM('Monthly build'!G291,'Monthly build'!G297,'Monthly build'!G303,'Monthly build'!G309,'Monthly build'!G315,'Monthly build'!G321,'Monthly build'!G327,'Monthly build'!G333) -> 158541.6667 | H69: =SUM('Monthly build'!H291,'Monthly build'!H297,'Monthly build'!H303,'Monthly build'!H309,'Monthly build'!H315,'Monthly build'!H321,'Monthly build'!H327,'Monthly build'!H333) -> 157098.0903 | I69: =SUM('Monthly build'!I291,'Monthly build'!I297,'Monthly build'!I303,'Monthly build'!I309,'Monthly build'!I315,'Monthly build'!I321,'Monthly build'!I327,'Monthly build'!I333) -> 155669.0936 | J69: =SUM('Monthly build'!J291,'Monthly build'!J297,'Monthly build'!J303,'Monthly build'!J309,'Monthly build'!J315,'Monthly build'!J321,'Monthly build'!J327,'Monthly build'!J333) -> 154254.502 | K69: =SUM('Monthly build'!K291,'Monthly build'!K297,'Monthly build'!K303,'Monthly build'!K309,'Monthly build'!K315,'Monthly build'!K321,'Monthly build'!K327,'Monthly build'!K333) -> 152854.1435 | L69: =SUM('Monthly build'!L291,'Monthly build'!L297,'Monthly build'!L303,'Monthly build'!L309,'Monthly build'!L315,'Monthly build'!L321,'Monthly build'!L327,'Monthly build'!L333) -> 151615.3484 | M69: =SUM('Monthly build'!M291,'Monthly build'!M297,'Monthly build'!M303,'Monthly build'!M309,'Monthly build'!M315,'Monthly build'!M321,'Monthly build'!M327,'Monthly build'!M333) -> 150240.4915 | N69: =SUM('Monthly build'!N291,'Monthly build'!N297,'Monthly build'!N303,'Monthly build'!N309,'Monthly build'!N315,'Monthly build'!N321,'Monthly build'!N327,'Monthly build'!N333) -> 148879.4073 | O69: =SUM('Monthly build'!O291,'Monthly build'!O297,'Monthly build'!O303,'Monthly build'!O309,'Monthly build'!O315,'Monthly build'!O321,'Monthly build'!O327,'Monthly build'!O333) -> 147531.933 | P69: =SUM('Monthly build'!P291,'Monthly build'!P297,'Monthly build'!P303,'Monthly build'!P309,'Monthly build'!P315,'Monthly build'!P321,'Monthly build'!P327,'Monthly build'!P333) -> 146197.9079 | Q69: =SUM('Monthly build'!Q291,'Monthly build'!Q297,'Monthly build'!Q303,'Monthly build'!Q309,'Monthly build'!Q315,'Monthly build'!Q321,'Monthly build'!Q327,'Monthly build'!Q333) -> 144877.1738 | R69: =SUM('Monthly build'!R291,'Monthly build'!R297,'Monthly build'!R303,'Monthly build'!R309,'Monthly build'!R315,'Monthly build'!R321,'Monthly build'!R327,'Monthly build'!R333) -> 143569.5748 | S69: =SUM('Monthly build'!S291,'Monthly build'!S297,'Monthly build'!S303,'Monthly build'!S309,'Monthly build'!S315,'Monthly build'!S321,'Monthly build'!S327,'Monthly build'!S333) -> 142274.957 | T69: =SUM('Monthly build'!T291,'Monthly build'!T297,'Monthly build'!T303,'Monthly build'!T309,'Monthly build'!T315,'Monthly build'!T321,'Monthly build'!T327,'Monthly build'!T333) -> 140993.1691 | U69: =SUM('Monthly build'!U291,'Monthly build'!U297,'Monthly build'!U303,'Monthly build'!U309,'Monthly build'!U315,'Monthly build'!U321,'Monthly build'!U327,'Monthly build'!U333) -> 139724.0615 | V69: =SUM('Monthly build'!V291,'Monthly build'!V297,'Monthly build'!V303,'Monthly build'!V309,'Monthly build'!V315,'Monthly build'!V321,'Monthly build'!V327,'Monthly build'!V333) -> 138467.4872 | W69: =SUM('Monthly build'!W291,'Monthly build'!W297,'Monthly build'!W303,'Monthly build'!W309,'Monthly build'!W315,'Monthly build'!W321,'Monthly build'!W327,'Monthly build'!W333) -> 137223.3009 | X69: =SUM('Monthly build'!X291,'Monthly build'!X297,'Monthly build'!X303,'Monthly build'!X309,'Monthly build'!X315,'Monthly build'!X321,'Monthly build'!X327,'Monthly build'!X333) -> 135991.3595 | Y69: =SUM('Monthly build'!Y291,'Monthly build'!Y297,'Monthly build'!Y303,'Monthly build'!Y309,'Monthly build'!Y315,'Monthly build'!Y321,'Monthly build'!Y327,'Monthly build'!Y333) -> 134771.522 | Z69: =SUM('Monthly build'!Z291,'Monthly build'!Z297,'Monthly build'!Z303,'Monthly build'!Z309,'Monthly build'!Z315,'Monthly build'!Z321,'Monthly build'!Z327,'Monthly build'!Z333) -> 133563.6493 | AA69: =SUM('Monthly build'!AA291,'Monthly build'!AA297,'Monthly build'!AA303,'Monthly build'!AA309,'Monthly build'!AA315,'Monthly build'!AA321,'Monthly build'!AA327,'Monthly build'!AA333) -> 132367.6043 | AB69: =SUM('Monthly build'!AB291,'Monthly build'!AB297,'Monthly build'!AB303,'Monthly build'!AB309,'Monthly build'!AB315,'Monthly build'!AB321,'Monthly build'!AB327,'Monthly build'!AB333) -> 131183.2517 | AC69: =SUM('Monthly build'!AC291,'Monthly build'!AC297,'Monthly build'!AC303,'Monthly build'!AC309,'Monthly build'!AC315,'Monthly build'!AC321,'Monthly build'!AC327,'Monthly build'!AC333) -> 130010.4583 | AD69: =SUM('Monthly build'!AD291,'Monthly build'!AD297,'Monthly build'!AD303,'Monthly build'!AD309,'Monthly build'!AD315,'Monthly build'!AD321,'Monthly build'!AD327,'Monthly build'!AD333) -> 128849.0926 | AE69: =SUM('Monthly build'!AE291,'Monthly build'!AE297,'Monthly build'!AE303,'Monthly build'!AE309,'Monthly build'!AE315,'Monthly build'!AE321,'Monthly build'!AE327,'Monthly build'!AE333) -> 127699.0249 | AF69: =SUM('Monthly build'!AF291,'Monthly build'!AF297,'Monthly build'!AF303,'Monthly build'!AF309,'Monthly build'!AF315,'Monthly build'!AF321,'Monthly build'!AF327,'Monthly build'!AF333) -> 126560.1274 | AG69: =SUM('Monthly build'!AG291,'Monthly build'!AG297,'Monthly build'!AG303,'Monthly build'!AG309,'Monthly build'!AG315,'Monthly build'!AG321,'Monthly build'!AG327,'Monthly build'!AG333) -> 125432.2742 | AH69: =SUM('Monthly build'!AH291,'Monthly build'!AH297,'Monthly build'!AH303,'Monthly build'!AH309,'Monthly build'!AH315,'Monthly build'!AH321,'Monthly build'!AH327,'Monthly build'!AH333) -> 124315.3407 | AI69: =SUM('Monthly build'!AI291,'Monthly build'!AI297,'Monthly build'!AI303,'Monthly build'!AI309,'Monthly build'!AI315,'Monthly build'!AI321,'Monthly build'!AI327,'Monthly build'!AI333) -> 123209.2044 | AJ69: =SUM('Monthly build'!AJ291,'Monthly build'!AJ297,'Monthly build'!AJ303,'Monthly build'!AJ309,'Monthly build'!AJ315,'Monthly build'!AJ321,'Monthly build'!AJ327,'Monthly build'!AJ333) -> 122113.7443 | AK69: =SUM('Monthly build'!AK291,'Monthly build'!AK297,'Monthly build'!AK303,'Monthly build'!AK309,'Monthly build'!AK315,'Monthly build'!AK321,'Monthly build'!AK327,'Monthly build'!AK333) -> 121028.8413 | AL69: =SUM('Monthly build'!AL291,'Monthly build'!AL297,'Monthly build'!AL303,'Monthly build'!AL309,'Monthly build'!AL315,'Monthly build'!AL321,'Monthly build'!AL327,'Monthly build'!AL333) -> 119954.3775 | AM69: =SUM('Monthly build'!AM291,'Monthly build'!AM297,'Monthly build'!AM303,'Monthly build'!AM309,'Monthly build'!AM315,'Monthly build'!AM321,'Monthly build'!AM327,'Monthly build'!AM333) -> 118890.2369 | AN69: =SUM('Monthly build'!AN291,'Monthly build'!AN297,'Monthly build'!AN303,'Monthly build'!AN309,'Monthly build'!AN315,'Monthly build'!AN321,'Monthly build'!AN327,'Monthly build'!AN333) -> 117836.305 | AO69: =SUM('Monthly build'!AO291,'Monthly build'!AO297,'Monthly build'!AO303,'Monthly build'!AO309,'Monthly build'!AO315,'Monthly build'!AO321,'Monthly build'!AO327,'Monthly build'!AO333) -> 116792.4689 | AP69: =SUM('Monthly build'!AP291,'Monthly build'!AP297,'Monthly build'!AP303,'Monthly build'!AP309,'Monthly build'!AP315,'Monthly build'!AP321,'Monthly build'!AP327,'Monthly build'!AP333) -> 115758.6171 | AQ69: =SUM('Monthly build'!AQ291,'Monthly build'!AQ297,'Monthly build'!AQ303,'Monthly build'!AQ309,'Monthly build'!AQ315,'Monthly build'!AQ321,'Monthly build'!AQ327,'Monthly build'!AQ333) -> 114734.6397 | AR69: =SUM('Monthly build'!AR291,'Monthly build'!AR297,'Monthly build'!AR303,'Monthly build'!AR309,'Monthly build'!AR315,'Monthly build'!AR321,'Monthly build'!AR327,'Monthly build'!AR333) -> 113720.4282 | AS69: =SUM('Monthly build'!AS291,'Monthly build'!AS297,'Monthly build'!AS303,'Monthly build'!AS309,'Monthly build'!AS315,'Monthly build'!AS321,'Monthly build'!AS327,'Monthly build'!AS333) -> 112715.8756 | AT69: =SUM('Monthly build'!AT291,'Monthly build'!AT297,'Monthly build'!AT303,'Monthly build'!AT309,'Monthly build'!AT315,'Monthly build'!AT321,'Monthly build'!AT327,'Monthly build'!AT333) -> 111720.8764 | AU69: =SUM('Monthly build'!AU291,'Monthly build'!AU297,'Monthly build'!AU303,'Monthly build'!AU309,'Monthly build'!AU315,'Monthly build'!AU321,'Monthly build'!AU327,'Monthly build'!AU333) -> 110735.3263 | AV69: =SUM('Monthly build'!AV291,'Monthly build'!AV297,'Monthly build'!AV303,'Monthly build'!AV309,'Monthly build'!AV315,'Monthly build'!AV321,'Monthly build'!AV327,'Monthly build'!AV333) -> 109759.1226 | AW69: =SUM('Monthly build'!AW291,'Monthly build'!AW297,'Monthly build'!AW303,'Monthly build'!AW309,'Monthly build'!AW315,'Monthly build'!AW321,'Monthly build'!AW327,'Monthly build'!AW333) -> 108792.1637 | AX69: =SUM('Monthly build'!AX291,'Monthly build'!AX297,'Monthly build'!AX303,'Monthly build'!AX309,'Monthly build'!AX315,'Monthly build'!AX321,'Monthly build'!AX327,'Monthly build'!AX333) -> 107834.3496 | AY69: =SUM('Monthly build'!AY291,'Monthly build'!AY297,'Monthly build'!AY303,'Monthly build'!AY309,'Monthly build'!AY315,'Monthly build'!AY321,'Monthly build'!AY327,'Monthly build'!AY333) -> 106885.5815 | AZ69: =SUM('Monthly build'!AZ291,'Monthly build'!AZ297,'Monthly build'!AZ303,'Monthly build'!AZ309,'Monthly build'!AZ315,'Monthly build'!AZ321,'Monthly build'!AZ327,'Monthly build'!AZ333) -> 105945.7618 | BA69: =SUM('Monthly build'!BA291,'Monthly build'!BA297,'Monthly build'!BA303,'Monthly build'!BA309,'Monthly build'!BA315,'Monthly build'!BA321,'Monthly build'!BA327,'Monthly build'!BA333) -> 105014.7944 | BB69: =SUM('Monthly build'!BB291,'Monthly build'!BB297,'Monthly build'!BB303,'Monthly build'!BB309,'Monthly build'!BB315,'Monthly build'!BB321,'Monthly build'!BB327,'Monthly build'!BB333) -> 104092.5842 | BC69: =SUM('Monthly build'!BC291,'Monthly build'!BC297,'Monthly build'!BC303,'Monthly build'!BC309,'Monthly build'!BC315,'Monthly build'!BC321,'Monthly build'!BC327,'Monthly build'!BC333) -> 103179.0375 | BD69: =SUM('Monthly build'!BD291,'Monthly build'!BD297,'Monthly build'!BD303,'Monthly build'!BD309,'Monthly build'!BD315,'Monthly build'!BD321,'Monthly build'!BD327,'Monthly build'!BD333) -> 102274.0617 | BE69: =SUM('Monthly build'!BE291,'Monthly build'!BE297,'Monthly build'!BE303,'Monthly build'!BE309,'Monthly build'!BE315,'Monthly build'!BE321,'Monthly build'!BE327,'Monthly build'!BE333) -> 101377.5656 | BF69: =SUM('Monthly build'!BF291,'Monthly build'!BF297,'Monthly build'!BF303,'Monthly build'!BF309,'Monthly build'!BF315,'Monthly build'!BF321,'Monthly build'!BF327,'Monthly build'!BF333) -> 100489.4589 | BG69: =SUM('Monthly build'!BG291,'Monthly build'!BG297,'Monthly build'!BG303,'Monthly build'!BG309,'Monthly build'!BG315,'Monthly build'!BG321,'Monthly build'!BG327,'Monthly build'!BG333) -> 99609.65259 | BH69: =SUM('Monthly build'!BH291,'Monthly build'!BH297,'Monthly build'!BH303,'Monthly build'!BH309,'Monthly build'!BH315,'Monthly build'!BH321,'Monthly build'!BH327,'Monthly build'!BH333) -> 98738.05889 | BI69: =SUM('Monthly build'!BI291,'Monthly build'!BI297,'Monthly build'!BI303,'Monthly build'!BI309,'Monthly build'!BI315,'Monthly build'!BI321,'Monthly build'!BI327,'Monthly build'!BI333) -> 97874.59101 | BJ69: =SUM('Monthly build'!BJ291,'Monthly build'!BJ297,'Monthly build'!BJ303,'Monthly build'!BJ309,'Monthly build'!BJ315,'Monthly build'!BJ321,'Monthly build'!BJ327,'Monthly build'!BJ333) -> 97019.16329 | BK69: =SUM('Monthly build'!BK291,'Monthly build'!BK297,'Monthly build'!BK303,'Monthly build'!BK309,'Monthly build'!BK315,'Monthly build'!BK321,'Monthly build'!BK327,'Monthly build'!BK333) -> 96171.69119 | BL69: =SUM('Monthly build'!BL291,'Monthly build'!BL297,'Monthly build'!BL303,'Monthly build'!BL309,'Monthly build'!BL315,'Monthly build'!BL321,'Monthly build'!BL327,'Monthly build'!BL333) -> 95332.09121 | BM69: =SUM('Monthly build'!BM291,'Monthly build'!BM297,'Monthly build'!BM303,'Monthly build'!BM309,'Monthly build'!BM315,'Monthly build'!BM321,'Monthly build'!BM327,'Monthly build'!BM333) -> 94500.28091 | BN69: =SUM('Monthly build'!BN291,'Monthly build'!BN297,'Monthly build'!BN303,'Monthly build'!BN309,'Monthly build'!BN315,'Monthly build'!BN321,'Monthly build'!BN327,'Monthly build'!BN333) -> 93676.1789
D70: Total non-current assets | G70: =SUM(G64:G69) -> 159761.9048 | H70: =SUM(H64:H69) -> 158289.2751 | I70: 156831.9169 | J70: 155389.639 | K70: 153962.2534 | L70: 152697.0748 | M70: 151296.4625 | N70: 149910.2361 | O70: 148538.2182 | P70: 147180.2339 | Q70: 145836.1112 | R70: 144505.6803 | S70: 143188.7743 | T70: 141885.2288 | U70: 140594.8818 | V70: 139317.5736 | W70: 138053.1471 | X70: 136801.4475 | Y70: 135562.3222 | Z70: 134335.6209 | AA70: 133121.1956 | AB70: 131918.9004 | AC70: 130728.5915 | AD70: 129550.1274 | AE70: 128383.3684 | AF70: 127228.1771 | AG70: 126084.4179 | AH70: 124951.9571 | AI70: 123830.6633 | AJ70: 122720.4066 | AK70: 121621.0592 | AL70: 120532.495 | AM70: 119454.5897 | AN70: 118387.2208 | AO70: 117330.2677 | AP70: 116283.6111 | AQ70: 115247.1339 | AR70: 114220.7202 | AS70: 113204.2559 | AT70: 112197.6286 | AU70: 111200.7273 | AV70: 110213.4425 | AW70: 109235.6665 | AX70: 108267.2929 | AY70: 107308.2165 | AZ70: 106358.3341 | BA70: 105417.5435 | BB70: 104485.7441 | BC70: 103562.8364 | BD70: 102648.7226 | BE70: 101743.3059 | BF70: 100846.4911 | BG70: 99958.18408 | BH70: 99078.29202 | BI70: 98206.72334 | BJ70: 97343.38772 | BK70: 96488.19598 | BL70: 95641.06017 | BM70: 94801.89347 | BN70: 93970.61021
D71: Total assets | G71: =SUM(G70,G61) -> 151711.9059 | H71: =SUM(H70,H61) -> 152353.8694 | I71: 153011.1044 | J71: 152148.8736 | K71: 151379.2062 | L71: 150621.7458 | M71: 149878.8517 | N71: 148850.3435 | O71: 148136.0439 | P71: 197435.7778 | Q71: 196442.464 | R71: 166584.4485 | S71: 218530.5719 | T71: 220817.8413 | U71: 223118.3091 | V71: 223405.6303 | W71: 223808.3887 | X71: 224223.8739 | Y71: 224651.9335 | Z71: 224792.4171 | AA71: 225245.1767 | AB71: 225710.0664 | AC71: 225781.7053 | AD71: 207411.9933 | AE71: 208679.0206 | AF71: 210354.6336 | AG71: 212041.6787 | AH71: 211882.9778 | AI71: 211829.4383 | AJ71: 211786.9359 | AK71: 211755.3428 | AL71: 211434.5329 | AM71: 211424.3819 | AN71: 211424.7674 | AO71: 211064.1597 | AP71: 209035.4321 | AQ71: 211089.9118 | AR71: 213506.8488 | AS71: 215933.7352 | AT71: 216328.2941 | AU71: 216835.9435 | AV71: 217353.2094 | AW71: 217879.9841 | AX71: 218116.1611 | AY71: 218661.6354 | AZ71: 219216.3037 | BA71: 219371.6309 | BB71: 215709.2602 | BC71: 218609.4933 | BD71: 221855.3304 | BE71: 225109.8647 | BF71: 226126.2303 | BG71: 227264.8243 | BH71: 228411.8332 | BI71: 229567.1654 | BJ71: 230430.7308 | BK71: 231602.44 | BL71: 232782.2052 | BM71: 233520.5853 | BN71: 228025.4351
C73: Liabilities
D74: Current liabilities
D75: Trade payables | G75: =G347 -> 341.8224658 | H75: =H347 -> 341.8224658 | I75: 341.8224658 | J75: 264.1512329 | K75: 264.1512329 | L75: 264.1512329 | M75: 264.1512329 | N75: 264.1512329 | O75: 264.1512329 | P75: 264.1512329 | Q75: 248.6169863 | R75: 248.6169863 | S75: 427.2460274 | T75: 427.2460274 | U75: 427.2460274 | V75: 324.690411 | W75: 324.690411 | X75: 324.690411 | Y75: 324.690411 | Z75: 324.690411 | AA75: 324.690411 | AB75: 324.690411 | AC75: 304.1792877 | AD75: 304.1792877 | AE75: 413.5758904 | AF75: 413.5758904 | AG75: 413.5758904 | AH75: 319.5813699 | AI75: 319.5813699 | AJ75: 319.5813699 | AK75: 319.5813699 | AL75: 319.5813699 | AM75: 319.5813699 | AN75: 319.5813699 | AO75: 300.7824658 | AP75: 300.7824658 | AQ75: 454.8032877 | AR75: 454.8032877 | AS75: 454.8032877 | AT75: 351.4389041 | AU75: 351.4389041 | AV75: 351.4389041 | AW75: 351.4389041 | AX75: 351.4389041 | AY75: 351.4389041 | AZ75: 351.4389041 | BA75: 330.7660274 | BB75: 330.7660274 | BC75: 500.370411 | BD75: 500.370411 | BE75: 500.370411 | BF75: 386.649863 | BG75: 386.649863 | BH75: 386.649863 | BI75: 386.649863 | BJ75: 386.649863 | BK75: 386.649863 | BL75: 386.649863 | BM75: 363.9057534 | BN75: 363.9057534
D76: Total current liabilities | G76: =SUM(G75:G75) -> 341.8224658 | H76: 341.8224658 | I76: 341.8224658 | J76: 264.1512329 | K76: 264.1512329 | L76: 264.1512329 | M76: 264.1512329 | N76: 264.1512329 | O76: 264.1512329 | P76: 264.1512329 | Q76: 248.6169863 | R76: 248.6169863 | S76: 427.2460274 | T76: 427.2460274 | U76: 427.2460274 | V76: 324.690411 | W76: 324.690411 | X76: 324.690411 | Y76: 324.690411 | Z76: 324.690411 | AA76: 324.690411 | AB76: 324.690411 | AC76: 304.1792877 | AD76: 304.1792877 | AE76: 413.5758904 | AF76: 413.5758904 | AG76: 413.5758904 | AH76: 319.5813699 | AI76: 319.5813699 | AJ76: 319.5813699 | AK76: 319.5813699 | AL76: 319.5813699 | AM76: =SUM(AM75:AM75) -> 319.5813699 | AN76: 319.5813699 | AO76: 300.7824658 | AP76: 300.7824658 | AQ76: 454.8032877 | AR76: 454.8032877 | AS76: 454.8032877 | AT76: 351.4389041 | AU76: 351.4389041 | AV76: 351.4389041 | AW76: 351.4389041 | AX76: 351.4389041 | AY76: 351.4389041 | AZ76: 351.4389041 | BA76: 330.7660274 | BB76: 330.7660274 | BC76: 500.370411 | BD76: 500.370411 | BE76: 500.370411 | BF76: 386.649863 | BG76: 386.649863 | BH76: 386.649863 | BI76: 386.649863 | BJ76: 386.649863 | BK76: 386.649863 | BL76: 386.649863 | BM76: 363.9057534 | BN76: 363.9057534
D78: Non-current liabilities
D79: New loans | G79: =G403 -> 0 | H79: =H403 -> 0 | I79: 0 | J79: 0 | K79: 0 | L79: 0 | M79: 0 | N79: 0 | O79: 0 | P79: 0 | Q79: 0 | R79: 0 | S79: 0 | T79: 0 | U79: 0 | V79: 0 | W79: 0 | X79: 0 | Y79: 0 | Z79: 0 | AA79: 0 | AB79: 0 | AC79: 0 | AD79: 0 | AE79: 0 | AF79: 0 | AG79: 0 | AH79: 0 | AI79: 0 | AJ79: 0 | AK79: 0 | AL79: 0 | AM79: 0 | AN79: 0 | AO79: 0 | AP79: 0 | AQ79: 0 | AR79: 0 | AS79: 0 | AT79: 0 | AU79: 0 | AV79: 0 | AW79: 0 | AX79: 0 | AY79: 0 | AZ79: 0 | BA79: 0 | BB79: 0 | BC79: 0 | BD79: 0 | BE79: 0 | BF79: 0 | BG79: 0 | BH79: 0 | BI79: 0 | BJ79: 0 | BK79: 0 | BL79: 0 | BM79: 0 | BN79: 0
D80: Total non-current liabilities | G80: =SUM(G79:G79) -> 0 | H80: =SUM(H79:H79) -> 0 | I80: 0 | J80: 0 | K80: 0 | L80: 0 | M80: 0 | N80: 0 | O80: 0 | P80: 0 | Q80: 0 | R80: 0 | S80: 0 | T80: 0 | U80: 0 | V80: 0 | W80: 0 | X80: 0 | Y80: 0 | Z80: 0 | AA80: 0 | AB80: 0 | AC80: 0 | AD80: 0 | AE80: 0 | AF80: 0 | AG80: 0 | AH80: 0 | AI80: 0 | AJ80: 0 | AK80: 0 | AL80: 0 | AM80: 0 | AN80: 0 | AO80: 0 | AP80: 0 | AQ80: 0 | AR80: 0 | AS80: 0 | AT80: 0 | AU80: 0 | AV80: 0 | AW80: 0 | AX80: 0 | AY80: 0 | AZ80: 0 | BA80: 0 | BB80: 0 | BC80: 0 | BD80: 0 | BE80: 0 | BF80: 0 | BG80: 0 | BH80: 0 | BI80: 0 | BJ80: 0 | BK80: 0 | BL80: 0 | BM80: 0 | BN80: 0
C82: Equity
D83: Share capital | G83: =G361 -> 51250 | H83: =H361 -> 51250 | I83: 51250 | J83: 51250 | K83: 51250 | L83: 51250 | M83: 51250 | N83: 51250 | O83: 51250 | P83: 101250 | Q83: 101250 | R83: 101250 | S83: 101250 | T83: 101250 | U83: 101250 | V83: 101250 | W83: 101250 | X83: 101250 | Y83: 101250 | Z83: 101250 | AA83: 101250 | AB83: 101250 | AC83: 101250 | AD83: 101250 | AE83: 101250 | AF83: 101250 | AG83: 101250 | AH83: 101250 | AI83: 101250 | AJ83: 101250 | AK83: 101250 | AL83: 101250 | AM83: 101250 | AN83: 101250 | AO83: 101250 | AP83: 101250 | AQ83: 101250 | AR83: 101250 | AS83: 101250 | AT83: 101250 | AU83: 101250 | AV83: 101250 | AW83: 101250 | AX83: 101250 | AY83: 101250 | AZ83: 101250 | BA83: 101250 | BB83: 101250 | BC83: 101250 | BD83: 101250 | BE83: 101250 | BF83: 101250 | BG83: 101250 | BH83: 101250 | BI83: 101250 | BJ83: 101250 | BK83: 101250 | BL83: 101250 | BM83: 101250 | BN83: 101250
D84: Retained earnings | G84: =F84+G45 -> 100120.0834 | H84: 100762.0469 | I84: 101419.2819 | J84: 100634.7223 | K84: 99865.05494 | L84: 99107.59454 | M84: 98364.70042 | N84: 97336.19229 | O84: 96621.89262 | P84: 95921.62658 | Q84: 94943.84701 | R84: 65085.83155 | S84: 116853.3259 | T84: 119140.5953 | U84: 121441.0631 | V84: 121830.9398 | W84: 122233.6983 | X84: 122649.1835 | Y84: 123077.2431 | Z84: 123217.7267 | AA84: 123670.4863 | AB84: 124135.376 | AC84: 124227.526 | AD84: 105857.814 | AE84: 107015.4447 | AF84: 108691.0577 | AG84: 110378.1028 | AH84: 110313.3964 | AI84: 110259.8569 | AJ84: 110217.3546 | AK84: 110185.7615 | AL84: 109864.9515 | AM84: =AL84+AM45 -> 109854.8006 | AN84: 109855.186 | AO84: 109513.3772 | AP84: 107484.6497 | AQ84: 109385.1085 | AR84: 111802.0455 | AS84: 114228.9319 | AT84: 114726.8552 | AU84: 115234.5046 | AV84: 115751.7705 | AW84: 116278.5452 | AX84: 116514.7221 | AY84: 117060.1965 | AZ84: 117614.8648 | BA84: 117790.8648 | BB84: 114128.4941 | BC84: 116859.1228 | BD84: 120104.96 | BE84: 123359.4943 | BF84: 124489.5805 | BG84: 125628.1744 | BH84: 126775.1833 | BI84: 127930.5156 | BJ84: 128794.0809 | BK84: 129965.7902 | BL84: 131145.5553 | BM84: 131906.6796 | BN84: 126411.5293
D85: Total equity | G85: =SUM(G83:G84) -> 151370.0834 | H85: =SUM(H83:H84) -> 152012.0469 | I85: 152669.2819 | J85: 151884.7223 | K85: 151115.0549 | L85: 150357.5945 | M85: 149614.7004 | N85: 148586.1923 | O85: 147871.8926 | P85: 197171.6266 | Q85: 196193.847 | R85: 166335.8315 | S85: 218103.3259 | T85: 220390.5953 | U85: 222691.0631 | V85: 223080.9398 | W85: 223483.6983 | X85: 223899.1835 | Y85: 224327.2431 | Z85: 224467.7267 | AA85: 224920.4863 | AB85: 225385.376 | AC85: 225477.526 | AD85: 207107.814 | AE85: 208265.4447 | AF85: 209941.0577 | AG85: 211628.1028 | AH85: 211563.3964 | AI85: 211509.8569 | AJ85: 211467.3546 | AK85: 211435.7615 | AL85: 211114.9515 | AM85: 211104.8006 | AN85: 211105.186 | AO85: 210763.3772 | AP85: 208734.6497 | AQ85: 210635.1085 | AR85: 213052.0455 | AS85: 215478.9319 | AT85: 215976.8552 | AU85: 216484.5046 | AV85: 217001.7705 | AW85: 217528.5452 | AX85: 217764.7221 | AY85: 218310.1965 | AZ85: 218864.8648 | BA85: 219040.8648 | BB85: 215378.4941 | BC85: 218109.1228 | BD85: 221354.96 | BE85: 224609.4943 | BF85: 225739.5805 | BG85: 226878.1744 | BH85: 228025.1833 | BI85: 229180.5156 | BJ85: 230044.0809 | BK85: 231215.7902 | BL85: 232395.5553 | BM85: 233156.6796 | BN85: 227661.5293
D87: Total equity and liabilities | G87: =SUM(G76,G80,G85) -> 151711.9059 | H87: =SUM(H76,H80,H85) -> 152353.8694 | I87: 153011.1044 | J87: 152148.8736 | K87: 151379.2062 | L87: 150621.7458 | M87: 149878.8517 | N87: 148850.3435 | O87: 148136.0439 | P87: 197435.7778 | Q87: 196442.464 | R87: 166584.4485 | S87: 218530.5719 | T87: 220817.8413 | U87: 223118.3091 | V87: 223405.6303 | W87: 223808.3887 | X87: 224223.8739 | Y87: 224651.9335 | Z87: 224792.4171 | AA87: 225245.1767 | AB87: 225710.0664 | AC87: 225781.7053 | AD87: 207411.9933 | AE87: 208679.0206 | AF87: 210354.6336 | AG87: 212041.6787 | AH87: 211882.9778 | AI87: 211829.4383 | AJ87: 211786.9359 | AK87: 211755.3428 | AL87: 211434.5329 | AM87: 211424.3819 | AN87: 211424.7674 | AO87: 211064.1597 | AP87: 209035.4321 | AQ87: 211089.9118 | AR87: 213506.8488 | AS87: 215933.7352 | AT87: 216328.2941 | AU87: 216835.9435 | AV87: 217353.2094 | AW87: 217879.9841 | AX87: 218116.1611 | AY87: 218661.6354 | AZ87: 219216.3037 | BA87: 219371.6309 | BB87: 215709.2602 | BC87: 218609.4933 | BD87: 221855.3304 | BE87: 225109.8647 | BF87: 226126.2303 | BG87: 227264.8243 | BH87: 228411.8332 | BI87: 229567.1654 | BJ87: 230430.7308 | BK87: 231602.44 | BL87: 232782.2052 | BM87: 233520.5853 | BN87: 228025.4351
D89: Balance Check: | G89: =ROUND(G71-G87,0) -> 0 | H89: 0 | I89: 0 | J89: 0 | K89: 0 | L89: 0 | M89: 0 | N89: 0 | O89: 0 | P89: 0 | Q89: 0 | R89: 0 | S89: 0 | T89: 0 | U89: 0 | V89: 0 | W89: 0 | X89: 0 | Y89: 0 | Z89: 0 | AA89: 0 | AB89: 0 | AC89: 0 | AD89: 0 | AE89: 0 | AF89: 0 | AG89: 0 | AH89: 0 | AI89: 0 | AJ89: 0 | AK89: 0 | AL89: 0 | AM89: =ROUND(AM71-AM87,0) -> 0 | AN89: 0 | AO89: 0 | AP89: 0 | AQ89: 0 | AR89: 0 | AS89: 0 | AT89: 0 | AU89: 0 | AV89: 0 | AW89: 0 | AX89: 0 | AY89: 0 | AZ89: 0 | BA89: 0 | BB89: 0 | BC89: 0 | BD89: 0 | BE89: 0 | BF89: 0 | BG89: 0 | BH89: 0 | BI89: 0 | BJ89: 0 | BK89: 0 | BL89: 0 | BM89: 0 | BN89: 0
D90: Note: When debt is included in the model, the PPMT formula can lead to minor rounding differences leading to minimal balancing differences.
B92: Cashflow Statement
C94: Cashflows from operations
D95: Net profit | G95: =G45 -> 100120.0834 | H95: 641.9635446 | I95: 657.235006 | J95: -784.5596235 | K95: -769.66739 | L95: -757.460393 | M95: -742.8941184 | N95: -1028.508131 | O95: -714.2996741 | P95: -700.2660403 | Q95: -977.7795712 | R95: -29858.01546 | S95: 51767.49435 | T95: 2287.269387 | U95: 2300.467839 | V95: 389.8767205 | W95: 402.7584159 | X95: 415.4852685 | Y95: 428.0595795 | Z95: 140.4836097 | AA95: 452.7595796 | AB95: 464.8896707 | AC95: 92.15002608 | AD95: -18369.71201 | AE95: 1157.630763 | AF95: 1675.612981 | AG95: 1687.045082 | AH95: -64.70638767 | AI95: -53.53950019 | AJ95: -42.50236106 | AK95: -31.59310859 | AL95: -320.8099133 | AM95: =AM45 -> -10.15097723 | AN95: 0.3854666558 | AO95: -341.8088449 | AP95: -2028.727503 | AQ95: 1900.458825 | AR95: 2416.936958 | AS95: 2426.886405 | AT95: 497.9233455 | AU95: 507.649346 | AV95: 517.2659466 | AW95: 526.7746616 | AX95: 236.1769796 | AY95: 545.4743645 | AZ95: 554.6682556 | BA95: 176.0000681 | BB95: -3662.370711 | BC95: 2730.628716 | BD95: 3245.837136 | BE95: 3254.534322 | BF95: 1130.086161 | BG95: 1138.593933 | BH95: 1147.008897 | BI95: 1155.332294 | BJ95: 863.5653396 | BK95: 1171.709234 | BL95: 1179.765156 | BM95: 761.1242659 | BN95: -5495.150243
D96: Less grant income | G96: =-G26 -> -100000 | H96: 0 | I96: 0 | J96: 0 | K96: 0 | L96: 0 | M96: 0 | N96: 0 | O96: 0 | P96: 0 | Q96: 0 | R96: 0 | S96: -50000 | T96: 0 | U96: 0 | V96: 0 | W96: 0 | X96: 0 | Y96: 0 | Z96: 0 | AA96: 0 | AB96: 0 | AC96: 0 | AD96: 0 | AE96: 0 | AF96: 0 | AG96: 0 | AH96: 0 | AI96: 0 | AJ96: 0 | AK96: 0 | AL96: 0 | AM96: =-AM26 -> 0 | AN96: 0 | AO96: 0 | AP96: 0 | AQ96: 0 | AR96: 0 | AS96: 0 | AT96: 0 | AU96: 0 | AV96: 0 | AW96: 0 | AX96: 0 | AY96: 0 | AZ96: 0 | BA96: 0 | BB96: 0 | BC96: 0 | BD96: 0 | BE96: 0 | BF96: 0 | BG96: 0 | BH96: 0 | BI96: 0 | BJ96: 0 | BK96: 0 | BL96: 0 | BM96: 0 | BN96: 0
D97: Non-cash charges
D98: Depreciation | G98: =-G35 -> 1488.095238 | H98: 1472.629677 | I98: 1457.358215 | J98: 1442.277845 | K98: 1427.385611 | L98: 1415.178615 | M98: 1400.61234 | N98: 1386.226353 | O98: 1372.017896 | P98: 1357.984262 | Q98: 1344.122793 | R98: 1330.430878 | S98: 1316.905953 | T98: 1303.545501 | U98: 1290.347049 | V98: 1277.308167 | W98: 1264.426472 | X98: 1251.699619 | Y98: 1239.125308 | Z98: 1226.701278 | AA98: 1214.425308 | AB98: 1202.295217 | AC98: 1190.308862 | AD98: 1178.464137 | AE98: 1166.758974 | AF98: 1155.19134 | AG98: 1143.759239 | AH98: 1132.460709 | AI98: 1121.293821 | AJ98: 1110.256682 | AK98: 1099.34743 | AL98: 1088.564234 | AM98: =-AM35 -> 1077.905298 | AN98: 1067.368854 | AO98: 1056.953166 | AP98: 1046.656526 | AQ98: 1036.477257 | AR98: 1026.413709 | AS98: 1016.464262 | AT98: 1006.627321 | AU98: 996.9013207 | AV98: 987.28472 | AW98: 977.7760051 | AX98: 968.3736871 | AY98: 959.0763021 | AZ98: 949.8824111 | BA98: 940.7905986 | BB98: 931.799473 | BC98: 922.9076657 | BD98: 914.1138309 | BE98: 905.416645 | BF98: 896.8148061 | BG98: 888.307034 | BH98: 879.8920692 | BI98: 871.568673 | BJ98: 863.3356271 | BK98: 855.1917326 | BL98: 847.1358105 | BM98: 839.1667008 | BN98: 831.2832621
D99: Working capital changes
D100: (Increase) / Decrease in trade receivables | G100: =F59-G59 -> -5707.916712 | H100: 10.87561644 | I100: 0 | J100: 1294.520548 | K100: 0 | L100: 0 | M100: 0 | N100: 0 | O100: 0 | P100: 0 | Q100: 258.9041096 | R100: 0 | S100: -2977.150685 | T100: 0 | U100: 0 | V100: 1709.260274 | W100: 0 | X100: 0 | Y100: 0 | Z100: 0 | AA100: 0 | AB100: 0 | AC100: 341.8520548 | AD100: 0 | AE100: -1823.276712 | AF100: 0 | AG100: 0 | AH100: 1566.575342 | AI100: 0 | AJ100: 0 | AK100: 0 | AL100: 0 | AM100: =AL59-AM59 -> 0 | AN100: 0 | AO100: 313.3150685 | AP100: 0 | AQ100: -2567.013699 | AR100: 0 | AS100: 0 | AT100: 1722.739726 | AU100: 0 | AV100: 0 | AW100: 0 | AX100: 0 | AY100: 0 | AZ100: 0 | BA100: 344.5479452 | BB100: 0 | BC100: -2826.739726 | BD100: 0 | BE100: 0 | BF100: 1895.342466 | BG100: 0 | BH100: 0 | BI100: 0 | BJ100: 0 | BK100: 0 | BL100: 0 | BM100: 379.0684932 | BN100: 0
D101: (Increase) / Decrease in inventory | G101: =F60-G60 -> -1025.467397 | H101: 0 | I101: 0 | J101: 233.0136986 | K101: 0 | L101: 0 | M101: 0 | N101: 0 | O101: 0 | P101: 0 | Q101: 46.60273973 | R101: 0 | S101: -535.8871233 | T101: 0 | U101: 0 | V101: 307.6668493 | W101: 0 | X101: 0 | Y101: 0 | Z101: 0 | AA101: 0 | AB101: 0 | AC101: 61.53336986 | AD101: 0 | AE101: -328.1898082 | AF101: 0 | AG101: 0 | AH101: 281.9835616 | AI101: 0 | AJ101: 0 | AK101: 0 | AL101: 0 | AM101: =AL60-AM60 -> 0 | AN101: 0 | AO101: 56.39671233 | AP101: 0 | AQ101: -462.0624658 | AR101: 0 | AS101: 0 | AT101: 310.0931507 | AU101: 0 | AV101: 0 | AW101: 0 | AX101: 0 | AY101: 0 | AZ101: 0 | BA101: 62.01863014 | BB101: 0 | BC101: -508.8131507 | BD101: 0 | BE101: 0 | BF101: 341.1616438 | BG101: 0 | BH101: 0 | BI101: 0 | BJ101: 0 | BK101: 0 | BL101: 0 | BM101: 68.23232877 | BN101: 0
D102: Increase / (Decrease) in trade payables | G102: =G75-F75 -> 341.8224658 | H102: 0 | I102: 0 | J102: -77.67123288 | K102: 0 | L102: 0 | M102: 0 | N102: 0 | O102: 0 | P102: 0 | Q102: -15.53424658 | R102: 0 | S102: 178.6290411 | T102: 0 | U102: 0 | V102: -102.5556164 | W102: 0 | X102: 0 | Y102: 0 | Z102: 0 | AA102: 0 | AB102: 0 | AC102: -20.51112329 | AD102: 0 | AE102: 109.3966027 | AF102: 0 | AG102: 0 | AH102: -93.99452055 | AI102: 0 | AJ102: 0 | AK102: 0 | AL102: 0 | AM102: =AM75-AL75 -> 0 | AN102: 0 | AO102: -18.79890411 | AP102: 0 | AQ102: 154.0208219 | AR102: 0 | AS102: 0 | AT102: -103.3643836 | AU102: 0 | AV102: 0 | AW102: 0 | AX102: 0 | AY102: 0 | AZ102: 0 | BA102: -20.67287671 | BB102: 0 | BC102: 169.6043836 | BD102: 0 | BE102: 0 | BF102: -113.7205479 | BG102: 0 | BH102: 0 | BI102: 0 | BJ102: 0 | BK102: 0 | BL102: 0 | BM102: -22.74410959 | BN102: 0
D103: Net cashflows from operations | G103: =SUM(G100:G102,G95:G96,G98) -> -4783.383007 | H103: 2125.468838 | I103: 2114.593221 | J103: 2107.581235 | K103: 657.7182215 | L103: 657.7182215 | M103: 657.7182215 | N103: 357.7182215 | O103: 657.7182215 | P103: 657.7182215 | Q103: 656.3158242 | R103: -28527.58458 | S103: -250.0084639 | T103: 3590.814888 | U103: 3590.814888 | V103: 3581.556395 | W103: 1667.184888 | X103: 1667.184888 | Y103: 1667.184888 | Z103: 1367.184888 | AA103: 1667.184888 | AB103: 1667.184888 | AC103: 1665.333189 | AD103: -17191.24787 | AE103: 282.3198185 | AF103: 2830.804321 | AG103: 2830.804321 | AH103: 2822.318705 | AI103: 1067.754321 | AJ103: 1067.754321 | AK103: 1067.754321 | AL103: 767.754321 | AM103: =SUM(AM100:AM102,AM95:AM96,AM98) -> 1067.754321 | AN103: 1067.754321 | AO103: 1066.057198 | AP103: -982.0709773 | AQ103: 61.88073946 | AR103: 3443.350667 | AS103: 3443.350667 | AT103: 3434.01916 | AU103: 1504.550667 | AV103: 1504.550667 | AW103: 1504.550667 | AX103: 1204.550667 | AY103: 1504.550667 | AZ103: 1504.550667 | BA103: 1502.684365 | BB103: -2730.571238 | BC103: 487.5878888 | BD103: 4159.950967 | BE103: 4159.950967 | BF103: 4149.684528 | BG103: 2026.900967 | BH103: 2026.900967 | BI103: 2026.900967 | BJ103: 1726.900967 | BK103: 2026.900967 | BL103: 2026.900967 | BM103: 2024.847679 | BN103: -4663.866981
C105: Cashflows from investing activities
D106: (Purchase) / sale of non-current assets | G106: =-G338 -> -160000 | H106: =-H338 -> 0 | I106: 0 | J106: 0 | K106: 0 | L106: -150 | M106: 0 | N106: 0 | O106: 0 | P106: 0 | Q106: 0 | R106: 0 | S106: 0 | T106: 0 | U106: 0 | V106: 0 | W106: 0 | X106: 0 | Y106: 0 | Z106: 0 | AA106: 0 | AB106: 0 | AC106: 0 | AD106: 0 | AE106: 0 | AF106: 0 | AG106: 0 | AH106: 0 | AI106: 0 | AJ106: 0 | AK106: 0 | AL106: 0 | AM106: 0 | AN106: 0 | AO106: 0 | AP106: 0 | AQ106: 0 | AR106: 0 | AS106: 0 | AT106: 0 | AU106: 0 | AV106: 0 | AW106: 0 | AX106: 0 | AY106: 0 | AZ106: 0 | BA106: 0 | BB106: 0 | BC106: 0 | BD106: 0 | BE106: 0 | BF106: 0 | BG106: 0 | BH106: 0 | BI106: 0 | BJ106: 0 | BK106: 0 | BL106: 0 | BM106: 0 | BN106: 0
D107: Net cashflows from investing activities | G107: =SUM(G106:G106) -> -160000 | H107: =SUM(H106:H106) -> 0 | I107: 0 | J107: 0 | K107: 0 | L107: -150 | M107: 0 | N107: 0 | O107: 0 | P107: 0 | Q107: 0 | R107: 0 | S107: 0 | T107: 0 | U107: 0 | V107: 0 | W107: 0 | X107: 0 | Y107: 0 | Z107: 0 | AA107: 0 | AB107: 0 | AC107: 0 | AD107: 0 | AE107: 0 | AF107: 0 | AG107: 0 | AH107: 0 | AI107: 0 | AJ107: 0 | AK107: 0 | AL107: 0 | AM107: 0 | AN107: 0 | AO107: 0 | AP107: 0 | AQ107: 0 | AR107: 0 | AS107: 0 | AT107: 0 | AU107: 0 | AV107: 0 | AW107: 0 | AX107: 0 | AY107: 0 | AZ107: 0 | BA107: 0 | BB107: 0 | BC107: 0 | BD107: 0 | BE107: 0 | BF107: 0 | BG107: 0 | BH107: 0 | BI107: 0 | BJ107: 0 | BK107: 0 | BL107: 0 | BM107: 0 | BN107: 0
C109: Cashflows from financing activities
D110: Grant financing | G110: =-G96 -> 100000 | H110: 0 | I110: 0 | J110: 0 | K110: 0 | L110: 0 | M110: 0 | N110: 0 | O110: 0 | P110: 0 | Q110: 0 | R110: 0 | S110: 50000 | T110: 0 | U110: 0 | V110: 0 | W110: 0 | X110: 0 | Y110: 0 | Z110: 0 | AA110: 0 | AB110: 0 | AC110: 0 | AD110: 0 | AE110: 0 | AF110: 0 | AG110: 0 | AH110: 0 | AI110: 0 | AJ110: 0 | AK110: 0 | AL110: 0 | AM110: =-AM96 -> 0 | AN110: 0 | AO110: 0 | AP110: 0 | AQ110: 0 | AR110: 0 | AS110: 0 | AT110: 0 | AU110: 0 | AV110: 0 | AW110: 0 | AX110: 0 | AY110: 0 | AZ110: 0 | BA110: 0 | BB110: 0 | BC110: 0 | BD110: 0 | BE110: 0 | BF110: 0 | BG110: 0 | BH110: 0 | BI110: 0 | BJ110: 0 | BK110: 0 | BL110: 0 | BM110: 0 | BN110: 0
D111: Debt financing
D112: New debt injections | G112: =G401 -> 0 | H112: =H401 -> 0 | I112: 0 | J112: 0 | K112: 0 | L112: 0 | M112: 0 | N112: 0 | O112: 0 | P112: 0 | Q112: 0 | R112: 0 | S112: 0 | T112: 0 | U112: 0 | V112: 0 | W112: 0 | X112: 0 | Y112: 0 | Z112: 0 | AA112: 0 | AB112: 0 | AC112: 0 | AD112: 0 | AE112: 0 | AF112: 0 | AG112: 0 | AH112: 0 | AI112: 0 | AJ112: 0 | AK112: 0 | AL112: 0 | AM112: 0 | AN112: 0 | AO112: 0 | AP112: 0 | AQ112: 0 | AR112: 0 | AS112: 0 | AT112: 0 | AU112: 0 | AV112: 0 | AW112: 0 | AX112: 0 | AY112: 0 | AZ112: 0 | BA112: 0 | BB112: 0 | BC112: 0 | BD112: 0 | BE112: 0 | BF112: 0 | BG112: 0 | BH112: 0 | BI112: 0 | BJ112: 0 | BK112: 0 | BL112: 0 | BM112: 0 | BN112: 0
D113: Debt principal repayments | G113: =G402 -> 0 | H113: =H402 -> 0 | I113: 0 | J113: 0 | K113: 0 | L113: 0 | M113: 0 | N113: 0 | O113: 0 | P113: 0 | Q113: 0 | R113: 0 | S113: 0 | T113: 0 | U113: 0 | V113: 0 | W113: 0 | X113: 0 | Y113: 0 | Z113: 0 | AA113: 0 | AB113: 0 | AC113: 0 | AD113: 0 | AE113: 0 | AF113: 0 | AG113: 0 | AH113: 0 | AI113: 0 | AJ113: 0 | AK113: 0 | AL113: 0 | AM113: 0 | AN113: 0 | AO113: 0 | AP113: 0 | AQ113: 0 | AR113: 0 | AS113: 0 | AT113: 0 | AU113: 0 | AV113: 0 | AW113: 0 | AX113: 0 | AY113: 0 | AZ113: 0 | BA113: 0 | BB113: 0 | BC113: 0 | BD113: 0 | BE113: 0 | BF113: 0 | BG113: 0 | BH113: 0 | BI113: 0 | BJ113: 0 | BK113: 0 | BL113: 0 | BM113: 0 | BN113: 0
D114: Equity injections | G114: =G360 -> 50000 | H114: =H360 -> 0 | I114: 0 | J114: 0 | K114: 0 | L114: 0 | M114: 0 | N114: 0 | O114: 0 | P114: 50000 | Q114: 0 | R114: 0 | S114: 0 | T114: 0 | U114: 0 | V114: 0 | W114: 0 | X114: 0 | Y114: 0 | Z114: 0 | AA114: 0 | AB114: 0 | AC114: 0 | AD114: 0 | AE114: 0 | AF114: 0 | AG114: 0 | AH114: 0 | AI114: 0 | AJ114: 0 | AK114: 0 | AL114: 0 | AM114: 0 | AN114: 0 | AO114: 0 | AP114: 0 | AQ114: 0 | AR114: 0 | AS114: 0 | AT114: 0 | AU114: 0 | AV114: 0 | AW114: 0 | AX114: 0 | AY114: 0 | AZ114: 0 | BA114: 0 | BB114: 0 | BC114: 0 | BD114: 0 | BE114: 0 | BF114: 0 | BG114: 0 | BH114: 0 | BI114: 0 | BJ114: 0 | BK114: 0 | BL114: 0 | BM114: 0 | BN114: 0
D115: Net cashflows from financing activities | G115: =SUM(G110:G114) -> 150000 | H115: =SUM(H110:H114) -> 0 | I115: 0 | J115: 0 | K115: 0 | L115: 0 | M115: 0 | N115: 0 | O115: 0 | P115: 50000 | Q115: 0 | R115: 0 | S115: 50000 | T115: 0 | U115: 0 | V115: 0 | W115: 0 | X115: 0 | Y115: 0 | Z115: 0 | AA115: 0 | AB115: 0 | AC115: 0 | AD115: 0 | AE115: 0 | AF115: 0 | AG115: 0 | AH115: 0 | AI115: 0 | AJ115: 0 | AK115: 0 | AL115: 0 | AM115: 0 | AN115: 0 | AO115: 0 | AP115: 0 | AQ115: 0 | AR115: 0 | AS115: 0 | AT115: 0 | AU115: 0 | AV115: 0 | AW115: 0 | AX115: 0 | AY115: 0 | AZ115: 0 | BA115: 0 | BB115: 0 | BC115: 0 | BD115: 0 | BE115: 0 | BF115: 0 | BG115: 0 | BH115: 0 | BI115: 0 | BJ115: 0 | BK115: 0 | BL115: 0 | BM115: 0 | BN115: 0
D117: Beginning cash balance | G117: =F119 -> 0 | H117: =G119 -> -14783.38301 | I117: =H119 -> -12657.91417 | J117: =I119 -> -10543.32095 | K117: =J119 -> -8435.739712 | L117: =K119 -> -7778.021491 | M117: =L119 -> -7270.303269 | N117: =M119 -> -6612.585048 | O117: =N119 -> -6254.866826 | P117: =O119 -> -5597.148605 | Q117: =P119 -> 45060.56962 | R117: =Q119 -> 45716.88544 | S117: =R119 -> 17189.30086 | T117: =S119 -> 66939.29239 | U117: =T119 -> 70530.10728 | V117: =U119 -> 74120.92217 | W117: =V119 -> 77702.47856 | X117: =W119 -> 79369.66345 | Y117: =X119 -> 81036.84834 | Z117: =Y119 -> 82704.03323 | AA117: =Z119 -> 84071.21812 | AB117: =AA119 -> 85738.403 | AC117: =AB119 -> 87405.58789 | AD117: =AC119 -> 89070.92108 | AE117: =AD119 -> 71879.67321 | AF117: =AE119 -> 72161.99303 | AG117: =AF119 -> 74992.79735 | AH117: =AG119 -> 77823.60167 | AI117: =AH119 -> 80645.92037 | AJ117: =AI119 -> 81713.6747 | AK117: =AJ119 -> 82781.42902 | AL117: =AK119 -> 83849.18334 | AM117: =AL119 -> 84616.93766 | AN117: =AM119 -> 85684.69198 | AO117: =AN119 -> 86752.4463 | AP117: =AO119 -> 87818.5035 | AQ117: =AP119 -> 86836.43252 | AR117: =AQ119 -> 86898.31326 | AS117: =AR119 -> 90341.66393 | AT117: =AS119 -> 93785.01459 | AU117: =AT119 -> 97219.03375 | AV117: =AU119 -> 98723.58442 | AW117: =AV119 -> 100228.1351 | AX117: =AW119 -> 101732.6858 | AY117: =AX119 -> 102937.2364 | AZ117: =AY119 -> 104441.7871 | BA117: =AZ119 -> 105946.3378 | BB117: =BA119 -> 107449.0221 | BC117: =BB119 -> 104718.4509 | BD117: =BC119 -> 105206.0388 | BE117: =BD119 -> 109365.9897 | BF117: =BE119 -> 113525.9407 | BG117: =BF119 -> 117675.6252 | BH117: =BG119 -> 119702.5262 | BI117: =BH119 -> 121729.4272 | BJ117: =BI119 -> 123756.3281 | BK117: =BJ119 -> 125483.2291 | BL117: =BK119 -> 127510.1301 | BM117: =BL119 -> 129537.031 | BN117: =BM119 -> 131561.8787
D118: Net changes in cashflow | G118: =SUM(G103,G107,G115) -> -14783.38301 | H118: 2125.468838 | I118: 2114.593221 | J118: 2107.581235 | K118: 657.7182215 | L118: 507.7182215 | M118: 657.7182215 | N118: 357.7182215 | O118: 657.7182215 | P118: 50657.71822 | Q118: 656.3158242 | R118: -28527.58458 | S118: 49749.99154 | T118: 3590.814888 | U118: 3590.814888 | V118: 3581.556395 | W118: 1667.184888 | X118: 1667.184888 | Y118: 1667.184888 | Z118: 1367.184888 | AA118: 1667.184888 | AB118: 1667.184888 | AC118: 1665.333189 | AD118: -17191.24787 | AE118: 282.3198185 | AF118: 2830.804321 | AG118: 2830.804321 | AH118: 2822.318705 | AI118: 1067.754321 | AJ118: 1067.754321 | AK118: 1067.754321 | AL118: 767.754321 | AM118: =SUM(AM103,AM107,AM115) -> 1067.754321 | AN118: 1067.754321 | AO118: 1066.057198 | AP118: -982.0709773 | AQ118: 61.88073946 | AR118: 3443.350667 | AS118: 3443.350667 | AT118: 3434.01916 | AU118: 1504.550667 | AV118: 1504.550667 | AW118: 1504.550667 | AX118: 1204.550667 | AY118: 1504.550667 | AZ118: 1504.550667 | BA118: 1502.684365 | BB118: -2730.571238 | BC118: 487.5878888 | BD118: 4159.950967 | BE118: 4159.950967 | BF118: 4149.684528 | BG118: 2026.900967 | BH118: 2026.900967 | BI118: 2026.900967 | BJ118: 1726.900967 | BK118: 2026.900967 | BL118: 2026.900967 | BM118: 2024.847679 | BN118: -4663.866981
D119: Closing cash balance | G119: =SUM(G117:G118) -> -14783.38301 | H119: =SUM(H117:H118) -> -12657.91417 | I119: -10543.32095 | J119: -8435.739712 | K119: -7778.021491 | L119: -7270.303269 | M119: -6612.585048 | N119: -6254.866826 | O119: -5597.148605 | P119: 45060.56962 | Q119: 45716.88544 | R119: 17189.30086 | S119: 66939.29239 | T119: 70530.10728 | U119: 74120.92217 | V119: 77702.47856 | W119: 79369.66345 | X119: 81036.84834 | Y119: 82704.03323 | Z119: 84071.21812 | AA119: 85738.403 | AB119: 87405.58789 | AC119: 89070.92108 | AD119: 71879.67321 | AE119: 72161.99303 | AF119: 74992.79735 | AG119: 77823.60167 | AH119: 80645.92037 | AI119: 81713.6747 | AJ119: 82781.42902 | AK119: 83849.18334 | AL119: 84616.93766 | AM119: 85684.69198 | AN119: 86752.4463 | AO119: 87818.5035 | AP119: 86836.43252 | AQ119: 86898.31326 | AR119: 90341.66393 | AS119: 93785.01459 | AT119: 97219.03375 | AU119: 98723.58442 | AV119: 100228.1351 | AW119: 101732.6858 | AX119: 102937.2364 | AY119: 104441.7871 | AZ119: 105946.3378 | BA119: 107449.0221 | BB119: 104718.4509 | BC119: 105206.0388 | BD119: 109365.9897 | BE119: 113525.9407 | BF119: 117675.6252 | BG119: 119702.5262 | BH119: 121729.4272 | BI119: 123756.3281 | BJ119: 125483.2291 | BK119: 127510.1301 | BL119: 129537.031 | BM119: 131561.8787 | BN119: 126898.0117
B123: Financial schedules (monthly)
D125: Date | G125: ='Assumptions '!F7 -> 2026-01-01 | H125: =EOMONTH(G125,1) -> 2026-02-28 | I125: =EOMONTH(H125,1) -> 2026-03-31 | J125: 2026-04-30 | K125: 2026-05-31 | L125: 2026-06-30 | M125: 2026-07-31 | N125: 2026-08-31 | O125: 2026-09-30 | P125: 2026-10-31 | Q125: 2026-11-30 | R125: 2026-12-31 | S125: 2027-01-31 | T125: 2027-02-28 | U125: 2027-03-31 | V125: 2027-04-30 | W125: 2027-05-31 | X125: 2027-06-30 | Y125: 2027-07-31 | Z125: 2027-08-31 | AA125: 2027-09-30 | AB125: 2027-10-31 | AC125: 2027-11-30 | AD125: 2027-12-31 | AE125: 2028-01-31 | AF125: 2028-02-29 | AG125: 2028-03-31 | AH125: 2028-04-30 | AI125: 2028-05-31 | AJ125: 2028-06-30 | AK125: 2028-07-31 | AL125: 2028-08-31 | AM125: 2028-09-30 | AN125: 2028-10-31 | AO125: 2028-11-30 | AP125: 2028-12-31 | AQ125: 2029-01-31 | AR125: 2029-02-28 | AS125: 2029-03-31 | AT125: 2029-04-30 | AU125: 2029-05-31 | AV125: 2029-06-30 | AW125: 2029-07-31 | AX125: 2029-08-31 | AY125: 2029-09-30 | AZ125: 2029-10-31 | BA125: 2029-11-30 | BB125: 2029-12-31 | BC125: 2030-01-31 | BD125: 2030-02-28 | BE125: 2030-03-31 | BF125: 2030-04-30 | BG125: 2030-05-31 | BH125: 2030-06-30 | BI125: 2030-07-31 | BJ125: 2030-08-31 | BK125: 2030-09-30 | BL125: 2030-10-31 | BM125: 2030-11-30 | BN125: 2030-12-31
D126: Month | G126: 1 | H126: =G126+1 -> 2 | I126: =H126+1 -> 3 | J126: 4 | K126: 5 | L126: 6 | M126: 7 | N126: 8 | O126: 9 | P126: 10 | Q126: 11 | R126: 12 | S126: 13 | T126: 14 | U126: 15 | V126: 16 | W126: 17 | X126: 18 | Y126: 19 | Z126: 20 | AA126: 21 | AB126: 22 | AC126: 23 | AD126: 24 | AE126: 25 | AF126: 26 | AG126: 27 | AH126: 28 | AI126: 29 | AJ126: 30 | AK126: 31 | AL126: 32 | AM126: 33 | AN126: 34 | AO126: 35 | AP126: 36 | AQ126: 37 | AR126: 38 | AS126: 39 | AT126: 40 | AU126: 41 | AV126: 42 | AW126: 43 | AX126: 44 | AY126: 45 | AZ126: 46 | BA126: 47 | BB126: 48 | BC126: 49 | BD126: 50 | BE126: 51 | BF126: 52 | BG126: 53 | BH126: 54 | BI126: 55 | BJ126: 56 | BK126: 57 | BL126: 58 | BM126: 59 | BN126: 60
G127: 1 | H127: 2 | I127: 3 | J127: 4 | K127: 5 | L127: 6 | M127: 7 | N127: 8 | O127: 9 | P127: 10 | Q127: 11 | R127: 12 | S127: 1 | T127: 2 | U127: 3 | V127: 4 | W127: 5 | X127: 6 | Y127: 7 | Z127: 8 | AA127: 9 | AB127: 10 | AC127: 11 | AD127: 12 | AE127: 1 | AF127: 2 | AG127: 3 | AH127: 4 | AI127: 5 | AJ127: 6 | AK127: 7 | AL127: 8 | AM127: 9 | AN127: 10 | AO127: 11 | AP127: 12 | AQ127: 1 | AR127: 2 | AS127: 3 | AT127: 4 | AU127: 5 | AV127: 6 | AW127: 7 | AX127: 8 | AY127: 9 | AZ127: 10 | BA127: 11 | BB127: 12 | BC127: 1 | BD127: 2 | BE127: 3 | BF127: 4 | BG127: 5 | BH127: 6 | BI127: 7 | BJ127: 8 | BK127: 9 | BL127: 10 | BM127: 11 | BN127: 12
D128: Year | G128: 1 | H128: 1 | I128: 1 | J128: 1 | K128: 1 | L128: 1 | M128: 1 | N128: 1 | O128: 1 | P128: 1 | Q128: 1 | R128: 1 | S128: 2 | T128: 2 | U128: 2 | V128: 2 | W128: 2 | X128: 2 | Y128: 2 | Z128: 2 | AA128: 2 | AB128: 2 | AC128: 2 | AD128: 2 | AE128: 3 | AF128: 3 | AG128: 3 | AH128: 3 | AI128: 3 | AJ128: 3 | AK128: 3 | AL128: 3 | AM128: 3 | AN128: 3 | AO128: 3 | AP128: 3 | AQ128: 4 | AR128: 4 | AS128: 4 | AT128: 4 | AU128: 4 | AV128: 4 | AW128: 4 | AX128: 4 | AY128: 4 | AZ128: 4 | BA128: 4 | BB128: 4 | BC128: 5 | BD128: 5 | BE128: 5 | BF128: 5 | BG128: 5 | BH128: 5 | BI128: 5 | BJ128: 5 | BK128: 5 | BL128: 5 | BM128: 5 | BN128: 5
D130: Selected business model: | F130: ='Assumptions '!$F$13 -> Fish trading (Push/Pull)
B132: Revenue build
B134: x | C134: Volume schedules
D136: Fish
D137: ='Assumptions '!D26 -> Product #1: Main product, e.g., Octopus from Lamu | G137: =IF(G$125>='Assumptions '!$F26,ROUND('Assumptions '!$G26*(1+(INDEX('Assumptions '!$R26:$V26,,MATCH(G$128,'Assumptions '!$R$25:$V$25,0)))),0),0)*IF(AND(MONTH(G$125)>=MONTH('Assumptions '!$G$36),MONTH(G$125)<=MONTH('Assumptions '!$I$36)),'Assumptions '!$G$39,IF(AND(MONTH(G$125)>=MONTH('Assumptions '!$G$37),MONTH(G$125)<=MONTH('Assumptions '!$I$37)),'Assumptions '!$G$40,1)) -> 2362.5 | H137: =IF(H$125>='Assumptions '!$F26,ROUND('Assumptions '!$G26*(1+(INDEX('Assumptions '!$R26:$V26,,MATCH(H$128,'Assumptions '!$R$25:$V$25,0)))),0),0)*IF(AND(MONTH(H$125)>=MONTH('Assumptions '!$G$36),MONTH(H$125)<=MONTH('Assumptions '!$I$36)),'Assumptions '!$G$39,IF(AND(MONTH(H$125)>=MONTH('Assumptions '!$G$37),MONTH(H$125)<=MONTH('Assumptions '!$I$37)),'Assumptions '!$G$40,1)) -> 2362.5 | I137: =IF(I$125>='Assumptions '!$F26,ROUND('Assumptions '!$G26*(1+(INDEX('Assumptions '!$R26:$V26,,MATCH(I$128,'Assumptions '!$R$25:$V$25,0)))),0),0)*IF(AND(MONTH(I$125)>=MONTH('Assumptions '!$G$36),MONTH(I$125)<=MONTH('Assumptions '!$I$36)),'Assumptions '!$G$39,IF(AND(MONTH(I$125)>=MONTH('Assumptions '!$G$37),MONTH(I$125)<=MONTH('Assumptions '!$I$37)),'Assumptions '!$G$40,1)) -> 2362.5 | J137: =IF(J$125>='Assumptions '!$F26,ROUND('Assumptions '!$G26*(1+(INDEX('Assumptions '!$R26:$V26,,MATCH(J$128,'Assumptions '!$R$25:$V$25,0)))),0),0)*IF(AND(MONTH(J$125)>=MONTH('Assumptions '!$G$36),MONTH(J$125)<=MONTH('Assumptions '!$I$36)),'Assumptions '!$G$39,IF(AND(MONTH(J$125)>=MONTH('Assumptions '!$G$37),MONTH(J$125)<=MONTH('Assumptions '!$I$37)),'Assumptions '!$G$40,1)) -> 1575 | K137: =IF(K$125>='Assumptions '!$F26,ROUND('Assumptions '!$G26*(1+(INDEX('Assumptions '!$R26:$V26,,MATCH(K$128,'Assumptions '!$R$25:$V$25,0)))),0),0)*IF(AND(MONTH(K$125)>=MONTH('Assumptions '!$G$36),MONTH(K$125)<=MONTH('Assumptions '!$I$36)),'Assumptions '!$G$39,IF(AND(MONTH(K$125)>=MONTH('Assumptions '!$G$37),MONTH(K$125)<=MONTH('Assumptions '!$I$37)),'Assumptions '!$G$40,1)) -> 1575 | L137: =IF(L$125>='Assumptions '!$F26,ROUND('Assumptions '!$G26*(1+(INDEX('Assumptions '!$R26:$V26,,MATCH(L$128,'Assumptions '!$R$25:$V$25,0)))),0),0)*IF(AND(MONTH(L$125)>=MONTH('Assumptions '!$G$36),MONTH(L$125)<=MONTH('Assumptions '!$I$36)),'Assumptions '!$G$39,IF(AND(MONTH(L$125)>=MONTH('Assumptions '!$G$37),MONTH(L$125)<=MONTH('Assumptions '!$I$37)),'Assumptions '!$G$40,1)) -> 1575 | M137: =IF(M$125>='Assumptions '!$F26,ROUND('Assumptions '!$G26*(1+(INDEX('Assumptions '!$R26:$V26,,MATCH(M$128,'Assumptions '!$R$25:$V$25,0)))),0),0)*IF(AND(MONTH(M$125)>=MONTH('Assumptions '!$G$36),MONTH(M$125)<=MONTH('Assumptions '!$I$36)),'Assumptions '!$G$39,IF(AND(MONTH(M$125)>=MONTH('Assumptions '!$G$37),MONTH(M$125)<=MONTH('Assumptions '!$I$37)),'Assumptions '!$G$40,1)) -> 1575 | N137: =IF(N$125>='Assumptions '!$F26,ROUND('Assumptions '!$G26*(1+(INDEX('Assumptions '!$R26:$V26,,MATCH(N$128,'Assumptions '!$R$25:$V$25,0)))),0),0)*IF(AND(MONTH(N$125)>=MONTH('Assumptions '!$G$36),MONTH(N$125)<=MONTH('Assumptions '!$I$36)),'Assumptions '!$G$39,IF(AND(MONTH(N$125)>=MONTH('Assumptions '!$G$37),MONTH(N$125)<=MONTH('Assumptions '!$I$37)),'Assumptions '!$G$40,1)) -> 1575 | O137: =IF(O$125>='Assumptions '!$F26,ROUND('Assumptions '!$G26*(1+(INDEX('Assumptions '!$R26:$V26,,MATCH(O$128,'Assumptions '!$R$25:$V$25,0)))),0),0)*IF(AND(MONTH(O$125)>=MONTH('Assumptions '!$G$36),MONTH(O$125)<=MONTH('Assumptions '!$I$36)),'Assumptions '!$G$39,IF(AND(MONTH(O$125)>=MONTH('Assumptions '!$G$37),MONTH(O$125)<=MONTH('Assumptions '!$I$37)),'Assumptions '!$G$40,1)) -> 1575 | P137: =IF(P$125>='Assumptions '!$F26,ROUND('Assumptions '!$G26*(1+(INDEX('Assumptions '!$R26:$V26,,MATCH(P$128,'Assumptions '!$R$25:$V$25,0)))),0),0)*IF(AND(MONTH(P$125)>=MONTH('Assumptions '!$G$36),MONTH(P$125)<=MONTH('Assumptions '!$I$36)),'Assumptions '!$G$39,IF(AND(MONTH(P$125)>=MONTH('Assumptions '!$G$37),MONTH(P$125)<=MONTH('Assumptions '!$I$37)),'Assumptions '!$G$40,1)) -> 1575 | Q137: =IF(Q$125>='Assumptions '!$F26,ROUND('Assumptions '!$G26*(1+(INDEX('Assumptions '!$R26:$V26,,MATCH(Q$128,'Assumptions '!$R$25:$V$25,0)))),0),0)*IF(AND(MONTH(Q$125)>=MONTH('Assumptions '!$G$36),MONTH(Q$125)<=MONTH('Assumptions '!$I$36)),'Assumptions '!$G$39,IF(AND(MONTH(Q$125)>=MONTH('Assumptions '!$G$37),MONTH(Q$125)<=MONTH('Assumptions '!$I$37)),'Assumptions '!$G$40,1)) -> 1417.5 | R137: =IF(R$125>='Assumptions '!$F26,ROUND('Assumptions '!$G26*(1+(INDEX('Assumptions '!$R26:$V26,,MATCH(R$128,'Assumptions '!$R$25:$V$25,0)))),0),0)*IF(AND(MONTH(R$125)>=MONTH('Assumptions '!$G$36),MONTH(R$125)<=MONTH('Assumptions '!$I$36)),'Assumptions '!$G$39,IF(AND(MONTH(R$125)>=MONTH('Assumptions '!$G$37),MONTH(R$125)<=MONTH('Assumptions '!$I$37)),'Assumptions '!$G$40,1)) -> 1417.5 | S137: =IF(S$125>='Assumptions '!$F26,ROUND('Assumptions '!$G26*(1+(INDEX('Assumptions '!$R26:$V26,,MATCH(S$128,'Assumptions '!$R$25:$V$25,0)))),0),0)*IF(AND(MONTH(S$125)>=MONTH('Assumptions '!$G$36),MONTH(S$125)<=MONTH('Assumptions '!$I$36)),'Assumptions '!$G$39,IF(AND(MONTH(S$125)>=MONTH('Assumptions '!$G$37),MONTH(S$125)<=MONTH('Assumptions '!$I$37)),'Assumptions '!$G$40,1)) -> 2599.5 | T137: =IF(T$125>='Assumptions '!$F26,ROUND('Assumptions '!$G26*(1+(INDEX('Assumptions '!$R26:$V26,,MATCH(T$128,'Assumptions '!$R$25:$V$25,0)))),0),0)*IF(AND(MONTH(T$125)>=MONTH('Assumptions '!$G$36),MONTH(T$125)<=MONTH('Assumptions '!$I$36)),'Assumptions '!$G$39,IF(AND(MONTH(T$125)>=MONTH('Assumptions '!$G$37),MONTH(T$125)<=MONTH('Assumptions '!$I$37)),'Assumptions '!$G$40,1)) -> 2599.5 | U137: =IF(U$125>='Assumptions '!$F26,ROUND('Assumptions '!$G26*(1+(INDEX('Assumptions '!$R26:$V26,,MATCH(U$128,'Assumptions '!$R$25:$V$25,0)))),0),0)*IF(AND(MONTH(U$125)>=MONTH('Assumptions '!$G$36),MONTH(U$125)<=MONTH('Assumptions '!$I$36)),'Assumptions '!$G$39,IF(AND(MONTH(U$125)>=MONTH('Assumptions '!$G$37),MONTH(U$125)<=MONTH('Assumptions '!$I$37)),'Assumptions '!$G$40,1)) -> 2599.5 | V137: =IF(V$125>='Assumptions '!$F26,ROUND('Assumptions '!$G26*(1+(INDEX('Assumptions '!$R26:$V26,,MATCH(V$128,'Assumptions '!$R$25:$V$25,0)))),0),0)*IF(AND(MONTH(V$125)>=MONTH('Assumptions '!$G$36),MONTH(V$125)<=MONTH('Assumptions '!$I$36)),'Assumptions '!$G$39,IF(AND(MONTH(V$125)>=MONTH('Assumptions '!$G$37),MONTH(V$125)<=MONTH('Assumptions '!$I$37)),'Assumptions '!$G$40,1)) -> 1733 | W137: =IF(W$125>='Assumptions '!$F26,ROUND('Assumptions '!$G26*(1+(INDEX('Assumptions '!$R26:$V26,,MATCH(W$128,'Assumptions '!$R$25:$V$25,0)))),0),0)*IF(AND(MONTH(W$125)>=MONTH('Assumptions '!$G$36),MONTH(W$125)<=MONTH('Assumptions '!$I$36)),'Assumptions '!$G$39,IF(AND(MONTH(W$125)>=MONTH('Assumptions '!$G$37),MONTH(W$125)<=MONTH('Assumptions '!$I$37)),'Assumptions '!$G$40,1)) -> 1733 | X137: =IF(X$125>='Assumptions '!$F26,ROUND('Assumptions '!$G26*(1+(INDEX('Assumptions '!$R26:$V26,,MATCH(X$128,'Assumptions '!$R$25:$V$25,0)))),0),0)*IF(AND(MONTH(X$125)>=MONTH('Assumptions '!$G$36),MONTH(X$125)<=MONTH('Assumptions '!$I$36)),'Assumptions '!$G$39,IF(AND(MONTH(X$125)>=MONTH('Assumptions '!$G$37),MONTH(X$125)<=MONTH('Assumptions '!$I$37)),'Assumptions '!$G$40,1)) -> 1733 | Y137: =IF(Y$125>='Assumptions '!$F26,ROUND('Assumptions '!$G26*(1+(INDEX('Assumptions '!$R26:$V26,,MATCH(Y$128,'Assumptions '!$R$25:$V$25,0)))),0),0)*IF(AND(MONTH(Y$125)>=MONTH('Assumptions '!$G$36),MONTH(Y$125)<=MONTH('Assumptions '!$I$36)),'Assumptions '!$G$39,IF(AND(MONTH(Y$125)>=MONTH('Assumptions '!$G$37),MONTH(Y$125)<=MONTH('Assumptions '!$I$37)),'Assumptions '!$G$40,1)) -> 1733 | Z137: =IF(Z$125>='Assumptions '!$F26,ROUND('Assumptions '!$G26*(1+(INDEX('Assumptions '!$R26:$V26,,MATCH(Z$128,'Assumptions '!$R$25:$V$25,0)))),0),0)*IF(AND(MONTH(Z$125)>=MONTH('Assumptions '!$G$36),MONTH(Z$125)<=MONTH('Assumptions '!$I$36)),'Assumptions '!$G$39,IF(AND(MONTH(Z$125)>=MONTH('Assumptions '!$G$37),MONTH(Z$125)<=MONTH('Assumptions '!$I$37)),'Assumptions '!$G$40,1)) -> 1733 | AA137: =IF(AA$125>='Assumptions '!$F26,ROUND('Assumptions '!$G26*(1+(INDEX('Assumptions '!$R26:$V26,,MATCH(AA$128,'Assumptions '!$R$25:$V$25,0)))),0),0)*IF(AND(MONTH(AA$125)>=MONTH('Assumptions '!$G$36),MONTH(AA$125)<=MONTH('Assumptions '!$I$36)),'Assumptions '!$G$39,IF(AND(MONTH(AA$125)>=MONTH('Assumptions '!$G$37),MONTH(AA$125)<=MONTH('Assumptions '!$I$37)),'Assumptions '!$G$40,1)) -> 1733 | AB137: =IF(AB$125>='Assumptions '!$F26,ROUND('Assumptions '!$G26*(1+(INDEX('Assumptions '!$R26:$V26,,MATCH(AB$128,'Assumptions '!$R$25:$V$25,0)))),0),0)*IF(AND(MONTH(AB$125)>=MONTH('Assumptions '!$G$36),MONTH(AB$125)<=MONTH('Assumptions '!$I$36)),'Assumptions '!$G$39,IF(AND(MONTH(AB$125)>=MONTH('Assumptions '!$G$37),MONTH(AB$125)<=MONTH('Assumptions '!$I$37)),'Assumptions '!$G$40,1)) -> 1733 | AC137: =IF(AC$125>='Assumptions '!$F26,ROUND('Assumptions '!$G26*(1+(INDEX('Assumptions '!$R26:$V26,,MATCH(AC$128,'Assumptions '!$R$25:$V$25,0)))),0),0)*IF(AND(MONTH(AC$125)>=MONTH('Assumptions '!$G$36),MONTH(AC$125)<=MONTH('Assumptions '!$I$36)),'Assumptions '!$G$39,IF(AND(MONTH(AC$125)>=MONTH('Assumptions '!$G$37),MONTH(AC$125)<=MONTH('Assumptions '!$I$37)),'Assumptions '!$G$40,1)) -> 1559.7 | AD137: =IF(AD$125>='Assumptions '!$F26,ROUND('Assumptions '!$G26*(1+(INDEX('Assumptions '!$R26:$V26,,MATCH(AD$128,'Assumptions '!$R$25:$V$25,0)))),0),0)*IF(AND(MONTH(AD$125)>=MONTH('Assumptions '!$G$36),MONTH(AD$125)<=MONTH('Assumptions '!$I$36)),'Assumptions '!$G$39,IF(AND(MONTH(AD$125)>=MONTH('Assumptions '!$G$37),MONTH(AD$125)<=MONTH('Assumptions '!$I$37)),'Assumptions '!$G$40,1)) -> 1559.7 | AE137: =IF(AE$125>='Assumptions '!$F26,ROUND('Assumptions '!$G26*(1+(INDEX('Assumptions '!$R26:$V26,,MATCH(AE$128,'Assumptions '!$R$25:$V$25,0)))),0),0)*IF(AND(MONTH(AE$125)>=MONTH('Assumptions '!$G$36),MONTH(AE$125)<=MONTH('Assumptions '!$I$36)),'Assumptions '!$G$39,IF(AND(MONTH(AE$125)>=MONTH('Assumptions '!$G$37),MONTH(AE$125)<=MONTH('Assumptions '!$I$37)),'Assumptions '!$G$40,1)) -> 2859 | AF137: =IF(AF$125>='Assumptions '!$F26,ROUND('Assumptions '!$G26*(1+(INDEX('Assumptions '!$R26:$V26,,MATCH(AF$128,'Assumptions '!$R$25:$V$25,0)))),0),0)*IF(AND(MONTH(AF$125)>=MONTH('Assumptions '!$G$36),MONTH(AF$125)<=MONTH('Assumptions '!$I$36)),'Assumptions '!$G$39,IF(AND(MONTH(AF$125)>=MONTH('Assumptions '!$G$37),MONTH(AF$125)<=MONTH('Assumptions '!$I$37)),'Assumptions '!$G$40,1)) -> 2859 | AG137: =IF(AG$125>='Assumptions '!$F26,ROUND('Assumptions '!$G26*(1+(INDEX('Assumptions '!$R26:$V26,,MATCH(AG$128,'Assumptions '!$R$25:$V$25,0)))),0),0)*IF(AND(MONTH(AG$125)>=MONTH('Assumptions '!$G$36),MONTH(AG$125)<=MONTH('Assumptions '!$I$36)),'Assumptions '!$G$39,IF(AND(MONTH(AG$125)>=MONTH('Assumptions '!$G$37),MONTH(AG$125)<=MONTH('Assumptions '!$I$37)),'Assumptions '!$G$40,1)) -> 2859 | AH137: =IF(AH$125>='Assumptions '!$F26,ROUND('Assumptions '!$G26*(1+(INDEX('Assumptions '!$R26:$V26,,MATCH(AH$128,'Assumptions '!$R$25:$V$25,0)))),0),0)*IF(AND(MONTH(AH$125)>=MONTH('Assumptions '!$G$36),MONTH(AH$125)<=MONTH('Assumptions '!$I$36)),'Assumptions '!$G$39,IF(AND(MONTH(AH$125)>=MONTH('Assumptions '!$G$37),MONTH(AH$125)<=MONTH('Assumptions '!$I$37)),'Assumptions '!$G$40,1)) -> 1906 | AI137: =IF(AI$125>='Assumptions '!$F26,ROUND('Assumptions '!$G26*(1+(INDEX('Assumptions '!$R26:$V26,,MATCH(AI$128,'Assumptions '!$R$25:$V$25,0)))),0),0)*IF(AND(MONTH(AI$125)>=MONTH('Assumptions '!$G$36),MONTH(AI$125)<=MONTH('Assumptions '!$I$36)),'Assumptions '!$G$39,IF(AND(MONTH(AI$125)>=MONTH('Assumptions '!$G$37),MONTH(AI$125)<=MONTH('Assumptions '!$I$37)),'Assumptions '!$G$40,1)) -> 1906 | AJ137: =IF(AJ$125>='Assumptions '!$F26,ROUND('Assumptions '!$G26*(1+(INDEX('Assumptions '!$R26:$V26,,MATCH(AJ$128,'Assumptions '!$R$25:$V$25,0)))),0),0)*IF(AND(MONTH(AJ$125)>=MONTH('Assumptions '!$G$36),MONTH(AJ$125)<=MONTH('Assumptions '!$I$36)),'Assumptions '!$G$39,IF(AND(MONTH(AJ$125)>=MONTH('Assumptions '!$G$37),MONTH(AJ$125)<=MONTH('Assumptions '!$I$37)),'Assumptions '!$G$40,1)) -> 1906 | AK137: =IF(AK$125>='Assumptions '!$F26,ROUND('Assumptions '!$G26*(1+(INDEX('Assumptions '!$R26:$V26,,MATCH(AK$128,'Assumptions '!$R$25:$V$25,0)))),0),0)*IF(AND(MONTH(AK$125)>=MONTH('Assumptions '!$G$36),MONTH(AK$125)<=MONTH('Assumptions '!$I$36)),'Assumptions '!$G$39,IF(AND(MONTH(AK$125)>=MONTH('Assumptions '!$G$37),MONTH(AK$125)<=MONTH('Assumptions '!$I$37)),'Assumptions '!$G$40,1)) -> 1906 | AL137: =IF(AL$125>='Assumptions '!$F26,ROUND('Assumptions '!$G26*(1+(INDEX('Assumptions '!$R26:$V26,,MATCH(AL$128,'Assumptions '!$R$25:$V$25,0)))),0),0)*IF(AND(MONTH(AL$125)>=MONTH('Assumptions '!$G$36),MONTH(AL$125)<=MONTH('Assumptions '!$I$36)),'Assumptions '!$G$39,IF(AND(MONTH(AL$125)>=MONTH('Assumptions '!$G$37),MONTH(AL$125)<=MONTH('Assumptions '!$I$37)),'Assumptions '!$G$40,1)) -> 1906 | AM137: =IF(AM$125>='Assumptions '!$F26,ROUND('Assumptions '!$G26*(1+(INDEX('Assumptions '!$R26:$V26,,MATCH(AM$128,'Assumptions '!$R$25:$V$25,0)))),0),0)*IF(AND(MONTH(AM$125)>=MONTH('Assumptions '!$G$36),MONTH(AM$125)<=MONTH('Assumptions '!$I$36)),'Assumptions '!$G$39,IF(AND(MONTH(AM$125)>=MONTH('Assumptions '!$G$37),MONTH(AM$125)<=MONTH('Assumptions '!$I$37)),'Assumptions '!$G$40,1)) -> 1906 | AN137: =IF(AN$125>='Assumptions '!$F26,ROUND('Assumptions '!$G26*(1+(INDEX('Assumptions '!$R26:$V26,,MATCH(AN$128,'Assumptions '!$R$25:$V$25,0)))),0),0)*IF(AND(MONTH(AN$125)>=MONTH('Assumptions '!$G$36),MONTH(AN$125)<=MONTH('Assumptions '!$I$36)),'Assumptions '!$G$39,IF(AND(MONTH(AN$125)>=MONTH('Assumptions '!$G$37),MONTH(AN$125)<=MONTH('Assumptions '!$I$37)),'Assumptions '!$G$40,1)) -> 1906 | AO137: =IF(AO$125>='Assumptions '!$F26,ROUND('Assumptions '!$G26*(1+(INDEX('Assumptions '!$R26:$V26,,MATCH(AO$128,'Assumptions '!$R$25:$V$25,0)))),0),0)*IF(AND(MONTH(AO$125)>=MONTH('Assumptions '!$G$36),MONTH(AO$125)<=MONTH('Assumptions '!$I$36)),'Assumptions '!$G$39,IF(AND(MONTH(AO$125)>=MONTH('Assumptions '!$G$37),MONTH(AO$125)<=MONTH('Assumptions '!$I$37)),'Assumptions '!$G$40,1)) -> 1715.4 | AP137: =IF(AP$125>='Assumptions '!$F26,ROUND('Assumptions '!$G26*(1+(INDEX('Assumptions '!$R26:$V26,,MATCH(AP$128,'Assumptions '!$R$25:$V$25,0)))),0),0)*IF(AND(MONTH(AP$125)>=MONTH('Assumptions '!$G$36),MONTH(AP$125)<=MONTH('Assumptions '!$I$36)),'Assumptions '!$G$39,IF(AND(MONTH(AP$125)>=MONTH('Assumptions '!$G$37),MONTH(AP$125)<=MONTH('Assumptions '!$I$37)),'Assumptions '!$G$40,1)) -> 1715.4 | AQ137: =IF(AQ$125>='Assumptions '!$F26,ROUND('Assumptions '!$G26*(1+(INDEX('Assumptions '!$R26:$V26,,MATCH(AQ$128,'Assumptions '!$R$25:$V$25,0)))),0),0)*IF(AND(MONTH(AQ$125)>=MONTH('Assumptions '!$G$36),MONTH(AQ$125)<=MONTH('Assumptions '!$I$36)),'Assumptions '!$G$39,IF(AND(MONTH(AQ$125)>=MONTH('Assumptions '!$G$37),MONTH(AQ$125)<=MONTH('Assumptions '!$I$37)),'Assumptions '!$G$40,1)) -> 3144 | AR137: =IF(AR$125>='Assumptions '!$F26,ROUND('Assumptions '!$G26*(1+(INDEX('Assumptions '!$R26:$V26,,MATCH(AR$128,'Assumptions '!$R$25:$V$25,0)))),0),0)*IF(AND(MONTH(AR$125)>=MONTH('Assumptions '!$G$36),MONTH(AR$125)<=MONTH('Assumptions '!$I$36)),'Assumptions '!$G$39,IF(AND(MONTH(AR$125)>=MONTH('Assumptions '!$G$37),MONTH(AR$125)<=MONTH('Assumptions '!$I$37)),'Assumptions '!$G$40,1)) -> 3144 | AS137: =IF(AS$125>='Assumptions '!$F26,ROUND('Assumptions '!$G26*(1+(INDEX('Assumptions '!$R26:$V26,,MATCH(AS$128,'Assumptions '!$R$25:$V$25,0)))),0),0)*IF(AND(MONTH(AS$125)>=MONTH('Assumptions '!$G$36),MONTH(AS$125)<=MONTH('Assumptions '!$I$36)),'Assumptions '!$G$39,IF(AND(MONTH(AS$125)>=MONTH('Assumptions '!$G$37),MONTH(AS$125)<=MONTH('Assumptions '!$I$37)),'Assumptions '!$G$40,1)) -> 3144 | AT137: =IF(AT$125>='Assumptions '!$F26,ROUND('Assumptions '!$G26*(1+(INDEX('Assumptions '!$R26:$V26,,MATCH(AT$128,'Assumptions '!$R$25:$V$25,0)))),0),0)*IF(AND(MONTH(AT$125)>=MONTH('Assumptions '!$G$36),MONTH(AT$125)<=MONTH('Assumptions '!$I$36)),'Assumptions '!$G$39,IF(AND(MONTH(AT$125)>=MONTH('Assumptions '!$G$37),MONTH(AT$125)<=MONTH('Assumptions '!$I$37)),'Assumptions '!$G$40,1)) -> 2096 | AU137: =IF(AU$125>='Assumptions '!$F26,ROUND('Assumptions '!$G26*(1+(INDEX('Assumptions '!$R26:$V26,,MATCH(AU$128,'Assumptions '!$R$25:$V$25,0)))),0),0)*IF(AND(MONTH(AU$125)>=MONTH('Assumptions '!$G$36),MONTH(AU$125)<=MONTH('Assumptions '!$I$36)),'Assumptions '!$G$39,IF(AND(MONTH(AU$125)>=MONTH('Assumptions '!$G$37),MONTH(AU$125)<=MONTH('Assumptions '!$I$37)),'Assumptions '!$G$40,1)) -> 2096 | AV137: =IF(AV$125>='Assumptions '!$F26,ROUND('Assumptions '!$G26*(1+(INDEX('Assumptions '!$R26:$V26,,MATCH(AV$128,'Assumptions '!$R$25:$V$25,0)))),0),0)*IF(AND(MONTH(AV$125)>=MONTH('Assumptions '!$G$36),MONTH(AV$125)<=MONTH('Assumptions '!$I$36)),'Assumptions '!$G$39,IF(AND(MONTH(AV$125)>=MONTH('Assumptions '!$G$37),MONTH(AV$125)<=MONTH('Assumptions '!$I$37)),'Assumptions '!$G$40,1)) -> 2096 | AW137: =IF(AW$125>='Assumptions '!$F26,ROUND('Assumptions '!$G26*(1+(INDEX('Assumptions '!$R26:$V26,,MATCH(AW$128,'Assumptions '!$R$25:$V$25,0)))),0),0)*IF(AND(MONTH(AW$125)>=MONTH('Assumptions '!$G$36),MONTH(AW$125)<=MONTH('Assumptions '!$I$36)),'Assumptions '!$G$39,IF(AND(MONTH(AW$125)>=MONTH('Assumptions '!$G$37),MONTH(AW$125)<=MONTH('Assumptions '!$I$37)),'Assumptions '!$G$40,1)) -> 2096 | AX137: =IF(AX$125>='Assumptions '!$F26,ROUND('Assumptions '!$G26*(1+(INDEX('Assumptions '!$R26:$V26,,MATCH(AX$128,'Assumptions '!$R$25:$V$25,0)))),0),0)*IF(AND(MONTH(AX$125)>=MONTH('Assumptions '!$G$36),MONTH(AX$125)<=MONTH('Assumptions '!$I$36)),'Assumptions '!$G$39,IF(AND(MONTH(AX$125)>=MONTH('Assumptions '!$G$37),MONTH(AX$125)<=MONTH('Assumptions '!$I$37)),'Assumptions '!$G$40,1)) -> 2096 | AY137: =IF(AY$125>='Assumptions '!$F26,ROUND('Assumptions '!$G26*(1+(INDEX('Assumptions '!$R26:$V26,,MATCH(AY$128,'Assumptions '!$R$25:$V$25,0)))),0),0)*IF(AND(MONTH(AY$125)>=MONTH('Assumptions '!$G$36),MONTH(AY$125)<=MONTH('Assumptions '!$I$36)),'Assumptions '!$G$39,IF(AND(MONTH(AY$125)>=MONTH('Assumptions '!$G$37),MONTH(AY$125)<=MONTH('Assumptions '!$I$37)),'Assumptions '!$G$40,1)) -> 2096 | AZ137: =IF(AZ$125>='Assumptions '!$F26,ROUND('Assumptions '!$G26*(1+(INDEX('Assumptions '!$R26:$V26,,MATCH(AZ$128,'Assumptions '!$R$25:$V$25,0)))),0),0)*IF(AND(MONTH(AZ$125)>=MONTH('Assumptions '!$G$36),MONTH(AZ$125)<=MONTH('Assumptions '!$I$36)),'Assumptions '!$G$39,IF(AND(MONTH(AZ$125)>=MONTH('Assumptions '!$G$37),MONTH(AZ$125)<=MONTH('Assumptions '!$I$37)),'Assumptions '!$G$40,1)) -> 2096 | BA137: =IF(BA$125>='Assumptions '!$F26,ROUND('Assumptions '!$G26*(1+(INDEX('Assumptions '!$R26:$V26,,MATCH(BA$128,'Assumptions '!$R$25:$V$25,0)))),0),0)*IF(AND(MONTH(BA$125)>=MONTH('Assumptions '!$G$36),MONTH(BA$125)<=MONTH('Assumptions '!$I$36)),'Assumptions '!$G$39,IF(AND(MONTH(BA$125)>=MONTH('Assumptions '!$G$37),MONTH(BA$125)<=MONTH('Assumptions '!$I$37)),'Assumptions '!$G$40,1)) -> 1886.4 | BB137: =IF(BB$125>='Assumptions '!$F26,ROUND('Assumptions '!$G26*(1+(INDEX('Assumptions '!$R26:$V26,,MATCH(BB$128,'Assumptions '!$R$25:$V$25,0)))),0),0)*IF(AND(MONTH(BB$125)>=MONTH('Assumptions '!$G$36),MONTH(BB$125)<=MONTH('Assumptions '!$I$36)),'Assumptions '!$G$39,IF(AND(MONTH(BB$125)>=MONTH('Assumptions '!$G$37),MONTH(BB$125)<=MONTH('Assumptions '!$I$37)),'Assumptions '!$G$40,1)) -> 1886.4 | BC137: =IF(BC$125>='Assumptions '!$F26,ROUND('Assumptions '!$G26*(1+(INDEX('Assumptions '!$R26:$V26,,MATCH(BC$128,'Assumptions '!$R$25:$V$25,0)))),0),0)*IF(AND(MONTH(BC$125)>=MONTH('Assumptions '!$G$36),MONTH(BC$125)<=MONTH('Assumptions '!$I$36)),'Assumptions '!$G$39,IF(AND(MONTH(BC$125)>=MONTH('Assumptions '!$G$37),MONTH(BC$125)<=MONTH('Assumptions '!$I$37)),'Assumptions '!$G$40,1)) -> 3459 | BD137: =IF(BD$125>='Assumptions '!$F26,ROUND('Assumptions '!$G26*(1+(INDEX('Assumptions '!$R26:$V26,,MATCH(BD$128,'Assumptions '!$R$25:$V$25,0)))),0),0)*IF(AND(MONTH(BD$125)>=MONTH('Assumptions '!$G$36),MONTH(BD$125)<=MONTH('Assumptions '!$I$36)),'Assumptions '!$G$39,IF(AND(MONTH(BD$125)>=MONTH('Assumptions '!$G$37),MONTH(BD$125)<=MONTH('Assumptions '!$I$37)),'Assumptions '!$G$40,1)) -> 3459 | BE137: =IF(BE$125>='Assumptions '!$F26,ROUND('Assumptions '!$G26*(1+(INDEX('Assumptions '!$R26:$V26,,MATCH(BE$128,'Assumptions '!$R$25:$V$25,0)))),0),0)*IF(AND(MONTH(BE$125)>=MONTH('Assumptions '!$G$36),MONTH(BE$125)<=MONTH('Assumptions '!$I$36)),'Assumptions '!$G$39,IF(AND(MONTH(BE$125)>=MONTH('Assumptions '!$G$37),MONTH(BE$125)<=MONTH('Assumptions '!$I$37)),'Assumptions '!$G$40,1)) -> 3459 | BF137: =IF(BF$125>='Assumptions '!$F26,ROUND('Assumptions '!$G26*(1+(INDEX('Assumptions '!$R26:$V26,,MATCH(BF$128,'Assumptions '!$R$25:$V$25,0)))),0),0)*IF(AND(MONTH(BF$125)>=MONTH('Assumptions '!$G$36),MONTH(BF$125)<=MONTH('Assumptions '!$I$36)),'Assumptions '!$G$39,IF(AND(MONTH(BF$125)>=MONTH('Assumptions '!$G$37),MONTH(BF$125)<=MONTH('Assumptions '!$I$37)),'Assumptions '!$G$40,1)) -> 2306 | BG137: =IF(BG$125>='Assumptions '!$F26,ROUND('Assumptions '!$G26*(1+(INDEX('Assumptions '!$R26:$V26,,MATCH(BG$128,'Assumptions '!$R$25:$V$25,0)))),0),0)*IF(AND(MONTH(BG$125)>=MONTH('Assumptions '!$G$36),MONTH(BG$125)<=MONTH('Assumptions '!$I$36)),'Assumptions '!$G$39,IF(AND(MONTH(BG$125)>=MONTH('Assumptions '!$G$37),MONTH(BG$125)<=MONTH('Assumptions '!$I$37)),'Assumptions '!$G$40,1)) -> 2306 | BH137: =IF(BH$125>='Assumptions '!$F26,ROUND('Assumptions '!$G26*(1+(INDEX('Assumptions '!$R26:$V26,,MATCH(BH$128,'Assumptions '!$R$25:$V$25,0)))),0),0)*IF(AND(MONTH(BH$125)>=MONTH('Assumptions '!$G$36),MONTH(BH$125)<=MONTH('Assumptions '!$I$36)),'Assumptions '!$G$39,IF(AND(MONTH(BH$125)>=MONTH('Assumptions '!$G$37),MONTH(BH$125)<=MONTH('Assumptions '!$I$37)),'Assumptions '!$G$40,1)) -> 2306 | BI137: =IF(BI$125>='Assumptions '!$F26,ROUND('Assumptions '!$G26*(1+(INDEX('Assumptions '!$R26:$V26,,MATCH(BI$128,'Assumptions '!$R$25:$V$25,0)))),0),0)*IF(AND(MONTH(BI$125)>=MONTH('Assumptions '!$G$36),MONTH(BI$125)<=MONTH('Assumptions '!$I$36)),'Assumptions '!$G$39,IF(AND(MONTH(BI$125)>=MONTH('Assumptions '!$G$37),MONTH(BI$125)<=MONTH('Assumptions '!$I$37)),'Assumptions '!$G$40,1)) -> 2306 | BJ137: =IF(BJ$125>='Assumptions '!$F26,ROUND('Assumptions '!$G26*(1+(INDEX('Assumptions '!$R26:$V26,,MATCH(BJ$128,'Assumptions '!$R$25:$V$25,0)))),0),0)*IF(AND(MONTH(BJ$125)>=MONTH('Assumptions '!$G$36),MONTH(BJ$125)<=MONTH('Assumptions '!$I$36)),'Assumptions '!$G$39,IF(AND(MONTH(BJ$125)>=MONTH('Assumptions '!$G$37),MONTH(BJ$125)<=MONTH('Assumptions '!$I$37)),'Assumptions '!$G$40,1)) -> 2306 | BK137: =IF(BK$125>='Assumptions '!$F26,ROUND('Assumptions '!$G26*(1+(INDEX('Assumptions '!$R26:$V26,,MATCH(BK$128,'Assumptions '!$R$25:$V$25,0)))),0),0)*IF(AND(MONTH(BK$125)>=MONTH('Assumptions '!$G$36),MONTH(BK$125)<=MONTH('Assumptions '!$I$36)),'Assumptions '!$G$39,IF(AND(MONTH(BK$125)>=MONTH('Assumptions '!$G$37),MONTH(BK$125)<=MONTH('Assumptions '!$I$37)),'Assumptions '!$G$40,1)) -> 2306 | BL137: =IF(BL$125>='Assumptions '!$F26,ROUND('Assumptions '!$G26*(1+(INDEX('Assumptions '!$R26:$V26,,MATCH(BL$128,'Assumptions '!$R$25:$V$25,0)))),0),0)*IF(AND(MONTH(BL$125)>=MONTH('Assumptions '!$G$36),MONTH(BL$125)<=MONTH('Assumptions '!$I$36)),'Assumptions '!$G$39,IF(AND(MONTH(BL$125)>=MONTH('Assumptions '!$G$37),MONTH(BL$125)<=MONTH('Assumptions '!$I$37)),'Assumptions '!$G$40,1)) -> 2306 | BM137: =IF(BM$125>='Assumptions '!$F26,ROUND('Assumptions '!$G26*(1+(INDEX('Assumptions '!$R26:$V26,,MATCH(BM$128,'Assumptions '!$R$25:$V$25,0)))),0),0)*IF(AND(MONTH(BM$125)>=MONTH('Assumptions '!$G$36),MONTH(BM$125)<=MONTH('Assumptions '!$I$36)),'Assumptions '!$G$39,IF(AND(MONTH(BM$125)>=MONTH('Assumptions '!$G$37),MONTH(BM$125)<=MONTH('Assumptions '!$I$37)),'Assumptions '!$G$40,1)) -> 2075.4 | BN137: =IF(BN$125>='Assumptions '!$F26,ROUND('Assumptions '!$G26*(1+(INDEX('Assumptions '!$R26:$V26,,MATCH(BN$128,'Assumptions '!$R$25:$V$25,0)))),0),0)*IF(AND(MONTH(BN$125)>=MONTH('Assumptions '!$G$36),MONTH(BN$125)<=MONTH('Assumptions '!$I$36)),'Assumptions '!$G$39,IF(AND(MONTH(BN$125)>=MONTH('Assumptions '!$G$37),MONTH(BN$125)<=MONTH('Assumptions '!$I$37)),'Assumptions '!$G$40,1)) -> 2075.4
D138: ='Assumptions '!D27 -> Product #2: Add'l product, e.g., prawns from Lamu | G138: =IF(G$125>='Assumptions '!$F27,ROUND('Assumptions '!$G27*(1+(INDEX('Assumptions '!$R27:$V27,,MATCH(G$128,'Assumptions '!$R$25:$V$25,0)))),0),0)*IF(AND(MONTH(G$125)>=MONTH('Assumptions '!$G$46),MONTH(G$125)<=MONTH('Assumptions '!$I$46)),'Assumptions '!$G$49,IF(AND(MONTH(G$125)>=MONTH('Assumptions '!$G$47),MONTH(G$125)<=MONTH('Assumptions '!$I$47)),'Assumptions '!$G$50,1)) -> 788 | H138: =IF(H$125>='Assumptions '!$F27,ROUND('Assumptions '!$G27*(1+(INDEX('Assumptions '!$R27:$V27,,MATCH(H$128,'Assumptions '!$R$25:$V$25,0)))),0),0)*IF(AND(MONTH(H$125)>=MONTH('Assumptions '!$G$46),MONTH(H$125)<=MONTH('Assumptions '!$I$46)),'Assumptions '!$G$49,IF(AND(MONTH(H$125)>=MONTH('Assumptions '!$G$47),MONTH(H$125)<=MONTH('Assumptions '!$I$47)),'Assumptions '!$G$50,1)) -> 788 | I138: =IF(I$125>='Assumptions '!$F27,ROUND('Assumptions '!$G27*(1+(INDEX('Assumptions '!$R27:$V27,,MATCH(I$128,'Assumptions '!$R$25:$V$25,0)))),0),0)*IF(AND(MONTH(I$125)>=MONTH('Assumptions '!$G$46),MONTH(I$125)<=MONTH('Assumptions '!$I$46)),'Assumptions '!$G$49,IF(AND(MONTH(I$125)>=MONTH('Assumptions '!$G$47),MONTH(I$125)<=MONTH('Assumptions '!$I$47)),'Assumptions '!$G$50,1)) -> 788 | J138: =IF(J$125>='Assumptions '!$F27,ROUND('Assumptions '!$G27*(1+(INDEX('Assumptions '!$R27:$V27,,MATCH(J$128,'Assumptions '!$R$25:$V$25,0)))),0),0)*IF(AND(MONTH(J$125)>=MONTH('Assumptions '!$G$46),MONTH(J$125)<=MONTH('Assumptions '!$I$46)),'Assumptions '!$G$49,IF(AND(MONTH(J$125)>=MONTH('Assumptions '!$G$47),MONTH(J$125)<=MONTH('Assumptions '!$I$47)),'Assumptions '!$G$50,1)) -> 788 | K138: =IF(K$125>='Assumptions '!$F27,ROUND('Assumptions '!$G27*(1+(INDEX('Assumptions '!$R27:$V27,,MATCH(K$128,'Assumptions '!$R$25:$V$25,0)))),0),0)*IF(AND(MONTH(K$125)>=MONTH('Assumptions '!$G$46),MONTH(K$125)<=MONTH('Assumptions '!$I$46)),'Assumptions '!$G$49,IF(AND(MONTH(K$125)>=MONTH('Assumptions '!$G$47),MONTH(K$125)<=MONTH('Assumptions '!$I$47)),'Assumptions '!$G$50,1)) -> 788 | L138: =IF(L$125>='Assumptions '!$F27,ROUND('Assumptions '!$G27*(1+(INDEX('Assumptions '!$R27:$V27,,MATCH(L$128,'Assumptions '!$R$25:$V$25,0)))),0),0)*IF(AND(MONTH(L$125)>=MONTH('Assumptions '!$G$46),MONTH(L$125)<=MONTH('Assumptions '!$I$46)),'Assumptions '!$G$49,IF(AND(MONTH(L$125)>=MONTH('Assumptions '!$G$47),MONTH(L$125)<=MONTH('Assumptions '!$I$47)),'Assumptions '!$G$50,1)) -> 788 | M138: =IF(M$125>='Assumptions '!$F27,ROUND('Assumptions '!$G27*(1+(INDEX('Assumptions '!$R27:$V27,,MATCH(M$128,'Assumptions '!$R$25:$V$25,0)))),0),0)*IF(AND(MONTH(M$125)>=MONTH('Assumptions '!$G$46),MONTH(M$125)<=MONTH('Assumptions '!$I$46)),'Assumptions '!$G$49,IF(AND(MONTH(M$125)>=MONTH('Assumptions '!$G$47),MONTH(M$125)<=MONTH('Assumptions '!$I$47)),'Assumptions '!$G$50,1)) -> 788 | N138: =IF(N$125>='Assumptions '!$F27,ROUND('Assumptions '!$G27*(1+(INDEX('Assumptions '!$R27:$V27,,MATCH(N$128,'Assumptions '!$R$25:$V$25,0)))),0),0)*IF(AND(MONTH(N$125)>=MONTH('Assumptions '!$G$46),MONTH(N$125)<=MONTH('Assumptions '!$I$46)),'Assumptions '!$G$49,IF(AND(MONTH(N$125)>=MONTH('Assumptions '!$G$47),MONTH(N$125)<=MONTH('Assumptions '!$I$47)),'Assumptions '!$G$50,1)) -> 788 | O138: =IF(O$125>='Assumptions '!$F27,ROUND('Assumptions '!$G27*(1+(INDEX('Assumptions '!$R27:$V27,,MATCH(O$128,'Assumptions '!$R$25:$V$25,0)))),0),0)*IF(AND(MONTH(O$125)>=MONTH('Assumptions '!$G$46),MONTH(O$125)<=MONTH('Assumptions '!$I$46)),'Assumptions '!$G$49,IF(AND(MONTH(O$125)>=MONTH('Assumptions '!$G$47),MONTH(O$125)<=MONTH('Assumptions '!$I$47)),'Assumptions '!$G$50,1)) -> 788 | P138: =IF(P$125>='Assumptions '!$F27,ROUND('Assumptions '!$G27*(1+(INDEX('Assumptions '!$R27:$V27,,MATCH(P$128,'Assumptions '!$R$25:$V$25,0)))),0),0)*IF(AND(MONTH(P$125)>=MONTH('Assumptions '!$G$46),MONTH(P$125)<=MONTH('Assumptions '!$I$46)),'Assumptions '!$G$49,IF(AND(MONTH(P$125)>=MONTH('Assumptions '!$G$47),MONTH(P$125)<=MONTH('Assumptions '!$I$47)),'Assumptions '!$G$50,1)) -> 788 | Q138: =IF(Q$125>='Assumptions '!$F27,ROUND('Assumptions '!$G27*(1+(INDEX('Assumptions '!$R27:$V27,,MATCH(Q$128,'Assumptions '!$R$25:$V$25,0)))),0),0)*IF(AND(MONTH(Q$125)>=MONTH('Assumptions '!$G$46),MONTH(Q$125)<=MONTH('Assumptions '!$I$46)),'Assumptions '!$G$49,IF(AND(MONTH(Q$125)>=MONTH('Assumptions '!$G$47),MONTH(Q$125)<=MONTH('Assumptions '!$I$47)),'Assumptions '!$G$50,1)) -> 788 | R138: =IF(R$125>='Assumptions '!$F27,ROUND('Assumptions '!$G27*(1+(INDEX('Assumptions '!$R27:$V27,,MATCH(R$128,'Assumptions '!$R$25:$V$25,0)))),0),0)*IF(AND(MONTH(R$125)>=MONTH('Assumptions '!$G$46),MONTH(R$125)<=MONTH('Assumptions '!$I$46)),'Assumptions '!$G$49,IF(AND(MONTH(R$125)>=MONTH('Assumptions '!$G$47),MONTH(R$125)<=MONTH('Assumptions '!$I$47)),'Assumptions '!$G$50,1)) -> 788 | S138: =IF(S$125>='Assumptions '!$F27,ROUND('Assumptions '!$G27*(1+(INDEX('Assumptions '!$R27:$V27,,MATCH(S$128,'Assumptions '!$R$25:$V$25,0)))),0),0)*IF(AND(MONTH(S$125)>=MONTH('Assumptions '!$G$46),MONTH(S$125)<=MONTH('Assumptions '!$I$46)),'Assumptions '!$G$49,IF(AND(MONTH(S$125)>=MONTH('Assumptions '!$G$47),MONTH(S$125)<=MONTH('Assumptions '!$I$47)),'Assumptions '!$G$50,1)) -> 866 | T138: =IF(T$125>='Assumptions '!$F27,ROUND('Assumptions '!$G27*(1+(INDEX('Assumptions '!$R27:$V27,,MATCH(T$128,'Assumptions '!$R$25:$V$25,0)))),0),0)*IF(AND(MONTH(T$125)>=MONTH('Assumptions '!$G$46),MONTH(T$125)<=MONTH('Assumptions '!$I$46)),'Assumptions '!$G$49,IF(AND(MONTH(T$125)>=MONTH('Assumptions '!$G$47),MONTH(T$125)<=MONTH('Assumptions '!$I$47)),'Assumptions '!$G$50,1)) -> 866 | U138: =IF(U$125>='Assumptions '!$F27,ROUND('Assumptions '!$G27*(1+(INDEX('Assumptions '!$R27:$V27,,MATCH(U$128,'Assumptions '!$R$25:$V$25,0)))),0),0)*IF(AND(MONTH(U$125)>=MONTH('Assumptions '!$G$46),MONTH(U$125)<=MONTH('Assumptions '!$I$46)),'Assumptions '!$G$49,IF(AND(MONTH(U$125)>=MONTH('Assumptions '!$G$47),MONTH(U$125)<=MONTH('Assumptions '!$I$47)),'Assumptions '!$G$50,1)) -> 866 | V138: =IF(V$125>='Assumptions '!$F27,ROUND('Assumptions '!$G27*(1+(INDEX('Assumptions '!$R27:$V27,,MATCH(V$128,'Assumptions '!$R$25:$V$25,0)))),0),0)*IF(AND(MONTH(V$125)>=MONTH('Assumptions '!$G$46),MONTH(V$125)<=MONTH('Assumptions '!$I$46)),'Assumptions '!$G$49,IF(AND(MONTH(V$125)>=MONTH('Assumptions '!$G$47),MONTH(V$125)<=MONTH('Assumptions '!$I$47)),'Assumptions '!$G$50,1)) -> 866 | W138: =IF(W$125>='Assumptions '!$F27,ROUND('Assumptions '!$G27*(1+(INDEX('Assumptions '!$R27:$V27,,MATCH(W$128,'Assumptions '!$R$25:$V$25,0)))),0),0)*IF(AND(MONTH(W$125)>=MONTH('Assumptions '!$G$46),MONTH(W$125)<=MONTH('Assumptions '!$I$46)),'Assumptions '!$G$49,IF(AND(MONTH(W$125)>=MONTH('Assumptions '!$G$47),MONTH(W$125)<=MONTH('Assumptions '!$I$47)),'Assumptions '!$G$50,1)) -> 866 | X138: =IF(X$125>='Assumptions '!$F27,ROUND('Assumptions '!$G27*(1+(INDEX('Assumptions '!$R27:$V27,,MATCH(X$128,'Assumptions '!$R$25:$V$25,0)))),0),0)*IF(AND(MONTH(X$125)>=MONTH('Assumptions '!$G$46),MONTH(X$125)<=MONTH('Assumptions '!$I$46)),'Assumptions '!$G$49,IF(AND(MONTH(X$125)>=MONTH('Assumptions '!$G$47),MONTH(X$125)<=MONTH('Assumptions '!$I$47)),'Assumptions '!$G$50,1)) -> 866 | Y138: =IF(Y$125>='Assumptions '!$F27,ROUND('Assumptions '!$G27*(1+(INDEX('Assumptions '!$R27:$V27,,MATCH(Y$128,'Assumptions '!$R$25:$V$25,0)))),0),0)*IF(AND(MONTH(Y$125)>=MONTH('Assumptions '!$G$46),MONTH(Y$125)<=MONTH('Assumptions '!$I$46)),'Assumptions '!$G$49,IF(AND(MONTH(Y$125)>=MONTH('Assumptions '!$G$47),MONTH(Y$125)<=MONTH('Assumptions '!$I$47)),'Assumptions '!$G$50,1)) -> 866 | Z138: =IF(Z$125>='Assumptions '!$F27,ROUND('Assumptions '!$G27*(1+(INDEX('Assumptions '!$R27:$V27,,MATCH(Z$128,'Assumptions '!$R$25:$V$25,0)))),0),0)*IF(AND(MONTH(Z$125)>=MONTH('Assumptions '!$G$46),MONTH(Z$125)<=MONTH('Assumptions '!$I$46)),'Assumptions '!$G$49,IF(AND(MONTH(Z$125)>=MONTH('Assumptions '!$G$47),MONTH(Z$125)<=MONTH('Assumptions '!$I$47)),'Assumptions '!$G$50,1)) -> 866 | AA138: =IF(AA$125>='Assumptions '!$F27,ROUND('Assumptions '!$G27*(1+(INDEX('Assumptions '!$R27:$V27,,MATCH(AA$128,'Assumptions '!$R$25:$V$25,0)))),0),0)*IF(AND(MONTH(AA$125)>=MONTH('Assumptions '!$G$46),MONTH(AA$125)<=MONTH('Assumptions '!$I$46)),'Assumptions '!$G$49,IF(AND(MONTH(AA$125)>=MONTH('Assumptions '!$G$47),MONTH(AA$125)<=MONTH('Assumptions '!$I$47)),'Assumptions '!$G$50,1)) -> 866 | AB138: =IF(AB$125>='Assumptions '!$F27,ROUND('Assumptions '!$G27*(1+(INDEX('Assumptions '!$R27:$V27,,MATCH(AB$128,'Assumptions '!$R$25:$V$25,0)))),0),0)*IF(AND(MONTH(AB$125)>=MONTH('Assumptions '!$G$46),MONTH(AB$125)<=MONTH('Assumptions '!$I$46)),'Assumptions '!$G$49,IF(AND(MONTH(AB$125)>=MONTH('Assumptions '!$G$47),MONTH(AB$125)<=MONTH('Assumptions '!$I$47)),'Assumptions '!$G$50,1)) -> 866 | AC138: =IF(AC$125>='Assumptions '!$F27,ROUND('Assumptions '!$G27*(1+(INDEX('Assumptions '!$R27:$V27,,MATCH(AC$128,'Assumptions '!$R$25:$V$25,0)))),0),0)*IF(AND(MONTH(AC$125)>=MONTH('Assumptions '!$G$46),MONTH(AC$125)<=MONTH('Assumptions '!$I$46)),'Assumptions '!$G$49,IF(AND(MONTH(AC$125)>=MONTH('Assumptions '!$G$47),MONTH(AC$125)<=MONTH('Assumptions '!$I$47)),'Assumptions '!$G$50,1)) -> 866 | AD138: =IF(AD$125>='Assumptions '!$F27,ROUND('Assumptions '!$G27*(1+(INDEX('Assumptions '!$R27:$V27,,MATCH(AD$128,'Assumptions '!$R$25:$V$25,0)))),0),0)*IF(AND(MONTH(AD$125)>=MONTH('Assumptions '!$G$46),MONTH(AD$125)<=MONTH('Assumptions '!$I$46)),'Assumptions '!$G$49,IF(AND(MONTH(AD$125)>=MONTH('Assumptions '!$G$47),MONTH(AD$125)<=MONTH('Assumptions '!$I$47)),'Assumptions '!$G$50,1)) -> 866 | AE138: =IF(AE$125>='Assumptions '!$F27,ROUND('Assumptions '!$G27*(1+(INDEX('Assumptions '!$R27:$V27,,MATCH(AE$128,'Assumptions '!$R$25:$V$25,0)))),0),0)*IF(AND(MONTH(AE$125)>=MONTH('Assumptions '!$G$46),MONTH(AE$125)<=MONTH('Assumptions '!$I$46)),'Assumptions '!$G$49,IF(AND(MONTH(AE$125)>=MONTH('Assumptions '!$G$47),MONTH(AE$125)<=MONTH('Assumptions '!$I$47)),'Assumptions '!$G$50,1)) -> 953 | AF138: =IF(AF$125>='Assumptions '!$F27,ROUND('Assumptions '!$G27*(1+(INDEX('Assumptions '!$R27:$V27,,MATCH(AF$128,'Assumptions '!$R$25:$V$25,0)))),0),0)*IF(AND(MONTH(AF$125)>=MONTH('Assumptions '!$G$46),MONTH(AF$125)<=MONTH('Assumptions '!$I$46)),'Assumptions '!$G$49,IF(AND(MONTH(AF$125)>=MONTH('Assumptions '!$G$47),MONTH(AF$125)<=MONTH('Assumptions '!$I$47)),'Assumptions '!$G$50,1)) -> 953 | AG138: =IF(AG$125>='Assumptions '!$F27,ROUND('Assumptions '!$G27*(1+(INDEX('Assumptions '!$R27:$V27,,MATCH(AG$128,'Assumptions '!$R$25:$V$25,0)))),0),0)*IF(AND(MONTH(AG$125)>=MONTH('Assumptions '!$G$46),MONTH(AG$125)<=MONTH('Assumptions '!$I$46)),'Assumptions '!$G$49,IF(AND(MONTH(AG$125)>=MONTH('Assumptions '!$G$47),MONTH(AG$125)<=MONTH('Assumptions '!$I$47)),'Assumptions '!$G$50,1)) -> 953 | AH138: =IF(AH$125>='Assumptions '!$F27,ROUND('Assumptions '!$G27*(1+(INDEX('Assumptions '!$R27:$V27,,MATCH(AH$128,'Assumptions '!$R$25:$V$25,0)))),0),0)*IF(AND(MONTH(AH$125)>=MONTH('Assumptions '!$G$46),MONTH(AH$125)<=MONTH('Assumptions '!$I$46)),'Assumptions '!$G$49,IF(AND(MONTH(AH$125)>=MONTH('Assumptions '!$G$47),MONTH(AH$125)<=MONTH('Assumptions '!$I$47)),'Assumptions '!$G$50,1)) -> 953 | AI138: =IF(AI$125>='Assumptions '!$F27,ROUND('Assumptions '!$G27*(1+(INDEX('Assumptions '!$R27:$V27,,MATCH(AI$128,'Assumptions '!$R$25:$V$25,0)))),0),0)*IF(AND(MONTH(AI$125)>=MONTH('Assumptions '!$G$46),MONTH(AI$125)<=MONTH('Assumptions '!$I$46)),'Assumptions '!$G$49,IF(AND(MONTH(AI$125)>=MONTH('Assumptions '!$G$47),MONTH(AI$125)<=MONTH('Assumptions '!$I$47)),'Assumptions '!$G$50,1)) -> 953 | AJ138: =IF(AJ$125>='Assumptions '!$F27,ROUND('Assumptions '!$G27*(1+(INDEX('Assumptions '!$R27:$V27,,MATCH(AJ$128,'Assumptions '!$R$25:$V$25,0)))),0),0)*IF(AND(MONTH(AJ$125)>=MONTH('Assumptions '!$G$46),MONTH(AJ$125)<=MONTH('Assumptions '!$I$46)),'Assumptions '!$G$49,IF(AND(MONTH(AJ$125)>=MONTH('Assumptions '!$G$47),MONTH(AJ$125)<=MONTH('Assumptions '!$I$47)),'Assumptions '!$G$50,1)) -> 953 | AK138: =IF(AK$125>='Assumptions '!$F27,ROUND('Assumptions '!$G27*(1+(INDEX('Assumptions '!$R27:$V27,,MATCH(AK$128,'Assumptions '!$R$25:$V$25,0)))),0),0)*IF(AND(MONTH(AK$125)>=MONTH('Assumptions '!$G$46),MONTH(AK$125)<=MONTH('Assumptions '!$I$46)),'Assumptions '!$G$49,IF(AND(MONTH(AK$125)>=MONTH('Assumptions '!$G$47),MONTH(AK$125)<=MONTH('Assumptions '!$I$47)),'Assumptions '!$G$50,1)) -> 953 | AL138: =IF(AL$125>='Assumptions '!$F27,ROUND('Assumptions '!$G27*(1+(INDEX('Assumptions '!$R27:$V27,,MATCH(AL$128,'Assumptions '!$R$25:$V$25,0)))),0),0)*IF(AND(MONTH(AL$125)>=MONTH('Assumptions '!$G$46),MONTH(AL$125)<=MONTH('Assumptions '!$I$46)),'Assumptions '!$G$49,IF(AND(MONTH(AL$125)>=MONTH('Assumptions '!$G$47),MONTH(AL$125)<=MONTH('Assumptions '!$I$47)),'Assumptions '!$G$50,1)) -> 953 | AM138: =IF(AM$125>='Assumptions '!$F27,ROUND('Assumptions '!$G27*(1+(INDEX('Assumptions '!$R27:$V27,,MATCH(AM$128,'Assumptions '!$R$25:$V$25,0)))),0),0)*IF(AND(MONTH(AM$125)>=MONTH('Assumptions '!$G$46),MONTH(AM$125)<=MONTH('Assumptions '!$I$46)),'Assumptions '!$G$49,IF(AND(MONTH(AM$125)>=MONTH('Assumptions '!$G$47),MONTH(AM$125)<=MONTH('Assumptions '!$I$47)),'Assumptions '!$G$50,1)) -> 953 | AN138: =IF(AN$125>='Assumptions '!$F27,ROUND('Assumptions '!$G27*(1+(INDEX('Assumptions '!$R27:$V27,,MATCH(AN$128,'Assumptions '!$R$25:$V$25,0)))),0),0)*IF(AND(MONTH(AN$125)>=MONTH('Assumptions '!$G$46),MONTH(AN$125)<=MONTH('Assumptions '!$I$46)),'Assumptions '!$G$49,IF(AND(MONTH(AN$125)>=MONTH('Assumptions '!$G$47),MONTH(AN$125)<=MONTH('Assumptions '!$I$47)),'Assumptions '!$G$50,1)) -> 953 | AO138: =IF(AO$125>='Assumptions '!$F27,ROUND('Assumptions '!$G27*(1+(INDEX('Assumptions '!$R27:$V27,,MATCH(AO$128,'Assumptions '!$R$25:$V$25,0)))),0),0)*IF(AND(MONTH(AO$125)>=MONTH('Assumptions '!$G$46),MONTH(AO$125)<=MONTH('Assumptions '!$I$46)),'Assumptions '!$G$49,IF(AND(MONTH(AO$125)>=MONTH('Assumptions '!$G$47),MONTH(AO$125)<=MONTH('Assumptions '!$I$47)),'Assumptions '!$G$50,1)) -> 953 | AP138: =IF(AP$125>='Assumptions '!$F27,ROUND('Assumptions '!$G27*(1+(INDEX('Assumptions '!$R27:$V27,,MATCH(AP$128,'Assumptions '!$R$25:$V$25,0)))),0),0)*IF(AND(MONTH(AP$125)>=MONTH('Assumptions '!$G$46),MONTH(AP$125)<=MONTH('Assumptions '!$I$46)),'Assumptions '!$G$49,IF(AND(MONTH(AP$125)>=MONTH('Assumptions '!$G$47),MONTH(AP$125)<=MONTH('Assumptions '!$I$47)),'Assumptions '!$G$50,1)) -> 953 | AQ138: =IF(AQ$125>='Assumptions '!$F27,ROUND('Assumptions '!$G27*(1+(INDEX('Assumptions '!$R27:$V27,,MATCH(AQ$128,'Assumptions '!$R$25:$V$25,0)))),0),0)*IF(AND(MONTH(AQ$125)>=MONTH('Assumptions '!$G$46),MONTH(AQ$125)<=MONTH('Assumptions '!$I$46)),'Assumptions '!$G$49,IF(AND(MONTH(AQ$125)>=MONTH('Assumptions '!$G$47),MONTH(AQ$125)<=MONTH('Assumptions '!$I$47)),'Assumptions '!$G$50,1)) -> 1048 | AR138: =IF(AR$125>='Assumptions '!$F27,ROUND('Assumptions '!$G27*(1+(INDEX('Assumptions '!$R27:$V27,,MATCH(AR$128,'Assumptions '!$R$25:$V$25,0)))),0),0)*IF(AND(MONTH(AR$125)>=MONTH('Assumptions '!$G$46),MONTH(AR$125)<=MONTH('Assumptions '!$I$46)),'Assumptions '!$G$49,IF(AND(MONTH(AR$125)>=MONTH('Assumptions '!$G$47),MONTH(AR$125)<=MONTH('Assumptions '!$I$47)),'Assumptions '!$G$50,1)) -> 1048 | AS138: =IF(AS$125>='Assumptions '!$F27,ROUND('Assumptions '!$G27*(1+(INDEX('Assumptions '!$R27:$V27,,MATCH(AS$128,'Assumptions '!$R$25:$V$25,0)))),0),0)*IF(AND(MONTH(AS$125)>=MONTH('Assumptions '!$G$46),MONTH(AS$125)<=MONTH('Assumptions '!$I$46)),'Assumptions '!$G$49,IF(AND(MONTH(AS$125)>=MONTH('Assumptions '!$G$47),MONTH(AS$125)<=MONTH('Assumptions '!$I$47)),'Assumptions '!$G$50,1)) -> 1048 | AT138: =IF(AT$125>='Assumptions '!$F27,ROUND('Assumptions '!$G27*(1+(INDEX('Assumptions '!$R27:$V27,,MATCH(AT$128,'Assumptions '!$R$25:$V$25,0)))),0),0)*IF(AND(MONTH(AT$125)>=MONTH('Assumptions '!$G$46),MONTH(AT$125)<=MONTH('Assumptions '!$I$46)),'Assumptions '!$G$49,IF(AND(MONTH(AT$125)>=MONTH('Assumptions '!$G$47),MONTH(AT$125)<=MONTH('Assumptions '!$I$47)),'Assumptions '!$G$50,1)) -> 1048 | AU138: =IF(AU$125>='Assumptions '!$F27,ROUND('Assumptions '!$G27*(1+(INDEX('Assumptions '!$R27:$V27,,MATCH(AU$128,'Assumptions '!$R$25:$V$25,0)))),0),0)*IF(AND(MONTH(AU$125)>=MONTH('Assumptions '!$G$46),MONTH(AU$125)<=MONTH('Assumptions '!$I$46)),'Assumptions '!$G$49,IF(AND(MONTH(AU$125)>=MONTH('Assumptions '!$G$47),MONTH(AU$125)<=MONTH('Assumptions '!$I$47)),'Assumptions '!$G$50,1)) -> 1048 | AV138: =IF(AV$125>='Assumptions '!$F27,ROUND('Assumptions '!$G27*(1+(INDEX('Assumptions '!$R27:$V27,,MATCH(AV$128,'Assumptions '!$R$25:$V$25,0)))),0),0)*IF(AND(MONTH(AV$125)>=MONTH('Assumptions '!$G$46),MONTH(AV$125)<=MONTH('Assumptions '!$I$46)),'Assumptions '!$G$49,IF(AND(MONTH(AV$125)>=MONTH('Assumptions '!$G$47),MONTH(AV$125)<=MONTH('Assumptions '!$I$47)),'Assumptions '!$G$50,1)) -> 1048 | AW138: =IF(AW$125>='Assumptions '!$F27,ROUND('Assumptions '!$G27*(1+(INDEX('Assumptions '!$R27:$V27,,MATCH(AW$128,'Assumptions '!$R$25:$V$25,0)))),0),0)*IF(AND(MONTH(AW$125)>=MONTH('Assumptions '!$G$46),MONTH(AW$125)<=MONTH('Assumptions '!$I$46)),'Assumptions '!$G$49,IF(AND(MONTH(AW$125)>=MONTH('Assumptions '!$G$47),MONTH(AW$125)<=MONTH('Assumptions '!$I$47)),'Assumptions '!$G$50,1)) -> 1048 | AX138: =IF(AX$125>='Assumptions '!$F27,ROUND('Assumptions '!$G27*(1+(INDEX('Assumptions '!$R27:$V27,,MATCH(AX$128,'Assumptions '!$R$25:$V$25,0)))),0),0)*IF(AND(MONTH(AX$125)>=MONTH('Assumptions '!$G$46),MONTH(AX$125)<=MONTH('Assumptions '!$I$46)),'Assumptions '!$G$49,IF(AND(MONTH(AX$125)>=MONTH('Assumptions '!$G$47),MONTH(AX$125)<=MONTH('Assumptions '!$I$47)),'Assumptions '!$G$50,1)) -> 1048 | AY138: =IF(AY$125>='Assumptions '!$F27,ROUND('Assumptions '!$G27*(1+(INDEX('Assumptions '!$R27:$V27,,MATCH(AY$128,'Assumptions '!$R$25:$V$25,0)))),0),0)*IF(AND(MONTH(AY$125)>=MONTH('Assumptions '!$G$46),MONTH(AY$125)<=MONTH('Assumptions '!$I$46)),'Assumptions '!$G$49,IF(AND(MONTH(AY$125)>=MONTH('Assumptions '!$G$47),MONTH(AY$125)<=MONTH('Assumptions '!$I$47)),'Assumptions '!$G$50,1)) -> 1048 | AZ138: =IF(AZ$125>='Assumptions '!$F27,ROUND('Assumptions '!$G27*(1+(INDEX('Assumptions '!$R27:$V27,,MATCH(AZ$128,'Assumptions '!$R$25:$V$25,0)))),0),0)*IF(AND(MONTH(AZ$125)>=MONTH('Assumptions '!$G$46),MONTH(AZ$125)<=MONTH('Assumptions '!$I$46)),'Assumptions '!$G$49,IF(AND(MONTH(AZ$125)>=MONTH('Assumptions '!$G$47),MONTH(AZ$125)<=MONTH('Assumptions '!$I$47)),'Assumptions '!$G$50,1)) -> 1048 | BA138: =IF(BA$125>='Assumptions '!$F27,ROUND('Assumptions '!$G27*(1+(INDEX('Assumptions '!$R27:$V27,,MATCH(BA$128,'Assumptions '!$R$25:$V$25,0)))),0),0)*IF(AND(MONTH(BA$125)>=MONTH('Assumptions '!$G$46),MONTH(BA$125)<=MONTH('Assumptions '!$I$46)),'Assumptions '!$G$49,IF(AND(MONTH(BA$125)>=MONTH('Assumptions '!$G$47),MONTH(BA$125)<=MONTH('Assumptions '!$I$47)),'Assumptions '!$G$50,1)) -> 1048 | BB138: =IF(BB$125>='Assumptions '!$F27,ROUND('Assumptions '!$G27*(1+(INDEX('Assumptions '!$R27:$V27,,MATCH(BB$128,'Assumptions '!$R$25:$V$25,0)))),0),0)*IF(AND(MONTH(BB$125)>=MONTH('Assumptions '!$G$46),MONTH(BB$125)<=MONTH('Assumptions '!$I$46)),'Assumptions '!$G$49,IF(AND(MONTH(BB$125)>=MONTH('Assumptions '!$G$47),MONTH(BB$125)<=MONTH('Assumptions '!$I$47)),'Assumptions '!$G$50,1)) -> 1048 | BC138: =IF(BC$125>='Assumptions '!$F27,ROUND('Assumptions '!$G27*(1+(INDEX('Assumptions '!$R27:$V27,,MATCH(BC$128,'Assumptions '!$R$25:$V$25,0)))),0),0)*IF(AND(MONTH(BC$125)>=MONTH('Assumptions '!$G$46),MONTH(BC$125)<=MONTH('Assumptions '!$I$46)),'Assumptions '!$G$49,IF(AND(MONTH(BC$125)>=MONTH('Assumptions '!$G$47),MONTH(BC$125)<=MONTH('Assumptions '!$I$47)),'Assumptions '!$G$50,1)) -> 1153 | BD138: =IF(BD$125>='Assumptions '!$F27,ROUND('Assumptions '!$G27*(1+(INDEX('Assumptions '!$R27:$V27,,MATCH(BD$128,'Assumptions '!$R$25:$V$25,0)))),0),0)*IF(AND(MONTH(BD$125)>=MONTH('Assumptions '!$G$46),MONTH(BD$125)<=MONTH('Assumptions '!$I$46)),'Assumptions '!$G$49,IF(AND(MONTH(BD$125)>=MONTH('Assumptions '!$G$47),MONTH(BD$125)<=MONTH('Assumptions '!$I$47)),'Assumptions '!$G$50,1)) -> 1153 | BE138: =IF(BE$125>='Assumptions '!$F27,ROUND('Assumptions '!$G27*(1+(INDEX('Assumptions '!$R27:$V27,,MATCH(BE$128,'Assumptions '!$R$25:$V$25,0)))),0),0)*IF(AND(MONTH(BE$125)>=MONTH('Assumptions '!$G$46),MONTH(BE$125)<=MONTH('Assumptions '!$I$46)),'Assumptions '!$G$49,IF(AND(MONTH(BE$125)>=MONTH('Assumptions '!$G$47),MONTH(BE$125)<=MONTH('Assumptions '!$I$47)),'Assumptions '!$G$50,1)) -> 1153 | BF138: =IF(BF$125>='Assumptions '!$F27,ROUND('Assumptions '!$G27*(1+(INDEX('Assumptions '!$R27:$V27,,MATCH(BF$128,'Assumptions '!$R$25:$V$25,0)))),0),0)*IF(AND(MONTH(BF$125)>=MONTH('Assumptions '!$G$46),MONTH(BF$125)<=MONTH('Assumptions '!$I$46)),'Assumptions '!$G$49,IF(AND(MONTH(BF$125)>=MONTH('Assumptions '!$G$47),MONTH(BF$125)<=MONTH('Assumptions '!$I$47)),'Assumptions '!$G$50,1)) -> 1153 | BG138: =IF(BG$125>='Assumptions '!$F27,ROUND('Assumptions '!$G27*(1+(INDEX('Assumptions '!$R27:$V27,,MATCH(BG$128,'Assumptions '!$R$25:$V$25,0)))),0),0)*IF(AND(MONTH(BG$125)>=MONTH('Assumptions '!$G$46),MONTH(BG$125)<=MONTH('Assumptions '!$I$46)),'Assumptions '!$G$49,IF(AND(MONTH(BG$125)>=MONTH('Assumptions '!$G$47),MONTH(BG$125)<=MONTH('Assumptions '!$I$47)),'Assumptions '!$G$50,1)) -> 1153 | BH138: =IF(BH$125>='Assumptions '!$F27,ROUND('Assumptions '!$G27*(1+(INDEX('Assumptions '!$R27:$V27,,MATCH(BH$128,'Assumptions '!$R$25:$V$25,0)))),0),0)*IF(AND(MONTH(BH$125)>=MONTH('Assumptions '!$G$46),MONTH(BH$125)<=MONTH('Assumptions '!$I$46)),'Assumptions '!$G$49,IF(AND(MONTH(BH$125)>=MONTH('Assumptions '!$G$47),MONTH(BH$125)<=MONTH('Assumptions '!$I$47)),'Assumptions '!$G$50,1)) -> 1153 | BI138: =IF(BI$125>='Assumptions '!$F27,ROUND('Assumptions '!$G27*(1+(INDEX('Assumptions '!$R27:$V27,,MATCH(BI$128,'Assumptions '!$R$25:$V$25,0)))),0),0)*IF(AND(MONTH(BI$125)>=MONTH('Assumptions '!$G$46),MONTH(BI$125)<=MONTH('Assumptions '!$I$46)),'Assumptions '!$G$49,IF(AND(MONTH(BI$125)>=MONTH('Assumptions '!$G$47),MONTH(BI$125)<=MONTH('Assumptions '!$I$47)),'Assumptions '!$G$50,1)) -> 1153 | BJ138: =IF(BJ$125>='Assumptions '!$F27,ROUND('Assumptions '!$G27*(1+(INDEX('Assumptions '!$R27:$V27,,MATCH(BJ$128,'Assumptions '!$R$25:$V$25,0)))),0),0)*IF(AND(MONTH(BJ$125)>=MONTH('Assumptions '!$G$46),MONTH(BJ$125)<=MONTH('Assumptions '!$I$46)),'Assumptions '!$G$49,IF(AND(MONTH(BJ$125)>=MONTH('Assumptions '!$G$47),MONTH(BJ$125)<=MONTH('Assumptions '!$I$47)),'Assumptions '!$G$50,1)) -> 1153 | BK138: =IF(BK$125>='Assumptions '!$F27,ROUND('Assumptions '!$G27*(1+(INDEX('Assumptions '!$R27:$V27,,MATCH(BK$128,'Assumptions '!$R$25:$V$25,0)))),0),0)*IF(AND(MONTH(BK$125)>=MONTH('Assumptions '!$G$46),MONTH(BK$125)<=MONTH('Assumptions '!$I$46)),'Assumptions '!$G$49,IF(AND(MONTH(BK$125)>=MONTH('Assumptions '!$G$47),MONTH(BK$125)<=MONTH('Assumptions '!$I$47)),'Assumptions '!$G$50,1)) -> 1153 | BL138: =IF(BL$125>='Assumptions '!$F27,ROUND('Assumptions '!$G27*(1+(INDEX('Assumptions '!$R27:$V27,,MATCH(BL$128,'Assumptions '!$R$25:$V$25,0)))),0),0)*IF(AND(MONTH(BL$125)>=MONTH('Assumptions '!$G$46),MONTH(BL$125)<=MONTH('Assumptions '!$I$46)),'Assumptions '!$G$49,IF(AND(MONTH(BL$125)>=MONTH('Assumptions '!$G$47),MONTH(BL$125)<=MONTH('Assumptions '!$I$47)),'Assumptions '!$G$50,1)) -> 1153 | BM138: =IF(BM$125>='Assumptions '!$F27,ROUND('Assumptions '!$G27*(1+(INDEX('Assumptions '!$R27:$V27,,MATCH(BM$128,'Assumptions '!$R$25:$V$25,0)))),0),0)*IF(AND(MONTH(BM$125)>=MONTH('Assumptions '!$G$46),MONTH(BM$125)<=MONTH('Assumptions '!$I$46)),'Assumptions '!$G$49,IF(AND(MONTH(BM$125)>=MONTH('Assumptions '!$G$47),MONTH(BM$125)<=MONTH('Assumptions '!$I$47)),'Assumptions '!$G$50,1)) -> 1153 | BN138: =IF(BN$125>='Assumptions '!$F27,ROUND('Assumptions '!$G27*(1+(INDEX('Assumptions '!$R27:$V27,,MATCH(BN$128,'Assumptions '!$R$25:$V$25,0)))),0),0)*IF(AND(MONTH(BN$125)>=MONTH('Assumptions '!$G$46),MONTH(BN$125)<=MONTH('Assumptions '!$I$46)),'Assumptions '!$G$49,IF(AND(MONTH(BN$125)>=MONTH('Assumptions '!$G$47),MONTH(BN$125)<=MONTH('Assumptions '!$I$47)),'Assumptions '!$G$50,1)) -> 1153
D140: Other revenue streams
D141: ='Assumptions '!D101 -> Side product #1: Ice sales (one unit is one 5kg bucket) | G141: =IF(G$125>='Assumptions '!$F101,ROUND('Assumptions '!$G101*(1+(INDEX('Assumptions '!$R101:$V101,,MATCH(G$128,'Assumptions '!$R$100:$V$100,0)))),0),0) -> 315 | H141: =IF(H$125>='Assumptions '!$F101,ROUND('Assumptions '!$G101*(1+(INDEX('Assumptions '!$R101:$V101,,MATCH(H$128,'Assumptions '!$R$100:$V$100,0)))),0),0) -> 315 | I141: =IF(I$125>='Assumptions '!$F101,ROUND('Assumptions '!$G101*(1+(INDEX('Assumptions '!$R101:$V101,,MATCH(I$128,'Assumptions '!$R$100:$V$100,0)))),0),0) -> 315 | J141: =IF(J$125>='Assumptions '!$F101,ROUND('Assumptions '!$G101*(1+(INDEX('Assumptions '!$R101:$V101,,MATCH(J$128,'Assumptions '!$R$100:$V$100,0)))),0),0) -> 315 | K141: =IF(K$125>='Assumptions '!$F101,ROUND('Assumptions '!$G101*(1+(INDEX('Assumptions '!$R101:$V101,,MATCH(K$128,'Assumptions '!$R$100:$V$100,0)))),0),0) -> 315 | L141: =IF(L$125>='Assumptions '!$F101,ROUND('Assumptions '!$G101*(1+(INDEX('Assumptions '!$R101:$V101,,MATCH(L$128,'Assumptions '!$R$100:$V$100,0)))),0),0) -> 315 | M141: =IF(M$125>='Assumptions '!$F101,ROUND('Assumptions '!$G101*(1+(INDEX('Assumptions '!$R101:$V101,,MATCH(M$128,'Assumptions '!$R$100:$V$100,0)))),0),0) -> 315 | N141: =IF(N$125>='Assumptions '!$F101,ROUND('Assumptions '!$G101*(1+(INDEX('Assumptions '!$R101:$V101,,MATCH(N$128,'Assumptions '!$R$100:$V$100,0)))),0),0) -> 315 | O141: =IF(O$125>='Assumptions '!$F101,ROUND('Assumptions '!$G101*(1+(INDEX('Assumptions '!$R101:$V101,,MATCH(O$128,'Assumptions '!$R$100:$V$100,0)))),0),0) -> 315 | P141: =IF(P$125>='Assumptions '!$F101,ROUND('Assumptions '!$G101*(1+(INDEX('Assumptions '!$R101:$V101,,MATCH(P$128,'Assumptions '!$R$100:$V$100,0)))),0),0) -> 315 | Q141: =IF(Q$125>='Assumptions '!$F101,ROUND('Assumptions '!$G101*(1+(INDEX('Assumptions '!$R101:$V101,,MATCH(Q$128,'Assumptions '!$R$100:$V$100,0)))),0),0) -> 315 | R141: =IF(R$125>='Assumptions '!$F101,ROUND('Assumptions '!$G101*(1+(INDEX('Assumptions '!$R101:$V101,,MATCH(R$128,'Assumptions '!$R$100:$V$100,0)))),0),0) -> 315 | S141: =IF(S$125>='Assumptions '!$F101,ROUND('Assumptions '!$G101*(1+(INDEX('Assumptions '!$R101:$V101,,MATCH(S$128,'Assumptions '!$R$100:$V$100,0)))),0),0) -> 331 | T141: =IF(T$125>='Assumptions '!$F101,ROUND('Assumptions '!$G101*(1+(INDEX('Assumptions '!$R101:$V101,,MATCH(T$128,'Assumptions '!$R$100:$V$100,0)))),0),0) -> 331 | U141: =IF(U$125>='Assumptions '!$F101,ROUND('Assumptions '!$G101*(1+(INDEX('Assumptions '!$R101:$V101,,MATCH(U$128,'Assumptions '!$R$100:$V$100,0)))),0),0) -> 331 | V141: =IF(V$125>='Assumptions '!$F101,ROUND('Assumptions '!$G101*(1+(INDEX('Assumptions '!$R101:$V101,,MATCH(V$128,'Assumptions '!$R$100:$V$100,0)))),0),0) -> 331 | W141: =IF(W$125>='Assumptions '!$F101,ROUND('Assumptions '!$G101*(1+(INDEX('Assumptions '!$R101:$V101,,MATCH(W$128,'Assumptions '!$R$100:$V$100,0)))),0),0) -> 331 | X141: =IF(X$125>='Assumptions '!$F101,ROUND('Assumptions '!$G101*(1+(INDEX('Assumptions '!$R101:$V101,,MATCH(X$128,'Assumptions '!$R$100:$V$100,0)))),0),0) -> 331 | Y141: =IF(Y$125>='Assumptions '!$F101,ROUND('Assumptions '!$G101*(1+(INDEX('Assumptions '!$R101:$V101,,MATCH(Y$128,'Assumptions '!$R$100:$V$100,0)))),0),0) -> 331 | Z141: =IF(Z$125>='Assumptions '!$F101,ROUND('Assumptions '!$G101*(1+(INDEX('Assumptions '!$R101:$V101,,MATCH(Z$128,'Assumptions '!$R$100:$V$100,0)))),0),0) -> 331 | AA141: =IF(AA$125>='Assumptions '!$F101,ROUND('Assumptions '!$G101*(1+(INDEX('Assumptions '!$R101:$V101,,MATCH(AA$128,'Assumptions '!$R$100:$V$100,0)))),0),0) -> 331 | AB141: =IF(AB$125>='Assumptions '!$F101,ROUND('Assumptions '!$G101*(1+(INDEX('Assumptions '!$R101:$V101,,MATCH(AB$128,'Assumptions '!$R$100:$V$100,0)))),0),0) -> 331 | AC141: =IF(AC$125>='Assumptions '!$F101,ROUND('Assumptions '!$G101*(1+(INDEX('Assumptions '!$R101:$V101,,MATCH(AC$128,'Assumptions '!$R$100:$V$100,0)))),0),0) -> 331 | AD141: =IF(AD$125>='Assumptions '!$F101,ROUND('Assumptions '!$G101*(1+(INDEX('Assumptions '!$R101:$V101,,MATCH(AD$128,'Assumptions '!$R$100:$V$100,0)))),0),0) -> 331 | AE141: =IF(AE$125>='Assumptions '!$F101,ROUND('Assumptions '!$G101*(1+(INDEX('Assumptions '!$R101:$V101,,MATCH(AE$128,'Assumptions '!$R$100:$V$100,0)))),0),0) -> 347 | AF141: =IF(AF$125>='Assumptions '!$F101,ROUND('Assumptions '!$G101*(1+(INDEX('Assumptions '!$R101:$V101,,MATCH(AF$128,'Assumptions '!$R$100:$V$100,0)))),0),0) -> 347 | AG141: =IF(AG$125>='Assumptions '!$F101,ROUND('Assumptions '!$G101*(1+(INDEX('Assumptions '!$R101:$V101,,MATCH(AG$128,'Assumptions '!$R$100:$V$100,0)))),0),0) -> 347 | AH141: =IF(AH$125>='Assumptions '!$F101,ROUND('Assumptions '!$G101*(1+(INDEX('Assumptions '!$R101:$V101,,MATCH(AH$128,'Assumptions '!$R$100:$V$100,0)))),0),0) -> 347 | AI141: =IF(AI$125>='Assumptions '!$F101,ROUND('Assumptions '!$G101*(1+(INDEX('Assumptions '!$R101:$V101,,MATCH(AI$128,'Assumptions '!$R$100:$V$100,0)))),0),0) -> 347 | AJ141: =IF(AJ$125>='Assumptions '!$F101,ROUND('Assumptions '!$G101*(1+(INDEX('Assumptions '!$R101:$V101,,MATCH(AJ$128,'Assumptions '!$R$100:$V$100,0)))),0),0) -> 347 | AK141: =IF(AK$125>='Assumptions '!$F101,ROUND('Assumptions '!$G101*(1+(INDEX('Assumptions '!$R101:$V101,,MATCH(AK$128,'Assumptions '!$R$100:$V$100,0)))),0),0) -> 347 | AL141: =IF(AL$125>='Assumptions '!$F101,ROUND('Assumptions '!$G101*(1+(INDEX('Assumptions '!$R101:$V101,,MATCH(AL$128,'Assumptions '!$R$100:$V$100,0)))),0),0) -> 347 | AM141: =IF(AM$125>='Assumptions '!$F101,ROUND('Assumptions '!$G101*(1+(INDEX('Assumptions '!$R101:$V101,,MATCH(AM$128,'Assumptions '!$R$100:$V$100,0)))),0),0) -> 347 | AN141: =IF(AN$125>='Assumptions '!$F101,ROUND('Assumptions '!$G101*(1+(INDEX('Assumptions '!$R101:$V101,,MATCH(AN$128,'Assumptions '!$R$100:$V$100,0)))),0),0) -> 347 | AO141: =IF(AO$125>='Assumptions '!$F101,ROUND('Assumptions '!$G101*(1+(INDEX('Assumptions '!$R101:$V101,,MATCH(AO$128,'Assumptions '!$R$100:$V$100,0)))),0),0) -> 347 | AP141: =IF(AP$125>='Assumptions '!$F101,ROUND('Assumptions '!$G101*(1+(INDEX('Assumptions '!$R101:$V101,,MATCH(AP$128,'Assumptions '!$R$100:$V$100,0)))),0),0) -> 347 | AQ141: =IF(AQ$125>='Assumptions '!$F101,ROUND('Assumptions '!$G101*(1+(INDEX('Assumptions '!$R101:$V101,,MATCH(AQ$128,'Assumptions '!$R$100:$V$100,0)))),0),0) -> 365 | AR141: =IF(AR$125>='Assumptions '!$F101,ROUND('Assumptions '!$G101*(1+(INDEX('Assumptions '!$R101:$V101,,MATCH(AR$128,'Assumptions '!$R$100:$V$100,0)))),0),0) -> 365 | AS141: =IF(AS$125>='Assumptions '!$F101,ROUND('Assumptions '!$G101*(1+(INDEX('Assumptions '!$R101:$V101,,MATCH(AS$128,'Assumptions '!$R$100:$V$100,0)))),0),0) -> 365 | AT141: =IF(AT$125>='Assumptions '!$F101,ROUND('Assumptions '!$G101*(1+(INDEX('Assumptions '!$R101:$V101,,MATCH(AT$128,'Assumptions '!$R$100:$V$100,0)))),0),0) -> 365 | AU141: =IF(AU$125>='Assumptions '!$F101,ROUND('Assumptions '!$G101*(1+(INDEX('Assumptions '!$R101:$V101,,MATCH(AU$128,'Assumptions '!$R$100:$V$100,0)))),0),0) -> 365 | AV141: =IF(AV$125>='Assumptions '!$F101,ROUND('Assumptions '!$G101*(1+(INDEX('Assumptions '!$R101:$V101,,MATCH(AV$128,'Assumptions '!$R$100:$V$100,0)))),0),0) -> 365 | AW141: =IF(AW$125>='Assumptions '!$F101,ROUND('Assumptions '!$G101*(1+(INDEX('Assumptions '!$R101:$V101,,MATCH(AW$128,'Assumptions '!$R$100:$V$100,0)))),0),0) -> 365 | AX141: =IF(AX$125>='Assumptions '!$F101,ROUND('Assumptions '!$G101*(1+(INDEX('Assumptions '!$R101:$V101,,MATCH(AX$128,'Assumptions '!$R$100:$V$100,0)))),0),0) -> 365 | AY141: =IF(AY$125>='Assumptions '!$F101,ROUND('Assumptions '!$G101*(1+(INDEX('Assumptions '!$R101:$V101,,MATCH(AY$128,'Assumptions '!$R$100:$V$100,0)))),0),0) -> 365 | AZ141: =IF(AZ$125>='Assumptions '!$F101,ROUND('Assumptions '!$G101*(1+(INDEX('Assumptions '!$R101:$V101,,MATCH(AZ$128,'Assumptions '!$R$100:$V$100,0)))),0),0) -> 365 | BA141: =IF(BA$125>='Assumptions '!$F101,ROUND('Assumptions '!$G101*(1+(INDEX('Assumptions '!$R101:$V101,,MATCH(BA$128,'Assumptions '!$R$100:$V$100,0)))),0),0) -> 365 | BB141: =IF(BB$125>='Assumptions '!$F101,ROUND('Assumptions '!$G101*(1+(INDEX('Assumptions '!$R101:$V101,,MATCH(BB$128,'Assumptions '!$R$100:$V$100,0)))),0),0) -> 365 | BC141: =IF(BC$125>='Assumptions '!$F101,ROUND('Assumptions '!$G101*(1+(INDEX('Assumptions '!$R101:$V101,,MATCH(BC$128,'Assumptions '!$R$100:$V$100,0)))),0),0) -> 383 | BD141: =IF(BD$125>='Assumptions '!$F101,ROUND('Assumptions '!$G101*(1+(INDEX('Assumptions '!$R101:$V101,,MATCH(BD$128,'Assumptions '!$R$100:$V$100,0)))),0),0) -> 383 | BE141: =IF(BE$125>='Assumptions '!$F101,ROUND('Assumptions '!$G101*(1+(INDEX('Assumptions '!$R101:$V101,,MATCH(BE$128,'Assumptions '!$R$100:$V$100,0)))),0),0) -> 383 | BF141: =IF(BF$125>='Assumptions '!$F101,ROUND('Assumptions '!$G101*(1+(INDEX('Assumptions '!$R101:$V101,,MATCH(BF$128,'Assumptions '!$R$100:$V$100,0)))),0),0) -> 383 | BG141: =IF(BG$125>='Assumptions '!$F101,ROUND('Assumptions '!$G101*(1+(INDEX('Assumptions '!$R101:$V101,,MATCH(BG$128,'Assumptions '!$R$100:$V$100,0)))),0),0) -> 383 | BH141: =IF(BH$125>='Assumptions '!$F101,ROUND('Assumptions '!$G101*(1+(INDEX('Assumptions '!$R101:$V101,,MATCH(BH$128,'Assumptions '!$R$100:$V$100,0)))),0),0) -> 383 | BI141: =IF(BI$125>='Assumptions '!$F101,ROUND('Assumptions '!$G101*(1+(INDEX('Assumptions '!$R101:$V101,,MATCH(BI$128,'Assumptions '!$R$100:$V$100,0)))),0),0) -> 383 | BJ141: =IF(BJ$125>='Assumptions '!$F101,ROUND('Assumptions '!$G101*(1+(INDEX('Assumptions '!$R101:$V101,,MATCH(BJ$128,'Assumptions '!$R$100:$V$100,0)))),0),0) -> 383 | BK141: =IF(BK$125>='Assumptions '!$F101,ROUND('Assumptions '!$G101*(1+(INDEX('Assumptions '!$R101:$V101,,MATCH(BK$128,'Assumptions '!$R$100:$V$100,0)))),0),0) -> 383 | BL141: =IF(BL$125>='Assumptions '!$F101,ROUND('Assumptions '!$G101*(1+(INDEX('Assumptions '!$R101:$V101,,MATCH(BL$128,'Assumptions '!$R$100:$V$100,0)))),0),0) -> 383 | BM141: =IF(BM$125>='Assumptions '!$F101,ROUND('Assumptions '!$G101*(1+(INDEX('Assumptions '!$R101:$V101,,MATCH(BM$128,'Assumptions '!$R$100:$V$100,0)))),0),0) -> 383 | BN141: =IF(BN$125>='Assumptions '!$F101,ROUND('Assumptions '!$G101*(1+(INDEX('Assumptions '!$R101:$V101,,MATCH(BN$128,'Assumptions '!$R$100:$V$100,0)))),0),0) -> 383
D142: ='Assumptions '!D102 -> Side product #2: Phone charging (one unit is one phone charge) | G142: =IF(G$125>='Assumptions '!$F102,ROUND('Assumptions '!$G102*(1+(INDEX('Assumptions '!$R102:$V102,,MATCH(G$128,'Assumptions '!$R$100:$V$100,0)))),0),0) -> 79 | H142: =IF(H$125>='Assumptions '!$F102,ROUND('Assumptions '!$G102*(1+(INDEX('Assumptions '!$R102:$V102,,MATCH(H$128,'Assumptions '!$R$100:$V$100,0)))),0),0) -> 79 | I142: =IF(I$125>='Assumptions '!$F102,ROUND('Assumptions '!$G102*(1+(INDEX('Assumptions '!$R102:$V102,,MATCH(I$128,'Assumptions '!$R$100:$V$100,0)))),0),0) -> 79 | J142: =IF(J$125>='Assumptions '!$F102,ROUND('Assumptions '!$G102*(1+(INDEX('Assumptions '!$R102:$V102,,MATCH(J$128,'Assumptions '!$R$100:$V$100,0)))),0),0) -> 79 | K142: =IF(K$125>='Assumptions '!$F102,ROUND('Assumptions '!$G102*(1+(INDEX('Assumptions '!$R102:$V102,,MATCH(K$128,'Assumptions '!$R$100:$V$100,0)))),0),0) -> 79 | L142: =IF(L$125>='Assumptions '!$F102,ROUND('Assumptions '!$G102*(1+(INDEX('Assumptions '!$R102:$V102,,MATCH(L$128,'Assumptions '!$R$100:$V$100,0)))),0),0) -> 79 | M142: =IF(M$125>='Assumptions '!$F102,ROUND('Assumptions '!$G102*(1+(INDEX('Assumptions '!$R102:$V102,,MATCH(M$128,'Assumptions '!$R$100:$V$100,0)))),0),0) -> 79 | N142: =IF(N$125>='Assumptions '!$F102,ROUND('Assumptions '!$G102*(1+(INDEX('Assumptions '!$R102:$V102,,MATCH(N$128,'Assumptions '!$R$100:$V$100,0)))),0),0) -> 79 | O142: =IF(O$125>='Assumptions '!$F102,ROUND('Assumptions '!$G102*(1+(INDEX('Assumptions '!$R102:$V102,,MATCH(O$128,'Assumptions '!$R$100:$V$100,0)))),0),0) -> 79 | P142: =IF(P$125>='Assumptions '!$F102,ROUND('Assumptions '!$G102*(1+(INDEX('Assumptions '!$R102:$V102,,MATCH(P$128,'Assumptions '!$R$100:$V$100,0)))),0),0) -> 79 | Q142: =IF(Q$125>='Assumptions '!$F102,ROUND('Assumptions '!$G102*(1+(INDEX('Assumptions '!$R102:$V102,,MATCH(Q$128,'Assumptions '!$R$100:$V$100,0)))),0),0) -> 79 | R142: =IF(R$125>='Assumptions '!$F102,ROUND('Assumptions '!$G102*(1+(INDEX('Assumptions '!$R102:$V102,,MATCH(R$128,'Assumptions '!$R$100:$V$100,0)))),0),0) -> 79 | S142: =IF(S$125>='Assumptions '!$F102,ROUND('Assumptions '!$G102*(1+(INDEX('Assumptions '!$R102:$V102,,MATCH(S$128,'Assumptions '!$R$100:$V$100,0)))),0),0) -> 83 | T142: =IF(T$125>='Assumptions '!$F102,ROUND('Assumptions '!$G102*(1+(INDEX('Assumptions '!$R102:$V102,,MATCH(T$128,'Assumptions '!$R$100:$V$100,0)))),0),0) -> 83 | U142: =IF(U$125>='Assumptions '!$F102,ROUND('Assumptions '!$G102*(1+(INDEX('Assumptions '!$R102:$V102,,MATCH(U$128,'Assumptions '!$R$100:$V$100,0)))),0),0) -> 83 | V142: =IF(V$125>='Assumptions '!$F102,ROUND('Assumptions '!$G102*(1+(INDEX('Assumptions '!$R102:$V102,,MATCH(V$128,'Assumptions '!$R$100:$V$100,0)))),0),0) -> 83 | W142: =IF(W$125>='Assumptions '!$F102,ROUND('Assumptions '!$G102*(1+(INDEX('Assumptions '!$R102:$V102,,MATCH(W$128,'Assumptions '!$R$100:$V$100,0)))),0),0) -> 83 | X142: =IF(X$125>='Assumptions '!$F102,ROUND('Assumptions '!$G102*(1+(INDEX('Assumptions '!$R102:$V102,,MATCH(X$128,'Assumptions '!$R$100:$V$100,0)))),0),0) -> 83 | Y142: =IF(Y$125>='Assumptions '!$F102,ROUND('Assumptions '!$G102*(1+(INDEX('Assumptions '!$R102:$V102,,MATCH(Y$128,'Assumptions '!$R$100:$V$100,0)))),0),0) -> 83 | Z142: =IF(Z$125>='Assumptions '!$F102,ROUND('Assumptions '!$G102*(1+(INDEX('Assumptions '!$R102:$V102,,MATCH(Z$128,'Assumptions '!$R$100:$V$100,0)))),0),0) -> 83 | AA142: =IF(AA$125>='Assumptions '!$F102,ROUND('Assumptions '!$G102*(1+(INDEX('Assumptions '!$R102:$V102,,MATCH(AA$128,'Assumptions '!$R$100:$V$100,0)))),0),0) -> 83 | AB142: =IF(AB$125>='Assumptions '!$F102,ROUND('Assumptions '!$G102*(1+(INDEX('Assumptions '!$R102:$V102,,MATCH(AB$128,'Assumptions '!$R$100:$V$100,0)))),0),0) -> 83 | AC142: =IF(AC$125>='Assumptions '!$F102,ROUND('Assumptions '!$G102*(1+(INDEX('Assumptions '!$R102:$V102,,MATCH(AC$128,'Assumptions '!$R$100:$V$100,0)))),0),0) -> 83 | AD142: =IF(AD$125>='Assumptions '!$F102,ROUND('Assumptions '!$G102*(1+(INDEX('Assumptions '!$R102:$V102,,MATCH(AD$128,'Assumptions '!$R$100:$V$100,0)))),0),0) -> 83 | AE142: =IF(AE$125>='Assumptions '!$F102,ROUND('Assumptions '!$G102*(1+(INDEX('Assumptions '!$R102:$V102,,MATCH(AE$128,'Assumptions '!$R$100:$V$100,0)))),0),0) -> 87 | AF142: =IF(AF$125>='Assumptions '!$F102,ROUND('Assumptions '!$G102*(1+(INDEX('Assumptions '!$R102:$V102,,MATCH(AF$128,'Assumptions '!$R$100:$V$100,0)))),0),0) -> 87 | AG142: =IF(AG$125>='Assumptions '!$F102,ROUND('Assumptions '!$G102*(1+(INDEX('Assumptions '!$R102:$V102,,MATCH(AG$128,'Assumptions '!$R$100:$V$100,0)))),0),0) -> 87 | AH142: =IF(AH$125>='Assumptions '!$F102,ROUND('Assumptions '!$G102*(1+(INDEX('Assumptions '!$R102:$V102,,MATCH(AH$128,'Assumptions '!$R$100:$V$100,0)))),0),0) -> 87 | AI142: =IF(AI$125>='Assumptions '!$F102,ROUND('Assumptions '!$G102*(1+(INDEX('Assumptions '!$R102:$V102,,MATCH(AI$128,'Assumptions '!$R$100:$V$100,0)))),0),0) -> 87 | AJ142: =IF(AJ$125>='Assumptions '!$F102,ROUND('Assumptions '!$G102*(1+(INDEX('Assumptions '!$R102:$V102,,MATCH(AJ$128,'Assumptions '!$R$100:$V$100,0)))),0),0) -> 87 | AK142: =IF(AK$125>='Assumptions '!$F102,ROUND('Assumptions '!$G102*(1+(INDEX('Assumptions '!$R102:$V102,,MATCH(AK$128,'Assumptions '!$R$100:$V$100,0)))),0),0) -> 87 | AL142: =IF(AL$125>='Assumptions '!$F102,ROUND('Assumptions '!$G102*(1+(INDEX('Assumptions '!$R102:$V102,,MATCH(AL$128,'Assumptions '!$R$100:$V$100,0)))),0),0) -> 87 | AM142: =IF(AM$125>='Assumptions '!$F102,ROUND('Assumptions '!$G102*(1+(INDEX('Assumptions '!$R102:$V102,,MATCH(AM$128,'Assumptions '!$R$100:$V$100,0)))),0),0) -> 87 | AN142: =IF(AN$125>='Assumptions '!$F102,ROUND('Assumptions '!$G102*(1+(INDEX('Assumptions '!$R102:$V102,,MATCH(AN$128,'Assumptions '!$R$100:$V$100,0)))),0),0) -> 87 | AO142: =IF(AO$125>='Assumptions '!$F102,ROUND('Assumptions '!$G102*(1+(INDEX('Assumptions '!$R102:$V102,,MATCH(AO$128,'Assumptions '!$R$100:$V$100,0)))),0),0) -> 87 | AP142: =IF(AP$125>='Assumptions '!$F102,ROUND('Assumptions '!$G102*(1+(INDEX('Assumptions '!$R102:$V102,,MATCH(AP$128,'Assumptions '!$R$100:$V$100,0)))),0),0) -> 87 | AQ142: =IF(AQ$125>='Assumptions '!$F102,ROUND('Assumptions '!$G102*(1+(INDEX('Assumptions '!$R102:$V102,,MATCH(AQ$128,'Assumptions '!$R$100:$V$100,0)))),0),0) -> 91 | AR142: =IF(AR$125>='Assumptions '!$F102,ROUND('Assumptions '!$G102*(1+(INDEX('Assumptions '!$R102:$V102,,MATCH(AR$128,'Assumptions '!$R$100:$V$100,0)))),0),0) -> 91 | AS142: =IF(AS$125>='Assumptions '!$F102,ROUND('Assumptions '!$G102*(1+(INDEX('Assumptions '!$R102:$V102,,MATCH(AS$128,'Assumptions '!$R$100:$V$100,0)))),0),0) -> 91 | AT142: =IF(AT$125>='Assumptions '!$F102,ROUND('Assumptions '!$G102*(1+(INDEX('Assumptions '!$R102:$V102,,MATCH(AT$128,'Assumptions '!$R$100:$V$100,0)))),0),0) -> 91 | AU142: =IF(AU$125>='Assumptions '!$F102,ROUND('Assumptions '!$G102*(1+(INDEX('Assumptions '!$R102:$V102,,MATCH(AU$128,'Assumptions '!$R$100:$V$100,0)))),0),0) -> 91 | AV142: =IF(AV$125>='Assumptions '!$F102,ROUND('Assumptions '!$G102*(1+(INDEX('Assumptions '!$R102:$V102,,MATCH(AV$128,'Assumptions '!$R$100:$V$100,0)))),0),0) -> 91 | AW142: =IF(AW$125>='Assumptions '!$F102,ROUND('Assumptions '!$G102*(1+(INDEX('Assumptions '!$R102:$V102,,MATCH(AW$128,'Assumptions '!$R$100:$V$100,0)))),0),0) -> 91 | AX142: =IF(AX$125>='Assumptions '!$F102,ROUND('Assumptions '!$G102*(1+(INDEX('Assumptions '!$R102:$V102,,MATCH(AX$128,'Assumptions '!$R$100:$V$100,0)))),0),0) -> 91 | AY142: =IF(AY$125>='Assumptions '!$F102,ROUND('Assumptions '!$G102*(1+(INDEX('Assumptions '!$R102:$V102,,MATCH(AY$128,'Assumptions '!$R$100:$V$100,0)))),0),0) -> 91 | AZ142: =IF(AZ$125>='Assumptions '!$F102,ROUND('Assumptions '!$G102*(1+(INDEX('Assumptions '!$R102:$V102,,MATCH(AZ$128,'Assumptions '!$R$100:$V$100,0)))),0),0) -> 91 | BA142: =IF(BA$125>='Assumptions '!$F102,ROUND('Assumptions '!$G102*(1+(INDEX('Assumptions '!$R102:$V102,,MATCH(BA$128,'Assumptions '!$R$100:$V$100,0)))),0),0) -> 91 | BB142: =IF(BB$125>='Assumptions '!$F102,ROUND('Assumptions '!$G102*(1+(INDEX('Assumptions '!$R102:$V102,,MATCH(BB$128,'Assumptions '!$R$100:$V$100,0)))),0),0) -> 91 | BC142: =IF(BC$125>='Assumptions '!$F102,ROUND('Assumptions '!$G102*(1+(INDEX('Assumptions '!$R102:$V102,,MATCH(BC$128,'Assumptions '!$R$100:$V$100,0)))),0),0) -> 96 | BD142: =IF(BD$125>='Assumptions '!$F102,ROUND('Assumptions '!$G102*(1+(INDEX('Assumptions '!$R102:$V102,,MATCH(BD$128,'Assumptions '!$R$100:$V$100,0)))),0),0) -> 96 | BE142: =IF(BE$125>='Assumptions '!$F102,ROUND('Assumptions '!$G102*(1+(INDEX('Assumptions '!$R102:$V102,,MATCH(BE$128,'Assumptions '!$R$100:$V$100,0)))),0),0) -> 96 | BF142: =IF(BF$125>='Assumptions '!$F102,ROUND('Assumptions '!$G102*(1+(INDEX('Assumptions '!$R102:$V102,,MATCH(BF$128,'Assumptions '!$R$100:$V$100,0)))),0),0) -> 96 | BG142: =IF(BG$125>='Assumptions '!$F102,ROUND('Assumptions '!$G102*(1+(INDEX('Assumptions '!$R102:$V102,,MATCH(BG$128,'Assumptions '!$R$100:$V$100,0)))),0),0) -> 96 | BH142: =IF(BH$125>='Assumptions '!$F102,ROUND('Assumptions '!$G102*(1+(INDEX('Assumptions '!$R102:$V102,,MATCH(BH$128,'Assumptions '!$R$100:$V$100,0)))),0),0) -> 96 | BI142: =IF(BI$125>='Assumptions '!$F102,ROUND('Assumptions '!$G102*(1+(INDEX('Assumptions '!$R102:$V102,,MATCH(BI$128,'Assumptions '!$R$100:$V$100,0)))),0),0) -> 96 | BJ142: =IF(BJ$125>='Assumptions '!$F102,ROUND('Assumptions '!$G102*(1+(INDEX('Assumptions '!$R102:$V102,,MATCH(BJ$128,'Assumptions '!$R$100:$V$100,0)))),0),0) -> 96 | BK142: =IF(BK$125>='Assumptions '!$F102,ROUND('Assumptions '!$G102*(1+(INDEX('Assumptions '!$R102:$V102,,MATCH(BK$128,'Assumptions '!$R$100:$V$100,0)))),0),0) -> 96 | BL142: =IF(BL$125>='Assumptions '!$F102,ROUND('Assumptions '!$G102*(1+(INDEX('Assumptions '!$R102:$V102,,MATCH(BL$128,'Assumptions '!$R$100:$V$100,0)))),0),0) -> 96 | BM142: =IF(BM$125>='Assumptions '!$F102,ROUND('Assumptions '!$G102*(1+(INDEX('Assumptions '!$R102:$V102,,MATCH(BM$128,'Assumptions '!$R$100:$V$100,0)))),0),0) -> 96 | BN142: =IF(BN$125>='Assumptions '!$F102,ROUND('Assumptions '!$G102*(1+(INDEX('Assumptions '!$R102:$V102,,MATCH(BN$128,'Assumptions '!$R$100:$V$100,0)))),0),0) -> 96
B145: x | C145: Price schedules
D147: ='Assumptions '!J259 -> Fish trading (Push/Pull)
D148: =D137 -> Product #1: Main product, e.g., Octopus from Lamu | G148: =IFERROR(INDEX('Assumptions '!$F65:$J65,,MATCH(G$128,'Assumptions '!$F$64:$J$64,0)),0) -> 5 | H148: =IFERROR(INDEX('Assumptions '!$F65:$J65,,MATCH(H$128,'Assumptions '!$F$64:$J$64,0)),0) -> 5 | I148: =IFERROR(INDEX('Assumptions '!$F65:$J65,,MATCH(I$128,'Assumptions '!$F$64:$J$64,0)),0) -> 5 | J148: =IFERROR(INDEX('Assumptions '!$F65:$J65,,MATCH(J$128,'Assumptions '!$F$64:$J$64,0)),0) -> 5 | K148: =IFERROR(INDEX('Assumptions '!$F65:$J65,,MATCH(K$128,'Assumptions '!$F$64:$J$64,0)),0) -> 5 | L148: =IFERROR(INDEX('Assumptions '!$F65:$J65,,MATCH(L$128,'Assumptions '!$F$64:$J$64,0)),0) -> 5 | M148: =IFERROR(INDEX('Assumptions '!$F65:$J65,,MATCH(M$128,'Assumptions '!$F$64:$J$64,0)),0) -> 5 | N148: =IFERROR(INDEX('Assumptions '!$F65:$J65,,MATCH(N$128,'Assumptions '!$F$64:$J$64,0)),0) -> 5 | O148: =IFERROR(INDEX('Assumptions '!$F65:$J65,,MATCH(O$128,'Assumptions '!$F$64:$J$64,0)),0) -> 5 | P148: =IFERROR(INDEX('Assumptions '!$F65:$J65,,MATCH(P$128,'Assumptions '!$F$64:$J$64,0)),0) -> 5 | Q148: =IFERROR(INDEX('Assumptions '!$F65:$J65,,MATCH(Q$128,'Assumptions '!$F$64:$J$64,0)),0) -> 5 | R148: =IFERROR(INDEX('Assumptions '!$F65:$J65,,MATCH(R$128,'Assumptions '!$F$64:$J$64,0)),0) -> 5 | S148: =IFERROR(INDEX('Assumptions '!$F65:$J65,,MATCH(S$128,'Assumptions '!$F$64:$J$64,0)),0) -> 6 | T148: =IFERROR(INDEX('Assumptions '!$F65:$J65,,MATCH(T$128,'Assumptions '!$F$64:$J$64,0)),0) -> 6 | U148: =IFERROR(INDEX('Assumptions '!$F65:$J65,,MATCH(U$128,'Assumptions '!$F$64:$J$64,0)),0) -> 6 | V148: =IFERROR(INDEX('Assumptions '!$F65:$J65,,MATCH(V$128,'Assumptions '!$F$64:$J$64,0)),0) -> 6 | W148: =IFERROR(INDEX('Assumptions '!$F65:$J65,,MATCH(W$128,'Assumptions '!$F$64:$J$64,0)),0) -> 6 | X148: =IFERROR(INDEX('Assumptions '!$F65:$J65,,MATCH(X$128,'Assumptions '!$F$64:$J$64,0)),0) -> 6 | Y148: =IFERROR(INDEX('Assumptions '!$F65:$J65,,MATCH(Y$128,'Assumptions '!$F$64:$J$64,0)),0) -> 6 | Z148: =IFERROR(INDEX('Assumptions '!$F65:$J65,,MATCH(Z$128,'Assumptions '!$F$64:$J$64,0)),0) -> 6 | AA148: =IFERROR(INDEX('Assumptions '!$F65:$J65,,MATCH(AA$128,'Assumptions '!$F$64:$J$64,0)),0) -> 6 | AB148: =IFERROR(INDEX('Assumptions '!$F65:$J65,,MATCH(AB$128,'Assumptions '!$F$64:$J$64,0)),0) -> 6 | AC148: =IFERROR(INDEX('Assumptions '!$F65:$J65,,MATCH(AC$128,'Assumptions '!$F$64:$J$64,0)),0) -> 6 | AD148: =IFERROR(INDEX('Assumptions '!$F65:$J65,,MATCH(AD$128,'Assumptions '!$F$64:$J$64,0)),0) -> 6 | AE148: =IFERROR(INDEX('Assumptions '!$F65:$J65,,MATCH(AE$128,'Assumptions '!$F$64:$J$64,0)),0) -> 5 | AF148: =IFERROR(INDEX('Assumptions '!$F65:$J65,,MATCH(AF$128,'Assumptions '!$F$64:$J$64,0)),0) -> 5 | AG148: =IFERROR(INDEX('Assumptions '!$F65:$J65,,MATCH(AG$128,'Assumptions '!$F$64:$J$64,0)),0) -> 5 | AH148: =IFERROR(INDEX('Assumptions '!$F65:$J65,,MATCH(AH$128,'Assumptions '!$F$64:$J$64,0)),0) -> 5 | AI148: =IFERROR(INDEX('Assumptions '!$F65:$J65,,MATCH(AI$128,'Assumptions '!$F$64:$J$64,0)),0) -> 5 | AJ148: =IFERROR(INDEX('Assumptions '!$F65:$J65,,MATCH(AJ$128,'Assumptions '!$F$64:$J$64,0)),0) -> 5 | AK148: =IFERROR(INDEX('Assumptions '!$F65:$J65,,MATCH(AK$128,'Assumptions '!$F$64:$J$64,0)),0) -> 5 | AL148: =IFERROR(INDEX('Assumptions '!$F65:$J65,,MATCH(AL$128,'Assumptions '!$F$64:$J$64,0)),0) -> 5 | AM148: =IFERROR(INDEX('Assumptions '!$F65:$J65,,MATCH(AM$128,'Assumptions '!$F$64:$J$64,0)),0) -> 5 | AN148: =IFERROR(INDEX('Assumptions '!$F65:$J65,,MATCH(AN$128,'Assumptions '!$F$64:$J$64,0)),0) -> 5 | AO148: =IFERROR(INDEX('Assumptions '!$F65:$J65,,MATCH(AO$128,'Assumptions '!$F$64:$J$64,0)),0) -> 5 | AP148: =IFERROR(INDEX('Assumptions '!$F65:$J65,,MATCH(AP$128,'Assumptions '!$F$64:$J$64,0)),0) -> 5 | AQ148: =IFERROR(INDEX('Assumptions '!$F65:$J65,,MATCH(AQ$128,'Assumptions '!$F$64:$J$64,0)),0) -> 5 | AR148: =IFERROR(INDEX('Assumptions '!$F65:$J65,,MATCH(AR$128,'Assumptions '!$F$64:$J$64,0)),0) -> 5 | AS148: =IFERROR(INDEX('Assumptions '!$F65:$J65,,MATCH(AS$128,'Assumptions '!$F$64:$J$64,0)),0) -> 5 | AT148: =IFERROR(INDEX('Assumptions '!$F65:$J65,,MATCH(AT$128,'Assumptions '!$F$64:$J$64,0)),0) -> 5 | AU148: =IFERROR(INDEX('Assumptions '!$F65:$J65,,MATCH(AU$128,'Assumptions '!$F$64:$J$64,0)),0) -> 5 | AV148: =IFERROR(INDEX('Assumptions '!$F65:$J65,,MATCH(AV$128,'Assumptions '!$F$64:$J$64,0)),0) -> 5 | AW148: =IFERROR(INDEX('Assumptions '!$F65:$J65,,MATCH(AW$128,'Assumptions '!$F$64:$J$64,0)),0) -> 5 | AX148: =IFERROR(INDEX('Assumptions '!$F65:$J65,,MATCH(AX$128,'Assumptions '!$F$64:$J$64,0)),0) -> 5 | AY148: =IFERROR(INDEX('Assumptions '!$F65:$J65,,MATCH(AY$128,'Assumptions '!$F$64:$J$64,0)),0) -> 5 | AZ148: =IFERROR(INDEX('Assumptions '!$F65:$J65,,MATCH(AZ$128,'Assumptions '!$F$64:$J$64,0)),0) -> 5 | BA148: =IFERROR(INDEX('Assumptions '!$F65:$J65,,MATCH(BA$128,'Assumptions '!$F$64:$J$64,0)),0) -> 5 | BB148: =IFERROR(INDEX('Assumptions '!$F65:$J65,,MATCH(BB$128,'Assumptions '!$F$64:$J$64,0)),0) -> 5 | BC148: =IFERROR(INDEX('Assumptions '!$F65:$J65,,MATCH(BC$128,'Assumptions '!$F$64:$J$64,0)),0) -> 5 | BD148: =IFERROR(INDEX('Assumptions '!$F65:$J65,,MATCH(BD$128,'Assumptions '!$F$64:$J$64,0)),0) -> 5 | BE148: =IFERROR(INDEX('Assumptions '!$F65:$J65,,MATCH(BE$128,'Assumptions '!$F$64:$J$64,0)),0) -> 5 | BF148: =IFERROR(INDEX('Assumptions '!$F65:$J65,,MATCH(BF$128,'Assumptions '!$F$64:$J$64,0)),0) -> 5 | BG148: =IFERROR(INDEX('Assumptions '!$F65:$J65,,MATCH(BG$128,'Assumptions '!$F$64:$J$64,0)),0) -> 5 | BH148: =IFERROR(INDEX('Assumptions '!$F65:$J65,,MATCH(BH$128,'Assumptions '!$F$64:$J$64,0)),0) -> 5 | BI148: =IFERROR(INDEX('Assumptions '!$F65:$J65,,MATCH(BI$128,'Assumptions '!$F$64:$J$64,0)),0) -> 5 | BJ148: =IFERROR(INDEX('Assumptions '!$F65:$J65,,MATCH(BJ$128,'Assumptions '!$F$64:$J$64,0)),0) -> 5 | BK148: =IFERROR(INDEX('Assumptions '!$F65:$J65,,MATCH(BK$128,'Assumptions '!$F$64:$J$64,0)),0) -> 5 | BL148: =IFERROR(INDEX('Assumptions '!$F65:$J65,,MATCH(BL$128,'Assumptions '!$F$64:$J$64,0)),0) -> 5 | BM148: =IFERROR(INDEX('Assumptions '!$F65:$J65,,MATCH(BM$128,'Assumptions '!$F$64:$J$64,0)),0) -> 5 | BN148: =IFERROR(INDEX('Assumptions '!$F65:$J65,,MATCH(BN$128,'Assumptions '!$F$64:$J$64,0)),0) -> 5
D149: =D138 -> Product #2: Add'l product, e.g., prawns from Lamu | G149: =IFERROR(INDEX('Assumptions '!$F66:$J66,,MATCH(G$128,'Assumptions '!$F$64:$J$64,0)),0) -> 7 | H149: =IFERROR(INDEX('Assumptions '!$F66:$J66,,MATCH(H$128,'Assumptions '!$F$64:$J$64,0)),0) -> 7 | I149: =IFERROR(INDEX('Assumptions '!$F66:$J66,,MATCH(I$128,'Assumptions '!$F$64:$J$64,0)),0) -> 7 | J149: =IFERROR(INDEX('Assumptions '!$F66:$J66,,MATCH(J$128,'Assumptions '!$F$64:$J$64,0)),0) -> 7 | K149: =IFERROR(INDEX('Assumptions '!$F66:$J66,,MATCH(K$128,'Assumptions '!$F$64:$J$64,0)),0) -> 7 | L149: =IFERROR(INDEX('Assumptions '!$F66:$J66,,MATCH(L$128,'Assumptions '!$F$64:$J$64,0)),0) -> 7 | M149: =IFERROR(INDEX('Assumptions '!$F66:$J66,,MATCH(M$128,'Assumptions '!$F$64:$J$64,0)),0) -> 7 | N149: =IFERROR(INDEX('Assumptions '!$F66:$J66,,MATCH(N$128,'Assumptions '!$F$64:$J$64,0)),0) -> 7 | O149: =IFERROR(INDEX('Assumptions '!$F66:$J66,,MATCH(O$128,'Assumptions '!$F$64:$J$64,0)),0) -> 7 | P149: =IFERROR(INDEX('Assumptions '!$F66:$J66,,MATCH(P$128,'Assumptions '!$F$64:$J$64,0)),0) -> 7 | Q149: =IFERROR(INDEX('Assumptions '!$F66:$J66,,MATCH(Q$128,'Assumptions '!$F$64:$J$64,0)),0) -> 7 | R149: =IFERROR(INDEX('Assumptions '!$F66:$J66,,MATCH(R$128,'Assumptions '!$F$64:$J$64,0)),0) -> 7 | S149: =IFERROR(INDEX('Assumptions '!$F66:$J66,,MATCH(S$128,'Assumptions '!$F$64:$J$64,0)),0) -> 7 | T149: =IFERROR(INDEX('Assumptions '!$F66:$J66,,MATCH(T$128,'Assumptions '!$F$64:$J$64,0)),0) -> 7 | U149: =IFERROR(INDEX('Assumptions '!$F66:$J66,,MATCH(U$128,'Assumptions '!$F$64:$J$64,0)),0) -> 7 | V149: =IFERROR(INDEX('Assumptions '!$F66:$J66,,MATCH(V$128,'Assumptions '!$F$64:$J$64,0)),0) -> 7 | W149: =IFERROR(INDEX('Assumptions '!$F66:$J66,,MATCH(W$128,'Assumptions '!$F$64:$J$64,0)),0) -> 7 | X149: =IFERROR(INDEX('Assumptions '!$F66:$J66,,MATCH(X$128,'Assumptions '!$F$64:$J$64,0)),0) -> 7 | Y149: =IFERROR(INDEX('Assumptions '!$F66:$J66,,MATCH(Y$128,'Assumptions '!$F$64:$J$64,0)),0) -> 7 | Z149: =IFERROR(INDEX('Assumptions '!$F66:$J66,,MATCH(Z$128,'Assumptions '!$F$64:$J$64,0)),0) -> 7 | AA149: =IFERROR(INDEX('Assumptions '!$F66:$J66,,MATCH(AA$128,'Assumptions '!$F$64:$J$64,0)),0) -> 7 | AB149: =IFERROR(INDEX('Assumptions '!$F66:$J66,,MATCH(AB$128,'Assumptions '!$F$64:$J$64,0)),0) -> 7 | AC149: =IFERROR(INDEX('Assumptions '!$F66:$J66,,MATCH(AC$128,'Assumptions '!$F$64:$J$64,0)),0) -> 7 | AD149: =IFERROR(INDEX('Assumptions '!$F66:$J66,,MATCH(AD$128,'Assumptions '!$F$64:$J$64,0)),0) -> 7 | AE149: =IFERROR(INDEX('Assumptions '!$F66:$J66,,MATCH(AE$128,'Assumptions '!$F$64:$J$64,0)),0) -> 7 | AF149: =IFERROR(INDEX('Assumptions '!$F66:$J66,,MATCH(AF$128,'Assumptions '!$F$64:$J$64,0)),0) -> 7 | AG149: =IFERROR(INDEX('Assumptions '!$F66:$J66,,MATCH(AG$128,'Assumptions '!$F$64:$J$64,0)),0) -> 7 | AH149: =IFERROR(INDEX('Assumptions '!$F66:$J66,,MATCH(AH$128,'Assumptions '!$F$64:$J$64,0)),0) -> 7 | AI149: =IFERROR(INDEX('Assumptions '!$F66:$J66,,MATCH(AI$128,'Assumptions '!$F$64:$J$64,0)),0) -> 7 | AJ149: =IFERROR(INDEX('Assumptions '!$F66:$J66,,MATCH(AJ$128,'Assumptions '!$F$64:$J$64,0)),0) -> 7 | AK149: =IFERROR(INDEX('Assumptions '!$F66:$J66,,MATCH(AK$128,'Assumptions '!$F$64:$J$64,0)),0) -> 7 | AL149: =IFERROR(INDEX('Assumptions '!$F66:$J66,,MATCH(AL$128,'Assumptions '!$F$64:$J$64,0)),0) -> 7 | AM149: =IFERROR(INDEX('Assumptions '!$F66:$J66,,MATCH(AM$128,'Assumptions '!$F$64:$J$64,0)),0) -> 7 | AN149: =IFERROR(INDEX('Assumptions '!$F66:$J66,,MATCH(AN$128,'Assumptions '!$F$64:$J$64,0)),0) -> 7 | AO149: =IFERROR(INDEX('Assumptions '!$F66:$J66,,MATCH(AO$128,'Assumptions '!$F$64:$J$64,0)),0) -> 7 | AP149: =IFERROR(INDEX('Assumptions '!$F66:$J66,,MATCH(AP$128,'Assumptions '!$F$64:$J$64,0)),0) -> 7 | AQ149: =IFERROR(INDEX('Assumptions '!$F66:$J66,,MATCH(AQ$128,'Assumptions '!$F$64:$J$64,0)),0) -> 7 | AR149: =IFERROR(INDEX('Assumptions '!$F66:$J66,,MATCH(AR$128,'Assumptions '!$F$64:$J$64,0)),0) -> 7 | AS149: =IFERROR(INDEX('Assumptions '!$F66:$J66,,MATCH(AS$128,'Assumptions '!$F$64:$J$64,0)),0) -> 7 | AT149: =IFERROR(INDEX('Assumptions '!$F66:$J66,,MATCH(AT$128,'Assumptions '!$F$64:$J$64,0)),0) -> 7 | AU149: =IFERROR(INDEX('Assumptions '!$F66:$J66,,MATCH(AU$128,'Assumptions '!$F$64:$J$64,0)),0) -> 7 | AV149: =IFERROR(INDEX('Assumptions '!$F66:$J66,,MATCH(AV$128,'Assumptions '!$F$64:$J$64,0)),0) -> 7 | AW149: =IFERROR(INDEX('Assumptions '!$F66:$J66,,MATCH(AW$128,'Assumptions '!$F$64:$J$64,0)),0) -> 7 | AX149: =IFERROR(INDEX('Assumptions '!$F66:$J66,,MATCH(AX$128,'Assumptions '!$F$64:$J$64,0)),0) -> 7 | AY149: =IFERROR(INDEX('Assumptions '!$F66:$J66,,MATCH(AY$128,'Assumptions '!$F$64:$J$64,0)),0) -> 7 | AZ149: =IFERROR(INDEX('Assumptions '!$F66:$J66,,MATCH(AZ$128,'Assumptions '!$F$64:$J$64,0)),0) -> 7 | BA149: =IFERROR(INDEX('Assumptions '!$F66:$J66,,MATCH(BA$128,'Assumptions '!$F$64:$J$64,0)),0) -> 7 | BB149: =IFERROR(INDEX('Assumptions '!$F66:$J66,,MATCH(BB$128,'Assumptions '!$F$64:$J$64,0)),0) -> 7 | BC149: =IFERROR(INDEX('Assumptions '!$F66:$J66,,MATCH(BC$128,'Assumptions '!$F$64:$J$64,0)),0) -> 7 | BD149: =IFERROR(INDEX('Assumptions '!$F66:$J66,,MATCH(BD$128,'Assumptions '!$F$64:$J$64,0)),0) -> 7 | BE149: =IFERROR(INDEX('Assumptions '!$F66:$J66,,MATCH(BE$128,'Assumptions '!$F$64:$J$64,0)),0) -> 7 | BF149: =IFERROR(INDEX('Assumptions '!$F66:$J66,,MATCH(BF$128,'Assumptions '!$F$64:$J$64,0)),0) -> 7 | BG149: =IFERROR(INDEX('Assumptions '!$F66:$J66,,MATCH(BG$128,'Assumptions '!$F$64:$J$64,0)),0) -> 7 | BH149: =IFERROR(INDEX('Assumptions '!$F66:$J66,,MATCH(BH$128,'Assumptions '!$F$64:$J$64,0)),0) -> 7 | BI149: =IFERROR(INDEX('Assumptions '!$F66:$J66,,MATCH(BI$128,'Assumptions '!$F$64:$J$64,0)),0) -> 7 | BJ149: =IFERROR(INDEX('Assumptions '!$F66:$J66,,MATCH(BJ$128,'Assumptions '!$F$64:$J$64,0)),0) -> 7 | BK149: =IFERROR(INDEX('Assumptions '!$F66:$J66,,MATCH(BK$128,'Assumptions '!$F$64:$J$64,0)),0) -> 7 | BL149: =IFERROR(INDEX('Assumptions '!$F66:$J66,,MATCH(BL$128,'Assumptions '!$F$64:$J$64,0)),0) -> 7 | BM149: =IFERROR(INDEX('Assumptions '!$F66:$J66,,MATCH(BM$128,'Assumptions '!$F$64:$J$64,0)),0) -> 7 | BN149: =IFERROR(INDEX('Assumptions '!$F66:$J66,,MATCH(BN$128,'Assumptions '!$F$64:$J$64,0)),0) -> 7
D151: ='Assumptions '!J260 -> Cooling-as-a-service / Mobile cold chain services
D152: =D148 -> Product #1: Main product, e.g., Octopus from Lamu | G152: =IFERROR(INDEX('Assumptions '!$F82:$J82,,MATCH(G$128,'Assumptions '!$F$81:$J$81,0)),0)*'Assumptions '!$L82 -> 0.24 | H152: =IFERROR(INDEX('Assumptions '!$F82:$J82,,MATCH(H$128,'Assumptions '!$F$81:$J$81,0)),0)*'Assumptions '!$L82 -> 0.24 | I152: =IFERROR(INDEX('Assumptions '!$F82:$J82,,MATCH(I$128,'Assumptions '!$F$81:$J$81,0)),0)*'Assumptions '!$L82 -> 0.24 | J152: =IFERROR(INDEX('Assumptions '!$F82:$J82,,MATCH(J$128,'Assumptions '!$F$81:$J$81,0)),0)*'Assumptions '!$L82 -> 0.24 | K152: =IFERROR(INDEX('Assumptions '!$F82:$J82,,MATCH(K$128,'Assumptions '!$F$81:$J$81,0)),0)*'Assumptions '!$L82 -> 0.24 | L152: =IFERROR(INDEX('Assumptions '!$F82:$J82,,MATCH(L$128,'Assumptions '!$F$81:$J$81,0)),0)*'Assumptions '!$L82 -> 0.24 | M152: =IFERROR(INDEX('Assumptions '!$F82:$J82,,MATCH(M$128,'Assumptions '!$F$81:$J$81,0)),0)*'Assumptions '!$L82 -> 0.24 | N152: =IFERROR(INDEX('Assumptions '!$F82:$J82,,MATCH(N$128,'Assumptions '!$F$81:$J$81,0)),0)*'Assumptions '!$L82 -> 0.24 | O152: =IFERROR(INDEX('Assumptions '!$F82:$J82,,MATCH(O$128,'Assumptions '!$F$81:$J$81,0)),0)*'Assumptions '!$L82 -> 0.24 | P152: =IFERROR(INDEX('Assumptions '!$F82:$J82,,MATCH(P$128,'Assumptions '!$F$81:$J$81,0)),0)*'Assumptions '!$L82 -> 0.24 | Q152: =IFERROR(INDEX('Assumptions '!$F82:$J82,,MATCH(Q$128,'Assumptions '!$F$81:$J$81,0)),0)*'Assumptions '!$L82 -> 0.24 | R152: =IFERROR(INDEX('Assumptions '!$F82:$J82,,MATCH(R$128,'Assumptions '!$F$81:$J$81,0)),0)*'Assumptions '!$L82 -> 0.24 | S152: =IFERROR(INDEX('Assumptions '!$F82:$J82,,MATCH(S$128,'Assumptions '!$F$81:$J$81,0)),0)*'Assumptions '!$L82 -> 0.24 | T152: =IFERROR(INDEX('Assumptions '!$F82:$J82,,MATCH(T$128,'Assumptions '!$F$81:$J$81,0)),0)*'Assumptions '!$L82 -> 0.24 | U152: =IFERROR(INDEX('Assumptions '!$F82:$J82,,MATCH(U$128,'Assumptions '!$F$81:$J$81,0)),0)*'Assumptions '!$L82 -> 0.24 | V152: =IFERROR(INDEX('Assumptions '!$F82:$J82,,MATCH(V$128,'Assumptions '!$F$81:$J$81,0)),0)*'Assumptions '!$L82 -> 0.24 | W152: =IFERROR(INDEX('Assumptions '!$F82:$J82,,MATCH(W$128,'Assumptions '!$F$81:$J$81,0)),0)*'Assumptions '!$L82 -> 0.24 | X152: =IFERROR(INDEX('Assumptions '!$F82:$J82,,MATCH(X$128,'Assumptions '!$F$81:$J$81,0)),0)*'Assumptions '!$L82 -> 0.24 | Y152: =IFERROR(INDEX('Assumptions '!$F82:$J82,,MATCH(Y$128,'Assumptions '!$F$81:$J$81,0)),0)*'Assumptions '!$L82 -> 0.24 | Z152: =IFERROR(INDEX('Assumptions '!$F82:$J82,,MATCH(Z$128,'Assumptions '!$F$81:$J$81,0)),0)*'Assumptions '!$L82 -> 0.24 | AA152: =IFERROR(INDEX('Assumptions '!$F82:$J82,,MATCH(AA$128,'Assumptions '!$F$81:$J$81,0)),0)*'Assumptions '!$L82 -> 0.24 | AB152: =IFERROR(INDEX('Assumptions '!$F82:$J82,,MATCH(AB$128,'Assumptions '!$F$81:$J$81,0)),0)*'Assumptions '!$L82 -> 0.24 | AC152: =IFERROR(INDEX('Assumptions '!$F82:$J82,,MATCH(AC$128,'Assumptions '!$F$81:$J$81,0)),0)*'Assumptions '!$L82 -> 0.24 | AD152: =IFERROR(INDEX('Assumptions '!$F82:$J82,,MATCH(AD$128,'Assumptions '!$F$81:$J$81,0)),0)*'Assumptions '!$L82 -> 0.24 | AE152: =IFERROR(INDEX('Assumptions '!$F82:$J82,,MATCH(AE$128,'Assumptions '!$F$81:$J$81,0)),0)*'Assumptions '!$L82 -> 0.24 | AF152: =IFERROR(INDEX('Assumptions '!$F82:$J82,,MATCH(AF$128,'Assumptions '!$F$81:$J$81,0)),0)*'Assumptions '!$L82 -> 0.24 | AG152: =IFERROR(INDEX('Assumptions '!$F82:$J82,,MATCH(AG$128,'Assumptions '!$F$81:$J$81,0)),0)*'Assumptions '!$L82 -> 0.24 | AH152: =IFERROR(INDEX('Assumptions '!$F82:$J82,,MATCH(AH$128,'Assumptions '!$F$81:$J$81,0)),0)*'Assumptions '!$L82 -> 0.24 | AI152: =IFERROR(INDEX('Assumptions '!$F82:$J82,,MATCH(AI$128,'Assumptions '!$F$81:$J$81,0)),0)*'Assumptions '!$L82 -> 0.24 | AJ152: =IFERROR(INDEX('Assumptions '!$F82:$J82,,MATCH(AJ$128,'Assumptions '!$F$81:$J$81,0)),0)*'Assumptions '!$L82 -> 0.24 | AK152: =IFERROR(INDEX('Assumptions '!$F82:$J82,,MATCH(AK$128,'Assumptions '!$F$81:$J$81,0)),0)*'Assumptions '!$L82 -> 0.24 | AL152: =IFERROR(INDEX('Assumptions '!$F82:$J82,,MATCH(AL$128,'Assumptions '!$F$81:$J$81,0)),0)*'Assumptions '!$L82 -> 0.24 | AM152: =IFERROR(INDEX('Assumptions '!$F82:$J82,,MATCH(AM$128,'Assumptions '!$F$81:$J$81,0)),0)*'Assumptions '!$L82 -> 0.24 | AN152: =IFERROR(INDEX('Assumptions '!$F82:$J82,,MATCH(AN$128,'Assumptions '!$F$81:$J$81,0)),0)*'Assumptions '!$L82 -> 0.24 | AO152: =IFERROR(INDEX('Assumptions '!$F82:$J82,,MATCH(AO$128,'Assumptions '!$F$81:$J$81,0)),0)*'Assumptions '!$L82 -> 0.24 | AP152: =IFERROR(INDEX('Assumptions '!$F82:$J82,,MATCH(AP$128,'Assumptions '!$F$81:$J$81,0)),0)*'Assumptions '!$L82 -> 0.24 | AQ152: =IFERROR(INDEX('Assumptions '!$F82:$J82,,MATCH(AQ$128,'Assumptions '!$F$81:$J$81,0)),0)*'Assumptions '!$L82 -> 0.24 | AR152: =IFERROR(INDEX('Assumptions '!$F82:$J82,,MATCH(AR$128,'Assumptions '!$F$81:$J$81,0)),0)*'Assumptions '!$L82 -> 0.24 | AS152: =IFERROR(INDEX('Assumptions '!$F82:$J82,,MATCH(AS$128,'Assumptions '!$F$81:$J$81,0)),0)*'Assumptions '!$L82 -> 0.24 | AT152: =IFERROR(INDEX('Assumptions '!$F82:$J82,,MATCH(AT$128,'Assumptions '!$F$81:$J$81,0)),0)*'Assumptions '!$L82 -> 0.24 | AU152: =IFERROR(INDEX('Assumptions '!$F82:$J82,,MATCH(AU$128,'Assumptions '!$F$81:$J$81,0)),0)*'Assumptions '!$L82 -> 0.24 | AV152: =IFERROR(INDEX('Assumptions '!$F82:$J82,,MATCH(AV$128,'Assumptions '!$F$81:$J$81,0)),0)*'Assumptions '!$L82 -> 0.24 | AW152: =IFERROR(INDEX('Assumptions '!$F82:$J82,,MATCH(AW$128,'Assumptions '!$F$81:$J$81,0)),0)*'Assumptions '!$L82 -> 0.24 | AX152: =IFERROR(INDEX('Assumptions '!$F82:$J82,,MATCH(AX$128,'Assumptions '!$F$81:$J$81,0)),0)*'Assumptions '!$L82 -> 0.24 | AY152: =IFERROR(INDEX('Assumptions '!$F82:$J82,,MATCH(AY$128,'Assumptions '!$F$81:$J$81,0)),0)*'Assumptions '!$L82 -> 0.24 | AZ152: =IFERROR(INDEX('Assumptions '!$F82:$J82,,MATCH(AZ$128,'Assumptions '!$F$81:$J$81,0)),0)*'Assumptions '!$L82 -> 0.24 | BA152: =IFERROR(INDEX('Assumptions '!$F82:$J82,,MATCH(BA$128,'Assumptions '!$F$81:$J$81,0)),0)*'Assumptions '!$L82 -> 0.24 | BB152: =IFERROR(INDEX('Assumptions '!$F82:$J82,,MATCH(BB$128,'Assumptions '!$F$81:$J$81,0)),0)*'Assumptions '!$L82 -> 0.24 | BC152: =IFERROR(INDEX('Assumptions '!$F82:$J82,,MATCH(BC$128,'Assumptions '!$F$81:$J$81,0)),0)*'Assumptions '!$L82 -> 0.24 | BD152: =IFERROR(INDEX('Assumptions '!$F82:$J82,,MATCH(BD$128,'Assumptions '!$F$81:$J$81,0)),0)*'Assumptions '!$L82 -> 0.24 | BE152: =IFERROR(INDEX('Assumptions '!$F82:$J82,,MATCH(BE$128,'Assumptions '!$F$81:$J$81,0)),0)*'Assumptions '!$L82 -> 0.24 | BF152: =IFERROR(INDEX('Assumptions '!$F82:$J82,,MATCH(BF$128,'Assumptions '!$F$81:$J$81,0)),0)*'Assumptions '!$L82 -> 0.24 | BG152: =IFERROR(INDEX('Assumptions '!$F82:$J82,,MATCH(BG$128,'Assumptions '!$F$81:$J$81,0)),0)*'Assumptions '!$L82 -> 0.24 | BH152: =IFERROR(INDEX('Assumptions '!$F82:$J82,,MATCH(BH$128,'Assumptions '!$F$81:$J$81,0)),0)*'Assumptions '!$L82 -> 0.24 | BI152: =IFERROR(INDEX('Assumptions '!$F82:$J82,,MATCH(BI$128,'Assumptions '!$F$81:$J$81,0)),0)*'Assumptions '!$L82 -> 0.24 | BJ152: =IFERROR(INDEX('Assumptions '!$F82:$J82,,MATCH(BJ$128,'Assumptions '!$F$81:$J$81,0)),0)*'Assumptions '!$L82 -> 0.24 | BK152: =IFERROR(INDEX('Assumptions '!$F82:$J82,,MATCH(BK$128,'Assumptions '!$F$81:$J$81,0)),0)*'Assumptions '!$L82 -> 0.24 | BL152: =IFERROR(INDEX('Assumptions '!$F82:$J82,,MATCH(BL$128,'Assumptions '!$F$81:$J$81,0)),0)*'Assumptions '!$L82 -> 0.24 | BM152: =IFERROR(INDEX('Assumptions '!$F82:$J82,,MATCH(BM$128,'Assumptions '!$F$81:$J$81,0)),0)*'Assumptions '!$L82 -> 0.24 | BN152: =IFERROR(INDEX('Assumptions '!$F82:$J82,,MATCH(BN$128,'Assumptions '!$F$81:$J$81,0)),0)*'Assumptions '!$L82 -> 0.24
D153: =D149 -> Product #2: Add'l product, e.g., prawns from Lamu | G153: =IFERROR(INDEX('Assumptions '!$F83:$J83,,MATCH(G$128,'Assumptions '!$F$81:$J$81,0)),0)*'Assumptions '!$L83 -> 0.16 | H153: =IFERROR(INDEX('Assumptions '!$F83:$J83,,MATCH(H$128,'Assumptions '!$F$81:$J$81,0)),0)*'Assumptions '!$L83 -> 0.16 | I153: =IFERROR(INDEX('Assumptions '!$F83:$J83,,MATCH(I$128,'Assumptions '!$F$81:$J$81,0)),0)*'Assumptions '!$L83 -> 0.16 | J153: =IFERROR(INDEX('Assumptions '!$F83:$J83,,MATCH(J$128,'Assumptions '!$F$81:$J$81,0)),0)*'Assumptions '!$L83 -> 0.16 | K153: =IFERROR(INDEX('Assumptions '!$F83:$J83,,MATCH(K$128,'Assumptions '!$F$81:$J$81,0)),0)*'Assumptions '!$L83 -> 0.16 | L153: =IFERROR(INDEX('Assumptions '!$F83:$J83,,MATCH(L$128,'Assumptions '!$F$81:$J$81,0)),0)*'Assumptions '!$L83 -> 0.16 | M153: =IFERROR(INDEX('Assumptions '!$F83:$J83,,MATCH(M$128,'Assumptions '!$F$81:$J$81,0)),0)*'Assumptions '!$L83 -> 0.16 | N153: =IFERROR(INDEX('Assumptions '!$F83:$J83,,MATCH(N$128,'Assumptions '!$F$81:$J$81,0)),0)*'Assumptions '!$L83 -> 0.16 | O153: =IFERROR(INDEX('Assumptions '!$F83:$J83,,MATCH(O$128,'Assumptions '!$F$81:$J$81,0)),0)*'Assumptions '!$L83 -> 0.16 | P153: =IFERROR(INDEX('Assumptions '!$F83:$J83,,MATCH(P$128,'Assumptions '!$F$81:$J$81,0)),0)*'Assumptions '!$L83 -> 0.16 | Q153: =IFERROR(INDEX('Assumptions '!$F83:$J83,,MATCH(Q$128,'Assumptions '!$F$81:$J$81,0)),0)*'Assumptions '!$L83 -> 0.16 | R153: =IFERROR(INDEX('Assumptions '!$F83:$J83,,MATCH(R$128,'Assumptions '!$F$81:$J$81,0)),0)*'Assumptions '!$L83 -> 0.16 | S153: =IFERROR(INDEX('Assumptions '!$F83:$J83,,MATCH(S$128,'Assumptions '!$F$81:$J$81,0)),0)*'Assumptions '!$L83 -> 0.16 | T153: =IFERROR(INDEX('Assumptions '!$F83:$J83,,MATCH(T$128,'Assumptions '!$F$81:$J$81,0)),0)*'Assumptions '!$L83 -> 0.16 | U153: =IFERROR(INDEX('Assumptions '!$F83:$J83,,MATCH(U$128,'Assumptions '!$F$81:$J$81,0)),0)*'Assumptions '!$L83 -> 0.16 | V153: =IFERROR(INDEX('Assumptions '!$F83:$J83,,MATCH(V$128,'Assumptions '!$F$81:$J$81,0)),0)*'Assumptions '!$L83 -> 0.16 | W153: =IFERROR(INDEX('Assumptions '!$F83:$J83,,MATCH(W$128,'Assumptions '!$F$81:$J$81,0)),0)*'Assumptions '!$L83 -> 0.16 | X153: =IFERROR(INDEX('Assumptions '!$F83:$J83,,MATCH(X$128,'Assumptions '!$F$81:$J$81,0)),0)*'Assumptions '!$L83 -> 0.16 | Y153: =IFERROR(INDEX('Assumptions '!$F83:$J83,,MATCH(Y$128,'Assumptions '!$F$81:$J$81,0)),0)*'Assumptions '!$L83 -> 0.16 | Z153: =IFERROR(INDEX('Assumptions '!$F83:$J83,,MATCH(Z$128,'Assumptions '!$F$81:$J$81,0)),0)*'Assumptions '!$L83 -> 0.16 | AA153: =IFERROR(INDEX('Assumptions '!$F83:$J83,,MATCH(AA$128,'Assumptions '!$F$81:$J$81,0)),0)*'Assumptions '!$L83 -> 0.16 | AB153: =IFERROR(INDEX('Assumptions '!$F83:$J83,,MATCH(AB$128,'Assumptions '!$F$81:$J$81,0)),0)*'Assumptions '!$L83 -> 0.16 | AC153: =IFERROR(INDEX('Assumptions '!$F83:$J83,,MATCH(AC$128,'Assumptions '!$F$81:$J$81,0)),0)*'Assumptions '!$L83 -> 0.16 | AD153: =IFERROR(INDEX('Assumptions '!$F83:$J83,,MATCH(AD$128,'Assumptions '!$F$81:$J$81,0)),0)*'Assumptions '!$L83 -> 0.16 | AE153: =IFERROR(INDEX('Assumptions '!$F83:$J83,,MATCH(AE$128,'Assumptions '!$F$81:$J$81,0)),0)*'Assumptions '!$L83 -> 0.16 | AF153: =IFERROR(INDEX('Assumptions '!$F83:$J83,,MATCH(AF$128,'Assumptions '!$F$81:$J$81,0)),0)*'Assumptions '!$L83 -> 0.16 | AG153: =IFERROR(INDEX('Assumptions '!$F83:$J83,,MATCH(AG$128,'Assumptions '!$F$81:$J$81,0)),0)*'Assumptions '!$L83 -> 0.16 | AH153: =IFERROR(INDEX('Assumptions '!$F83:$J83,,MATCH(AH$128,'Assumptions '!$F$81:$J$81,0)),0)*'Assumptions '!$L83 -> 0.16 | AI153: =IFERROR(INDEX('Assumptions '!$F83:$J83,,MATCH(AI$128,'Assumptions '!$F$81:$J$81,0)),0)*'Assumptions '!$L83 -> 0.16 | AJ153: =IFERROR(INDEX('Assumptions '!$F83:$J83,,MATCH(AJ$128,'Assumptions '!$F$81:$J$81,0)),0)*'Assumptions '!$L83 -> 0.16 | AK153: =IFERROR(INDEX('Assumptions '!$F83:$J83,,MATCH(AK$128,'Assumptions '!$F$81:$J$81,0)),0)*'Assumptions '!$L83 -> 0.16 | AL153: =IFERROR(INDEX('Assumptions '!$F83:$J83,,MATCH(AL$128,'Assumptions '!$F$81:$J$81,0)),0)*'Assumptions '!$L83 -> 0.16 | AM153: =IFERROR(INDEX('Assumptions '!$F83:$J83,,MATCH(AM$128,'Assumptions '!$F$81:$J$81,0)),0)*'Assumptions '!$L83 -> 0.16 | AN153: =IFERROR(INDEX('Assumptions '!$F83:$J83,,MATCH(AN$128,'Assumptions '!$F$81:$J$81,0)),0)*'Assumptions '!$L83 -> 0.16 | AO153: =IFERROR(INDEX('Assumptions '!$F83:$J83,,MATCH(AO$128,'Assumptions '!$F$81:$J$81,0)),0)*'Assumptions '!$L83 -> 0.16 | AP153: =IFERROR(INDEX('Assumptions '!$F83:$J83,,MATCH(AP$128,'Assumptions '!$F$81:$J$81,0)),0)*'Assumptions '!$L83 -> 0.16 | AQ153: =IFERROR(INDEX('Assumptions '!$F83:$J83,,MATCH(AQ$128,'Assumptions '!$F$81:$J$81,0)),0)*'Assumptions '!$L83 -> 0.16 | AR153: =IFERROR(INDEX('Assumptions '!$F83:$J83,,MATCH(AR$128,'Assumptions '!$F$81:$J$81,0)),0)*'Assumptions '!$L83 -> 0.16 | AS153: =IFERROR(INDEX('Assumptions '!$F83:$J83,,MATCH(AS$128,'Assumptions '!$F$81:$J$81,0)),0)*'Assumptions '!$L83 -> 0.16 | AT153: =IFERROR(INDEX('Assumptions '!$F83:$J83,,MATCH(AT$128,'Assumptions '!$F$81:$J$81,0)),0)*'Assumptions '!$L83 -> 0.16 | AU153: =IFERROR(INDEX('Assumptions '!$F83:$J83,,MATCH(AU$128,'Assumptions '!$F$81:$J$81,0)),0)*'Assumptions '!$L83 -> 0.16 | AV153: =IFERROR(INDEX('Assumptions '!$F83:$J83,,MATCH(AV$128,'Assumptions '!$F$81:$J$81,0)),0)*'Assumptions '!$L83 -> 0.16 | AW153: =IFERROR(INDEX('Assumptions '!$F83:$J83,,MATCH(AW$128,'Assumptions '!$F$81:$J$81,0)),0)*'Assumptions '!$L83 -> 0.16 | AX153: =IFERROR(INDEX('Assumptions '!$F83:$J83,,MATCH(AX$128,'Assumptions '!$F$81:$J$81,0)),0)*'Assumptions '!$L83 -> 0.16 | AY153: =IFERROR(INDEX('Assumptions '!$F83:$J83,,MATCH(AY$128,'Assumptions '!$F$81:$J$81,0)),0)*'Assumptions '!$L83 -> 0.16 | AZ153: =IFERROR(INDEX('Assumptions '!$F83:$J83,,MATCH(AZ$128,'Assumptions '!$F$81:$J$81,0)),0)*'Assumptions '!$L83 -> 0.16 | BA153: =IFERROR(INDEX('Assumptions '!$F83:$J83,,MATCH(BA$128,'Assumptions '!$F$81:$J$81,0)),0)*'Assumptions '!$L83 -> 0.16 | BB153: =IFERROR(INDEX('Assumptions '!$F83:$J83,,MATCH(BB$128,'Assumptions '!$F$81:$J$81,0)),0)*'Assumptions '!$L83 -> 0.16 | BC153: =IFERROR(INDEX('Assumptions '!$F83:$J83,,MATCH(BC$128,'Assumptions '!$F$81:$J$81,0)),0)*'Assumptions '!$L83 -> 0.16 | BD153: =IFERROR(INDEX('Assumptions '!$F83:$J83,,MATCH(BD$128,'Assumptions '!$F$81:$J$81,0)),0)*'Assumptions '!$L83 -> 0.16 | BE153: =IFERROR(INDEX('Assumptions '!$F83:$J83,,MATCH(BE$128,'Assumptions '!$F$81:$J$81,0)),0)*'Assumptions '!$L83 -> 0.16 | BF153: =IFERROR(INDEX('Assumptions '!$F83:$J83,,MATCH(BF$128,'Assumptions '!$F$81:$J$81,0)),0)*'Assumptions '!$L83 -> 0.16 | BG153: =IFERROR(INDEX('Assumptions '!$F83:$J83,,MATCH(BG$128,'Assumptions '!$F$81:$J$81,0)),0)*'Assumptions '!$L83 -> 0.16 | BH153: =IFERROR(INDEX('Assumptions '!$F83:$J83,,MATCH(BH$128,'Assumptions '!$F$81:$J$81,0)),0)*'Assumptions '!$L83 -> 0.16 | BI153: =IFERROR(INDEX('Assumptions '!$F83:$J83,,MATCH(BI$128,'Assumptions '!$F$81:$J$81,0)),0)*'Assumptions '!$L83 -> 0.16 | BJ153: =IFERROR(INDEX('Assumptions '!$F83:$J83,,MATCH(BJ$128,'Assumptions '!$F$81:$J$81,0)),0)*'Assumptions '!$L83 -> 0.16 | BK153: =IFERROR(INDEX('Assumptions '!$F83:$J83,,MATCH(BK$128,'Assumptions '!$F$81:$J$81,0)),0)*'Assumptions '!$L83 -> 0.16 | BL153: =IFERROR(INDEX('Assumptions '!$F83:$J83,,MATCH(BL$128,'Assumptions '!$F$81:$J$81,0)),0)*'Assumptions '!$L83 -> 0.16 | BM153: =IFERROR(INDEX('Assumptions '!$F83:$J83,,MATCH(BM$128,'Assumptions '!$F$81:$J$81,0)),0)*'Assumptions '!$L83 -> 0.16 | BN153: =IFERROR(INDEX('Assumptions '!$F83:$J83,,MATCH(BN$128,'Assumptions '!$F$81:$J$81,0)),0)*'Assumptions '!$L83 -> 0.16
D155: Other revenue streams
D156: ='Assumptions '!D107 -> Side product #1: Ice sales (one unit is one 5kg bucket) | G156: =IFERROR(INDEX('Assumptions '!$F107:$J107,,MATCH(G$128,'Assumptions '!$F$106:$J$106,0)),0) -> 1 | H156: =IFERROR(INDEX('Assumptions '!$F107:$J107,,MATCH(H$128,'Assumptions '!$F$106:$J$106,0)),0) -> 1 | I156: =IFERROR(INDEX('Assumptions '!$F107:$J107,,MATCH(I$128,'Assumptions '!$F$106:$J$106,0)),0) -> 1 | J156: =IFERROR(INDEX('Assumptions '!$F107:$J107,,MATCH(J$128,'Assumptions '!$F$106:$J$106,0)),0) -> 1 | K156: =IFERROR(INDEX('Assumptions '!$F107:$J107,,MATCH(K$128,'Assumptions '!$F$106:$J$106,0)),0) -> 1 | L156: =IFERROR(INDEX('Assumptions '!$F107:$J107,,MATCH(L$128,'Assumptions '!$F$106:$J$106,0)),0) -> 1 | M156: =IFERROR(INDEX('Assumptions '!$F107:$J107,,MATCH(M$128,'Assumptions '!$F$106:$J$106,0)),0) -> 1 | N156: =IFERROR(INDEX('Assumptions '!$F107:$J107,,MATCH(N$128,'Assumptions '!$F$106:$J$106,0)),0) -> 1 | O156: =IFERROR(INDEX('Assumptions '!$F107:$J107,,MATCH(O$128,'Assumptions '!$F$106:$J$106,0)),0) -> 1 | P156: =IFERROR(INDEX('Assumptions '!$F107:$J107,,MATCH(P$128,'Assumptions '!$F$106:$J$106,0)),0) -> 1 | Q156: =IFERROR(INDEX('Assumptions '!$F107:$J107,,MATCH(Q$128,'Assumptions '!$F$106:$J$106,0)),0) -> 1 | R156: =IFERROR(INDEX('Assumptions '!$F107:$J107,,MATCH(R$128,'Assumptions '!$F$106:$J$106,0)),0) -> 1 | S156: =IFERROR(INDEX('Assumptions '!$F107:$J107,,MATCH(S$128,'Assumptions '!$F$106:$J$106,0)),0) -> 1.1 | T156: =IFERROR(INDEX('Assumptions '!$F107:$J107,,MATCH(T$128,'Assumptions '!$F$106:$J$106,0)),0) -> 1.1 | U156: =IFERROR(INDEX('Assumptions '!$F107:$J107,,MATCH(U$128,'Assumptions '!$F$106:$J$106,0)),0) -> 1.1 | V156: =IFERROR(INDEX('Assumptions '!$F107:$J107,,MATCH(V$128,'Assumptions '!$F$106:$J$106,0)),0) -> 1.1 | W156: =IFERROR(INDEX('Assumptions '!$F107:$J107,,MATCH(W$128,'Assumptions '!$F$106:$J$106,0)),0) -> 1.1 | X156: =IFERROR(INDEX('Assumptions '!$F107:$J107,,MATCH(X$128,'Assumptions '!$F$106:$J$106,0)),0) -> 1.1 | Y156: =IFERROR(INDEX('Assumptions '!$F107:$J107,,MATCH(Y$128,'Assumptions '!$F$106:$J$106,0)),0) -> 1.1 | Z156: =IFERROR(INDEX('Assumptions '!$F107:$J107,,MATCH(Z$128,'Assumptions '!$F$106:$J$106,0)),0) -> 1.1 | AA156: =IFERROR(INDEX('Assumptions '!$F107:$J107,,MATCH(AA$128,'Assumptions '!$F$106:$J$106,0)),0) -> 1.1 | AB156: =IFERROR(INDEX('Assumptions '!$F107:$J107,,MATCH(AB$128,'Assumptions '!$F$106:$J$106,0)),0) -> 1.1 | AC156: =IFERROR(INDEX('Assumptions '!$F107:$J107,,MATCH(AC$128,'Assumptions '!$F$106:$J$106,0)),0) -> 1.1 | AD156: =IFERROR(INDEX('Assumptions '!$F107:$J107,,MATCH(AD$128,'Assumptions '!$F$106:$J$106,0)),0) -> 1.1 | AE156: =IFERROR(INDEX('Assumptions '!$F107:$J107,,MATCH(AE$128,'Assumptions '!$F$106:$J$106,0)),0) -> 1.2 | AF156: =IFERROR(INDEX('Assumptions '!$F107:$J107,,MATCH(AF$128,'Assumptions '!$F$106:$J$106,0)),0) -> 1.2 | AG156: =IFERROR(INDEX('Assumptions '!$F107:$J107,,MATCH(AG$128,'Assumptions '!$F$106:$J$106,0)),0) -> 1.2 | AH156: =IFERROR(INDEX('Assumptions '!$F107:$J107,,MATCH(AH$128,'Assumptions '!$F$106:$J$106,0)),0) -> 1.2 | AI156: =IFERROR(INDEX('Assumptions '!$F107:$J107,,MATCH(AI$128,'Assumptions '!$F$106:$J$106,0)),0) -> 1.2 | AJ156: =IFERROR(INDEX('Assumptions '!$F107:$J107,,MATCH(AJ$128,'Assumptions '!$F$106:$J$106,0)),0) -> 1.2 | AK156: =IFERROR(INDEX('Assumptions '!$F107:$J107,,MATCH(AK$128,'Assumptions '!$F$106:$J$106,0)),0) -> 1.2 | AL156: =IFERROR(INDEX('Assumptions '!$F107:$J107,,MATCH(AL$128,'Assumptions '!$F$106:$J$106,0)),0) -> 1.2 | AM156: =IFERROR(INDEX('Assumptions '!$F107:$J107,,MATCH(AM$128,'Assumptions '!$F$106:$J$106,0)),0) -> 1.2 | AN156: =IFERROR(INDEX('Assumptions '!$F107:$J107,,MATCH(AN$128,'Assumptions '!$F$106:$J$106,0)),0) -> 1.2 | AO156: =IFERROR(INDEX('Assumptions '!$F107:$J107,,MATCH(AO$128,'Assumptions '!$F$106:$J$106,0)),0) -> 1.2 | AP156: =IFERROR(INDEX('Assumptions '!$F107:$J107,,MATCH(AP$128,'Assumptions '!$F$106:$J$106,0)),0) -> 1.2 | AQ156: =IFERROR(INDEX('Assumptions '!$F107:$J107,,MATCH(AQ$128,'Assumptions '!$F$106:$J$106,0)),0) -> 1.2 | AR156: =IFERROR(INDEX('Assumptions '!$F107:$J107,,MATCH(AR$128,'Assumptions '!$F$106:$J$106,0)),0) -> 1.2 | AS156: =IFERROR(INDEX('Assumptions '!$F107:$J107,,MATCH(AS$128,'Assumptions '!$F$106:$J$106,0)),0) -> 1.2 | AT156: =IFERROR(INDEX('Assumptions '!$F107:$J107,,MATCH(AT$128,'Assumptions '!$F$106:$J$106,0)),0) -> 1.2 | AU156: =IFERROR(INDEX('Assumptions '!$F107:$J107,,MATCH(AU$128,'Assumptions '!$F$106:$J$106,0)),0) -> 1.2 | AV156: =IFERROR(INDEX('Assumptions '!$F107:$J107,,MATCH(AV$128,'Assumptions '!$F$106:$J$106,0)),0) -> 1.2 | AW156: =IFERROR(INDEX('Assumptions '!$F107:$J107,,MATCH(AW$128,'Assumptions '!$F$106:$J$106,0)),0) -> 1.2 | AX156: =IFERROR(INDEX('Assumptions '!$F107:$J107,,MATCH(AX$128,'Assumptions '!$F$106:$J$106,0)),0) -> 1.2 | AY156: =IFERROR(INDEX('Assumptions '!$F107:$J107,,MATCH(AY$128,'Assumptions '!$F$106:$J$106,0)),0) -> 1.2 | AZ156: =IFERROR(INDEX('Assumptions '!$F107:$J107,,MATCH(AZ$128,'Assumptions '!$F$106:$J$106,0)),0) -> 1.2 | BA156: =IFERROR(INDEX('Assumptions '!$F107:$J107,,MATCH(BA$128,'Assumptions '!$F$106:$J$106,0)),0) -> 1.2 | BB156: =IFERROR(INDEX('Assumptions '!$F107:$J107,,MATCH(BB$128,'Assumptions '!$F$106:$J$106,0)),0) -> 1.2 | BC156: =IFERROR(INDEX('Assumptions '!$F107:$J107,,MATCH(BC$128,'Assumptions '!$F$106:$J$106,0)),0) -> 1.3 | BD156: =IFERROR(INDEX('Assumptions '!$F107:$J107,,MATCH(BD$128,'Assumptions '!$F$106:$J$106,0)),0) -> 1.3 | BE156: =IFERROR(INDEX('Assumptions '!$F107:$J107,,MATCH(BE$128,'Assumptions '!$F$106:$J$106,0)),0) -> 1.3 | BF156: =IFERROR(INDEX('Assumptions '!$F107:$J107,,MATCH(BF$128,'Assumptions '!$F$106:$J$106,0)),0) -> 1.3 | BG156: =IFERROR(INDEX('Assumptions '!$F107:$J107,,MATCH(BG$128,'Assumptions '!$F$106:$J$106,0)),0) -> 1.3 | BH156: =IFERROR(INDEX('Assumptions '!$F107:$J107,,MATCH(BH$128,'Assumptions '!$F$106:$J$106,0)),0) -> 1.3 | BI156: =IFERROR(INDEX('Assumptions '!$F107:$J107,,MATCH(BI$128,'Assumptions '!$F$106:$J$106,0)),0) -> 1.3 | BJ156: =IFERROR(INDEX('Assumptions '!$F107:$J107,,MATCH(BJ$128,'Assumptions '!$F$106:$J$106,0)),0) -> 1.3 | BK156: =IFERROR(INDEX('Assumptions '!$F107:$J107,,MATCH(BK$128,'Assumptions '!$F$106:$J$106,0)),0) -> 1.3 | BL156: =IFERROR(INDEX('Assumptions '!$F107:$J107,,MATCH(BL$128,'Assumptions '!$F$106:$J$106,0)),0) -> 1.3 | BM156: =IFERROR(INDEX('Assumptions '!$F107:$J107,,MATCH(BM$128,'Assumptions '!$F$106:$J$106,0)),0) -> 1.3 | BN156: =IFERROR(INDEX('Assumptions '!$F107:$J107,,MATCH(BN$128,'Assumptions '!$F$106:$J$106,0)),0) -> 1.3
D157: ='Assumptions '!D108 -> Side product #2: Phone charging (one unit is one phone charge) | G157: =IFERROR(INDEX('Assumptions '!$F108:$J108,,MATCH(G$128,'Assumptions '!$F$106:$J$106,0)),0) -> 0.2 | H157: =IFERROR(INDEX('Assumptions '!$F108:$J108,,MATCH(H$128,'Assumptions '!$F$106:$J$106,0)),0) -> 0.2 | I157: =IFERROR(INDEX('Assumptions '!$F108:$J108,,MATCH(I$128,'Assumptions '!$F$106:$J$106,0)),0) -> 0.2 | J157: =IFERROR(INDEX('Assumptions '!$F108:$J108,,MATCH(J$128,'Assumptions '!$F$106:$J$106,0)),0) -> 0.2 | K157: =IFERROR(INDEX('Assumptions '!$F108:$J108,,MATCH(K$128,'Assumptions '!$F$106:$J$106,0)),0) -> 0.2 | L157: =IFERROR(INDEX('Assumptions '!$F108:$J108,,MATCH(L$128,'Assumptions '!$F$106:$J$106,0)),0) -> 0.2 | M157: =IFERROR(INDEX('Assumptions '!$F108:$J108,,MATCH(M$128,'Assumptions '!$F$106:$J$106,0)),0) -> 0.2 | N157: =IFERROR(INDEX('Assumptions '!$F108:$J108,,MATCH(N$128,'Assumptions '!$F$106:$J$106,0)),0) -> 0.2 | O157: =IFERROR(INDEX('Assumptions '!$F108:$J108,,MATCH(O$128,'Assumptions '!$F$106:$J$106,0)),0) -> 0.2 | P157: =IFERROR(INDEX('Assumptions '!$F108:$J108,,MATCH(P$128,'Assumptions '!$F$106:$J$106,0)),0) -> 0.2 | Q157: =IFERROR(INDEX('Assumptions '!$F108:$J108,,MATCH(Q$128,'Assumptions '!$F$106:$J$106,0)),0) -> 0.2 | R157: =IFERROR(INDEX('Assumptions '!$F108:$J108,,MATCH(R$128,'Assumptions '!$F$106:$J$106,0)),0) -> 0.2 | S157: =IFERROR(INDEX('Assumptions '!$F108:$J108,,MATCH(S$128,'Assumptions '!$F$106:$J$106,0)),0) -> 0.2 | T157: =IFERROR(INDEX('Assumptions '!$F108:$J108,,MATCH(T$128,'Assumptions '!$F$106:$J$106,0)),0) -> 0.2 | U157: =IFERROR(INDEX('Assumptions '!$F108:$J108,,MATCH(U$128,'Assumptions '!$F$106:$J$106,0)),0) -> 0.2 | V157: =IFERROR(INDEX('Assumptions '!$F108:$J108,,MATCH(V$128,'Assumptions '!$F$106:$J$106,0)),0) -> 0.2 | W157: =IFERROR(INDEX('Assumptions '!$F108:$J108,,MATCH(W$128,'Assumptions '!$F$106:$J$106,0)),0) -> 0.2 | X157: =IFERROR(INDEX('Assumptions '!$F108:$J108,,MATCH(X$128,'Assumptions '!$F$106:$J$106,0)),0) -> 0.2 | Y157: =IFERROR(INDEX('Assumptions '!$F108:$J108,,MATCH(Y$128,'Assumptions '!$F$106:$J$106,0)),0) -> 0.2 | Z157: =IFERROR(INDEX('Assumptions '!$F108:$J108,,MATCH(Z$128,'Assumptions '!$F$106:$J$106,0)),0) -> 0.2 | AA157: =IFERROR(INDEX('Assumptions '!$F108:$J108,,MATCH(AA$128,'Assumptions '!$F$106:$J$106,0)),0) -> 0.2 | AB157: =IFERROR(INDEX('Assumptions '!$F108:$J108,,MATCH(AB$128,'Assumptions '!$F$106:$J$106,0)),0) -> 0.2 | AC157: =IFERROR(INDEX('Assumptions '!$F108:$J108,,MATCH(AC$128,'Assumptions '!$F$106:$J$106,0)),0) -> 0.2 | AD157: =IFERROR(INDEX('Assumptions '!$F108:$J108,,MATCH(AD$128,'Assumptions '!$F$106:$J$106,0)),0) -> 0.2 | AE157: =IFERROR(INDEX('Assumptions '!$F108:$J108,,MATCH(AE$128,'Assumptions '!$F$106:$J$106,0)),0) -> 0.2 | AF157: =IFERROR(INDEX('Assumptions '!$F108:$J108,,MATCH(AF$128,'Assumptions '!$F$106:$J$106,0)),0) -> 0.2 | AG157: =IFERROR(INDEX('Assumptions '!$F108:$J108,,MATCH(AG$128,'Assumptions '!$F$106:$J$106,0)),0) -> 0.2 | AH157: =IFERROR(INDEX('Assumptions '!$F108:$J108,,MATCH(AH$128,'Assumptions '!$F$106:$J$106,0)),0) -> 0.2 | AI157: =IFERROR(INDEX('Assumptions '!$F108:$J108,,MATCH(AI$128,'Assumptions '!$F$106:$J$106,0)),0) -> 0.2 | AJ157: =IFERROR(INDEX('Assumptions '!$F108:$J108,,MATCH(AJ$128,'Assumptions '!$F$106:$J$106,0)),0) -> 0.2 | AK157: =IFERROR(INDEX('Assumptions '!$F108:$J108,,MATCH(AK$128,'Assumptions '!$F$106:$J$106,0)),0) -> 0.2 | AL157: =IFERROR(INDEX('Assumptions '!$F108:$J108,,MATCH(AL$128,'Assumptions '!$F$106:$J$106,0)),0) -> 0.2 | AM157: =IFERROR(INDEX('Assumptions '!$F108:$J108,,MATCH(AM$128,'Assumptions '!$F$106:$J$106,0)),0) -> 0.2 | AN157: =IFERROR(INDEX('Assumptions '!$F108:$J108,,MATCH(AN$128,'Assumptions '!$F$106:$J$106,0)),0) -> 0.2 | AO157: =IFERROR(INDEX('Assumptions '!$F108:$J108,,MATCH(AO$128,'Assumptions '!$F$106:$J$106,0)),0) -> 0.2 | AP157: =IFERROR(INDEX('Assumptions '!$F108:$J108,,MATCH(AP$128,'Assumptions '!$F$106:$J$106,0)),0) -> 0.2 | AQ157: =IFERROR(INDEX('Assumptions '!$F108:$J108,,MATCH(AQ$128,'Assumptions '!$F$106:$J$106,0)),0) -> 0.2 | AR157: =IFERROR(INDEX('Assumptions '!$F108:$J108,,MATCH(AR$128,'Assumptions '!$F$106:$J$106,0)),0) -> 0.2 | AS157: =IFERROR(INDEX('Assumptions '!$F108:$J108,,MATCH(AS$128,'Assumptions '!$F$106:$J$106,0)),0) -> 0.2 | AT157: =IFERROR(INDEX('Assumptions '!$F108:$J108,,MATCH(AT$128,'Assumptions '!$F$106:$J$106,0)),0) -> 0.2 | AU157: =IFERROR(INDEX('Assumptions '!$F108:$J108,,MATCH(AU$128,'Assumptions '!$F$106:$J$106,0)),0) -> 0.2 | AV157: =IFERROR(INDEX('Assumptions '!$F108:$J108,,MATCH(AV$128,'Assumptions '!$F$106:$J$106,0)),0) -> 0.2 | AW157: =IFERROR(INDEX('Assumptions '!$F108:$J108,,MATCH(AW$128,'Assumptions '!$F$106:$J$106,0)),0) -> 0.2 | AX157: =IFERROR(INDEX('Assumptions '!$F108:$J108,,MATCH(AX$128,'Assumptions '!$F$106:$J$106,0)),0) -> 0.2 | AY157: =IFERROR(INDEX('Assumptions '!$F108:$J108,,MATCH(AY$128,'Assumptions '!$F$106:$J$106,0)),0) -> 0.2 | AZ157: =IFERROR(INDEX('Assumptions '!$F108:$J108,,MATCH(AZ$128,'Assumptions '!$F$106:$J$106,0)),0) -> 0.2 | BA157: =IFERROR(INDEX('Assumptions '!$F108:$J108,,MATCH(BA$128,'Assumptions '!$F$106:$J$106,0)),0) -> 0.2 | BB157: =IFERROR(INDEX('Assumptions '!$F108:$J108,,MATCH(BB$128,'Assumptions '!$F$106:$J$106,0)),0) -> 0.2 | BC157: =IFERROR(INDEX('Assumptions '!$F108:$J108,,MATCH(BC$128,'Assumptions '!$F$106:$J$106,0)),0) -> 0.2 | BD157: =IFERROR(INDEX('Assumptions '!$F108:$J108,,MATCH(BD$128,'Assumptions '!$F$106:$J$106,0)),0) -> 0.2 | BE157: =IFERROR(INDEX('Assumptions '!$F108:$J108,,MATCH(BE$128,'Assumptions '!$F$106:$J$106,0)),0) -> 0.2 | BF157: =IFERROR(INDEX('Assumptions '!$F108:$J108,,MATCH(BF$128,'Assumptions '!$F$106:$J$106,0)),0) -> 0.2 | BG157: =IFERROR(INDEX('Assumptions '!$F108:$J108,,MATCH(BG$128,'Assumptions '!$F$106:$J$106,0)),0) -> 0.2 | BH157: =IFERROR(INDEX('Assumptions '!$F108:$J108,,MATCH(BH$128,'Assumptions '!$F$106:$J$106,0)),0) -> 0.2 | BI157: =IFERROR(INDEX('Assumptions '!$F108:$J108,,MATCH(BI$128,'Assumptions '!$F$106:$J$106,0)),0) -> 0.2 | BJ157: =IFERROR(INDEX('Assumptions '!$F108:$J108,,MATCH(BJ$128,'Assumptions '!$F$106:$J$106,0)),0) -> 0.2 | BK157: =IFERROR(INDEX('Assumptions '!$F108:$J108,,MATCH(BK$128,'Assumptions '!$F$106:$J$106,0)),0) -> 0.2 | BL157: =IFERROR(INDEX('Assumptions '!$F108:$J108,,MATCH(BL$128,'Assumptions '!$F$106:$J$106,0)),0) -> 0.2 | BM157: =IFERROR(INDEX('Assumptions '!$F108:$J108,,MATCH(BM$128,'Assumptions '!$F$106:$J$106,0)),0) -> 0.2 | BN157: =IFERROR(INDEX('Assumptions '!$F108:$J108,,MATCH(BN$128,'Assumptions '!$F$106:$J$106,0)),0) -> 0.2
B160: x | C160: Revenue schedules
D162: =D147 -> Fish trading (Push/Pull)
D163: =D148 -> Product #1: Main product, e.g., Octopus from Lamu | G163: =G137*G148 -> 11812.5 | H163: 11812.5 | I163: 11812.5 | J163: 7875 | K163: 7875 | L163: 7875 | M163: 7875 | N163: 7875 | O163: 7875 | P163: 7875 | Q163: 7087.5 | R163: 7087.5 | S163: 15597 | T163: 15597 | U163: 15597 | V163: 10398 | W163: 10398 | X163: 10398 | Y163: 10398 | Z163: 10398 | AA163: 10398 | AB163: 10398 | AC163: 9358.2 | AD163: 9358.2 | AE163: 14295 | AF163: 14295 | AG163: 14295 | AH163: 9530 | AI163: 9530 | AJ163: 9530 | AK163: 9530 | AL163: 9530 | AM163: =AM137*AM148 -> 9530 | AN163: 9530 | AO163: 8577 | AP163: 8577 | AQ163: 15720 | AR163: 15720 | AS163: 15720 | AT163: 10480 | AU163: 10480 | AV163: 10480 | AW163: 10480 | AX163: 10480 | AY163: 10480 | AZ163: 10480 | BA163: 9432 | BB163: 9432 | BC163: 17295 | BD163: 17295 | BE163: 17295 | BF163: 11530 | BG163: 11530 | BH163: 11530 | BI163: 11530 | BJ163: 11530 | BK163: 11530 | BL163: 11530 | BM163: 10377 | BN163: 10377
D164: =D149 -> Product #2: Add'l product, e.g., prawns from Lamu | G164: =G138*G149 -> 5516 | H164: 5516 | I164: 5516 | J164: 5516 | K164: 5516 | L164: 5516 | M164: 5516 | N164: 5516 | O164: 5516 | P164: 5516 | Q164: 5516 | R164: 5516 | S164: 6062 | T164: 6062 | U164: 6062 | V164: 6062 | W164: 6062 | X164: 6062 | Y164: 6062 | Z164: 6062 | AA164: 6062 | AB164: 6062 | AC164: 6062 | AD164: 6062 | AE164: 6671 | AF164: 6671 | AG164: 6671 | AH164: 6671 | AI164: 6671 | AJ164: 6671 | AK164: 6671 | AL164: 6671 | AM164: =AM138*AM149 -> 6671 | AN164: 6671 | AO164: 6671 | AP164: 6671 | AQ164: 7336 | AR164: 7336 | AS164: 7336 | AT164: 7336 | AU164: 7336 | AV164: 7336 | AW164: 7336 | AX164: 7336 | AY164: 7336 | AZ164: 7336 | BA164: 7336 | BB164: 7336 | BC164: 8071 | BD164: 8071 | BE164: 8071 | BF164: 8071 | BG164: 8071 | BH164: 8071 | BI164: 8071 | BJ164: 8071 | BK164: 8071 | BL164: 8071 | BM164: 8071 | BN164: 8071
G165: =SUM(G163:G164) -> 17328.5 | H165: 17328.5 | I165: 17328.5 | J165: 13391 | K165: 13391 | L165: 13391 | M165: 13391 | N165: 13391 | O165: 13391 | P165: 13391 | Q165: 12603.5 | R165: 12603.5 | S165: 21659 | T165: 21659 | U165: 21659 | V165: 16460 | W165: 16460 | X165: 16460 | Y165: 16460 | Z165: 16460 | AA165: 16460 | AB165: 16460 | AC165: 15420.2 | AD165: 15420.2 | AE165: 20966 | AF165: 20966 | AG165: 20966 | AH165: 16201 | AI165: 16201 | AJ165: 16201 | AK165: 16201 | AL165: 16201 | AM165: =SUM(AM163:AM164) -> 16201 | AN165: 16201 | AO165: 15248 | AP165: 15248 | AQ165: 23056 | AR165: 23056 | AS165: 23056 | AT165: 17816 | AU165: 17816 | AV165: 17816 | AW165: 17816 | AX165: 17816 | AY165: 17816 | AZ165: 17816 | BA165: 16768 | BB165: 16768 | BC165: 25366 | BD165: 25366 | BE165: 25366 | BF165: 19601 | BG165: 19601 | BH165: 19601 | BI165: 19601 | BJ165: 19601 | BK165: 19601 | BL165: 19601 | BM165: 18448 | BN165: 18448
D167: =D151 -> Cooling-as-a-service / Mobile cold chain services
D168: =D163 -> Product #1: Main product, e.g., Octopus from Lamu | G168: =G137*G152 -> 567 | H168: 567 | I168: 567 | J168: 378 | K168: 378 | L168: 378 | M168: 378 | N168: 378 | O168: 378 | P168: 378 | Q168: 340.2 | R168: 340.2 | S168: 623.88 | T168: 623.88 | U168: 623.88 | V168: 415.92 | W168: 415.92 | X168: 415.92 | Y168: 415.92 | Z168: 415.92 | AA168: 415.92 | AB168: 415.92 | AC168: 374.328 | AD168: 374.328 | AE168: 686.16 | AF168: 686.16 | AG168: 686.16 | AH168: 457.44 | AI168: 457.44 | AJ168: 457.44 | AK168: 457.44 | AL168: 457.44 | AM168: =AM137*AM152 -> 457.44 | AN168: 457.44 | AO168: 411.696 | AP168: 411.696 | AQ168: 754.56 | AR168: 754.56 | AS168: 754.56 | AT168: 503.04 | AU168: 503.04 | AV168: 503.04 | AW168: 503.04 | AX168: 503.04 | AY168: 503.04 | AZ168: 503.04 | BA168: 452.736 | BB168: 452.736 | BC168: 830.16 | BD168: 830.16 | BE168: 830.16 | BF168: 553.44 | BG168: 553.44 | BH168: 553.44 | BI168: 553.44 | BJ168: 553.44 | BK168: 553.44 | BL168: 553.44 | BM168: 498.096 | BN168: 498.096
D169: =D164 -> Product #2: Add'l product, e.g., prawns from Lamu | G169: =G138*G153 -> 126.08 | H169: 126.08 | I169: 126.08 | J169: 126.08 | K169: 126.08 | L169: 126.08 | M169: 126.08 | N169: 126.08 | O169: 126.08 | P169: 126.08 | Q169: 126.08 | R169: 126.08 | S169: 138.56 | T169: 138.56 | U169: 138.56 | V169: 138.56 | W169: 138.56 | X169: 138.56 | Y169: 138.56 | Z169: 138.56 | AA169: 138.56 | AB169: 138.56 | AC169: 138.56 | AD169: 138.56 | AE169: 152.48 | AF169: 152.48 | AG169: 152.48 | AH169: 152.48 | AI169: 152.48 | AJ169: 152.48 | AK169: 152.48 | AL169: 152.48 | AM169: =AM138*AM153 -> 152.48 | AN169: 152.48 | AO169: 152.48 | AP169: 152.48 | AQ169: 167.68 | AR169: 167.68 | AS169: 167.68 | AT169: 167.68 | AU169: 167.68 | AV169: 167.68 | AW169: 167.68 | AX169: 167.68 | AY169: 167.68 | AZ169: 167.68 | BA169: 167.68 | BB169: 167.68 | BC169: 184.48 | BD169: 184.48 | BE169: 184.48 | BF169: 184.48 | BG169: 184.48 | BH169: 184.48 | BI169: 184.48 | BJ169: 184.48 | BK169: 184.48 | BL169: 184.48 | BM169: 184.48 | BN169: 184.48
G170: =SUM(G168:G169) -> 693.08 | H170: 693.08 | I170: 693.08 | J170: 504.08 | K170: 504.08 | L170: 504.08 | M170: 504.08 | N170: 504.08 | O170: 504.08 | P170: 504.08 | Q170: 466.28 | R170: 466.28 | S170: 762.44 | T170: 762.44 | U170: 762.44 | V170: 554.48 | W170: 554.48 | X170: 554.48 | Y170: 554.48 | Z170: 554.48 | AA170: 554.48 | AB170: 554.48 | AC170: 512.888 | AD170: 512.888 | AE170: 838.64 | AF170: 838.64 | AG170: 838.64 | AH170: 609.92 | AI170: 609.92 | AJ170: 609.92 | AK170: 609.92 | AL170: 609.92 | AM170: =SUM(AM168:AM169) -> 609.92 | AN170: 609.92 | AO170: 564.176 | AP170: 564.176 | AQ170: 922.24 | AR170: 922.24 | AS170: 922.24 | AT170: 670.72 | AU170: 670.72 | AV170: 670.72 | AW170: 670.72 | AX170: 670.72 | AY170: 670.72 | AZ170: 670.72 | BA170: 620.416 | BB170: 620.416 | BC170: 1014.64 | BD170: 1014.64 | BE170: 1014.64 | BF170: 737.92 | BG170: 737.92 | BH170: 737.92 | BI170: 737.92 | BJ170: 737.92 | BK170: 737.92 | BL170: 737.92 | BM170: 682.576 | BN170: 682.576
D172: Overview: Revenues by business model
D173: =D162 -> Fish trading (Push/Pull) | G173: =G165 -> 17328.5 | H173: 17328.5 | I173: 17328.5 | J173: 13391 | K173: 13391 | L173: 13391 | M173: 13391 | N173: 13391 | O173: 13391 | P173: 13391 | Q173: 12603.5 | R173: 12603.5 | S173: 21659 | T173: 21659 | U173: 21659 | V173: 16460 | W173: 16460 | X173: 16460 | Y173: 16460 | Z173: 16460 | AA173: 16460 | AB173: 16460 | AC173: 15420.2 | AD173: 15420.2 | AE173: 20966 | AF173: 20966 | AG173: 20966 | AH173: 16201 | AI173: 16201 | AJ173: 16201 | AK173: 16201 | AL173: 16201 | AM173: =AM165 -> 16201 | AN173: 16201 | AO173: 15248 | AP173: 15248 | AQ173: 23056 | AR173: 23056 | AS173: 23056 | AT173: 17816 | AU173: 17816 | AV173: 17816 | AW173: 17816 | AX173: 17816 | AY173: 17816 | AZ173: 17816 | BA173: 16768 | BB173: 16768 | BC173: 25366 | BD173: 25366 | BE173: 25366 | BF173: 19601 | BG173: 19601 | BH173: 19601 | BI173: 19601 | BJ173: 19601 | BK173: 19601 | BL173: 19601 | BM173: 18448 | BN173: 18448
D174: =D167 -> Cooling-as-a-service / Mobile cold chain services | G174: =G170 -> 693.08 | H174: 693.08 | I174: 693.08 | J174: 504.08 | K174: 504.08 | L174: 504.08 | M174: 504.08 | N174: 504.08 | O174: 504.08 | P174: 504.08 | Q174: 466.28 | R174: 466.28 | S174: 762.44 | T174: 762.44 | U174: 762.44 | V174: 554.48 | W174: 554.48 | X174: 554.48 | Y174: 554.48 | Z174: 554.48 | AA174: 554.48 | AB174: 554.48 | AC174: 512.888 | AD174: 512.888 | AE174: 838.64 | AF174: 838.64 | AG174: 838.64 | AH174: 609.92 | AI174: 609.92 | AJ174: 609.92 | AK174: 609.92 | AL174: 609.92 | AM174: =AM170 -> 609.92 | AN174: 609.92 | AO174: 564.176 | AP174: 564.176 | AQ174: 922.24 | AR174: 922.24 | AS174: 922.24 | AT174: 670.72 | AU174: 670.72 | AV174: 670.72 | AW174: 670.72 | AX174: 670.72 | AY174: 670.72 | AZ174: 670.72 | BA174: 620.416 | BB174: 620.416 | BC174: 1014.64 | BD174: 1014.64 | BE174: 1014.64 | BF174: 737.92 | BG174: 737.92 | BH174: 737.92 | BI174: 737.92 | BJ174: 737.92 | BK174: 737.92 | BL174: 737.92 | BM174: 682.576 | BN174: 682.576
D175: ="Selected business model: "&F$130 -> Selected business model: Fish trading (Push/Pull) | G175: =INDEX(G173:G174,MATCH($F$130,$D173:$D174,0)) -> 17328.5 | H175: 17328.5 | I175: 17328.5 | J175: 13391 | K175: 13391 | L175: 13391 | M175: 13391 | N175: 13391 | O175: 13391 | P175: 13391 | Q175: 12603.5 | R175: 12603.5 | S175: 21659 | T175: 21659 | U175: 21659 | V175: 16460 | W175: 16460 | X175: 16460 | Y175: 16460 | Z175: 16460 | AA175: 16460 | AB175: 16460 | AC175: 15420.2 | AD175: 15420.2 | AE175: 20966 | AF175: 20966 | AG175: 20966 | AH175: 16201 | AI175: 16201 | AJ175: 16201 | AK175: 16201 | AL175: 16201 | AM175: =INDEX(AM173:AM174,MATCH($F$130,$D173:$D174,0)) -> 16201 | AN175: 16201 | AO175: 15248 | AP175: 15248 | AQ175: 23056 | AR175: 23056 | AS175: 23056 | AT175: 17816 | AU175: 17816 | AV175: 17816 | AW175: 17816 | AX175: 17816 | AY175: 17816 | AZ175: 17816 | BA175: 16768 | BB175: 16768 | BC175: 25366 | BD175: 25366 | BE175: 25366 | BF175: 19601 | BG175: 19601 | BH175: 19601 | BI175: 19601 | BJ175: 19601 | BK175: 19601 | BL175: 19601 | BM175: 18448 | BN175: 18448
D177: Other revenue streams
D178: =D156 -> Side product #1: Ice sales (one unit is one 5kg bucket) | G178: =G141*G156 -> 315 | H178: 315 | I178: 315 | J178: 315 | K178: 315 | L178: 315 | M178: 315 | N178: 315 | O178: 315 | P178: 315 | Q178: 315 | R178: 315 | S178: 364.1 | T178: 364.1 | U178: 364.1 | V178: 364.1 | W178: 364.1 | X178: 364.1 | Y178: 364.1 | Z178: 364.1 | AA178: 364.1 | AB178: 364.1 | AC178: 364.1 | AD178: 364.1 | AE178: 416.4 | AF178: 416.4 | AG178: 416.4 | AH178: 416.4 | AI178: 416.4 | AJ178: 416.4 | AK178: 416.4 | AL178: 416.4 | AM178: =AM141*AM156 -> 416.4 | AN178: 416.4 | AO178: 416.4 | AP178: 416.4 | AQ178: 438 | AR178: 438 | AS178: 438 | AT178: 438 | AU178: 438 | AV178: 438 | AW178: 438 | AX178: 438 | AY178: 438 | AZ178: 438 | BA178: 438 | BB178: 438 | BC178: 497.9 | BD178: 497.9 | BE178: 497.9 | BF178: 497.9 | BG178: 497.9 | BH178: 497.9 | BI178: 497.9 | BJ178: 497.9 | BK178: 497.9 | BL178: 497.9 | BM178: 497.9 | BN178: 497.9
D179: =D157 -> Side product #2: Phone charging (one unit is one phone charge) | G179: =G142*G157 -> 15.8 | H179: 15.8 | I179: 15.8 | J179: 15.8 | K179: 15.8 | L179: 15.8 | M179: 15.8 | N179: 15.8 | O179: 15.8 | P179: 15.8 | Q179: 15.8 | R179: 15.8 | S179: 16.6 | T179: 16.6 | U179: 16.6 | V179: 16.6 | W179: 16.6 | X179: 16.6 | Y179: 16.6 | Z179: 16.6 | AA179: 16.6 | AB179: 16.6 | AC179: 16.6 | AD179: 16.6 | AE179: 17.4 | AF179: 17.4 | AG179: 17.4 | AH179: 17.4 | AI179: 17.4 | AJ179: 17.4 | AK179: 17.4 | AL179: 17.4 | AM179: =AM142*AM157 -> 17.4 | AN179: 17.4 | AO179: 17.4 | AP179: 17.4 | AQ179: 18.2 | AR179: 18.2 | AS179: 18.2 | AT179: 18.2 | AU179: 18.2 | AV179: 18.2 | AW179: 18.2 | AX179: 18.2 | AY179: 18.2 | AZ179: 18.2 | BA179: 18.2 | BB179: 18.2 | BC179: 19.2 | BD179: 19.2 | BE179: 19.2 | BF179: 19.2 | BG179: 19.2 | BH179: 19.2 | BI179: 19.2 | BJ179: 19.2 | BK179: 19.2 | BL179: 19.2 | BM179: 19.2 | BN179: 19.2
G180: =SUM(G178:G179) -> 330.8 | H180: 330.8 | I180: 330.8 | J180: 330.8 | K180: 330.8 | L180: 330.8 | M180: 330.8 | N180: 330.8 | O180: 330.8 | P180: 330.8 | Q180: 330.8 | R180: 330.8 | S180: 380.7 | T180: 380.7 | U180: 380.7 | V180: 380.7 | W180: 380.7 | X180: 380.7 | Y180: 380.7 | Z180: 380.7 | AA180: 380.7 | AB180: 380.7 | AC180: 380.7 | AD180: 380.7 | AE180: 433.8 | AF180: 433.8 | AG180: 433.8 | AH180: 433.8 | AI180: 433.8 | AJ180: 433.8 | AK180: 433.8 | AL180: 433.8 | AM180: =SUM(AM178:AM179) -> 433.8 | AN180: 433.8 | AO180: 433.8 | AP180: 433.8 | AQ180: 456.2 | AR180: 456.2 | AS180: 456.2 | AT180: 456.2 | AU180: 456.2 | AV180: 456.2 | AW180: 456.2 | AX180: 456.2 | AY180: 456.2 | AZ180: 456.2 | BA180: 456.2 | BB180: 456.2 | BC180: 517.1 | BD180: 517.1 | BE180: 517.1 | BF180: 517.1 | BG180: 517.1 | BH180: 517.1 | BI180: 517.1 | BJ180: 517.1 | BK180: 517.1 | BL180: 517.1 | BM180: 517.1 | BN180: 517.1
B183: x | C183: Direct costs per unit
D185: =D162 -> Fish trading (Push/Pull)
D186: =D163 -> Product #1: Main product, e.g., Octopus from Lamu | G186: =IFERROR(INDEX('Assumptions '!$F71:$J71,,MATCH(G$128,'Assumptions '!$F$70:$J$70,0)),0) -> 3 | H186: =IFERROR(INDEX('Assumptions '!$F71:$J71,,MATCH(H$128,'Assumptions '!$F$70:$J$70,0)),0) -> 3 | I186: =IFERROR(INDEX('Assumptions '!$F71:$J71,,MATCH(I$128,'Assumptions '!$F$70:$J$70,0)),0) -> 3 | J186: =IFERROR(INDEX('Assumptions '!$F71:$J71,,MATCH(J$128,'Assumptions '!$F$70:$J$70,0)),0) -> 3 | K186: =IFERROR(INDEX('Assumptions '!$F71:$J71,,MATCH(K$128,'Assumptions '!$F$70:$J$70,0)),0) -> 3 | L186: =IFERROR(INDEX('Assumptions '!$F71:$J71,,MATCH(L$128,'Assumptions '!$F$70:$J$70,0)),0) -> 3 | M186: =IFERROR(INDEX('Assumptions '!$F71:$J71,,MATCH(M$128,'Assumptions '!$F$70:$J$70,0)),0) -> 3 | N186: =IFERROR(INDEX('Assumptions '!$F71:$J71,,MATCH(N$128,'Assumptions '!$F$70:$J$70,0)),0) -> 3 | O186: =IFERROR(INDEX('Assumptions '!$F71:$J71,,MATCH(O$128,'Assumptions '!$F$70:$J$70,0)),0) -> 3 | P186: =IFERROR(INDEX('Assumptions '!$F71:$J71,,MATCH(P$128,'Assumptions '!$F$70:$J$70,0)),0) -> 3 | Q186: =IFERROR(INDEX('Assumptions '!$F71:$J71,,MATCH(Q$128,'Assumptions '!$F$70:$J$70,0)),0) -> 3 | R186: =IFERROR(INDEX('Assumptions '!$F71:$J71,,MATCH(R$128,'Assumptions '!$F$70:$J$70,0)),0) -> 3 | S186: =IFERROR(INDEX('Assumptions '!$F71:$J71,,MATCH(S$128,'Assumptions '!$F$70:$J$70,0)),0) -> 3.6 | T186: =IFERROR(INDEX('Assumptions '!$F71:$J71,,MATCH(T$128,'Assumptions '!$F$70:$J$70,0)),0) -> 3.6 | U186: =IFERROR(INDEX('Assumptions '!$F71:$J71,,MATCH(U$128,'Assumptions '!$F$70:$J$70,0)),0) -> 3.6 | V186: =IFERROR(INDEX('Assumptions '!$F71:$J71,,MATCH(V$128,'Assumptions '!$F$70:$J$70,0)),0) -> 3.6 | W186: =IFERROR(INDEX('Assumptions '!$F71:$J71,,MATCH(W$128,'Assumptions '!$F$70:$J$70,0)),0) -> 3.6 | X186: =IFERROR(INDEX('Assumptions '!$F71:$J71,,MATCH(X$128,'Assumptions '!$F$70:$J$70,0)),0) -> 3.6 | Y186: =IFERROR(INDEX('Assumptions '!$F71:$J71,,MATCH(Y$128,'Assumptions '!$F$70:$J$70,0)),0) -> 3.6 | Z186: =IFERROR(INDEX('Assumptions '!$F71:$J71,,MATCH(Z$128,'Assumptions '!$F$70:$J$70,0)),0) -> 3.6 | AA186: =IFERROR(INDEX('Assumptions '!$F71:$J71,,MATCH(AA$128,'Assumptions '!$F$70:$J$70,0)),0) -> 3.6 | AB186: =IFERROR(INDEX('Assumptions '!$F71:$J71,,MATCH(AB$128,'Assumptions '!$F$70:$J$70,0)),0) -> 3.6 | AC186: =IFERROR(INDEX('Assumptions '!$F71:$J71,,MATCH(AC$128,'Assumptions '!$F$70:$J$70,0)),0) -> 3.6 | AD186: =IFERROR(INDEX('Assumptions '!$F71:$J71,,MATCH(AD$128,'Assumptions '!$F$70:$J$70,0)),0) -> 3.6 | AE186: =IFERROR(INDEX('Assumptions '!$F71:$J71,,MATCH(AE$128,'Assumptions '!$F$70:$J$70,0)),0) -> 3 | AF186: =IFERROR(INDEX('Assumptions '!$F71:$J71,,MATCH(AF$128,'Assumptions '!$F$70:$J$70,0)),0) -> 3 | AG186: =IFERROR(INDEX('Assumptions '!$F71:$J71,,MATCH(AG$128,'Assumptions '!$F$70:$J$70,0)),0) -> 3 | AH186: =IFERROR(INDEX('Assumptions '!$F71:$J71,,MATCH(AH$128,'Assumptions '!$F$70:$J$70,0)),0) -> 3 | AI186: =IFERROR(INDEX('Assumptions '!$F71:$J71,,MATCH(AI$128,'Assumptions '!$F$70:$J$70,0)),0) -> 3 | AJ186: =IFERROR(INDEX('Assumptions '!$F71:$J71,,MATCH(AJ$128,'Assumptions '!$F$70:$J$70,0)),0) -> 3 | AK186: =IFERROR(INDEX('Assumptions '!$F71:$J71,,MATCH(AK$128,'Assumptions '!$F$70:$J$70,0)),0) -> 3 | AL186: =IFERROR(INDEX('Assumptions '!$F71:$J71,,MATCH(AL$128,'Assumptions '!$F$70:$J$70,0)),0) -> 3 | AM186: =IFERROR(INDEX('Assumptions '!$F71:$J71,,MATCH(AM$128,'Assumptions '!$F$70:$J$70,0)),0) -> 3 | AN186: =IFERROR(INDEX('Assumptions '!$F71:$J71,,MATCH(AN$128,'Assumptions '!$F$70:$J$70,0)),0) -> 3 | AO186: =IFERROR(INDEX('Assumptions '!$F71:$J71,,MATCH(AO$128,'Assumptions '!$F$70:$J$70,0)),0) -> 3 | AP186: =IFERROR(INDEX('Assumptions '!$F71:$J71,,MATCH(AP$128,'Assumptions '!$F$70:$J$70,0)),0) -> 3 | AQ186: =IFERROR(INDEX('Assumptions '!$F71:$J71,,MATCH(AQ$128,'Assumptions '!$F$70:$J$70,0)),0) -> 3 | AR186: =IFERROR(INDEX('Assumptions '!$F71:$J71,,MATCH(AR$128,'Assumptions '!$F$70:$J$70,0)),0) -> 3 | AS186: =IFERROR(INDEX('Assumptions '!$F71:$J71,,MATCH(AS$128,'Assumptions '!$F$70:$J$70,0)),0) -> 3 | AT186: =IFERROR(INDEX('Assumptions '!$F71:$J71,,MATCH(AT$128,'Assumptions '!$F$70:$J$70,0)),0) -> 3 | AU186: =IFERROR(INDEX('Assumptions '!$F71:$J71,,MATCH(AU$128,'Assumptions '!$F$70:$J$70,0)),0) -> 3 | AV186: =IFERROR(INDEX('Assumptions '!$F71:$J71,,MATCH(AV$128,'Assumptions '!$F$70:$J$70,0)),0) -> 3 | AW186: =IFERROR(INDEX('Assumptions '!$F71:$J71,,MATCH(AW$128,'Assumptions '!$F$70:$J$70,0)),0) -> 3 | AX186: =IFERROR(INDEX('Assumptions '!$F71:$J71,,MATCH(AX$128,'Assumptions '!$F$70:$J$70,0)),0) -> 3 | AY186: =IFERROR(INDEX('Assumptions '!$F71:$J71,,MATCH(AY$128,'Assumptions '!$F$70:$J$70,0)),0) -> 3 | AZ186: =IFERROR(INDEX('Assumptions '!$F71:$J71,,MATCH(AZ$128,'Assumptions '!$F$70:$J$70,0)),0) -> 3 | BA186: =IFERROR(INDEX('Assumptions '!$F71:$J71,,MATCH(BA$128,'Assumptions '!$F$70:$J$70,0)),0) -> 3 | BB186: =IFERROR(INDEX('Assumptions '!$F71:$J71,,MATCH(BB$128,'Assumptions '!$F$70:$J$70,0)),0) -> 3 | BC186: =IFERROR(INDEX('Assumptions '!$F71:$J71,,MATCH(BC$128,'Assumptions '!$F$70:$J$70,0)),0) -> 3 | BD186: =IFERROR(INDEX('Assumptions '!$F71:$J71,,MATCH(BD$128,'Assumptions '!$F$70:$J$70,0)),0) -> 3 | BE186: =IFERROR(INDEX('Assumptions '!$F71:$J71,,MATCH(BE$128,'Assumptions '!$F$70:$J$70,0)),0) -> 3 | BF186: =IFERROR(INDEX('Assumptions '!$F71:$J71,,MATCH(BF$128,'Assumptions '!$F$70:$J$70,0)),0) -> 3 | BG186: =IFERROR(INDEX('Assumptions '!$F71:$J71,,MATCH(BG$128,'Assumptions '!$F$70:$J$70,0)),0) -> 3 | BH186: =IFERROR(INDEX('Assumptions '!$F71:$J71,,MATCH(BH$128,'Assumptions '!$F$70:$J$70,0)),0) -> 3 | BI186: =IFERROR(INDEX('Assumptions '!$F71:$J71,,MATCH(BI$128,'Assumptions '!$F$70:$J$70,0)),0) -> 3 | BJ186: =IFERROR(INDEX('Assumptions '!$F71:$J71,,MATCH(BJ$128,'Assumptions '!$F$70:$J$70,0)),0) -> 3 | BK186: =IFERROR(INDEX('Assumptions '!$F71:$J71,,MATCH(BK$128,'Assumptions '!$F$70:$J$70,0)),0) -> 3 | BL186: =IFERROR(INDEX('Assumptions '!$F71:$J71,,MATCH(BL$128,'Assumptions '!$F$70:$J$70,0)),0) -> 3 | BM186: =IFERROR(INDEX('Assumptions '!$F71:$J71,,MATCH(BM$128,'Assumptions '!$F$70:$J$70,0)),0) -> 3 | BN186: =IFERROR(INDEX('Assumptions '!$F71:$J71,,MATCH(BN$128,'Assumptions '!$F$70:$J$70,0)),0) -> 3
D187: =D164 -> Product #2: Add'l product, e.g., prawns from Lamu | G187: =IFERROR(INDEX('Assumptions '!$F72:$J72,,MATCH(G$128,'Assumptions '!$F$70:$J$70,0)),0) -> 4.2 | H187: =IFERROR(INDEX('Assumptions '!$F72:$J72,,MATCH(H$128,'Assumptions '!$F$70:$J$70,0)),0) -> 4.2 | I187: =IFERROR(INDEX('Assumptions '!$F72:$J72,,MATCH(I$128,'Assumptions '!$F$70:$J$70,0)),0) -> 4.2 | J187: =IFERROR(INDEX('Assumptions '!$F72:$J72,,MATCH(J$128,'Assumptions '!$F$70:$J$70,0)),0) -> 4.2 | K187: =IFERROR(INDEX('Assumptions '!$F72:$J72,,MATCH(K$128,'Assumptions '!$F$70:$J$70,0)),0) -> 4.2 | L187: =IFERROR(INDEX('Assumptions '!$F72:$J72,,MATCH(L$128,'Assumptions '!$F$70:$J$70,0)),0) -> 4.2 | M187: =IFERROR(INDEX('Assumptions '!$F72:$J72,,MATCH(M$128,'Assumptions '!$F$70:$J$70,0)),0) -> 4.2 | N187: =IFERROR(INDEX('Assumptions '!$F72:$J72,,MATCH(N$128,'Assumptions '!$F$70:$J$70,0)),0) -> 4.2 | O187: =IFERROR(INDEX('Assumptions '!$F72:$J72,,MATCH(O$128,'Assumptions '!$F$70:$J$70,0)),0) -> 4.2 | P187: =IFERROR(INDEX('Assumptions '!$F72:$J72,,MATCH(P$128,'Assumptions '!$F$70:$J$70,0)),0) -> 4.2 | Q187: =IFERROR(INDEX('Assumptions '!$F72:$J72,,MATCH(Q$128,'Assumptions '!$F$70:$J$70,0)),0) -> 4.2 | R187: =IFERROR(INDEX('Assumptions '!$F72:$J72,,MATCH(R$128,'Assumptions '!$F$70:$J$70,0)),0) -> 4.2 | S187: =IFERROR(INDEX('Assumptions '!$F72:$J72,,MATCH(S$128,'Assumptions '!$F$70:$J$70,0)),0) -> 4.2 | T187: =IFERROR(INDEX('Assumptions '!$F72:$J72,,MATCH(T$128,'Assumptions '!$F$70:$J$70,0)),0) -> 4.2 | U187: =IFERROR(INDEX('Assumptions '!$F72:$J72,,MATCH(U$128,'Assumptions '!$F$70:$J$70,0)),0) -> 4.2 | V187: =IFERROR(INDEX('Assumptions '!$F72:$J72,,MATCH(V$128,'Assumptions '!$F$70:$J$70,0)),0) -> 4.2 | W187: =IFERROR(INDEX('Assumptions '!$F72:$J72,,MATCH(W$128,'Assumptions '!$F$70:$J$70,0)),0) -> 4.2 | X187: =IFERROR(INDEX('Assumptions '!$F72:$J72,,MATCH(X$128,'Assumptions '!$F$70:$J$70,0)),0) -> 4.2 | Y187: =IFERROR(INDEX('Assumptions '!$F72:$J72,,MATCH(Y$128,'Assumptions '!$F$70:$J$70,0)),0) -> 4.2 | Z187: =IFERROR(INDEX('Assumptions '!$F72:$J72,,MATCH(Z$128,'Assumptions '!$F$70:$J$70,0)),0) -> 4.2 | AA187: =IFERROR(INDEX('Assumptions '!$F72:$J72,,MATCH(AA$128,'Assumptions '!$F$70:$J$70,0)),0) -> 4.2 | AB187: =IFERROR(INDEX('Assumptions '!$F72:$J72,,MATCH(AB$128,'Assumptions '!$F$70:$J$70,0)),0) -> 4.2 | AC187: =IFERROR(INDEX('Assumptions '!$F72:$J72,,MATCH(AC$128,'Assumptions '!$F$70:$J$70,0)),0) -> 4.2 | AD187: =IFERROR(INDEX('Assumptions '!$F72:$J72,,MATCH(AD$128,'Assumptions '!$F$70:$J$70,0)),0) -> 4.2 | AE187: =IFERROR(INDEX('Assumptions '!$F72:$J72,,MATCH(AE$128,'Assumptions '!$F$70:$J$70,0)),0) -> 4.2 | AF187: =IFERROR(INDEX('Assumptions '!$F72:$J72,,MATCH(AF$128,'Assumptions '!$F$70:$J$70,0)),0) -> 4.2 | AG187: =IFERROR(INDEX('Assumptions '!$F72:$J72,,MATCH(AG$128,'Assumptions '!$F$70:$J$70,0)),0) -> 4.2 | AH187: =IFERROR(INDEX('Assumptions '!$F72:$J72,,MATCH(AH$128,'Assumptions '!$F$70:$J$70,0)),0) -> 4.2 | AI187: =IFERROR(INDEX('Assumptions '!$F72:$J72,,MATCH(AI$128,'Assumptions '!$F$70:$J$70,0)),0) -> 4.2 | AJ187: =IFERROR(INDEX('Assumptions '!$F72:$J72,,MATCH(AJ$128,'Assumptions '!$F$70:$J$70,0)),0) -> 4.2 | AK187: =IFERROR(INDEX('Assumptions '!$F72:$J72,,MATCH(AK$128,'Assumptions '!$F$70:$J$70,0)),0) -> 4.2 | AL187: =IFERROR(INDEX('Assumptions '!$F72:$J72,,MATCH(AL$128,'Assumptions '!$F$70:$J$70,0)),0) -> 4.2 | AM187: =IFERROR(INDEX('Assumptions '!$F72:$J72,,MATCH(AM$128,'Assumptions '!$F$70:$J$70,0)),0) -> 4.2 | AN187: =IFERROR(INDEX('Assumptions '!$F72:$J72,,MATCH(AN$128,'Assumptions '!$F$70:$J$70,0)),0) -> 4.2 | AO187: =IFERROR(INDEX('Assumptions '!$F72:$J72,,MATCH(AO$128,'Assumptions '!$F$70:$J$70,0)),0) -> 4.2 | AP187: =IFERROR(INDEX('Assumptions '!$F72:$J72,,MATCH(AP$128,'Assumptions '!$F$70:$J$70,0)),0) -> 4.2 | AQ187: =IFERROR(INDEX('Assumptions '!$F72:$J72,,MATCH(AQ$128,'Assumptions '!$F$70:$J$70,0)),0) -> 4.2 | AR187: =IFERROR(INDEX('Assumptions '!$F72:$J72,,MATCH(AR$128,'Assumptions '!$F$70:$J$70,0)),0) -> 4.2 | AS187: =IFERROR(INDEX('Assumptions '!$F72:$J72,,MATCH(AS$128,'Assumptions '!$F$70:$J$70,0)),0) -> 4.2 | AT187: =IFERROR(INDEX('Assumptions '!$F72:$J72,,MATCH(AT$128,'Assumptions '!$F$70:$J$70,0)),0) -> 4.2 | AU187: =IFERROR(INDEX('Assumptions '!$F72:$J72,,MATCH(AU$128,'Assumptions '!$F$70:$J$70,0)),0) -> 4.2 | AV187: =IFERROR(INDEX('Assumptions '!$F72:$J72,,MATCH(AV$128,'Assumptions '!$F$70:$J$70,0)),0) -> 4.2 | AW187: =IFERROR(INDEX('Assumptions '!$F72:$J72,,MATCH(AW$128,'Assumptions '!$F$70:$J$70,0)),0) -> 4.2 | AX187: =IFERROR(INDEX('Assumptions '!$F72:$J72,,MATCH(AX$128,'Assumptions '!$F$70:$J$70,0)),0) -> 4.2 | AY187: =IFERROR(INDEX('Assumptions '!$F72:$J72,,MATCH(AY$128,'Assumptions '!$F$70:$J$70,0)),0) -> 4.2 | AZ187: =IFERROR(INDEX('Assumptions '!$F72:$J72,,MATCH(AZ$128,'Assumptions '!$F$70:$J$70,0)),0) -> 4.2 | BA187: =IFERROR(INDEX('Assumptions '!$F72:$J72,,MATCH(BA$128,'Assumptions '!$F$70:$J$70,0)),0) -> 4.2 | BB187: =IFERROR(INDEX('Assumptions '!$F72:$J72,,MATCH(BB$128,'Assumptions '!$F$70:$J$70,0)),0) -> 4.2 | BC187: =IFERROR(INDEX('Assumptions '!$F72:$J72,,MATCH(BC$128,'Assumptions '!$F$70:$J$70,0)),0) -> 4.2 | BD187: =IFERROR(INDEX('Assumptions '!$F72:$J72,,MATCH(BD$128,'Assumptions '!$F$70:$J$70,0)),0) -> 4.2 | BE187: =IFERROR(INDEX('Assumptions '!$F72:$J72,,MATCH(BE$128,'Assumptions '!$F$70:$J$70,0)),0) -> 4.2 | BF187: =IFERROR(INDEX('Assumptions '!$F72:$J72,,MATCH(BF$128,'Assumptions '!$F$70:$J$70,0)),0) -> 4.2 | BG187: =IFERROR(INDEX('Assumptions '!$F72:$J72,,MATCH(BG$128,'Assumptions '!$F$70:$J$70,0)),0) -> 4.2 | BH187: =IFERROR(INDEX('Assumptions '!$F72:$J72,,MATCH(BH$128,'Assumptions '!$F$70:$J$70,0)),0) -> 4.2 | BI187: =IFERROR(INDEX('Assumptions '!$F72:$J72,,MATCH(BI$128,'Assumptions '!$F$70:$J$70,0)),0) -> 4.2 | BJ187: =IFERROR(INDEX('Assumptions '!$F72:$J72,,MATCH(BJ$128,'Assumptions '!$F$70:$J$70,0)),0) -> 4.2 | BK187: =IFERROR(INDEX('Assumptions '!$F72:$J72,,MATCH(BK$128,'Assumptions '!$F$70:$J$70,0)),0) -> 4.2 | BL187: =IFERROR(INDEX('Assumptions '!$F72:$J72,,MATCH(BL$128,'Assumptions '!$F$70:$J$70,0)),0) -> 4.2 | BM187: =IFERROR(INDEX('Assumptions '!$F72:$J72,,MATCH(BM$128,'Assumptions '!$F$70:$J$70,0)),0) -> 4.2 | BN187: =IFERROR(INDEX('Assumptions '!$F72:$J72,,MATCH(BN$128,'Assumptions '!$F$70:$J$70,0)),0) -> 4.2
D189: =D167 -> Cooling-as-a-service / Mobile cold chain services
D190: =D186 -> Product #1: Main product, e.g., Octopus from Lamu | G190: =IFERROR(INDEX('Assumptions '!$F$87:$J$87,,MATCH(G$128,'Assumptions '!$F$86:$J$86,0)),0)*'Assumptions '!$L82 -> 0.048 | H190: =IFERROR(INDEX('Assumptions '!$F$87:$J$87,,MATCH(H$128,'Assumptions '!$F$86:$J$86,0)),0)*'Assumptions '!$L82 -> 0.048 | I190: =IFERROR(INDEX('Assumptions '!$F$87:$J$87,,MATCH(I$128,'Assumptions '!$F$86:$J$86,0)),0)*'Assumptions '!$L82 -> 0.048 | J190: =IFERROR(INDEX('Assumptions '!$F$87:$J$87,,MATCH(J$128,'Assumptions '!$F$86:$J$86,0)),0)*'Assumptions '!$L82 -> 0.048 | K190: =IFERROR(INDEX('Assumptions '!$F$87:$J$87,,MATCH(K$128,'Assumptions '!$F$86:$J$86,0)),0)*'Assumptions '!$L82 -> 0.048 | L190: =IFERROR(INDEX('Assumptions '!$F$87:$J$87,,MATCH(L$128,'Assumptions '!$F$86:$J$86,0)),0)*'Assumptions '!$L82 -> 0.048 | M190: =IFERROR(INDEX('Assumptions '!$F$87:$J$87,,MATCH(M$128,'Assumptions '!$F$86:$J$86,0)),0)*'Assumptions '!$L82 -> 0.048 | N190: =IFERROR(INDEX('Assumptions '!$F$87:$J$87,,MATCH(N$128,'Assumptions '!$F$86:$J$86,0)),0)*'Assumptions '!$L82 -> 0.048 | O190: =IFERROR(INDEX('Assumptions '!$F$87:$J$87,,MATCH(O$128,'Assumptions '!$F$86:$J$86,0)),0)*'Assumptions '!$L82 -> 0.048 | P190: =IFERROR(INDEX('Assumptions '!$F$87:$J$87,,MATCH(P$128,'Assumptions '!$F$86:$J$86,0)),0)*'Assumptions '!$L82 -> 0.048 | Q190: =IFERROR(INDEX('Assumptions '!$F$87:$J$87,,MATCH(Q$128,'Assumptions '!$F$86:$J$86,0)),0)*'Assumptions '!$L82 -> 0.048 | R190: =IFERROR(INDEX('Assumptions '!$F$87:$J$87,,MATCH(R$128,'Assumptions '!$F$86:$J$86,0)),0)*'Assumptions '!$L82 -> 0.048 | S190: =IFERROR(INDEX('Assumptions '!$F$87:$J$87,,MATCH(S$128,'Assumptions '!$F$86:$J$86,0)),0)*'Assumptions '!$L82 -> 0.048 | T190: =IFERROR(INDEX('Assumptions '!$F$87:$J$87,,MATCH(T$128,'Assumptions '!$F$86:$J$86,0)),0)*'Assumptions '!$L82 -> 0.048 | U190: =IFERROR(INDEX('Assumptions '!$F$87:$J$87,,MATCH(U$128,'Assumptions '!$F$86:$J$86,0)),0)*'Assumptions '!$L82 -> 0.048 | V190: =IFERROR(INDEX('Assumptions '!$F$87:$J$87,,MATCH(V$128,'Assumptions '!$F$86:$J$86,0)),0)*'Assumptions '!$L82 -> 0.048 | W190: =IFERROR(INDEX('Assumptions '!$F$87:$J$87,,MATCH(W$128,'Assumptions '!$F$86:$J$86,0)),0)*'Assumptions '!$L82 -> 0.048 | X190: =IFERROR(INDEX('Assumptions '!$F$87:$J$87,,MATCH(X$128,'Assumptions '!$F$86:$J$86,0)),0)*'Assumptions '!$L82 -> 0.048 | Y190: =IFERROR(INDEX('Assumptions '!$F$87:$J$87,,MATCH(Y$128,'Assumptions '!$F$86:$J$86,0)),0)*'Assumptions '!$L82 -> 0.048 | Z190: =IFERROR(INDEX('Assumptions '!$F$87:$J$87,,MATCH(Z$128,'Assumptions '!$F$86:$J$86,0)),0)*'Assumptions '!$L82 -> 0.048 | AA190: =IFERROR(INDEX('Assumptions '!$F$87:$J$87,,MATCH(AA$128,'Assumptions '!$F$86:$J$86,0)),0)*'Assumptions '!$L82 -> 0.048 | AB190: =IFERROR(INDEX('Assumptions '!$F$87:$J$87,,MATCH(AB$128,'Assumptions '!$F$86:$J$86,0)),0)*'Assumptions '!$L82 -> 0.048 | AC190: =IFERROR(INDEX('Assumptions '!$F$87:$J$87,,MATCH(AC$128,'Assumptions '!$F$86:$J$86,0)),0)*'Assumptions '!$L82 -> 0.048 | AD190: =IFERROR(INDEX('Assumptions '!$F$87:$J$87,,MATCH(AD$128,'Assumptions '!$F$86:$J$86,0)),0)*'Assumptions '!$L82 -> 0.048 | AE190: =IFERROR(INDEX('Assumptions '!$F$87:$J$87,,MATCH(AE$128,'Assumptions '!$F$86:$J$86,0)),0)*'Assumptions '!$L82 -> 0.048 | AF190: =IFERROR(INDEX('Assumptions '!$F$87:$J$87,,MATCH(AF$128,'Assumptions '!$F$86:$J$86,0)),0)*'Assumptions '!$L82 -> 0.048 | AG190: =IFERROR(INDEX('Assumptions '!$F$87:$J$87,,MATCH(AG$128,'Assumptions '!$F$86:$J$86,0)),0)*'Assumptions '!$L82 -> 0.048 | AH190: =IFERROR(INDEX('Assumptions '!$F$87:$J$87,,MATCH(AH$128,'Assumptions '!$F$86:$J$86,0)),0)*'Assumptions '!$L82 -> 0.048 | AI190: =IFERROR(INDEX('Assumptions '!$F$87:$J$87,,MATCH(AI$128,'Assumptions '!$F$86:$J$86,0)),0)*'Assumptions '!$L82 -> 0.048 | AJ190: =IFERROR(INDEX('Assumptions '!$F$87:$J$87,,MATCH(AJ$128,'Assumptions '!$F$86:$J$86,0)),0)*'Assumptions '!$L82 -> 0.048 | AK190: =IFERROR(INDEX('Assumptions '!$F$87:$J$87,,MATCH(AK$128,'Assumptions '!$F$86:$J$86,0)),0)*'Assumptions '!$L82 -> 0.048 | AL190: =IFERROR(INDEX('Assumptions '!$F$87:$J$87,,MATCH(AL$128,'Assumptions '!$F$86:$J$86,0)),0)*'Assumptions '!$L82 -> 0.048 | AM190: =IFERROR(INDEX('Assumptions '!$F$87:$J$87,,MATCH(AM$128,'Assumptions '!$F$86:$J$86,0)),0)*'Assumptions '!$L82 -> 0.048 | AN190: =IFERROR(INDEX('Assumptions '!$F$87:$J$87,,MATCH(AN$128,'Assumptions '!$F$86:$J$86,0)),0)*'Assumptions '!$L82 -> 0.048 | AO190: =IFERROR(INDEX('Assumptions '!$F$87:$J$87,,MATCH(AO$128,'Assumptions '!$F$86:$J$86,0)),0)*'Assumptions '!$L82 -> 0.048 | AP190: =IFERROR(INDEX('Assumptions '!$F$87:$J$87,,MATCH(AP$128,'Assumptions '!$F$86:$J$86,0)),0)*'Assumptions '!$L82 -> 0.048 | AQ190: =IFERROR(INDEX('Assumptions '!$F$87:$J$87,,MATCH(AQ$128,'Assumptions '!$F$86:$J$86,0)),0)*'Assumptions '!$L82 -> 0.048 | AR190: =IFERROR(INDEX('Assumptions '!$F$87:$J$87,,MATCH(AR$128,'Assumptions '!$F$86:$J$86,0)),0)*'Assumptions '!$L82 -> 0.048 | AS190: =IFERROR(INDEX('Assumptions '!$F$87:$J$87,,MATCH(AS$128,'Assumptions '!$F$86:$J$86,0)),0)*'Assumptions '!$L82 -> 0.048 | AT190: =IFERROR(INDEX('Assumptions '!$F$87:$J$87,,MATCH(AT$128,'Assumptions '!$F$86:$J$86,0)),0)*'Assumptions '!$L82 -> 0.048 | AU190: =IFERROR(INDEX('Assumptions '!$F$87:$J$87,,MATCH(AU$128,'Assumptions '!$F$86:$J$86,0)),0)*'Assumptions '!$L82 -> 0.048 | AV190: =IFERROR(INDEX('Assumptions '!$F$87:$J$87,,MATCH(AV$128,'Assumptions '!$F$86:$J$86,0)),0)*'Assumptions '!$L82 -> 0.048 | AW190: =IFERROR(INDEX('Assumptions '!$F$87:$J$87,,MATCH(AW$128,'Assumptions '!$F$86:$J$86,0)),0)*'Assumptions '!$L82 -> 0.048 | AX190: =IFERROR(INDEX('Assumptions '!$F$87:$J$87,,MATCH(AX$128,'Assumptions '!$F$86:$J$86,0)),0)*'Assumptions '!$L82 -> 0.048 | AY190: =IFERROR(INDEX('Assumptions '!$F$87:$J$87,,MATCH(AY$128,'Assumptions '!$F$86:$J$86,0)),0)*'Assumptions '!$L82 -> 0.048 | AZ190: =IFERROR(INDEX('Assumptions '!$F$87:$J$87,,MATCH(AZ$128,'Assumptions '!$F$86:$J$86,0)),0)*'Assumptions '!$L82 -> 0.048 | BA190: =IFERROR(INDEX('Assumptions '!$F$87:$J$87,,MATCH(BA$128,'Assumptions '!$F$86:$J$86,0)),0)*'Assumptions '!$L82 -> 0.048 | BB190: =IFERROR(INDEX('Assumptions '!$F$87:$J$87,,MATCH(BB$128,'Assumptions '!$F$86:$J$86,0)),0)*'Assumptions '!$L82 -> 0.048 | BC190: =IFERROR(INDEX('Assumptions '!$F$87:$J$87,,MATCH(BC$128,'Assumptions '!$F$86:$J$86,0)),0)*'Assumptions '!$L82 -> 0.048 | BD190: =IFERROR(INDEX('Assumptions '!$F$87:$J$87,,MATCH(BD$128,'Assumptions '!$F$86:$J$86,0)),0)*'Assumptions '!$L82 -> 0.048 | BE190: =IFERROR(INDEX('Assumptions '!$F$87:$J$87,,MATCH(BE$128,'Assumptions '!$F$86:$J$86,0)),0)*'Assumptions '!$L82 -> 0.048 | BF190: =IFERROR(INDEX('Assumptions '!$F$87:$J$87,,MATCH(BF$128,'Assumptions '!$F$86:$J$86,0)),0)*'Assumptions '!$L82 -> 0.048 | BG190: =IFERROR(INDEX('Assumptions '!$F$87:$J$87,,MATCH(BG$128,'Assumptions '!$F$86:$J$86,0)),0)*'Assumptions '!$L82 -> 0.048 | BH190: =IFERROR(INDEX('Assumptions '!$F$87:$J$87,,MATCH(BH$128,'Assumptions '!$F$86:$J$86,0)),0)*'Assumptions '!$L82 -> 0.048 | BI190: =IFERROR(INDEX('Assumptions '!$F$87:$J$87,,MATCH(BI$128,'Assumptions '!$F$86:$J$86,0)),0)*'Assumptions '!$L82 -> 0.048 | BJ190: =IFERROR(INDEX('Assumptions '!$F$87:$J$87,,MATCH(BJ$128,'Assumptions '!$F$86:$J$86,0)),0)*'Assumptions '!$L82 -> 0.048 | BK190: =IFERROR(INDEX('Assumptions '!$F$87:$J$87,,MATCH(BK$128,'Assumptions '!$F$86:$J$86,0)),0)*'Assumptions '!$L82 -> 0.048 | BL190: =IFERROR(INDEX('Assumptions '!$F$87:$J$87,,MATCH(BL$128,'Assumptions '!$F$86:$J$86,0)),0)*'Assumptions '!$L82 -> 0.048 | BM190: =IFERROR(INDEX('Assumptions '!$F$87:$J$87,,MATCH(BM$128,'Assumptions '!$F$86:$J$86,0)),0)*'Assumptions '!$L82 -> 0.048 | BN190: =IFERROR(INDEX('Assumptions '!$F$87:$J$87,,MATCH(BN$128,'Assumptions '!$F$86:$J$86,0)),0)*'Assumptions '!$L82 -> 0.048
D191: =D187 -> Product #2: Add'l product, e.g., prawns from Lamu | G191: =IFERROR(INDEX('Assumptions '!$F$87:$J$87,,MATCH(G$128,'Assumptions '!$F$86:$J$86,0)),0)*'Assumptions '!$L83 -> 0.048 | H191: =IFERROR(INDEX('Assumptions '!$F$87:$J$87,,MATCH(H$128,'Assumptions '!$F$86:$J$86,0)),0)*'Assumptions '!$L83 -> 0.048 | I191: =IFERROR(INDEX('Assumptions '!$F$87:$J$87,,MATCH(I$128,'Assumptions '!$F$86:$J$86,0)),0)*'Assumptions '!$L83 -> 0.048 | J191: =IFERROR(INDEX('Assumptions '!$F$87:$J$87,,MATCH(J$128,'Assumptions '!$F$86:$J$86,0)),0)*'Assumptions '!$L83 -> 0.048 | K191: =IFERROR(INDEX('Assumptions '!$F$87:$J$87,,MATCH(K$128,'Assumptions '!$F$86:$J$86,0)),0)*'Assumptions '!$L83 -> 0.048 | L191: =IFERROR(INDEX('Assumptions '!$F$87:$J$87,,MATCH(L$128,'Assumptions '!$F$86:$J$86,0)),0)*'Assumptions '!$L83 -> 0.048 | M191: =IFERROR(INDEX('Assumptions '!$F$87:$J$87,,MATCH(M$128,'Assumptions '!$F$86:$J$86,0)),0)*'Assumptions '!$L83 -> 0.048 | N191: =IFERROR(INDEX('Assumptions '!$F$87:$J$87,,MATCH(N$128,'Assumptions '!$F$86:$J$86,0)),0)*'Assumptions '!$L83 -> 0.048 | O191: =IFERROR(INDEX('Assumptions '!$F$87:$J$87,,MATCH(O$128,'Assumptions '!$F$86:$J$86,0)),0)*'Assumptions '!$L83 -> 0.048 | P191: =IFERROR(INDEX('Assumptions '!$F$87:$J$87,,MATCH(P$128,'Assumptions '!$F$86:$J$86,0)),0)*'Assumptions '!$L83 -> 0.048 | Q191: =IFERROR(INDEX('Assumptions '!$F$87:$J$87,,MATCH(Q$128,'Assumptions '!$F$86:$J$86,0)),0)*'Assumptions '!$L83 -> 0.048 | R191: =IFERROR(INDEX('Assumptions '!$F$87:$J$87,,MATCH(R$128,'Assumptions '!$F$86:$J$86,0)),0)*'Assumptions '!$L83 -> 0.048 | S191: =IFERROR(INDEX('Assumptions '!$F$87:$J$87,,MATCH(S$128,'Assumptions '!$F$86:$J$86,0)),0)*'Assumptions '!$L83 -> 0.048 | T191: =IFERROR(INDEX('Assumptions '!$F$87:$J$87,,MATCH(T$128,'Assumptions '!$F$86:$J$86,0)),0)*'Assumptions '!$L83 -> 0.048 | U191: =IFERROR(INDEX('Assumptions '!$F$87:$J$87,,MATCH(U$128,'Assumptions '!$F$86:$J$86,0)),0)*'Assumptions '!$L83 -> 0.048 | V191: =IFERROR(INDEX('Assumptions '!$F$87:$J$87,,MATCH(V$128,'Assumptions '!$F$86:$J$86,0)),0)*'Assumptions '!$L83 -> 0.048 | W191: =IFERROR(INDEX('Assumptions '!$F$87:$J$87,,MATCH(W$128,'Assumptions '!$F$86:$J$86,0)),0)*'Assumptions '!$L83 -> 0.048 | X191: =IFERROR(INDEX('Assumptions '!$F$87:$J$87,,MATCH(X$128,'Assumptions '!$F$86:$J$86,0)),0)*'Assumptions '!$L83 -> 0.048 | Y191: =IFERROR(INDEX('Assumptions '!$F$87:$J$87,,MATCH(Y$128,'Assumptions '!$F$86:$J$86,0)),0)*'Assumptions '!$L83 -> 0.048 | Z191: =IFERROR(INDEX('Assumptions '!$F$87:$J$87,,MATCH(Z$128,'Assumptions '!$F$86:$J$86,0)),0)*'Assumptions '!$L83 -> 0.048 | AA191: =IFERROR(INDEX('Assumptions '!$F$87:$J$87,,MATCH(AA$128,'Assumptions '!$F$86:$J$86,0)),0)*'Assumptions '!$L83 -> 0.048 | AB191: =IFERROR(INDEX('Assumptions '!$F$87:$J$87,,MATCH(AB$128,'Assumptions '!$F$86:$J$86,0)),0)*'Assumptions '!$L83 -> 0.048 | AC191: =IFERROR(INDEX('Assumptions '!$F$87:$J$87,,MATCH(AC$128,'Assumptions '!$F$86:$J$86,0)),0)*'Assumptions '!$L83 -> 0.048 | AD191: =IFERROR(INDEX('Assumptions '!$F$87:$J$87,,MATCH(AD$128,'Assumptions '!$F$86:$J$86,0)),0)*'Assumptions '!$L83 -> 0.048 | AE191: =IFERROR(INDEX('Assumptions '!$F$87:$J$87,,MATCH(AE$128,'Assumptions '!$F$86:$J$86,0)),0)*'Assumptions '!$L83 -> 0.048 | AF191: =IFERROR(INDEX('Assumptions '!$F$87:$J$87,,MATCH(AF$128,'Assumptions '!$F$86:$J$86,0)),0)*'Assumptions '!$L83 -> 0.048 | AG191: =IFERROR(INDEX('Assumptions '!$F$87:$J$87,,MATCH(AG$128,'Assumptions '!$F$86:$J$86,0)),0)*'Assumptions '!$L83 -> 0.048 | AH191: =IFERROR(INDEX('Assumptions '!$F$87:$J$87,,MATCH(AH$128,'Assumptions '!$F$86:$J$86,0)),0)*'Assumptions '!$L83 -> 0.048 | AI191: =IFERROR(INDEX('Assumptions '!$F$87:$J$87,,MATCH(AI$128,'Assumptions '!$F$86:$J$86,0)),0)*'Assumptions '!$L83 -> 0.048 | AJ191: =IFERROR(INDEX('Assumptions '!$F$87:$J$87,,MATCH(AJ$128,'Assumptions '!$F$86:$J$86,0)),0)*'Assumptions '!$L83 -> 0.048 | AK191: =IFERROR(INDEX('Assumptions '!$F$87:$J$87,,MATCH(AK$128,'Assumptions '!$F$86:$J$86,0)),0)*'Assumptions '!$L83 -> 0.048 | AL191: =IFERROR(INDEX('Assumptions '!$F$87:$J$87,,MATCH(AL$128,'Assumptions '!$F$86:$J$86,0)),0)*'Assumptions '!$L83 -> 0.048 | AM191: =IFERROR(INDEX('Assumptions '!$F$87:$J$87,,MATCH(AM$128,'Assumptions '!$F$86:$J$86,0)),0)*'Assumptions '!$L83 -> 0.048 | AN191: =IFERROR(INDEX('Assumptions '!$F$87:$J$87,,MATCH(AN$128,'Assumptions '!$F$86:$J$86,0)),0)*'Assumptions '!$L83 -> 0.048 | AO191: =IFERROR(INDEX('Assumptions '!$F$87:$J$87,,MATCH(AO$128,'Assumptions '!$F$86:$J$86,0)),0)*'Assumptions '!$L83 -> 0.048 | AP191: =IFERROR(INDEX('Assumptions '!$F$87:$J$87,,MATCH(AP$128,'Assumptions '!$F$86:$J$86,0)),0)*'Assumptions '!$L83 -> 0.048 | AQ191: =IFERROR(INDEX('Assumptions '!$F$87:$J$87,,MATCH(AQ$128,'Assumptions '!$F$86:$J$86,0)),0)*'Assumptions '!$L83 -> 0.048 | AR191: =IFERROR(INDEX('Assumptions '!$F$87:$J$87,,MATCH(AR$128,'Assumptions '!$F$86:$J$86,0)),0)*'Assumptions '!$L83 -> 0.048 | AS191: =IFERROR(INDEX('Assumptions '!$F$87:$J$87,,MATCH(AS$128,'Assumptions '!$F$86:$J$86,0)),0)*'Assumptions '!$L83 -> 0.048 | AT191: =IFERROR(INDEX('Assumptions '!$F$87:$J$87,,MATCH(AT$128,'Assumptions '!$F$86:$J$86,0)),0)*'Assumptions '!$L83 -> 0.048 | AU191: =IFERROR(INDEX('Assumptions '!$F$87:$J$87,,MATCH(AU$128,'Assumptions '!$F$86:$J$86,0)),0)*'Assumptions '!$L83 -> 0.048 | AV191: =IFERROR(INDEX('Assumptions '!$F$87:$J$87,,MATCH(AV$128,'Assumptions '!$F$86:$J$86,0)),0)*'Assumptions '!$L83 -> 0.048 | AW191: =IFERROR(INDEX('Assumptions '!$F$87:$J$87,,MATCH(AW$128,'Assumptions '!$F$86:$J$86,0)),0)*'Assumptions '!$L83 -> 0.048 | AX191: =IFERROR(INDEX('Assumptions '!$F$87:$J$87,,MATCH(AX$128,'Assumptions '!$F$86:$J$86,0)),0)*'Assumptions '!$L83 -> 0.048 | AY191: =IFERROR(INDEX('Assumptions '!$F$87:$J$87,,MATCH(AY$128,'Assumptions '!$F$86:$J$86,0)),0)*'Assumptions '!$L83 -> 0.048 | AZ191: =IFERROR(INDEX('Assumptions '!$F$87:$J$87,,MATCH(AZ$128,'Assumptions '!$F$86:$J$86,0)),0)*'Assumptions '!$L83 -> 0.048 | BA191: =IFERROR(INDEX('Assumptions '!$F$87:$J$87,,MATCH(BA$128,'Assumptions '!$F$86:$J$86,0)),0)*'Assumptions '!$L83 -> 0.048 | BB191: =IFERROR(INDEX('Assumptions '!$F$87:$J$87,,MATCH(BB$128,'Assumptions '!$F$86:$J$86,0)),0)*'Assumptions '!$L83 -> 0.048 | BC191: =IFERROR(INDEX('Assumptions '!$F$87:$J$87,,MATCH(BC$128,'Assumptions '!$F$86:$J$86,0)),0)*'Assumptions '!$L83 -> 0.048 | BD191: =IFERROR(INDEX('Assumptions '!$F$87:$J$87,,MATCH(BD$128,'Assumptions '!$F$86:$J$86,0)),0)*'Assumptions '!$L83 -> 0.048 | BE191: =IFERROR(INDEX('Assumptions '!$F$87:$J$87,,MATCH(BE$128,'Assumptions '!$F$86:$J$86,0)),0)*'Assumptions '!$L83 -> 0.048 | BF191: =IFERROR(INDEX('Assumptions '!$F$87:$J$87,,MATCH(BF$128,'Assumptions '!$F$86:$J$86,0)),0)*'Assumptions '!$L83 -> 0.048 | BG191: =IFERROR(INDEX('Assumptions '!$F$87:$J$87,,MATCH(BG$128,'Assumptions '!$F$86:$J$86,0)),0)*'Assumptions '!$L83 -> 0.048 | BH191: =IFERROR(INDEX('Assumptions '!$F$87:$J$87,,MATCH(BH$128,'Assumptions '!$F$86:$J$86,0)),0)*'Assumptions '!$L83 -> 0.048 | BI191: =IFERROR(INDEX('Assumptions '!$F$87:$J$87,,MATCH(BI$128,'Assumptions '!$F$86:$J$86,0)),0)*'Assumptions '!$L83 -> 0.048 | BJ191: =IFERROR(INDEX('Assumptions '!$F$87:$J$87,,MATCH(BJ$128,'Assumptions '!$F$86:$J$86,0)),0)*'Assumptions '!$L83 -> 0.048 | BK191: =IFERROR(INDEX('Assumptions '!$F$87:$J$87,,MATCH(BK$128,'Assumptions '!$F$86:$J$86,0)),0)*'Assumptions '!$L83 -> 0.048 | BL191: =IFERROR(INDEX('Assumptions '!$F$87:$J$87,,MATCH(BL$128,'Assumptions '!$F$86:$J$86,0)),0)*'Assumptions '!$L83 -> 0.048 | BM191: =IFERROR(INDEX('Assumptions '!$F$87:$J$87,,MATCH(BM$128,'Assumptions '!$F$86:$J$86,0)),0)*'Assumptions '!$L83 -> 0.048 | BN191: =IFERROR(INDEX('Assumptions '!$F$87:$J$87,,MATCH(BN$128,'Assumptions '!$F$86:$J$86,0)),0)*'Assumptions '!$L83 -> 0.048
D193: Other revenue streams
D194: =D178 -> Side product #1: Ice sales (one unit is one 5kg bucket) | G194: =IFERROR(INDEX('Assumptions '!$F112:$J112,,MATCH(G$128,'Assumptions '!$F$111:$J$111,0)),0) -> 0.2 | H194: =IFERROR(INDEX('Assumptions '!$F112:$J112,,MATCH(H$128,'Assumptions '!$F$111:$J$111,0)),0) -> 0.2 | I194: =IFERROR(INDEX('Assumptions '!$F112:$J112,,MATCH(I$128,'Assumptions '!$F$111:$J$111,0)),0) -> 0.2 | J194: =IFERROR(INDEX('Assumptions '!$F112:$J112,,MATCH(J$128,'Assumptions '!$F$111:$J$111,0)),0) -> 0.2 | K194: =IFERROR(INDEX('Assumptions '!$F112:$J112,,MATCH(K$128,'Assumptions '!$F$111:$J$111,0)),0) -> 0.2 | L194: =IFERROR(INDEX('Assumptions '!$F112:$J112,,MATCH(L$128,'Assumptions '!$F$111:$J$111,0)),0) -> 0.2 | M194: =IFERROR(INDEX('Assumptions '!$F112:$J112,,MATCH(M$128,'Assumptions '!$F$111:$J$111,0)),0) -> 0.2 | N194: =IFERROR(INDEX('Assumptions '!$F112:$J112,,MATCH(N$128,'Assumptions '!$F$111:$J$111,0)),0) -> 0.2 | O194: =IFERROR(INDEX('Assumptions '!$F112:$J112,,MATCH(O$128,'Assumptions '!$F$111:$J$111,0)),0) -> 0.2 | P194: =IFERROR(INDEX('Assumptions '!$F112:$J112,,MATCH(P$128,'Assumptions '!$F$111:$J$111,0)),0) -> 0.2 | Q194: =IFERROR(INDEX('Assumptions '!$F112:$J112,,MATCH(Q$128,'Assumptions '!$F$111:$J$111,0)),0) -> 0.2 | R194: =IFERROR(INDEX('Assumptions '!$F112:$J112,,MATCH(R$128,'Assumptions '!$F$111:$J$111,0)),0) -> 0.2 | S194: =IFERROR(INDEX('Assumptions '!$F112:$J112,,MATCH(S$128,'Assumptions '!$F$111:$J$111,0)),0) -> 0.2 | T194: =IFERROR(INDEX('Assumptions '!$F112:$J112,,MATCH(T$128,'Assumptions '!$F$111:$J$111,0)),0) -> 0.2 | U194: =IFERROR(INDEX('Assumptions '!$F112:$J112,,MATCH(U$128,'Assumptions '!$F$111:$J$111,0)),0) -> 0.2 | V194: =IFERROR(INDEX('Assumptions '!$F112:$J112,,MATCH(V$128,'Assumptions '!$F$111:$J$111,0)),0) -> 0.2 | W194: =IFERROR(INDEX('Assumptions '!$F112:$J112,,MATCH(W$128,'Assumptions '!$F$111:$J$111,0)),0) -> 0.2 | X194: =IFERROR(INDEX('Assumptions '!$F112:$J112,,MATCH(X$128,'Assumptions '!$F$111:$J$111,0)),0) -> 0.2 | Y194: =IFERROR(INDEX('Assumptions '!$F112:$J112,,MATCH(Y$128,'Assumptions '!$F$111:$J$111,0)),0) -> 0.2 | Z194: =IFERROR(INDEX('Assumptions '!$F112:$J112,,MATCH(Z$128,'Assumptions '!$F$111:$J$111,0)),0) -> 0.2 | AA194: =IFERROR(INDEX('Assumptions '!$F112:$J112,,MATCH(AA$128,'Assumptions '!$F$111:$J$111,0)),0) -> 0.2 | AB194: =IFERROR(INDEX('Assumptions '!$F112:$J112,,MATCH(AB$128,'Assumptions '!$F$111:$J$111,0)),0) -> 0.2 | AC194: =IFERROR(INDEX('Assumptions '!$F112:$J112,,MATCH(AC$128,'Assumptions '!$F$111:$J$111,0)),0) -> 0.2 | AD194: =IFERROR(INDEX('Assumptions '!$F112:$J112,,MATCH(AD$128,'Assumptions '!$F$111:$J$111,0)),0) -> 0.2 | AE194: =IFERROR(INDEX('Assumptions '!$F112:$J112,,MATCH(AE$128,'Assumptions '!$F$111:$J$111,0)),0) -> 0.2 | AF194: =IFERROR(INDEX('Assumptions '!$F112:$J112,,MATCH(AF$128,'Assumptions '!$F$111:$J$111,0)),0) -> 0.2 | AG194: =IFERROR(INDEX('Assumptions '!$F112:$J112,,MATCH(AG$128,'Assumptions '!$F$111:$J$111,0)),0) -> 0.2 | AH194: =IFERROR(INDEX('Assumptions '!$F112:$J112,,MATCH(AH$128,'Assumptions '!$F$111:$J$111,0)),0) -> 0.2 | AI194: =IFERROR(INDEX('Assumptions '!$F112:$J112,,MATCH(AI$128,'Assumptions '!$F$111:$J$111,0)),0) -> 0.2 | AJ194: =IFERROR(INDEX('Assumptions '!$F112:$J112,,MATCH(AJ$128,'Assumptions '!$F$111:$J$111,0)),0) -> 0.2 | AK194: =IFERROR(INDEX('Assumptions '!$F112:$J112,,MATCH(AK$128,'Assumptions '!$F$111:$J$111,0)),0) -> 0.2 | AL194: =IFERROR(INDEX('Assumptions '!$F112:$J112,,MATCH(AL$128,'Assumptions '!$F$111:$J$111,0)),0) -> 0.2 | AM194: =IFERROR(INDEX('Assumptions '!$F112:$J112,,MATCH(AM$128,'Assumptions '!$F$111:$J$111,0)),0) -> 0.2 | AN194: =IFERROR(INDEX('Assumptions '!$F112:$J112,,MATCH(AN$128,'Assumptions '!$F$111:$J$111,0)),0) -> 0.2 | AO194: =IFERROR(INDEX('Assumptions '!$F112:$J112,,MATCH(AO$128,'Assumptions '!$F$111:$J$111,0)),0) -> 0.2 | AP194: =IFERROR(INDEX('Assumptions '!$F112:$J112,,MATCH(AP$128,'Assumptions '!$F$111:$J$111,0)),0) -> 0.2 | AQ194: =IFERROR(INDEX('Assumptions '!$F112:$J112,,MATCH(AQ$128,'Assumptions '!$F$111:$J$111,0)),0) -> 0.2 | AR194: =IFERROR(INDEX('Assumptions '!$F112:$J112,,MATCH(AR$128,'Assumptions '!$F$111:$J$111,0)),0) -> 0.2 | AS194: =IFERROR(INDEX('Assumptions '!$F112:$J112,,MATCH(AS$128,'Assumptions '!$F$111:$J$111,0)),0) -> 0.2 | AT194: =IFERROR(INDEX('Assumptions '!$F112:$J112,,MATCH(AT$128,'Assumptions '!$F$111:$J$111,0)),0) -> 0.2 | AU194: =IFERROR(INDEX('Assumptions '!$F112:$J112,,MATCH(AU$128,'Assumptions '!$F$111:$J$111,0)),0) -> 0.2 | AV194: =IFERROR(INDEX('Assumptions '!$F112:$J112,,MATCH(AV$128,'Assumptions '!$F$111:$J$111,0)),0) -> 0.2 | AW194: =IFERROR(INDEX('Assumptions '!$F112:$J112,,MATCH(AW$128,'Assumptions '!$F$111:$J$111,0)),0) -> 0.2 | AX194: =IFERROR(INDEX('Assumptions '!$F112:$J112,,MATCH(AX$128,'Assumptions '!$F$111:$J$111,0)),0) -> 0.2 | AY194: =IFERROR(INDEX('Assumptions '!$F112:$J112,,MATCH(AY$128,'Assumptions '!$F$111:$J$111,0)),0) -> 0.2 | AZ194: =IFERROR(INDEX('Assumptions '!$F112:$J112,,MATCH(AZ$128,'Assumptions '!$F$111:$J$111,0)),0) -> 0.2 | BA194: =IFERROR(INDEX('Assumptions '!$F112:$J112,,MATCH(BA$128,'Assumptions '!$F$111:$J$111,0)),0) -> 0.2 | BB194: =IFERROR(INDEX('Assumptions '!$F112:$J112,,MATCH(BB$128,'Assumptions '!$F$111:$J$111,0)),0) -> 0.2 | BC194: =IFERROR(INDEX('Assumptions '!$F112:$J112,,MATCH(BC$128,'Assumptions '!$F$111:$J$111,0)),0) -> 0.2 | BD194: =IFERROR(INDEX('Assumptions '!$F112:$J112,,MATCH(BD$128,'Assumptions '!$F$111:$J$111,0)),0) -> 0.2 | BE194: =IFERROR(INDEX('Assumptions '!$F112:$J112,,MATCH(BE$128,'Assumptions '!$F$111:$J$111,0)),0) -> 0.2 | BF194: =IFERROR(INDEX('Assumptions '!$F112:$J112,,MATCH(BF$128,'Assumptions '!$F$111:$J$111,0)),0) -> 0.2 | BG194: =IFERROR(INDEX('Assumptions '!$F112:$J112,,MATCH(BG$128,'Assumptions '!$F$111:$J$111,0)),0) -> 0.2 | BH194: =IFERROR(INDEX('Assumptions '!$F112:$J112,,MATCH(BH$128,'Assumptions '!$F$111:$J$111,0)),0) -> 0.2 | BI194: =IFERROR(INDEX('Assumptions '!$F112:$J112,,MATCH(BI$128,'Assumptions '!$F$111:$J$111,0)),0) -> 0.2 | BJ194: =IFERROR(INDEX('Assumptions '!$F112:$J112,,MATCH(BJ$128,'Assumptions '!$F$111:$J$111,0)),0) -> 0.2 | BK194: =IFERROR(INDEX('Assumptions '!$F112:$J112,,MATCH(BK$128,'Assumptions '!$F$111:$J$111,0)),0) -> 0.2 | BL194: =IFERROR(INDEX('Assumptions '!$F112:$J112,,MATCH(BL$128,'Assumptions '!$F$111:$J$111,0)),0) -> 0.2 | BM194: =IFERROR(INDEX('Assumptions '!$F112:$J112,,MATCH(BM$128,'Assumptions '!$F$111:$J$111,0)),0) -> 0.2 | BN194: =IFERROR(INDEX('Assumptions '!$F112:$J112,,MATCH(BN$128,'Assumptions '!$F$111:$J$111,0)),0) -> 0.2
D195: =D179 -> Side product #2: Phone charging (one unit is one phone charge) | G195: =IFERROR(INDEX('Assumptions '!$F113:$J113,,MATCH(G$128,'Assumptions '!$F$111:$J$111,0)),0) -> 0.06 | H195: =IFERROR(INDEX('Assumptions '!$F113:$J113,,MATCH(H$128,'Assumptions '!$F$111:$J$111,0)),0) -> 0.06 | I195: =IFERROR(INDEX('Assumptions '!$F113:$J113,,MATCH(I$128,'Assumptions '!$F$111:$J$111,0)),0) -> 0.06 | J195: =IFERROR(INDEX('Assumptions '!$F113:$J113,,MATCH(J$128,'Assumptions '!$F$111:$J$111,0)),0) -> 0.06 | K195: =IFERROR(INDEX('Assumptions '!$F113:$J113,,MATCH(K$128,'Assumptions '!$F$111:$J$111,0)),0) -> 0.06 | L195: =IFERROR(INDEX('Assumptions '!$F113:$J113,,MATCH(L$128,'Assumptions '!$F$111:$J$111,0)),0) -> 0.06 | M195: =IFERROR(INDEX('Assumptions '!$F113:$J113,,MATCH(M$128,'Assumptions '!$F$111:$J$111,0)),0) -> 0.06 | N195: =IFERROR(INDEX('Assumptions '!$F113:$J113,,MATCH(N$128,'Assumptions '!$F$111:$J$111,0)),0) -> 0.06 | O195: =IFERROR(INDEX('Assumptions '!$F113:$J113,,MATCH(O$128,'Assumptions '!$F$111:$J$111,0)),0) -> 0.06 | P195: =IFERROR(INDEX('Assumptions '!$F113:$J113,,MATCH(P$128,'Assumptions '!$F$111:$J$111,0)),0) -> 0.06 | Q195: =IFERROR(INDEX('Assumptions '!$F113:$J113,,MATCH(Q$128,'Assumptions '!$F$111:$J$111,0)),0) -> 0.06 | R195: =IFERROR(INDEX('Assumptions '!$F113:$J113,,MATCH(R$128,'Assumptions '!$F$111:$J$111,0)),0) -> 0.06 | S195: =IFERROR(INDEX('Assumptions '!$F113:$J113,,MATCH(S$128,'Assumptions '!$F$111:$J$111,0)),0) -> 0.06 | T195: =IFERROR(INDEX('Assumptions '!$F113:$J113,,MATCH(T$128,'Assumptions '!$F$111:$J$111,0)),0) -> 0.06 | U195: =IFERROR(INDEX('Assumptions '!$F113:$J113,,MATCH(U$128,'Assumptions '!$F$111:$J$111,0)),0) -> 0.06 | V195: =IFERROR(INDEX('Assumptions '!$F113:$J113,,MATCH(V$128,'Assumptions '!$F$111:$J$111,0)),0) -> 0.06 | W195: =IFERROR(INDEX('Assumptions '!$F113:$J113,,MATCH(W$128,'Assumptions '!$F$111:$J$111,0)),0) -> 0.06 | X195: =IFERROR(INDEX('Assumptions '!$F113:$J113,,MATCH(X$128,'Assumptions '!$F$111:$J$111,0)),0) -> 0.06 | Y195: =IFERROR(INDEX('Assumptions '!$F113:$J113,,MATCH(Y$128,'Assumptions '!$F$111:$J$111,0)),0) -> 0.06 | Z195: =IFERROR(INDEX('Assumptions '!$F113:$J113,,MATCH(Z$128,'Assumptions '!$F$111:$J$111,0)),0) -> 0.06 | AA195: =IFERROR(INDEX('Assumptions '!$F113:$J113,,MATCH(AA$128,'Assumptions '!$F$111:$J$111,0)),0) -> 0.06 | AB195: =IFERROR(INDEX('Assumptions '!$F113:$J113,,MATCH(AB$128,'Assumptions '!$F$111:$J$111,0)),0) -> 0.06 | AC195: =IFERROR(INDEX('Assumptions '!$F113:$J113,,MATCH(AC$128,'Assumptions '!$F$111:$J$111,0)),0) -> 0.06 | AD195: =IFERROR(INDEX('Assumptions '!$F113:$J113,,MATCH(AD$128,'Assumptions '!$F$111:$J$111,0)),0) -> 0.06 | AE195: =IFERROR(INDEX('Assumptions '!$F113:$J113,,MATCH(AE$128,'Assumptions '!$F$111:$J$111,0)),0) -> 0.06 | AF195: =IFERROR(INDEX('Assumptions '!$F113:$J113,,MATCH(AF$128,'Assumptions '!$F$111:$J$111,0)),0) -> 0.06 | AG195: =IFERROR(INDEX('Assumptions '!$F113:$J113,,MATCH(AG$128,'Assumptions '!$F$111:$J$111,0)),0) -> 0.06 | AH195: =IFERROR(INDEX('Assumptions '!$F113:$J113,,MATCH(AH$128,'Assumptions '!$F$111:$J$111,0)),0) -> 0.06 | AI195: =IFERROR(INDEX('Assumptions '!$F113:$J113,,MATCH(AI$128,'Assumptions '!$F$111:$J$111,0)),0) -> 0.06 | AJ195: =IFERROR(INDEX('Assumptions '!$F113:$J113,,MATCH(AJ$128,'Assumptions '!$F$111:$J$111,0)),0) -> 0.06 | AK195: =IFERROR(INDEX('Assumptions '!$F113:$J113,,MATCH(AK$128,'Assumptions '!$F$111:$J$111,0)),0) -> 0.06 | AL195: =IFERROR(INDEX('Assumptions '!$F113:$J113,,MATCH(AL$128,'Assumptions '!$F$111:$J$111,0)),0) -> 0.06 | AM195: =IFERROR(INDEX('Assumptions '!$F113:$J113,,MATCH(AM$128,'Assumptions '!$F$111:$J$111,0)),0) -> 0.06 | AN195: =IFERROR(INDEX('Assumptions '!$F113:$J113,,MATCH(AN$128,'Assumptions '!$F$111:$J$111,0)),0) -> 0.06 | AO195: =IFERROR(INDEX('Assumptions '!$F113:$J113,,MATCH(AO$128,'Assumptions '!$F$111:$J$111,0)),0) -> 0.06 | AP195: =IFERROR(INDEX('Assumptions '!$F113:$J113,,MATCH(AP$128,'Assumptions '!$F$111:$J$111,0)),0) -> 0.06 | AQ195: =IFERROR(INDEX('Assumptions '!$F113:$J113,,MATCH(AQ$128,'Assumptions '!$F$111:$J$111,0)),0) -> 0.06 | AR195: =IFERROR(INDEX('Assumptions '!$F113:$J113,,MATCH(AR$128,'Assumptions '!$F$111:$J$111,0)),0) -> 0.06 | AS195: =IFERROR(INDEX('Assumptions '!$F113:$J113,,MATCH(AS$128,'Assumptions '!$F$111:$J$111,0)),0) -> 0.06 | AT195: =IFERROR(INDEX('Assumptions '!$F113:$J113,,MATCH(AT$128,'Assumptions '!$F$111:$J$111,0)),0) -> 0.06 | AU195: =IFERROR(INDEX('Assumptions '!$F113:$J113,,MATCH(AU$128,'Assumptions '!$F$111:$J$111,0)),0) -> 0.06 | AV195: =IFERROR(INDEX('Assumptions '!$F113:$J113,,MATCH(AV$128,'Assumptions '!$F$111:$J$111,0)),0) -> 0.06 | AW195: =IFERROR(INDEX('Assumptions '!$F113:$J113,,MATCH(AW$128,'Assumptions '!$F$111:$J$111,0)),0) -> 0.06 | AX195: =IFERROR(INDEX('Assumptions '!$F113:$J113,,MATCH(AX$128,'Assumptions '!$F$111:$J$111,0)),0) -> 0.06 | AY195: =IFERROR(INDEX('Assumptions '!$F113:$J113,,MATCH(AY$128,'Assumptions '!$F$111:$J$111,0)),0) -> 0.06 | AZ195: =IFERROR(INDEX('Assumptions '!$F113:$J113,,MATCH(AZ$128,'Assumptions '!$F$111:$J$111,0)),0) -> 0.06 | BA195: =IFERROR(INDEX('Assumptions '!$F113:$J113,,MATCH(BA$128,'Assumptions '!$F$111:$J$111,0)),0) -> 0.06 | BB195: =IFERROR(INDEX('Assumptions '!$F113:$J113,,MATCH(BB$128,'Assumptions '!$F$111:$J$111,0)),0) -> 0.06 | BC195: =IFERROR(INDEX('Assumptions '!$F113:$J113,,MATCH(BC$128,'Assumptions '!$F$111:$J$111,0)),0) -> 0.06 | BD195: =IFERROR(INDEX('Assumptions '!$F113:$J113,,MATCH(BD$128,'Assumptions '!$F$111:$J$111,0)),0) -> 0.06 | BE195: =IFERROR(INDEX('Assumptions '!$F113:$J113,,MATCH(BE$128,'Assumptions '!$F$111:$J$111,0)),0) -> 0.06 | BF195: =IFERROR(INDEX('Assumptions '!$F113:$J113,,MATCH(BF$128,'Assumptions '!$F$111:$J$111,0)),0) -> 0.06 | BG195: =IFERROR(INDEX('Assumptions '!$F113:$J113,,MATCH(BG$128,'Assumptions '!$F$111:$J$111,0)),0) -> 0.06 | BH195: =IFERROR(INDEX('Assumptions '!$F113:$J113,,MATCH(BH$128,'Assumptions '!$F$111:$J$111,0)),0) -> 0.06 | BI195: =IFERROR(INDEX('Assumptions '!$F113:$J113,,MATCH(BI$128,'Assumptions '!$F$111:$J$111,0)),0) -> 0.06 | BJ195: =IFERROR(INDEX('Assumptions '!$F113:$J113,,MATCH(BJ$128,'Assumptions '!$F$111:$J$111,0)),0) -> 0.06 | BK195: =IFERROR(INDEX('Assumptions '!$F113:$J113,,MATCH(BK$128,'Assumptions '!$F$111:$J$111,0)),0) -> 0.06 | BL195: =IFERROR(INDEX('Assumptions '!$F113:$J113,,MATCH(BL$128,'Assumptions '!$F$111:$J$111,0)),0) -> 0.06 | BM195: =IFERROR(INDEX('Assumptions '!$F113:$J113,,MATCH(BM$128,'Assumptions '!$F$111:$J$111,0)),0) -> 0.06 | BN195: =IFERROR(INDEX('Assumptions '!$F113:$J113,,MATCH(BN$128,'Assumptions '!$F$111:$J$111,0)),0) -> 0.06
B198: x | C198: Total direct costs
D200: =D185 -> Fish trading (Push/Pull)
D201: =D186 -> Product #1: Main product, e.g., Octopus from Lamu | G201: =G137*G186 -> 7087.5 | H201: 7087.5 | I201: 7087.5 | J201: 4725 | K201: 4725 | L201: 4725 | M201: 4725 | N201: 4725 | O201: 4725 | P201: 4725 | Q201: 4252.5 | R201: 4252.5 | S201: 9358.2 | T201: 9358.2 | U201: 9358.2 | V201: 6238.8 | W201: 6238.8 | X201: 6238.8 | Y201: 6238.8 | Z201: 6238.8 | AA201: 6238.8 | AB201: 6238.8 | AC201: 5614.92 | AD201: 5614.92 | AE201: 8577 | AF201: 8577 | AG201: 8577 | AH201: 5718 | AI201: 5718 | AJ201: 5718 | AK201: 5718 | AL201: 5718 | AM201: =AM137*AM186 -> 5718 | AN201: 5718 | AO201: 5146.2 | AP201: 5146.2 | AQ201: 9432 | AR201: 9432 | AS201: 9432 | AT201: 6288 | AU201: 6288 | AV201: 6288 | AW201: 6288 | AX201: 6288 | AY201: 6288 | AZ201: 6288 | BA201: 5659.2 | BB201: 5659.2 | BC201: 10377 | BD201: 10377 | BE201: 10377 | BF201: 6918 | BG201: 6918 | BH201: 6918 | BI201: 6918 | BJ201: 6918 | BK201: 6918 | BL201: 6918 | BM201: 6226.2 | BN201: 6226.2
D202: =D187 -> Product #2: Add'l product, e.g., prawns from Lamu | G202: =G138*G187 -> 3309.6 | H202: 3309.6 | I202: 3309.6 | J202: 3309.6 | K202: 3309.6 | L202: 3309.6 | M202: 3309.6 | N202: 3309.6 | O202: 3309.6 | P202: 3309.6 | Q202: 3309.6 | R202: 3309.6 | S202: 3637.2 | T202: 3637.2 | U202: 3637.2 | V202: 3637.2 | W202: 3637.2 | X202: 3637.2 | Y202: 3637.2 | Z202: 3637.2 | AA202: 3637.2 | AB202: 3637.2 | AC202: 3637.2 | AD202: 3637.2 | AE202: 4002.6 | AF202: 4002.6 | AG202: 4002.6 | AH202: 4002.6 | AI202: 4002.6 | AJ202: 4002.6 | AK202: 4002.6 | AL202: 4002.6 | AM202: =AM138*AM187 -> 4002.6 | AN202: 4002.6 | AO202: 4002.6 | AP202: 4002.6 | AQ202: 4401.6 | AR202: 4401.6 | AS202: 4401.6 | AT202: 4401.6 | AU202: 4401.6 | AV202: 4401.6 | AW202: 4401.6 | AX202: 4401.6 | AY202: 4401.6 | AZ202: 4401.6 | BA202: 4401.6 | BB202: 4401.6 | BC202: 4842.6 | BD202: 4842.6 | BE202: 4842.6 | BF202: 4842.6 | BG202: 4842.6 | BH202: 4842.6 | BI202: 4842.6 | BJ202: 4842.6 | BK202: 4842.6 | BL202: 4842.6 | BM202: 4842.6 | BN202: 4842.6
G203: =SUM(G201:G202) -> 10397.1 | H203: 10397.1 | I203: 10397.1 | J203: 8034.6 | K203: 8034.6 | L203: 8034.6 | M203: 8034.6 | N203: 8034.6 | O203: 8034.6 | P203: 8034.6 | Q203: 7562.1 | R203: 7562.1 | S203: 12995.4 | T203: 12995.4 | U203: 12995.4 | V203: 9876 | W203: 9876 | X203: 9876 | Y203: 9876 | Z203: 9876 | AA203: 9876 | AB203: 9876 | AC203: 9252.12 | AD203: 9252.12 | AE203: 12579.6 | AF203: 12579.6 | AG203: 12579.6 | AH203: 9720.6 | AI203: 9720.6 | AJ203: 9720.6 | AK203: 9720.6 | AL203: 9720.6 | AM203: =SUM(AM201:AM202) -> 9720.6 | AN203: 9720.6 | AO203: 9148.8 | AP203: 9148.8 | AQ203: 13833.6 | AR203: 13833.6 | AS203: 13833.6 | AT203: 10689.6 | AU203: 10689.6 | AV203: 10689.6 | AW203: 10689.6 | AX203: 10689.6 | AY203: 10689.6 | AZ203: 10689.6 | BA203: 10060.8 | BB203: 10060.8 | BC203: 15219.6 | BD203: 15219.6 | BE203: 15219.6 | BF203: 11760.6 | BG203: 11760.6 | BH203: 11760.6 | BI203: 11760.6 | BJ203: 11760.6 | BK203: 11760.6 | BL203: 11760.6 | BM203: 11068.8 | BN203: 11068.8
D205: =D189 -> Cooling-as-a-service / Mobile cold chain services
D206: =D201 -> Product #1: Main product, e.g., Octopus from Lamu | G206: =G137*G190 -> 113.4 | H206: 113.4 | I206: 113.4 | J206: 75.6 | K206: 75.6 | L206: 75.6 | M206: 75.6 | N206: 75.6 | O206: 75.6 | P206: 75.6 | Q206: 68.04 | R206: 68.04 | S206: 124.776 | T206: 124.776 | U206: 124.776 | V206: 83.184 | W206: 83.184 | X206: 83.184 | Y206: 83.184 | Z206: 83.184 | AA206: 83.184 | AB206: 83.184 | AC206: 74.8656 | AD206: 74.8656 | AE206: 137.232 | AF206: 137.232 | AG206: 137.232 | AH206: 91.488 | AI206: 91.488 | AJ206: 91.488 | AK206: 91.488 | AL206: 91.488 | AM206: =AM137*AM190 -> 91.488 | AN206: 91.488 | AO206: 82.3392 | AP206: 82.3392 | AQ206: 150.912 | AR206: 150.912 | AS206: 150.912 | AT206: 100.608 | AU206: 100.608 | AV206: 100.608 | AW206: 100.608 | AX206: 100.608 | AY206: 100.608 | AZ206: 100.608 | BA206: 90.5472 | BB206: 90.5472 | BC206: 166.032 | BD206: 166.032 | BE206: 166.032 | BF206: 110.688 | BG206: 110.688 | BH206: 110.688 | BI206: 110.688 | BJ206: 110.688 | BK206: 110.688 | BL206: 110.688 | BM206: 99.6192 | BN206: 99.6192
D207: =D202 -> Product #2: Add'l product, e.g., prawns from Lamu | G207: =G138*G191 -> 37.824 | H207: 37.824 | I207: 37.824 | J207: 37.824 | K207: 37.824 | L207: 37.824 | M207: 37.824 | N207: 37.824 | O207: 37.824 | P207: 37.824 | Q207: 37.824 | R207: 37.824 | S207: 41.568 | T207: 41.568 | U207: 41.568 | V207: 41.568 | W207: 41.568 | X207: 41.568 | Y207: 41.568 | Z207: 41.568 | AA207: 41.568 | AB207: 41.568 | AC207: 41.568 | AD207: 41.568 | AE207: 45.744 | AF207: 45.744 | AG207: 45.744 | AH207: 45.744 | AI207: 45.744 | AJ207: 45.744 | AK207: 45.744 | AL207: 45.744 | AM207: =AM138*AM191 -> 45.744 | AN207: 45.744 | AO207: 45.744 | AP207: 45.744 | AQ207: 50.304 | AR207: 50.304 | AS207: 50.304 | AT207: 50.304 | AU207: 50.304 | AV207: 50.304 | AW207: 50.304 | AX207: 50.304 | AY207: 50.304 | AZ207: 50.304 | BA207: 50.304 | BB207: 50.304 | BC207: 55.344 | BD207: 55.344 | BE207: 55.344 | BF207: 55.344 | BG207: 55.344 | BH207: 55.344 | BI207: 55.344 | BJ207: 55.344 | BK207: 55.344 | BL207: 55.344 | BM207: 55.344 | BN207: 55.344
G208: =SUM(G206:G207) -> 151.224 | H208: 151.224 | I208: 151.224 | J208: 113.424 | K208: 113.424 | L208: 113.424 | M208: 113.424 | N208: 113.424 | O208: 113.424 | P208: 113.424 | Q208: 105.864 | R208: 105.864 | S208: 166.344 | T208: 166.344 | U208: 166.344 | V208: 124.752 | W208: 124.752 | X208: 124.752 | Y208: 124.752 | Z208: 124.752 | AA208: 124.752 | AB208: 124.752 | AC208: 116.4336 | AD208: 116.4336 | AE208: 182.976 | AF208: 182.976 | AG208: 182.976 | AH208: 137.232 | AI208: 137.232 | AJ208: 137.232 | AK208: 137.232 | AL208: 137.232 | AM208: =SUM(AM206:AM207) -> 137.232 | AN208: 137.232 | AO208: 128.0832 | AP208: 128.0832 | AQ208: 201.216 | AR208: 201.216 | AS208: 201.216 | AT208: 150.912 | AU208: 150.912 | AV208: 150.912 | AW208: 150.912 | AX208: 150.912 | AY208: 150.912 | AZ208: 150.912 | BA208: 140.8512 | BB208: 140.8512 | BC208: 221.376 | BD208: 221.376 | BE208: 221.376 | BF208: 166.032 | BG208: 166.032 | BH208: 166.032 | BI208: 166.032 | BJ208: 166.032 | BK208: 166.032 | BL208: 166.032 | BM208: 154.9632 | BN208: 154.9632
D210: Overview: Total direct costs by business model
D211: =D200 -> Fish trading (Push/Pull) | G211: =G203 -> 10397.1 | H211: 10397.1 | I211: 10397.1 | J211: 8034.6 | K211: 8034.6 | L211: 8034.6 | M211: 8034.6 | N211: 8034.6 | O211: 8034.6 | P211: 8034.6 | Q211: 7562.1 | R211: 7562.1 | S211: 12995.4 | T211: 12995.4 | U211: 12995.4 | V211: 9876 | W211: 9876 | X211: 9876 | Y211: 9876 | Z211: 9876 | AA211: 9876 | AB211: 9876 | AC211: 9252.12 | AD211: 9252.12 | AE211: 12579.6 | AF211: 12579.6 | AG211: 12579.6 | AH211: 9720.6 | AI211: 9720.6 | AJ211: 9720.6 | AK211: 9720.6 | AL211: 9720.6 | AM211: =AM203 -> 9720.6 | AN211: 9720.6 | AO211: 9148.8 | AP211: 9148.8 | AQ211: 13833.6 | AR211: 13833.6 | AS211: 13833.6 | AT211: 10689.6 | AU211: 10689.6 | AV211: 10689.6 | AW211: 10689.6 | AX211: 10689.6 | AY211: 10689.6 | AZ211: 10689.6 | BA211: 10060.8 | BB211: 10060.8 | BC211: 15219.6 | BD211: 15219.6 | BE211: 15219.6 | BF211: 11760.6 | BG211: 11760.6 | BH211: 11760.6 | BI211: 11760.6 | BJ211: 11760.6 | BK211: 11760.6 | BL211: 11760.6 | BM211: 11068.8 | BN211: 11068.8
D212: =D205 -> Cooling-as-a-service / Mobile cold chain services | G212: =G208 -> 151.224 | H212: 151.224 | I212: 151.224 | J212: 113.424 | K212: 113.424 | L212: 113.424 | M212: 113.424 | N212: 113.424 | O212: 113.424 | P212: 113.424 | Q212: 105.864 | R212: 105.864 | S212: 166.344 | T212: 166.344 | U212: 166.344 | V212: 124.752 | W212: 124.752 | X212: 124.752 | Y212: 124.752 | Z212: 124.752 | AA212: 124.752 | AB212: 124.752 | AC212: 116.4336 | AD212: 116.4336 | AE212: 182.976 | AF212: 182.976 | AG212: 182.976 | AH212: 137.232 | AI212: 137.232 | AJ212: 137.232 | AK212: 137.232 | AL212: 137.232 | AM212: =AM208 -> 137.232 | AN212: 137.232 | AO212: 128.0832 | AP212: 128.0832 | AQ212: 201.216 | AR212: 201.216 | AS212: 201.216 | AT212: 150.912 | AU212: 150.912 | AV212: 150.912 | AW212: 150.912 | AX212: 150.912 | AY212: 150.912 | AZ212: 150.912 | BA212: 140.8512 | BB212: 140.8512 | BC212: 221.376 | BD212: 221.376 | BE212: 221.376 | BF212: 166.032 | BG212: 166.032 | BH212: 166.032 | BI212: 166.032 | BJ212: 166.032 | BK212: 166.032 | BL212: 166.032 | BM212: 154.9632 | BN212: 154.9632
D213: ="Selected business model: "&F$130 -> Selected business model: Fish trading (Push/Pull) | G213: =INDEX(G211:G212,MATCH($F$130,$D211:$D212,0)) -> 10397.1 | H213: 10397.1 | I213: 10397.1 | J213: 8034.6 | K213: 8034.6 | L213: 8034.6 | M213: 8034.6 | N213: 8034.6 | O213: 8034.6 | P213: 8034.6 | Q213: 7562.1 | R213: 7562.1 | S213: 12995.4 | T213: 12995.4 | U213: 12995.4 | V213: 9876 | W213: 9876 | X213: 9876 | Y213: 9876 | Z213: 9876 | AA213: 9876 | AB213: 9876 | AC213: 9252.12 | AD213: 9252.12 | AE213: 12579.6 | AF213: 12579.6 | AG213: 12579.6 | AH213: 9720.6 | AI213: 9720.6 | AJ213: 9720.6 | AK213: 9720.6 | AL213: 9720.6 | AM213: =INDEX(AM211:AM212,MATCH($F$130,$D211:$D212,0)) -> 9720.6 | AN213: 9720.6 | AO213: 9148.8 | AP213: 9148.8 | AQ213: 13833.6 | AR213: 13833.6 | AS213: 13833.6 | AT213: 10689.6 | AU213: 10689.6 | AV213: 10689.6 | AW213: 10689.6 | AX213: 10689.6 | AY213: 10689.6 | AZ213: 10689.6 | BA213: 10060.8 | BB213: 10060.8 | BC213: 15219.6 | BD213: 15219.6 | BE213: 15219.6 | BF213: 11760.6 | BG213: 11760.6 | BH213: 11760.6 | BI213: 11760.6 | BJ213: 11760.6 | BK213: 11760.6 | BL213: 11760.6 | BM213: 11068.8 | BN213: 11068.8
D215: Other revenue streams
D216: =D194 -> Side product #1: Ice sales (one unit is one 5kg bucket) | G216: =G141*G194 -> 63 | H216: 63 | I216: 63 | J216: 63 | K216: 63 | L216: 63 | M216: 63 | N216: 63 | O216: 63 | P216: 63 | Q216: 63 | R216: 63 | S216: 66.2 | T216: 66.2 | U216: 66.2 | V216: 66.2 | W216: 66.2 | X216: 66.2 | Y216: 66.2 | Z216: 66.2 | AA216: 66.2 | AB216: 66.2 | AC216: 66.2 | AD216: 66.2 | AE216: 69.4 | AF216: 69.4 | AG216: 69.4 | AH216: 69.4 | AI216: 69.4 | AJ216: 69.4 | AK216: 69.4 | AL216: 69.4 | AM216: =AM141*AM194 -> 69.4 | AN216: 69.4 | AO216: 69.4 | AP216: 69.4 | AQ216: 73 | AR216: 73 | AS216: 73 | AT216: 73 | AU216: 73 | AV216: 73 | AW216: 73 | AX216: 73 | AY216: 73 | AZ216: 73 | BA216: 73 | BB216: 73 | BC216: 76.6 | BD216: 76.6 | BE216: 76.6 | BF216: 76.6 | BG216: 76.6 | BH216: 76.6 | BI216: 76.6 | BJ216: 76.6 | BK216: 76.6 | BL216: 76.6 | BM216: 76.6 | BN216: 76.6
D217: =D195 -> Side product #2: Phone charging (one unit is one phone charge) | G217: =G142*G195 -> 4.74 | H217: 4.74 | I217: 4.74 | J217: 4.74 | K217: 4.74 | L217: 4.74 | M217: 4.74 | N217: 4.74 | O217: 4.74 | P217: 4.74 | Q217: 4.74 | R217: 4.74 | S217: 4.98 | T217: 4.98 | U217: 4.98 | V217: 4.98 | W217: 4.98 | X217: 4.98 | Y217: 4.98 | Z217: 4.98 | AA217: 4.98 | AB217: 4.98 | AC217: 4.98 | AD217: 4.98 | AE217: 5.22 | AF217: 5.22 | AG217: 5.22 | AH217: 5.22 | AI217: 5.22 | AJ217: 5.22 | AK217: 5.22 | AL217: 5.22 | AM217: =AM142*AM195 -> 5.22 | AN217: 5.22 | AO217: 5.22 | AP217: 5.22 | AQ217: 5.46 | AR217: 5.46 | AS217: 5.46 | AT217: 5.46 | AU217: 5.46 | AV217: 5.46 | AW217: 5.46 | AX217: 5.46 | AY217: 5.46 | AZ217: 5.46 | BA217: 5.46 | BB217: 5.46 | BC217: 5.76 | BD217: 5.76 | BE217: 5.76 | BF217: 5.76 | BG217: 5.76 | BH217: 5.76 | BI217: 5.76 | BJ217: 5.76 | BK217: 5.76 | BL217: 5.76 | BM217: 5.76 | BN217: 5.76
G218: =SUM(G216:G217) -> 67.74 | H218: 67.74 | I218: 67.74 | J218: 67.74 | K218: 67.74 | L218: 67.74 | M218: 67.74 | N218: 67.74 | O218: 67.74 | P218: 67.74 | Q218: 67.74 | R218: 67.74 | S218: 71.18 | T218: 71.18 | U218: 71.18 | V218: 71.18 | W218: 71.18 | X218: 71.18 | Y218: 71.18 | Z218: 71.18 | AA218: 71.18 | AB218: 71.18 | AC218: 71.18 | AD218: 71.18 | AE218: 74.62 | AF218: 74.62 | AG218: 74.62 | AH218: 74.62 | AI218: 74.62 | AJ218: 74.62 | AK218: 74.62 | AL218: 74.62 | AM218: =SUM(AM216:AM217) -> 74.62 | AN218: 74.62 | AO218: 74.62 | AP218: 74.62 | AQ218: 78.46 | AR218: 78.46 | AS218: 78.46 | AT218: 78.46 | AU218: 78.46 | AV218: 78.46 | AW218: 78.46 | AX218: 78.46 | AY218: 78.46 | AZ218: 78.46 | BA218: 78.46 | BB218: 78.46 | BC218: 82.36 | BD218: 82.36 | BE218: 82.36 | BF218: 82.36 | BG218: 82.36 | BH218: 82.36 | BI218: 82.36 | BJ218: 82.36 | BK218: 82.36 | BL218: 82.36 | BM218: 82.36 | BN218: 82.36
A221: x | D221: Other Cost of Goods Sold (COGS) and Operating Cost assumptions
A223: x | D223: Cost of goods sold (COGS)
